Workbook

Sheet Introduction
C4: Joint Monitoring Programme for Water Supply, Sanitation and Hygiene
C6: Estimates on household water, sanitation and hygiene by wealth quintile and sub-national region in
C7: =+Water!B5 -> India
C9: Updated May 2021
C11: Follow the links below to find the following information:
C13: JMP Estimates
C14: WASH status and trends by wealth quintile (customized quintiles made without water and sanitation assets)
C15: Water
C16: Sanitation
C17: Hygiene
C19: Data inputs
C20: customized wealth quintiles and subnational data:
C21: =IF(INDIRECT(CONCATENATE("Water","!B105"))=0,"",INDIRECT(CONCATENATE("Water","!B105"))) -> DHS06
C22: =IF(INDIRECT(CONCATENATE("Water","!B106"))=0,"",INDIRECT(CONCATENATE("Water","!B106"))) -> DHS16
C23: =IF(INDIRECT(CONCATENATE("Water","!B107"))=0,"",INDIRECT(CONCATENATE("Water","!B107"))) -> 
C24: =IF(INDIRECT(CONCATENATE("Water","!B108"))=0,"",INDIRECT(CONCATENATE("Water","!B108"))) -> 
C25: =IF(INDIRECT(CONCATENATE("Water","!B109"))=0,"",INDIRECT(CONCATENATE("Water","!B109"))) -> 
C26: =IF(INDIRECT(CONCATENATE("Water","!B110"))=0,"",INDIRECT(CONCATENATE("Water","!B110"))) -> 
C27: =IF(INDIRECT(CONCATENATE("Water","!B111"))=0,"",INDIRECT(CONCATENATE("Water","!B111"))) -> 
C28: =IF(INDIRECT(CONCATENATE("Water","!B112"))=0,"",INDIRECT(CONCATENATE("Water","!B112"))) -> 
C29: =IF(INDIRECT(CONCATENATE("Water","!B113"))=0,"",INDIRECT(CONCATENATE("Water","!B113"))) -> 
C30: =IF(INDIRECT(CONCATENATE("Water","!B114"))=0,"",INDIRECT(CONCATENATE("Water","!B114"))) -> 
C31: =IF(INDIRECT(CONCATENATE("Water","!B115"))=0,"",INDIRECT(CONCATENATE("Water","!B115"))) -> 
C32: =IF(INDIRECT(CONCATENATE("Water","!B116"))=0,"",INDIRECT(CONCATENATE("Water","!B116"))) -> 
L55: =+IF(ISNUMBER(M48), "", "Insufficient data to estimate safely managed sanitation services at national level") -> Insufficient data to estimate safely managed sanitation services at national level

Sheet Water
A1: BGD
B4: Summary of trends in use of drinking water by wealth quintile (%)
B5: =IF(ISERROR(INDIRECT(CONCATENATE($B105,"!A2"))),"",INDIRECT(CONCATENATE($B105,"!A2"))) -> India
B7: =B118 -> National use of drinking water sources, 2000–2020 | J7: =B218 -> Urban use of drinking water sources, 2000–2017 | R7: =B318 -> Rural use of drinking water sources, 2000–2017
B31: =IF(ISERROR(INDIRECT(CONCATENATE($B105,"!A2"))),"",INDIRECT(CONCATENATE($B105,"!A2"))) -> India | F31: Poorest | J31: Poor | N31: Middle | R31: Rich | V31: Richest
F32: Basic | G32: Limited | H32: Unimproved | I32: Surface water | J32: Basic | K32: Limited | L32: Unimproved | M32: Surface water | N32: Basic | O32: Limited | P32: Unimproved | Q32: Surface water | R32: Basic | S32: Limited | T32: Unimproved | U32: Surface water | V32: Basic | W32: Limited | X32: Unimproved | Y32: Surface water
B33: NATIONAL | D33: Estimate | E33: =C99 -> 2000 | F33: =E99 -> 73.071466 | G33: =F99 -> 4.322606586 | H33: 19.17275829 | I33: 3.433169116 | J33: =J99 -> 80.36423059 | K33: =K99 -> 3.140348586 | L33: 14.79356445 | M33: 1.701856375 | N33: =O99 -> 84.70515153 | O33: =P99 -> 2.719691614 | P33: 11.2515096 | Q33: 1.323647255 | R33: =T99 -> 88.56646994 | S33: =U99 -> 1.736329908 | T33: 8.505095259 | U33: 1.192104897 | V33: =Y99 -> 95.24524038 | W33: =Z99 -> 0.8132630439 | X33: 3.156388857 | Y33: 0.7851077146
E34: =C100 -> 2020 | F34: =E100 -> 86.88326866 | G34: 5.139655872 | H34: 7.291152028 | I34: 0.6859234431 | J34: =J100 -> 90.05249317 | K34: 3.518931463 | L34: 5.740854257 | M34: 0.68772111 | N34: =O100 -> 92.56423223 | O34: 2.972028993 | P34: 3.874006389 | Q34: 0.5897323875 | R34: =T100 -> 96.30812899 | S34: 1.888103758 | T34: 1.497645467 | U34: 0.306121782 | V34: =Y100 -> 98.24686393 | W34: 0.8388927708 | X34: 0.6911357289 | Y34: 0.2231075672
B36: URBAN | D36: Estimate | E36: =C199 -> 2000 | F36: =E199 -> 88.57797775 | G36: =F199 -> 4.209814656 | H36: 6.715380064 | I36: 0.4968275258 | J36: =J199 -> 92.12151835 | K36: =K199 -> 2.50509882 | L36: 4.452679619 | M36: 0.9207032094 | N36: =O199 -> 94.22256413 | O36: =P199 -> 1.227071426 | P36: 3.605069861 | Q36: 0.9452945799 | R36: =T199 -> 96.60906861 | S36: =U199 -> 0.8213258832 | T36: 1.647845288 | U36: 0.9217602192 | V36: =Y199 -> 97.59651966 | W36: =Z199 -> 0.5164113943 | X36: 1.064979632 | Y36: 0.8220893125
E37: =C200 -> 2017 | F37: =E200 -> 92.31810975 | G37: 4.387570605 | H37: 2.723230961 | I37: 0.5710886884 | J37: =J200 -> 95.91382357 | K37: 2.608224555 | L37: 1.153873079 | M37: 0.3240787937 | N37: =O200 -> 97.75347085 | O37: 1.273054835 | P37: 0.7256430311 | Q37: 0.2478312803 | R37: =T200 -> 98.39966841 | S37: 0.8365487395 | T37: 0.4833291968 | U37: 0.2804536499 | V37: =Y200 -> 98.89274646 | W37: 0.5232701049 | X37: 0.3565473142 | Y37: 0.2274361247
B39: RURAL | D39: Estimate | E39: =C299 -> 2000 | F39: =E299 -> 71.03108036 | G39: =F299 -> 4.460246561 | H39: 20.45201072 | I39: 4.056662354 | J39: =J299 -> 77.88230265 | K39: =K299 -> 3.186982101 | L39: 16.78998595 | M39: 2.140729297 | N39: =O299 -> 81.47592649 | O39: =P299 -> 2.992276922 | P39: 13.82379149 | Q39: 1.708005102 | R39: =T299 -> 82.73351853 | S39: =U299 -> 2.350214896 | T39: 13.49166707 | U39: 1.424599507 | V39: =Y299 -> 87.88201168 | W39: =Z299 -> 1.377684333 | X39: 9.720101659 | Y39: 1.020202326
E40: =C300 -> 2017 | F40: =E300 -> 85.19523057 | G40: 5.349654436 | H40: 8.513896194 | I40: 0.9412187974 | J40: =J300 -> 88.09974163 | K40: 3.605084726 | L40: 7.504266929 | M40: 0.7909067146 | N40: =O300 -> 89.35914352 | O40: 3.281795181 | P40: 6.586268291 | Q40: 0.7727930043 | R40: =T300 -> 92.01193456 | S40: 2.61378729 | T40: 4.719594517 | U40: 0.6546836292 | V40: =Y300 -> 95.39832202 | W40: 1.495513942 | X40: 2.705533932 | Y40: 0.4006301015
A97: NATIONAL | D97: Poorest | I97: Poor | N97: Middle | S97: Rich | X97: Richest
D98: Improved | E98: Basic | F98: Limited | G98: Unimproved | H98: Surface water | I98: Improved | J98: Basic | K98: Limited | L98: Unimproved | M98: Surface water | N98: Improved | O98: Basic | P98: Limited | Q98: Unimproved | R98: Surface water | S98: Improved | T98: Basic | U98: Limited | V98: Unimproved | W98: Surface water | X98: Improved | Y98: Basic | Z98: Limited | AA98: Unimproved | AB98: Surface water
A99: Forecast period: | C99: 2000 | D99: =IF((D101+H101)>100,D101*100/(D101+H101),D101) -> 77.39407259 | E99: =D99*AVERAGEIF(E105:E116,">0")/100 -> 73.071466 | F99: =D99*(100-AVERAGEIF(E105:E116,">0"))/100 -> 4.322606586 | G99: =100-(E99+F99+H99) -> 19.17275829 | H99: =IF((D101+H101)>100,H101*100/(D101+H101),H101) -> 3.433169116 | I99: =IF((I101+M101)>100,I101*100/(I101+M101),I101) -> 83.50457918 | J99: =I99*AVERAGEIF(J105:J116,">0")/100 -> 80.36423059 | K99: =I99*(100-AVERAGEIF(J105:J116,">0"))/100 -> 3.140348586 | L99: =100-(J99+K99+M99) -> 14.79356445 | M99: =IF((I101+M101)>100,M101*100/(I101+M101),M101) -> 1.701856375 | N99: =IF((N101+R101)>100,N101*100/(N101+R101),N101) -> 87.42484315 | O99: =N99*AVERAGEIF(O105:O116,">0")/100 -> 84.70515153 | P99: =N99*(100-AVERAGEIF(O105:O116,">0"))/100 -> 2.719691614 | Q99: =100-(O99+P99+R99) -> 11.2515096 | R99: =IF((N101+R101)>100,R101*100/(N101+R101),R101) -> 1.323647255 | S99: =IF((S101+W101)>100,S101*100/(S101+W101),S101) -> 90.30279984 | T99: =S99*AVERAGEIF(T105:T116,">0")/100 -> 88.56646994 | U99: =S99*(100-AVERAGEIF(T105:T116,">0"))/100 -> 1.736329908 | V99: =100-(T99+U99+W99) -> 8.505095259 | W99: =IF((S101+W101)>100,W101*100/(S101+W101),W101) -> 1.192104897 | X99: =IF((X101+AB101)>100,X101*100/(X101+AB101),X101) -> 96.05850343 | Y99: =X99*AVERAGEIF(Y105:Y116,">0")/100 -> 95.24524038 | Z99: =X99*(100-AVERAGEIF(Y105:Y116,">0"))/100 -> 0.8132630439 | AA99: =100-(Y99+Z99+AB99) -> 3.156388857 | AB99: =IF((X101+AB101)>100,AB101*100/(X101+AB101),AB101) -> 0.7851077146
C100: 2020 | D100: =IF((D102+H102)>100,D102*100/(D102+H102),D102) -> 92.02292453 | E100: =D100*AVERAGEIF(E105:E116,">0")/100 -> 86.88326866 | F100: =D100*(100-AVERAGEIF(E105:E116,">0"))/100 -> 5.139655872 | G100: =100-(E100+F100+H100) -> 7.291152028 | H100: =IF((D102+H102)>100,H102*100/(D102+H102),H102) -> 0.6859234431 | I100: =IF((I102+M102)>100,I102*100/(I102+M102),I102) -> 93.57142463 | J100: =I100*AVERAGEIF(J105:J116,">0")/100 -> 90.05249317 | K100: =I100*(100-AVERAGEIF(J105:J116,">0"))/100 -> 3.518931463 | L100: =100-(J100+K100+M100) -> 5.740854257 | M100: =IF((I102+M102)>100,M102*100/(I102+M102),M102) -> 0.68772111 | N100: =IF((N102+R102)>100,N102*100/(N102+R102),N102) -> 95.53626122 | O100: =N100*AVERAGEIF(O105:O116,">0")/100 -> 92.56423223 | P100: =N100*(100-AVERAGEIF(O105:O116,">0"))/100 -> 2.972028993 | Q100: =100-(O100+P100+R100) -> 3.874006389 | R100: =IF((N102+R102)>100,R102*100/(N102+R102),R102) -> 0.5897323875 | S100: =IF((S102+W102)>100,S102*100/(S102+W102),S102) -> 98.19623275 | T100: =S100*AVERAGEIF(T105:T116,">0")/100 -> 96.30812899 | U100: =S100*(100-AVERAGEIF(T105:T116,">0"))/100 -> 1.888103758 | V100: =100-(T100+U100+W100) -> 1.497645467 | W100: =IF((S102+W102)>100,W102*100/(S102+W102),W102) -> 0.306121782 | X100: =IF((X102+AB102)>100,X102*100/(X102+AB102),X102) -> 99.0857567 | Y100: =X100*AVERAGEIF(Y105:Y116,">0")/100 -> 98.24686393 | Z100: =X100*(100-AVERAGEIF(Y105:Y116,">0"))/100 -> 0.8388927708 | AA100: =100-(Y100+Z100+AB100) -> 0.6911357289 | AB100: =IF((X102+AB102)>100,AB102*100/(X102+AB102),AB102) -> 0.2231075672
A101: Regression period: | C101: =MinRegYear(C99,C105:C116) -> 2004 | D101: =IF(MAX(C105:C116)-MIN(C105:C116)<5,AVERAGEIF(C105:C116,">0",D105:D116), IF(FORECAST($C101,D$105:D$116,$C$105:$C$116)<0,0, IF(FORECAST($C101,D$105:D$116,$C$105:$C$116)>100,100, FORECAST($C101,D$105:D$116,$C$105:$C$116)))) -> 77.39407259 | H101: =IF(MAX(C105:C116)-MIN(C105:C116)<5,AVERAGEIF(C105:C116,">0",H105:H116), IF(FORECAST($C101,H$105:H$116,$C$105:$C$116)<0,0, IF(FORECAST($C101,H$105:H$116,$C$105:$C$116)>100,100, FORECAST($C101,H$105:H$116,$C$105:$C$116)))) -> 3.433169116 | I101: =IF(MAX(C105:C116)-MIN(C105:C116)<5,AVERAGEIF(C105:C116,">0",I105:I116), IF(FORECAST($C101,I$105:I$116,$C$105:$C$116)<0,0, IF(FORECAST($C101,I$105:I$116,$C$105:$C$116)>100,100, FORECAST($C101,I$105:I$116,$C$105:$C$116)))) -> 83.50457918 | M101: =IF(MAX(C105:C116)-MIN(C105:C116)<5,AVERAGEIF(C105:C116,">0",M105:M116), IF(FORECAST($C101,M$105:M$116,$C$105:$C$116)<0,0, IF(FORECAST($C101,M$105:M$116,$C$105:$C$116)>100,100, FORECAST($C101,M$105:M$116,$C$105:$C$116)))) -> 1.701856375 | N101: =IF(MAX(C105:C116)-MIN(C105:C116)<5,AVERAGEIF(C105:C116,">0",N105:N116), IF(FORECAST($C101,N$105:N$116,$C$105:$C$116)<0,0, IF(FORECAST($C101,N$105:N$116,$C$105:$C$116)>100,100, FORECAST($C101,N$105:N$116,$C$105:$C$116)))) -> 87.42484315 | R101: =IF(MAX(C105:C116)-MIN(C105:C116)<5,AVERAGEIF(C105:C116,">0",R105:R116), IF(FORECAST($C101,R$105:R$116,$C$105:$C$116)<0,0, IF(FORECAST($C101,R$105:R$116,$C$105:$C$116)>100,100, FORECAST($C101,R$105:R$116,$C$105:$C$116)))) -> 1.323647255 | S101: =IF(MAX(C105:C116)-MIN(C105:C116)<5,AVERAGEIF(C105:C116,">0",S105:S116), IF(FORECAST($C101,S$105:S$116,$C$105:$C$116)<0,0, IF(FORECAST($C101,S$105:S$116,$C$105:$C$116)>100,100, FORECAST($C101,S$105:S$116,$C$105:$C$116)))) -> 90.30279984 | W101: =IF(MAX(C105:C116)-MIN(C105:C116)<5,AVERAGEIF(C105:C116,">0",W105:W116), IF(FORECAST($C101,W$105:W$116,$C$105:$C$116)<0,0, IF(FORECAST($C101,W$105:W$116,$C$105:$C$116)>100,100, FORECAST($C101,W$105:W$116,$C$105:$C$116)))) -> 1.192104897 | X101: =IF(MAX(C105:C116)-MIN(C105:C116)<5,AVERAGEIF(C105:C116,">0",X105:X116), IF(FORECAST($C101,X$105:X$116,$C$105:$C$116)<0,0, IF(FORECAST($C101,X$105:X$116,$C$105:$C$116)>100,100, FORECAST($C101,X$105:X$116,$C$105:$C$116)))) -> 96.05850343 | AB101: =IF(MAX(C105:C116)-MIN(C105:C116)<5,AVERAGEIF(C105:C116,">0",AB105:AB116), IF(FORECAST($C101,AB$105:AB$116,$C$105:$C$116)<0,0, IF(FORECAST($C101,AB$105:AB$116,$C$105:$C$116)>100,100, FORECAST($C101,AB$105:AB$116,$C$105:$C$116)))) -> 0.7851077146
C102: =MaxRegYear(C100,C105:C116) -> 2018 | D102: =IF(MAX(C105:C116)-MIN(C105:C116)<5,AVERAGEIF(C105:C116,">0",D105:D116), IF(FORECAST($C102,D$105:D$116,$C$105:$C$116)<0,0, IF(FORECAST($C102,D$105:D$116,$C$105:$C$116)>100,100, FORECAST($C102,D$105:D$116,$C$105:$C$116)))) -> 92.02292453 | H102: =IF(MAX(C105:C116)-MIN(C105:C116)<5,AVERAGEIF(C105:C116,">0",H105:H116), IF(FORECAST($C102,H$105:H$116,$C$105:$C$116)<0,0, IF(FORECAST($C102,H$105:H$116,$C$105:$C$116)>100,100, FORECAST($C102,H$105:H$116,$C$105:$C$116)))) -> 0.6859234431 | I102: =IF(MAX(C105:C116)-MIN(C105:C116)<5,AVERAGEIF(C105:C116,">0",I105:I116), IF(FORECAST($C102,I$105:I$116,$C$105:$C$116)<0,0, IF(FORECAST($C102,I$105:I$116,$C$105:$C$116)>100,100, FORECAST($C102,I$105:I$116,$C$105:$C$116)))) -> 93.57142463 | M102: =IF(MAX(C105:C116)-MIN(C105:C116)<5,AVERAGEIF(C105:C116,">0",M105:M116), IF(FORECAST($C102,M$105:M$116,$C$105:$C$116)<0,0, IF(FORECAST($C102,M$105:M$116,$C$105:$C$116)>100,100, FORECAST($C102,M$105:M$116,$C$105:$C$116)))) -> 0.68772111 | N102: =IF(MAX(C105:C116)-MIN(C105:C116)<5,AVERAGEIF(C105:C116,">0",N105:N116), IF(FORECAST($C102,N$105:N$116,$C$105:$C$116)<0,0, IF(FORECAST($C102,N$105:N$116,$C$105:$C$116)>100,100, FORECAST($C102,N$105:N$116,$C$105:$C$116)))) -> 95.53626122 | R102: =IF(MAX(C105:C116)-MIN(C105:C116)<5,AVERAGEIF(C105:C116,">0",R105:R116), IF(FORECAST($C102,R$105:R$116,$C$105:$C$116)<0,0, IF(FORECAST($C102,R$105:R$116,$C$105:$C$116)>100,100, FORECAST($C102,R$105:R$116,$C$105:$C$116)))) -> 0.5897323875 | S102: =IF(MAX(C105:C116)-MIN(C105:C116)<5,AVERAGEIF(C105:C116,">0",S105:S116), IF(FORECAST($C102,S$105:S$116,$C$105:$C$116)<0,0, IF(FORECAST($C102,S$105:S$116,$C$105:$C$116)>100,100, FORECAST($C102,S$105:S$116,$C$105:$C$116)))) -> 98.19623275 | W102: =IF(MAX(C105:C116)-MIN(C105:C116)<5,AVERAGEIF(C105:C116,">0",W105:W116), IF(FORECAST($C102,W$105:W$116,$C$105:$C$116)<0,0, IF(FORECAST($C102,W$105:W$116,$C$105:$C$116)>100,100, FORECAST($C102,W$105:W$116,$C$105:$C$116)))) -> 0.306121782 | X102: =IF(MAX(C105:C116)-MIN(C105:C116)<5,AVERAGEIF(C105:C116,">0",X105:X116), IF(FORECAST($C102,X$105:X$116,$C$105:$C$116)<0,0, IF(FORECAST($C102,X$105:X$116,$C$105:$C$116)>100,100, FORECAST($C102,X$105:X$116,$C$105:$C$116)))) -> 99.0857567 | AB102: =IF(MAX(C105:C116)-MIN(C105:C116)<5,AVERAGEIF(C105:C116,">0",AB105:AB116), IF(FORECAST($C102,AB$105:AB$116,$C$105:$C$116)<0,0, IF(FORECAST($C102,AB$105:AB$116,$C$105:$C$116)>100,100, FORECAST($C102,AB$105:AB$116,$C$105:$C$116)))) -> 0.2231075672
B104: Survey | C104: Year | D104: Improved | E104: % Improved < = 30min | H104: Surface water | I104: Improved | J104: % Improved < = 30min | M104: Surface water | N104: Improved | O104: % Improved < = 30min | R104: Surface water | S104: Improved | T104: % Improved < = 30min | W104: Surface water | X104: Improved | Y104: % Improved < = 30min | AB104: Surface water
B105: DHS06 | C105: 2006 | D105: =IF(ISERROR(INDIRECT(CONCATENATE($B105,"!C16"))),"",INDIRECT(CONCATENATE($B105,"!C16"))) -> 79.48390858 | E105: =IF(ISERROR(INDIRECT(CONCATENATE($B105,"!C23"))),"",INDIRECT(CONCATENATE($B105,"!C23"))) -> 92.26509222 | H105: =IF(ISERROR(INDIRECT(CONCATENATE($B105,"!C21"))),"",INDIRECT(CONCATENATE($B105,"!C21"))) -> 3.040705448 | I105: =IF(ISERROR(INDIRECT(CONCATENATE($B105,"!D16"))),"",INDIRECT(CONCATENATE($B105,"!D16"))) -> 84.94269996 | J105: =IF(ISERROR(INDIRECT(CONCATENATE($B105,"!D23"))),"",INDIRECT(CONCATENATE($B105,"!D23"))) -> 95.32771195 | M105: =IF(ISERROR(INDIRECT(CONCATENATE($B105,"!D21"))),"",INDIRECT(CONCATENATE($B105,"!D21"))) -> 1.556979908 | N105: =IF(ISERROR(INDIRECT(CONCATENATE($B105,"!E16"))),"",INDIRECT(CONCATENATE($B105,"!E16"))) -> 88.58361716 | O105: =IF(ISERROR(INDIRECT(CONCATENATE($B105,"!E23"))),"",INDIRECT(CONCATENATE($B105,"!E23"))) -> 95.98030644 | R105: =IF(ISERROR(INDIRECT(CONCATENATE($B105,"!E21"))),"",INDIRECT(CONCATENATE($B105,"!E21"))) -> 1.218802274 | S105: =IF(ISERROR(INDIRECT(CONCATENATE($B105,"!F16"))),"",INDIRECT(CONCATENATE($B105,"!F16"))) -> 91.43043312 | T105: =IF(ISERROR(INDIRECT(CONCATENATE($B105,"!F23"))),"",INDIRECT(CONCATENATE($B105,"!F23"))) -> 97.38815162 | W105: =IF(ISERROR(INDIRECT(CONCATENATE($B105,"!F21"))),"",INDIRECT(CONCATENATE($B105,"!F21"))) -> 1.06553588 | X105: =IF(ISERROR(INDIRECT(CONCATENATE($B105,"!G16"))),"",INDIRECT(CONCATENATE($B105,"!G16"))) -> 96.49096818 | Y105: =IF(ISERROR(INDIRECT(CONCATENATE($B105,"!G23"))),"",INDIRECT(CONCATENATE($B105,"!G23"))) -> 98.8798568 | AB105: =IF(ISERROR(INDIRECT(CONCATENATE($B105,"!G221"))),"",INDIRECT(CONCATENATE($B105,"!G21"))) -> 0.7048219792
B106: DHS16 | C106: 2016 | D106: 89.93308854 | E106: 96.56452627 | H106: 1.078387111 | I106: 92.13330385 | J106: 97.1509075 | M106: 0.8325975764 | N106: 94.37748721 | O106: 97.79791148 | R106: 0.6945773685 | S106: 97.06859948 | T106: 98.76627568 | W106: 0.4326907984 | X106: 98.65329195 | Y106: 99.42687709 | AB106: 0.3033933025
D111: =IF(ISERROR(INDIRECT(CONCATENATE($B111,"!C16"))),"",INDIRECT(CONCATENATE($B111,"!C16"))) ->  | E111: =IF(ISERROR(INDIRECT(CONCATENATE($B111,"!C23"))),"",INDIRECT(CONCATENATE($B111,"!C23"))) ->  | H111: =IF(ISERROR(INDIRECT(CONCATENATE($B111,"!C21"))),"",INDIRECT(CONCATENATE($B111,"!C21"))) ->  | I111: =IF(ISERROR(INDIRECT(CONCATENATE($B111,"!D16"))),"",INDIRECT(CONCATENATE($B111,"!D16"))) ->  | J111: =IF(ISERROR(INDIRECT(CONCATENATE($B111,"!D23"))),"",INDIRECT(CONCATENATE($B111,"!D23"))) ->  | M111: =IF(ISERROR(INDIRECT(CONCATENATE($B111,"!D21"))),"",INDIRECT(CONCATENATE($B111,"!D21"))) ->  | N111: =IF(ISERROR(INDIRECT(CONCATENATE($B111,"!E16"))),"",INDIRECT(CONCATENATE($B111,"!E16"))) ->  | O111: =IF(ISERROR(INDIRECT(CONCATENATE($B111,"!E23"))),"",INDIRECT(CONCATENATE($B111,"!E23"))) ->  | R111: =IF(ISERROR(INDIRECT(CONCATENATE($B111,"!E21"))),"",INDIRECT(CONCATENATE($B111,"!E21"))) ->  | S111: =IF(ISERROR(INDIRECT(CONCATENATE($B111,"!F16"))),"",INDIRECT(CONCATENATE($B111,"!F16"))) ->  | T111: =IF(ISERROR(INDIRECT(CONCATENATE($B111,"!F23"))),"",INDIRECT(CONCATENATE($B111,"!F23"))) ->  | W111: =IF(ISERROR(INDIRECT(CONCATENATE($B111,"!F21"))),"",INDIRECT(CONCATENATE($B111,"!F21"))) ->  | X111: =IF(ISERROR(INDIRECT(CONCATENATE($B111,"!G16"))),"",INDIRECT(CONCATENATE($B111,"!G16"))) ->  | Y111: =IF(ISERROR(INDIRECT(CONCATENATE($B111,"!G23"))),"",INDIRECT(CONCATENATE($B111,"!G23"))) ->  | AB111: =IF(ISERROR(INDIRECT(CONCATENATE($B111,"!G221"))),"",INDIRECT(CONCATENATE($B111,"!G21"))) -> 
D112: =IF(ISERROR(INDIRECT(CONCATENATE($B112,"!C16"))),"",INDIRECT(CONCATENATE($B112,"!C16"))) ->  | E112: =IF(ISERROR(INDIRECT(CONCATENATE($B112,"!C23"))),"",INDIRECT(CONCATENATE($B112,"!C23"))) ->  | H112: =IF(ISERROR(INDIRECT(CONCATENATE($B112,"!C21"))),"",INDIRECT(CONCATENATE($B112,"!C21"))) ->  | I112: =IF(ISERROR(INDIRECT(CONCATENATE($B112,"!D16"))),"",INDIRECT(CONCATENATE($B112,"!D16"))) ->  | J112: =IF(ISERROR(INDIRECT(CONCATENATE($B112,"!D23"))),"",INDIRECT(CONCATENATE($B112,"!D23"))) ->  | M112: =IF(ISERROR(INDIRECT(CONCATENATE($B112,"!D21"))),"",INDIRECT(CONCATENATE($B112,"!D21"))) ->  | N112: =IF(ISERROR(INDIRECT(CONCATENATE($B112,"!E16"))),"",INDIRECT(CONCATENATE($B112,"!E16"))) ->  | O112: =IF(ISERROR(INDIRECT(CONCATENATE($B112,"!E23"))),"",INDIRECT(CONCATENATE($B112,"!E23"))) ->  | R112: =IF(ISERROR(INDIRECT(CONCATENATE($B112,"!E21"))),"",INDIRECT(CONCATENATE($B112,"!E21"))) ->  | S112: =IF(ISERROR(INDIRECT(CONCATENATE($B112,"!F16"))),"",INDIRECT(CONCATENATE($B112,"!F16"))) ->  | T112: =IF(ISERROR(INDIRECT(CONCATENATE($B112,"!F23"))),"",INDIRECT(CONCATENATE($B112,"!F23"))) ->  | W112: =IF(ISERROR(INDIRECT(CONCATENATE($B112,"!F21"))),"",INDIRECT(CONCATENATE($B112,"!F21"))) ->  | X112: =IF(ISERROR(INDIRECT(CONCATENATE($B112,"!G16"))),"",INDIRECT(CONCATENATE($B112,"!G16"))) ->  | Y112: =IF(ISERROR(INDIRECT(CONCATENATE($B112,"!G23"))),"",INDIRECT(CONCATENATE($B112,"!G23"))) ->  | AB112: =IF(ISERROR(INDIRECT(CONCATENATE($B112,"!G221"))),"",INDIRECT(CONCATENATE($B112,"!G21"))) -> 
B118: =CONCATENATE("National use of drinking water sources, ",C99,"–",C100) -> National use of drinking water sources, 2000–2020 | S118: Data points used for regression
E153: =IF(ISERROR(INDIRECT(CONCATENATE($B153,"!M18"))),"",INDIRECT(CONCATENATE($B153,"!M18"))) ->  | F153: =IF(ISERROR(INDIRECT(CONCATENATE($B153,"!M19"))),"",INDIRECT(CONCATENATE($B153,"!M19"))) ->  | G153: =IF(ISERROR(INDIRECT(CONCATENATE($B153,"!M20"))),"",INDIRECT(CONCATENATE($B153,"!M20"))) ->  | H153: =IF(ISERROR(INDIRECT(CONCATENATE($B153,"!M21"))),"",INDIRECT(CONCATENATE($B153,"!M21"))) ->  | J153: =IF(ISERROR(INDIRECT(CONCATENATE($B153,"!N18"))),"",INDIRECT(CONCATENATE($B153,"!N18"))) ->  | K153: =IF(ISERROR(INDIRECT(CONCATENATE($B153,"!N19"))),"",INDIRECT(CONCATENATE($B153,"!N19"))) ->  | L153: =IF(ISERROR(INDIRECT(CONCATENATE($B153,"!N20"))),"",INDIRECT(CONCATENATE($B153,"!N20"))) ->  | M153: =IF(ISERROR(INDIRECT(CONCATENATE($B153,"!N21"))),"",INDIRECT(CONCATENATE($B153,"!N21"))) ->  | O153: =IF(ISERROR(INDIRECT(CONCATENATE($B153,"!O18"))),"",INDIRECT(CONCATENATE($B153,"!O18"))) ->  | P153: =IF(ISERROR(INDIRECT(CONCATENATE($B153,"!O19"))),"",INDIRECT(CONCATENATE($B153,"!O19"))) ->  | Q153: =IF(ISERROR(INDIRECT(CONCATENATE($B153,"!O20"))),"",INDIRECT(CONCATENATE($B153,"!O20"))) ->  | R153: =IF(ISERROR(INDIRECT(CONCATENATE($B153,"!O21"))),"",INDIRECT(CONCATENATE($B153,"!O21"))) ->  | T153: =IF(ISERROR(INDIRECT(CONCATENATE($B153,"!P18"))),"",INDIRECT(CONCATENATE($B153,"!P18"))) ->  | U153: =IF(ISERROR(INDIRECT(CONCATENATE($B153,"!P19"))),"",INDIRECT(CONCATENATE($B153,"!P19"))) ->  | V153: =IF(ISERROR(INDIRECT(CONCATENATE($B153,"!P20"))),"",INDIRECT(CONCATENATE($B153,"!P20"))) ->  | W153: =IF(ISERROR(INDIRECT(CONCATENATE($B153,"!P21"))),"",INDIRECT(CONCATENATE($B153,"!P21"))) ->  | Y153: =IF(ISERROR(INDIRECT(CONCATENATE($B153,"!Q18"))),"",INDIRECT(CONCATENATE($B153,"!Q18"))) ->  | Z153: =IF(ISERROR(INDIRECT(CONCATENATE($B153,"!Q19"))),"",INDIRECT(CONCATENATE($B153,"!Q19"))) ->  | AA153: =IF(ISERROR(INDIRECT(CONCATENATE($B153,"!Q20"))),"",INDIRECT(CONCATENATE($B153,"!Q20"))) ->  | AB153: =IF(ISERROR(INDIRECT(CONCATENATE($B153,"!Q21"))),"",INDIRECT(CONCATENATE($B153,"!Q1"))) -> 
A197: URBAN | D197: Poorest | I197: Poor | N197: Middle | S197: Rich | X197: Richest
D198: Improved | E198: Basic | F198: Limited | G198: Unimproved | H198: Surface water | I198: Improved | J198: Basic | K198: Limited | L198: Unimproved | M198: Surface water | N198: Improved | O198: Basic | P198: Limited | Q198: Unimproved | R198: Surface water | S198: Improved | T198: Basic | U198: Limited | V198: Unimproved | W198: Surface water | X198: Improved | Y198: Basic | Z198: Limited | AA198: Unimproved | AB198: Surface water
A199: Forecast period: | C199: 2000 | D199: =IF((D201+H201)>100,D201*100/(D201+H201),D201) -> 92.78779241 | E199: =D199*AVERAGEIF(E205:E216,">0")/100 -> 88.57797775 | F199: =D199*(100-AVERAGEIF(E205:E216,">0"))/100 -> 4.209814656 | G199: =100-(E199+F199+H199) -> 6.715380064 | H199: =IF((D201+H201)>100,H201*100/(D201+H201),H201) -> 0.4968275258 | I199: =IF((I201+M201)>100,I201*100/(I201+M201),I201) -> 94.62661717 | J199: =I199*AVERAGEIF(J205:J216,">0")/100 -> 92.12151835 | K199: =I199*(100-AVERAGEIF(J205:J216,">0"))/100 -> 2.50509882 | L199: =100-(J199+K199+M199) -> 4.452679619 | M199: =IF((I201+M201)>100,M201*100/(I201+M201),M201) -> 0.9207032094 | N199: =IF((N201+R201)>100,N201*100/(N201+R201),N201) -> 95.44963556 | O199: =N199*AVERAGEIF(O205:O216,">0")/100 -> 94.22256413 | P199: =N199*(100-AVERAGEIF(O205:O216,">0"))/100 -> 1.227071426 | Q199: =100-(O199+P199+R199) -> 3.605069861 | R199: =IF((N201+R201)>100,R201*100/(N201+R201),R201) -> 0.9452945799 | S199: =IF((S201+W201)>100,S201*100/(S201+W201),S201) -> 97.43039449 | T199: =S199*AVERAGEIF(T205:T216,">0")/100 -> 96.60906861 | U199: =S199*(100-AVERAGEIF(T205:T216,">0"))/100 -> 0.8213258832 | V199: =100-(T199+U199+W199) -> 1.647845288 | W199: =IF((S201+W201)>100,W201*100/(S201+W201),W201) -> 0.9217602192 | X199: =IF((X201+AB201)>100,X201*100/(X201+AB201),X201) -> 98.11293106 | Y199: =X199*AVERAGEIF(Y205:Y216,">0")/100 -> 97.59651966 | Z199: =X199*(100-AVERAGEIF(Y205:Y216,">0"))/100 -> 0.5164113943 | AA199: =100-(Y199+Z199+AB199) -> 1.064979632 | AB199: =IF((X201+AB201)>100,AB201*100/(X201+AB201),AB201) -> 0.8220893125
C200: 2017 | D200: =IF((D202+H202)>100,D202*100/(D202+H202),D202) -> 96.70568035 | E200: =D200*AVERAGEIF(E205:E216,">0")/100 -> 92.31810975 | F200: =D200*(100-AVERAGEIF(E205:E216,">0"))/100 -> 4.387570605 | G200: =100-(E200+F200+H200) -> 2.723230961 | H200: =IF((D202+H202)>100,H202*100/(D202+H202),H202) -> 0.5710886884 | I200: =IF((I202+M202)>100,I202*100/(I202+M202),I202) -> 98.52204813 | J200: =I200*AVERAGEIF(J205:J216,">0")/100 -> 95.91382357 | K200: =I200*(100-AVERAGEIF(J205:J216,">0"))/100 -> 2.608224555 | L200: =100-(J200+K200+M200) -> 1.153873079 | M200: =IF((I202+M202)>100,M202*100/(I202+M202),M202) -> 0.3240787937 | N200: =IF((N202+R202)>100,N202*100/(N202+R202),N202) -> 99.02652569 | O200: =N200*AVERAGEIF(O205:O216,">0")/100 -> 97.75347085 | P200: =N200*(100-AVERAGEIF(O205:O216,">0"))/100 -> 1.273054835 | Q200: =100-(O200+P200+R200) -> 0.7256430311 | R200: =IF((N202+R202)>100,R202*100/(N202+R202),R202) -> 0.2478312803 | S200: =IF((S202+W202)>100,S202*100/(S202+W202),S202) -> 99.23621715 | T200: =S200*AVERAGEIF(T205:T216,">0")/100 -> 98.39966841 | U200: =S200*(100-AVERAGEIF(T205:T216,">0"))/100 -> 0.8365487395 | V200: =100-(T200+U200+W200) -> 0.4833291968 | W200: =IF((S202+W202)>100,W202*100/(S202+W202),W202) -> 0.2804536499 | X200: =IF((X202+AB202)>100,X202*100/(X202+AB202),X202) -> 99.41601656 | Y200: =X200*AVERAGEIF(Y205:Y216,">0")/100 -> 98.89274646 | Z200: =X200*(100-AVERAGEIF(Y205:Y216,">0"))/100 -> 0.5232701049 | AA200: =100-(Y200+Z200+AB200) -> 0.3565473142 | AB200: =IF((X202+AB202)>100,AB202*100/(X202+AB202),AB202) -> 0.2274361247
A201: Regression period: | C201: =MinRegYear(C199,C205:C216) -> 2004 | D201: =IF(MAX(C205:C216)-MIN(C205:C216)<5,AVERAGEIF(C205:C216,">0",D205:D216), IF(FORECAST($C201,D$205:D$216,$C$205:$C$216)<0,0, IF(FORECAST($C201,D$205:D$216,$C$205:$C$216)>100,100, FORECAST($C201,D$205:D$216,$C$205:$C$216)))) -> 92.78779241 | H201: =IF(MAX(C205:C216)-MIN(C205:C216)<5,AVERAGEIF(C205:C216,">0",H205:H216), IF(FORECAST($C201,H$205:H$216,$C$205:$C$216)<0,0, IF(FORECAST($C201,H$205:H$216,$C$205:$C$216)>100,100, FORECAST($C201,H$205:H$216,$C$205:$C$216)))) -> 0.4968275258 | I201: =IF(MAX(C205:C216)-MIN(C205:C216)<5,AVERAGEIF(C205:C216,">0",I205:I216), IF(FORECAST($C201,I$205:I$216,$C$205:$C$216)<0,0, IF(FORECAST($C201,I$205:I$216,$C$205:$C$216)>100,100, FORECAST($C201,I$205:I$216,$C$205:$C$216)))) -> 94.62661717 | M201: =IF(MAX(C205:C216)-MIN(C205:C216)<5,AVERAGEIF(C205:C216,">0",M205:M216), IF(FORECAST($C201,M$205:M$216,$C$205:$C$216)<0,0, IF(FORECAST($C201,M$205:M$216,$C$205:$C$216)>100,100, FORECAST($C201,M$205:M$216,$C$205:$C$216)))) -> 0.9207032094 | N201: =IF(MAX(C205:C216)-MIN(C205:C216)<5,AVERAGEIF(C205:C216,">0",N205:N216), IF(FORECAST($C201,N$205:N$216,$C$205:$C$216)<0,0, IF(FORECAST($C201,N$205:N$216,$C$205:$C$216)>100,100, FORECAST($C201,N$205:N$216,$C$205:$C$216)))) -> 95.44963556 | R201: =IF(MAX(C205:C216)-MIN(C205:C216)<5,AVERAGEIF(C205:C216,">0",R205:R216), IF(FORECAST($C201,R$205:R$216,$C$205:$C$216)<0,0, IF(FORECAST($C201,R$205:R$216,$C$205:$C$216)>100,100, FORECAST($C201,R$205:R$216,$C$205:$C$216)))) -> 0.9452945799 | S201: =IF(MAX(C205:C216)-MIN(C205:C216)<5,AVERAGEIF(C205:C216,">0",S205:S216), IF(FORECAST($C201,S$205:S$216,$C$205:$C$216)<0,0, IF(FORECAST($C201,S$205:S$216,$C$205:$C$216)>100,100, FORECAST($C201,S$205:S$216,$C$205:$C$216)))) -> 97.43039449 | W201: =IF(MAX(C205:C216)-MIN(C205:C216)<5,AVERAGEIF(C205:C216,">0",W205:W216), IF(FORECAST($C201,W$205:W$216,$C$205:$C$216)<0,0, IF(FORECAST($C201,W$205:W$216,$C$205:$C$216)>100,100, FORECAST($C201,W$205:W$216,$C$205:$C$216)))) -> 0.9217602192 | X201: =IF(MAX(C205:C216)-MIN(C205:C216)<5,AVERAGEIF(C205:C216,">0",X205:X216), IF(FORECAST($C201,X$205:X$216,$C$205:$C$216)<0,0, IF(FORECAST($C201,X$205:X$216,$C$205:$C$216)>100,100, FORECAST($C201,X$205:X$216,$C$205:$C$216)))) -> 98.11293106 | AB201: =IF(MAX(C205:C216)-MIN(C205:C216)<5,AVERAGEIF(C205:C216,">0",AB205:AB216), IF(FORECAST($C201,AB$205:AB$216,$C$205:$C$216)<0,0, IF(FORECAST($C201,AB$205:AB$216,$C$205:$C$216)>100,100, FORECAST($C201,AB$205:AB$216,$C$205:$C$216)))) -> 0.8220893125
C202: =MaxRegYear(C200,C205:C216) -> 2017 | D202: =IF(MAX(C205:C216)-MIN(C205:C216)<5,AVERAGEIF(C205:C216,">0",D205:D216), IF(FORECAST($C202,D$205:D$216,$C$205:$C$216)<0,0, IF(FORECAST($C202,D$205:D$216,$C$205:$C$216)>100,100, FORECAST($C202,D$205:D$216,$C$205:$C$216)))) -> 96.70568035 | H202: =IF(MAX(C205:C216)-MIN(C205:C216)<5,AVERAGEIF(C205:C216,">0",H205:H216), IF(FORECAST($C202,H$205:H$216,$C$205:$C$216)<0,0, IF(FORECAST($C202,H$205:H$216,$C$205:$C$216)>100,100, FORECAST($C202,H$205:H$216,$C$205:$C$216)))) -> 0.5710886884 | I202: =IF(MAX(C205:C216)-MIN(C205:C216)<5,AVERAGEIF(C205:C216,">0",I205:I216), IF(FORECAST($C202,I$205:I$216,$C$205:$C$216)<0,0, IF(FORECAST($C202,I$205:I$216,$C$205:$C$216)>100,100, FORECAST($C202,I$205:I$216,$C$205:$C$216)))) -> 98.52204813 | M202: =IF(MAX(C205:C216)-MIN(C205:C216)<5,AVERAGEIF(C205:C216,">0",M205:M216), IF(FORECAST($C202,M$205:M$216,$C$205:$C$216)<0,0, IF(FORECAST($C202,M$205:M$216,$C$205:$C$216)>100,100, FORECAST($C202,M$205:M$216,$C$205:$C$216)))) -> 0.3240787937 | N202: =IF(MAX(C205:C216)-MIN(C205:C216)<5,AVERAGEIF(C205:C216,">0",N205:N216), IF(FORECAST($C202,N$205:N$216,$C$205:$C$216)<0,0, IF(FORECAST($C202,N$205:N$216,$C$205:$C$216)>100,100, FORECAST($C202,N$205:N$216,$C$205:$C$216)))) -> 99.02652569 | R202: =IF(MAX(C205:C216)-MIN(C205:C216)<5,AVERAGEIF(C205:C216,">0",R205:R216), IF(FORECAST($C202,R$205:R$216,$C$205:$C$216)<0,0, IF(FORECAST($C202,R$205:R$216,$C$205:$C$216)>100,100, FORECAST($C202,R$205:R$216,$C$205:$C$216)))) -> 0.2478312803 | S202: =IF(MAX(C205:C216)-MIN(C205:C216)<5,AVERAGEIF(C205:C216,">0",S205:S216), IF(FORECAST($C202,S$205:S$216,$C$205:$C$216)<0,0, IF(FORECAST($C202,S$205:S$216,$C$205:$C$216)>100,100, FORECAST($C202,S$205:S$216,$C$205:$C$216)))) -> 99.23621715 | W202: =IF(MAX(C205:C216)-MIN(C205:C216)<5,AVERAGEIF(C205:C216,">0",W205:W216), IF(FORECAST($C202,W$205:W$216,$C$205:$C$216)<0,0, IF(FORECAST($C202,W$205:W$216,$C$205:$C$216)>100,100, FORECAST($C202,W$205:W$216,$C$205:$C$216)))) -> 0.2804536499 | X202: =IF(MAX(C205:C216)-MIN(C205:C216)<5,AVERAGEIF(C205:C216,">0",X205:X216), IF(FORECAST($C202,X$205:X$216,$C$205:$C$216)<0,0, IF(FORECAST($C202,X$205:X$216,$C$205:$C$216)>100,100, FORECAST($C202,X$205:X$216,$C$205:$C$216)))) -> 99.41601656 | AB202: =IF(MAX(C205:C216)-MIN(C205:C216)<5,AVERAGEIF(C205:C216,">0",AB205:AB216), IF(FORECAST($C202,AB$205:AB$216,$C$205:$C$216)<0,0, IF(FORECAST($C202,AB$205:AB$216,$C$205:$C$216)>100,100, FORECAST($C202,AB$205:AB$216,$C$205:$C$216)))) -> 0.2274361247
B204: Survey | C204: Year | D204: Improved | E204: % Improved < = 30min | H204: Surface water | I204: Improved | J204: % Improved < = 30min | M204: Surface water | N204: Improved | O204: % Improved < = 30min | R204: Surface water | S204: Improved | T204: % Improved < = 30min | W204: Surface water | X204: Improved | Y204: % Improved < = 30min | AB204: Surface water
B205: DHS06 | C205: 2006 | D205: =IF(ISERROR(INDIRECT(CONCATENATE($B205,"!H16"))),"",INDIRECT(CONCATENATE($B205,"!H16"))) -> 93.3905444 | E205: =IF(ISERROR(INDIRECT(CONCATENATE($B205,"!H23"))),"",INDIRECT(CONCATENATE($B205,"!H23"))) -> 93.67604151 | H205: =IF(ISERROR(INDIRECT(CONCATENATE($B205,"!H21"))),"",INDIRECT(CONCATENATE($B205,"!H21"))) -> 0.50825232 | I205: =IF(ISERROR(INDIRECT(CONCATENATE($B205,"!I16"))),"",INDIRECT(CONCATENATE($B205,"!I16"))) -> 95.22591424 | J205: =IF(ISERROR(INDIRECT(CONCATENATE($B205,"!I23"))),"",INDIRECT(CONCATENATE($B205,"!I23"))) -> 96.27825307 | M205: =IF(ISERROR(INDIRECT(CONCATENATE($B205,"!I21"))),"",INDIRECT(CONCATENATE($B205,"!I21"))) -> 0.8289148377 | N205: =IF(ISERROR(INDIRECT(CONCATENATE($B205,"!J16"))),"",INDIRECT(CONCATENATE($B205,"!J16"))) -> 95.99992635 | O205: =IF(ISERROR(INDIRECT(CONCATENATE($B205,"!J23"))),"",INDIRECT(CONCATENATE($B205,"!J23"))) -> 98.2164493 | R205: =IF(ISERROR(INDIRECT(CONCATENATE($B205,"!J21"))),"",INDIRECT(CONCATENATE($B205,"!J21"))) -> 0.8379925338 | S205: =IF(ISERROR(INDIRECT(CONCATENATE($B205,"!K16"))),"",INDIRECT(CONCATENATE($B205,"!K16"))) -> 97.70821336 | T205: =IF(ISERROR(INDIRECT(CONCATENATE($B205,"!K23"))),"",INDIRECT(CONCATENATE($B205,"!K23"))) -> 98.88642054 | W205: =IF(ISERROR(INDIRECT(CONCATENATE($B205,"!K21"))),"",INDIRECT(CONCATENATE($B205,"!K21"))) -> 0.82309767 | X205: =IF(ISERROR(INDIRECT(CONCATENATE($B205,"!L16"))),"",INDIRECT(CONCATENATE($B205,"!L16"))) -> 98.31340575 | Y205: =IF(ISERROR(INDIRECT(CONCATENATE($B205,"!L23"))),"",INDIRECT(CONCATENATE($B205,"!L23"))) -> 99.46391805 | AB205: =IF(ISERROR(INDIRECT(CONCATENATE($B205,"!L221"))),"",INDIRECT(CONCATENATE($B205,"!L21"))) -> 0.7306042067
B206: DHS16 | C206: 2016 | D206: 96.40430436 | E206: 97.2498884 | H206: 0.5653762912 | I206: 98.22239959 | J206: 98.42704467 | M206: 0.3699729795 | N206: 98.75138029 | O206: 99.21241165 | R206: 0.3014823033 | S206: 99.09730772 | T206: 99.4276048 | W206: 0.3297849245 | X206: 99.31577921 | Y206: 99.48339422 | AB206: 0.2731786776
B218: =CONCATENATE("Urban use of drinking water sources, ",C199,"–",C200) -> Urban use of drinking water sources, 2000–2017 | S218: Data points used for regression
E253: =IF(ISERROR(INDIRECT(CONCATENATE($B253,"!M18"))),"",INDIRECT(CONCATENATE($B253,"!M18"))) ->  | F253: =IF(ISERROR(INDIRECT(CONCATENATE($B253,"!M19"))),"",INDIRECT(CONCATENATE($B253,"!M19"))) ->  | G253: =IF(ISERROR(INDIRECT(CONCATENATE($B253,"!M20"))),"",INDIRECT(CONCATENATE($B253,"!M20"))) ->  | H253: =IF(ISERROR(INDIRECT(CONCATENATE($B253,"!M21"))),"",INDIRECT(CONCATENATE($B253,"!M21"))) ->  | J253: =IF(ISERROR(INDIRECT(CONCATENATE($B253,"!N18"))),"",INDIRECT(CONCATENATE($B253,"!N18"))) ->  | K253: =IF(ISERROR(INDIRECT(CONCATENATE($B253,"!N19"))),"",INDIRECT(CONCATENATE($B253,"!N19"))) ->  | L253: =IF(ISERROR(INDIRECT(CONCATENATE($B253,"!N20"))),"",INDIRECT(CONCATENATE($B253,"!N20"))) ->  | M253: =IF(ISERROR(INDIRECT(CONCATENATE($B253,"!N21"))),"",INDIRECT(CONCATENATE($B253,"!N21"))) ->  | O253: =IF(ISERROR(INDIRECT(CONCATENATE($B253,"!O18"))),"",INDIRECT(CONCATENATE($B253,"!O18"))) ->  | P253: =IF(ISERROR(INDIRECT(CONCATENATE($B253,"!O19"))),"",INDIRECT(CONCATENATE($B253,"!O19"))) ->  | Q253: =IF(ISERROR(INDIRECT(CONCATENATE($B253,"!O20"))),"",INDIRECT(CONCATENATE($B253,"!O20"))) ->  | R253: =IF(ISERROR(INDIRECT(CONCATENATE($B253,"!O21"))),"",INDIRECT(CONCATENATE($B253,"!O21"))) ->  | T253: =IF(ISERROR(INDIRECT(CONCATENATE($B253,"!P18"))),"",INDIRECT(CONCATENATE($B253,"!P18"))) ->  | U253: =IF(ISERROR(INDIRECT(CONCATENATE($B253,"!P19"))),"",INDIRECT(CONCATENATE($B253,"!P19"))) ->  | V253: =IF(ISERROR(INDIRECT(CONCATENATE($B253,"!P20"))),"",INDIRECT(CONCATENATE($B253,"!P20"))) ->  | W253: =IF(ISERROR(INDIRECT(CONCATENATE($B253,"!P21"))),"",INDIRECT(CONCATENATE($B253,"!P21"))) ->  | Y253: =IF(ISERROR(INDIRECT(CONCATENATE($B253,"!Q18"))),"",INDIRECT(CONCATENATE($B253,"!Q18"))) ->  | Z253: =IF(ISERROR(INDIRECT(CONCATENATE($B253,"!Q19"))),"",INDIRECT(CONCATENATE($B253,"!Q19"))) ->  | AA253: =IF(ISERROR(INDIRECT(CONCATENATE($B253,"!Q20"))),"",INDIRECT(CONCATENATE($B253,"!Q20"))) ->  | AB253: =IF(ISERROR(INDIRECT(CONCATENATE($B253,"!Q21"))),"",INDIRECT(CONCATENATE($B253,"!Q1"))) -> 
E254: =IF(ISERROR(INDIRECT(CONCATENATE($B254,"!M18"))),"",INDIRECT(CONCATENATE($B254,"!M18"))) ->  | F254: =IF(ISERROR(INDIRECT(CONCATENATE($B254,"!M19"))),"",INDIRECT(CONCATENATE($B254,"!M19"))) ->  | G254: =IF(ISERROR(INDIRECT(CONCATENATE($B254,"!M20"))),"",INDIRECT(CONCATENATE($B254,"!M20"))) ->  | H254: =IF(ISERROR(INDIRECT(CONCATENATE($B254,"!M21"))),"",INDIRECT(CONCATENATE($B254,"!M21"))) ->  | J254: =IF(ISERROR(INDIRECT(CONCATENATE($B254,"!N18"))),"",INDIRECT(CONCATENATE($B254,"!N18"))) ->  | K254: =IF(ISERROR(INDIRECT(CONCATENATE($B254,"!N19"))),"",INDIRECT(CONCATENATE($B254,"!N19"))) ->  | L254: =IF(ISERROR(INDIRECT(CONCATENATE($B254,"!N20"))),"",INDIRECT(CONCATENATE($B254,"!N20"))) ->  | M254: =IF(ISERROR(INDIRECT(CONCATENATE($B254,"!N21"))),"",INDIRECT(CONCATENATE($B254,"!N21"))) ->  | O254: =IF(ISERROR(INDIRECT(CONCATENATE($B254,"!O18"))),"",INDIRECT(CONCATENATE($B254,"!O18"))) ->  | P254: =IF(ISERROR(INDIRECT(CONCATENATE($B254,"!O19"))),"",INDIRECT(CONCATENATE($B254,"!O19"))) ->  | Q254: =IF(ISERROR(INDIRECT(CONCATENATE($B254,"!O20"))),"",INDIRECT(CONCATENATE($B254,"!O20"))) ->  | R254: =IF(ISERROR(INDIRECT(CONCATENATE($B254,"!O21"))),"",INDIRECT(CONCATENATE($B254,"!O21"))) ->  | T254: =IF(ISERROR(INDIRECT(CONCATENATE($B254,"!P18"))),"",INDIRECT(CONCATENATE($B254,"!P18"))) ->  | U254: =IF(ISERROR(INDIRECT(CONCATENATE($B254,"!P19"))),"",INDIRECT(CONCATENATE($B254,"!P19"))) ->  | V254: =IF(ISERROR(INDIRECT(CONCATENATE($B254,"!P20"))),"",INDIRECT(CONCATENATE($B254,"!P20"))) ->  | W254: =IF(ISERROR(INDIRECT(CONCATENATE($B254,"!P21"))),"",INDIRECT(CONCATENATE($B254,"!P21"))) ->  | Y254: =IF(ISERROR(INDIRECT(CONCATENATE($B254,"!Q18"))),"",INDIRECT(CONCATENATE($B254,"!Q18"))) ->  | Z254: =IF(ISERROR(INDIRECT(CONCATENATE($B254,"!Q19"))),"",INDIRECT(CONCATENATE($B254,"!Q19"))) ->  | AA254: =IF(ISERROR(INDIRECT(CONCATENATE($B254,"!Q20"))),"",INDIRECT(CONCATENATE($B254,"!Q20"))) ->  | AB254: =IF(ISERROR(INDIRECT(CONCATENATE($B254,"!Q21"))),"",INDIRECT(CONCATENATE($B254,"!Q1"))) -> 
E255: =IF(ISERROR(INDIRECT(CONCATENATE($B255,"!M18"))),"",INDIRECT(CONCATENATE($B255,"!M18"))) ->  | F255: =IF(ISERROR(INDIRECT(CONCATENATE($B255,"!M19"))),"",INDIRECT(CONCATENATE($B255,"!M19"))) ->  | G255: =IF(ISERROR(INDIRECT(CONCATENATE($B255,"!M20"))),"",INDIRECT(CONCATENATE($B255,"!M20"))) ->  | H255: =IF(ISERROR(INDIRECT(CONCATENATE($B255,"!M21"))),"",INDIRECT(CONCATENATE($B255,"!M21"))) ->  | J255: =IF(ISERROR(INDIRECT(CONCATENATE($B255,"!N18"))),"",INDIRECT(CONCATENATE($B255,"!N18"))) ->  | K255: =IF(ISERROR(INDIRECT(CONCATENATE($B255,"!N19"))),"",INDIRECT(CONCATENATE($B255,"!N19"))) ->  | L255: =IF(ISERROR(INDIRECT(CONCATENATE($B255,"!N20"))),"",INDIRECT(CONCATENATE($B255,"!N20"))) ->  | M255: =IF(ISERROR(INDIRECT(CONCATENATE($B255,"!N21"))),"",INDIRECT(CONCATENATE($B255,"!N21"))) ->  | O255: =IF(ISERROR(INDIRECT(CONCATENATE($B255,"!O18"))),"",INDIRECT(CONCATENATE($B255,"!O18"))) ->  | P255: =IF(ISERROR(INDIRECT(CONCATENATE($B255,"!O19"))),"",INDIRECT(CONCATENATE($B255,"!O19"))) ->  | Q255: =IF(ISERROR(INDIRECT(CONCATENATE($B255,"!O20"))),"",INDIRECT(CONCATENATE($B255,"!O20"))) ->  | R255: =IF(ISERROR(INDIRECT(CONCATENATE($B255,"!O21"))),"",INDIRECT(CONCATENATE($B255,"!O21"))) ->  | T255: =IF(ISERROR(INDIRECT(CONCATENATE($B255,"!P18"))),"",INDIRECT(CONCATENATE($B255,"!P18"))) ->  | U255: =IF(ISERROR(INDIRECT(CONCATENATE($B255,"!P19"))),"",INDIRECT(CONCATENATE($B255,"!P19"))) ->  | V255: =IF(ISERROR(INDIRECT(CONCATENATE($B255,"!P20"))),"",INDIRECT(CONCATENATE($B255,"!P20"))) ->  | W255: =IF(ISERROR(INDIRECT(CONCATENATE($B255,"!P21"))),"",INDIRECT(CONCATENATE($B255,"!P21"))) ->  | Y255: =IF(ISERROR(INDIRECT(CONCATENATE($B255,"!Q18"))),"",INDIRECT(CONCATENATE($B255,"!Q18"))) ->  | Z255: =IF(ISERROR(INDIRECT(CONCATENATE($B255,"!Q19"))),"",INDIRECT(CONCATENATE($B255,"!Q19"))) ->  | AA255: =IF(ISERROR(INDIRECT(CONCATENATE($B255,"!Q20"))),"",INDIRECT(CONCATENATE($B255,"!Q20"))) ->  | AB255: =IF(ISERROR(INDIRECT(CONCATENATE($B255,"!Q21"))),"",INDIRECT(CONCATENATE($B255,"!Q1"))) -> 
E256: =IF(ISERROR(INDIRECT(CONCATENATE($B256,"!M18"))),"",INDIRECT(CONCATENATE($B256,"!M18"))) ->  | F256: =IF(ISERROR(INDIRECT(CONCATENATE($B256,"!M19"))),"",INDIRECT(CONCATENATE($B256,"!M19"))) ->  | G256: =IF(ISERROR(INDIRECT(CONCATENATE($B256,"!M20"))),"",INDIRECT(CONCATENATE($B256,"!M20"))) ->  | H256: =IF(ISERROR(INDIRECT(CONCATENATE($B256,"!M21"))),"",INDIRECT(CONCATENATE($B256,"!M21"))) ->  | J256: =IF(ISERROR(INDIRECT(CONCATENATE($B256,"!N18"))),"",INDIRECT(CONCATENATE($B256,"!N18"))) ->  | K256: =IF(ISERROR(INDIRECT(CONCATENATE($B256,"!N19"))),"",INDIRECT(CONCATENATE($B256,"!N19"))) ->  | L256: =IF(ISERROR(INDIRECT(CONCATENATE($B256,"!N20"))),"",INDIRECT(CONCATENATE($B256,"!N20"))) ->  | M256: =IF(ISERROR(INDIRECT(CONCATENATE($B256,"!N21"))),"",INDIRECT(CONCATENATE($B256,"!N21"))) ->  | O256: =IF(ISERROR(INDIRECT(CONCATENATE($B256,"!O18"))),"",INDIRECT(CONCATENATE($B256,"!O18"))) ->  | P256: =IF(ISERROR(INDIRECT(CONCATENATE($B256,"!O19"))),"",INDIRECT(CONCATENATE($B256,"!O19"))) ->  | Q256: =IF(ISERROR(INDIRECT(CONCATENATE($B256,"!O20"))),"",INDIRECT(CONCATENATE($B256,"!O20"))) ->  | R256: =IF(ISERROR(INDIRECT(CONCATENATE($B256,"!O21"))),"",INDIRECT(CONCATENATE($B256,"!O21"))) ->  | T256: =IF(ISERROR(INDIRECT(CONCATENATE($B256,"!P18"))),"",INDIRECT(CONCATENATE($B256,"!P18"))) ->  | U256: =IF(ISERROR(INDIRECT(CONCATENATE($B256,"!P19"))),"",INDIRECT(CONCATENATE($B256,"!P19"))) ->  | V256: =IF(ISERROR(INDIRECT(CONCATENATE($B256,"!P20"))),"",INDIRECT(CONCATENATE($B256,"!P20"))) ->  | W256: =IF(ISERROR(INDIRECT(CONCATENATE($B256,"!P21"))),"",INDIRECT(CONCATENATE($B256,"!P21"))) ->  | Y256: =IF(ISERROR(INDIRECT(CONCATENATE($B256,"!Q18"))),"",INDIRECT(CONCATENATE($B256,"!Q18"))) ->  | Z256: =IF(ISERROR(INDIRECT(CONCATENATE($B256,"!Q19"))),"",INDIRECT(CONCATENATE($B256,"!Q19"))) ->  | AA256: =IF(ISERROR(INDIRECT(CONCATENATE($B256,"!Q20"))),"",INDIRECT(CONCATENATE($B256,"!Q20"))) ->  | AB256: =IF(ISERROR(INDIRECT(CONCATENATE($B256,"!Q21"))),"",INDIRECT(CONCATENATE($B256,"!Q1"))) -> 
E257: =IF(ISERROR(INDIRECT(CONCATENATE($B257,"!M18"))),"",INDIRECT(CONCATENATE($B257,"!M18"))) ->  | F257: =IF(ISERROR(INDIRECT(CONCATENATE($B257,"!M19"))),"",INDIRECT(CONCATENATE($B257,"!M19"))) ->  | G257: =IF(ISERROR(INDIRECT(CONCATENATE($B257,"!M20"))),"",INDIRECT(CONCATENATE($B257,"!M20"))) ->  | H257: =IF(ISERROR(INDIRECT(CONCATENATE($B257,"!M21"))),"",INDIRECT(CONCATENATE($B257,"!M21"))) ->  | J257: =IF(ISERROR(INDIRECT(CONCATENATE($B257,"!N18"))),"",INDIRECT(CONCATENATE($B257,"!N18"))) ->  | K257: =IF(ISERROR(INDIRECT(CONCATENATE($B257,"!N19"))),"",INDIRECT(CONCATENATE($B257,"!N19"))) ->  | L257: =IF(ISERROR(INDIRECT(CONCATENATE($B257,"!N20"))),"",INDIRECT(CONCATENATE($B257,"!N20"))) ->  | M257: =IF(ISERROR(INDIRECT(CONCATENATE($B257,"!N21"))),"",INDIRECT(CONCATENATE($B257,"!N21"))) ->  | O257: =IF(ISERROR(INDIRECT(CONCATENATE($B257,"!O18"))),"",INDIRECT(CONCATENATE($B257,"!O18"))) ->  | P257: =IF(ISERROR(INDIRECT(CONCATENATE($B257,"!O19"))),"",INDIRECT(CONCATENATE($B257,"!O19"))) ->  | Q257: =IF(ISERROR(INDIRECT(CONCATENATE($B257,"!O20"))),"",INDIRECT(CONCATENATE($B257,"!O20"))) ->  | R257: =IF(ISERROR(INDIRECT(CONCATENATE($B257,"!O21"))),"",INDIRECT(CONCATENATE($B257,"!O21"))) ->  | T257: =IF(ISERROR(INDIRECT(CONCATENATE($B257,"!P18"))),"",INDIRECT(CONCATENATE($B257,"!P18"))) ->  | U257: =IF(ISERROR(INDIRECT(CONCATENATE($B257,"!P19"))),"",INDIRECT(CONCATENATE($B257,"!P19"))) ->  | V257: =IF(ISERROR(INDIRECT(CONCATENATE($B257,"!P20"))),"",INDIRECT(CONCATENATE($B257,"!P20"))) ->  | W257: =IF(ISERROR(INDIRECT(CONCATENATE($B257,"!P21"))),"",INDIRECT(CONCATENATE($B257,"!P21"))) ->  | Y257: =IF(ISERROR(INDIRECT(CONCATENATE($B257,"!Q18"))),"",INDIRECT(CONCATENATE($B257,"!Q18"))) ->  | Z257: =IF(ISERROR(INDIRECT(CONCATENATE($B257,"!Q19"))),"",INDIRECT(CONCATENATE($B257,"!Q19"))) ->  | AA257: =IF(ISERROR(INDIRECT(CONCATENATE($B257,"!Q20"))),"",INDIRECT(CONCATENATE($B257,"!Q20"))) ->  | AB257: =IF(ISERROR(INDIRECT(CONCATENATE($B257,"!Q21"))),"",INDIRECT(CONCATENATE($B257,"!Q1"))) -> 
A297: RURAL | D297: Poorest | I297: Poor | N297: Middle | S297: Rich | X297: Richest
D298: Improved | E298: Basic | F298: Limited | G298: Unimproved | H298: Surface water | I298: Improved | J298: Basic | K298: Limited | L298: Unimproved | M298: Surface water | N298: Improved | O298: Basic | P298: Limited | Q298: Unimproved | R298: Surface water | S298: Improved | T298: Basic | U298: Limited | V298: Unimproved | W298: Surface water | X298: Improved | Y298: Basic | Z298: Limited | AA298: Unimproved | AB298: Surface water
A299: Forecast period: | C299: 2000 | D299: =IF((D301+H301)>100,D301*100/(D301+H301),D301) -> 75.49132692 | E299: =D299*AVERAGEIF(E305:E316,">0")/100 -> 71.03108036 | F299: =D299*(100-AVERAGEIF(E305:E316,">0"))/100 -> 4.460246561 | G299: =100-(E299+F299+H299) -> 20.45201072 | H299: =IF((D301+H301)>100,H301*100/(D301+H301),H301) -> 4.056662354 | I299: =IF((I301+M301)>100,I301*100/(I301+M301),I301) -> 81.06928475 | J299: =I299*AVERAGEIF(J305:J316,">0")/100 -> 77.88230265 | K299: =I299*(100-AVERAGEIF(J305:J316,">0"))/100 -> 3.186982101 | L299: =100-(J299+K299+M299) -> 16.78998595 | M299: =IF((I301+M301)>100,M301*100/(I301+M301),M301) -> 2.140729297 | N299: =IF((N301+R301)>100,N301*100/(N301+R301),N301) -> 84.46820341 | O299: =N299*AVERAGEIF(O305:O316,">0")/100 -> 81.47592649 | P299: =N299*(100-AVERAGEIF(O305:O316,">0"))/100 -> 2.992276922 | Q299: =100-(O299+P299+R299) -> 13.82379149 | R299: =IF((N301+R301)>100,R301*100/(N301+R301),R301) -> 1.708005102 | S299: =IF((S301+W301)>100,S301*100/(S301+W301),S301) -> 85.08373343 | T299: =S299*AVERAGEIF(T305:T316,">0")/100 -> 82.73351853 | U299: =S299*(100-AVERAGEIF(T305:T316,">0"))/100 -> 2.350214896 | V299: =100-(T299+U299+W299) -> 13.49166707 | W299: =IF((S301+W301)>100,W301*100/(S301+W301),W301) -> 1.424599507 | X299: =IF((X301+AB301)>100,X301*100/(X301+AB301),X301) -> 89.25969602 | Y299: =X299*AVERAGEIF(Y305:Y316,">0")/100 -> 87.88201168 | Z299: =X299*(100-AVERAGEIF(Y305:Y316,">0"))/100 -> 1.377684333 | AA299: =100-(Y299+Z299+AB299) -> 9.720101659 | AB299: =IF((X301+AB301)>100,AB301*100/(X301+AB301),AB301) -> 1.020202326
C300: 2017 | D300: =IF((D302+H302)>100,D302*100/(D302+H302),D302) -> 90.54488501 | E300: =D300*AVERAGEIF(E305:E316,">0")/100 -> 85.19523057 | F300: =D300*(100-AVERAGEIF(E305:E316,">0"))/100 -> 5.349654436 | G300: =100-(E300+F300+H300) -> 8.513896194 | H300: =IF((D302+H302)>100,H302*100/(D302+H302),H302) -> 0.9412187974 | I300: =IF((I302+M302)>100,I302*100/(I302+M302),I302) -> 91.70482636 | J300: =I300*AVERAGEIF(J305:J316,">0")/100 -> 88.09974163 | K300: =I300*(100-AVERAGEIF(J305:J316,">0"))/100 -> 3.605084726 | L300: =100-(J300+K300+M300) -> 7.504266929 | M300: =IF((I302+M302)>100,M302*100/(I302+M302),M302) -> 0.7909067146 | N300: =IF((N302+R302)>100,N302*100/(N302+R302),N302) -> 92.6409387 | O300: =N300*AVERAGEIF(O305:O316,">0")/100 -> 89.35914352 | P300: =N300*(100-AVERAGEIF(O305:O316,">0"))/100 -> 3.281795181 | Q300: =100-(O300+P300+R300) -> 6.586268291 | R300: =IF((N302+R302)>100,R302*100/(N302+R302),R302) -> 0.7727930043 | S300: =IF((S302+W302)>100,S302*100/(S302+W302),S302) -> 94.62572185 | T300: =S300*AVERAGEIF(T305:T316,">0")/100 -> 92.01193456 | U300: =S300*(100-AVERAGEIF(T305:T316,">0"))/100 -> 2.61378729 | V300: =100-(T300+U300+W300) -> 4.719594517 | W300: =IF((S302+W302)>100,W302*100/(S302+W302),W302) -> 0.6546836292 | X300: =IF((X302+AB302)>100,X302*100/(X302+AB302),X302) -> 96.89383597 | Y300: =X300*AVERAGEIF(Y305:Y316,">0")/100 -> 95.39832202 | Z300: =X300*(100-AVERAGEIF(Y305:Y316,">0"))/100 -> 1.495513942 | AA300: =100-(Y300+Z300+AB300) -> 2.705533932 | AB300: =IF((X302+AB302)>100,AB302*100/(X302+AB302),AB302) -> 0.4006301015
A301: Regression period: | C301: =MinRegYear(C299,C305:C316) -> 2004 | D301: =IF(MAX(C305:C316)-MIN(C305:C316)<5,AVERAGEIF(C305:C316,">0",D305:D316), IF(FORECAST($C301,D$305:D$316,$C$305:$C$316)<0,0, IF(FORECAST($C301,D$305:D$316,$C$305:$C$316)>100,100, FORECAST($C301,D$305:D$316,$C$305:$C$316)))) -> 75.49132692 | H301: =IF(MAX(C305:C316)-MIN(C305:C316)<5,AVERAGEIF(C305:C316,">0",H305:H316), IF(FORECAST($C301,H$305:H$316,$C$305:$C$316)<0,0, IF(FORECAST($C301,H$305:H$316,$C$305:$C$316)>100,100, FORECAST($C301,H$305:H$316,$C$305:$C$316)))) -> 4.056662354 | I301: =IF(MAX(C305:C316)-MIN(C305:C316)<5,AVERAGEIF(C305:C316,">0",I305:I316), IF(FORECAST($C301,I$305:I$316,$C$305:$C$316)<0,0, IF(FORECAST($C301,I$305:I$316,$C$305:$C$316)>100,100, FORECAST($C301,I$305:I$316,$C$305:$C$316)))) -> 81.06928475 | M301: =IF(MAX(C305:C316)-MIN(C305:C316)<5,AVERAGEIF(C305:C316,">0",M305:M316), IF(FORECAST($C301,M$305:M$316,$C$305:$C$316)<0,0, IF(FORECAST($C301,M$305:M$316,$C$305:$C$316)>100,100, FORECAST($C301,M$305:M$316,$C$305:$C$316)))) -> 2.140729297 | N301: =IF(MAX(C305:C316)-MIN(C305:C316)<5,AVERAGEIF(C305:C316,">0",N305:N316), IF(FORECAST($C301,N$305:N$316,$C$305:$C$316)<0,0, IF(FORECAST($C301,N$305:N$316,$C$305:$C$316)>100,100, FORECAST($C301,N$305:N$316,$C$305:$C$316)))) -> 84.46820341 | R301: =IF(MAX(C305:C316)-MIN(C305:C316)<5,AVERAGEIF(C305:C316,">0",R305:R316), IF(FORECAST($C301,R$305:R$316,$C$305:$C$316)<0,0, IF(FORECAST($C301,R$305:R$316,$C$305:$C$316)>100,100, FORECAST($C301,R$305:R$316,$C$305:$C$316)))) -> 1.708005102 | S301: =IF(MAX(C305:C316)-MIN(C305:C316)<5,AVERAGEIF(C305:C316,">0",S305:S316), IF(FORECAST($C301,S$305:S$316,$C$305:$C$316)<0,0, IF(FORECAST($C301,S$305:S$316,$C$305:$C$316)>100,100, FORECAST($C301,S$305:S$316,$C$305:$C$316)))) -> 85.08373343 | W301: =IF(MAX(C305:C316)-MIN(C305:C316)<5,AVERAGEIF(C305:C316,">0",W305:W316), IF(FORECAST($C301,W$305:W$316,$C$305:$C$316)<0,0, IF(FORECAST($C301,W$305:W$316,$C$305:$C$316)>100,100, FORECAST($C301,W$305:W$316,$C$305:$C$316)))) -> 1.424599507 | X301: =IF(MAX(C305:C316)-MIN(C305:C316)<5,AVERAGEIF(C305:C316,">0",X305:X316), IF(FORECAST($C301,X$305:X$316,$C$305:$C$316)<0,0, IF(FORECAST($C301,X$305:X$316,$C$305:$C$316)>100,100, FORECAST($C301,X$305:X$316,$C$305:$C$316)))) -> 89.25969602 | AB301: =IF(MAX(C305:C316)-MIN(C305:C316)<5,AVERAGEIF(C305:C316,">0",AB305:AB316), IF(FORECAST($C301,AB$305:AB$316,$C$305:$C$316)<0,0, IF(FORECAST($C301,AB$305:AB$316,$C$305:$C$316)>100,100, FORECAST($C301,AB$305:AB$316,$C$305:$C$316)))) -> 1.020202326
C302: =MaxRegYear(C300,C305:C316) -> 2017 | D302: =IF(MAX(C305:C316)-MIN(C305:C316)<5,AVERAGEIF(C305:C316,">0",D305:D316), IF(FORECAST($C302,D$305:D$316,$C$305:$C$316)<0,0, IF(FORECAST($C302,D$305:D$316,$C$305:$C$316)>100,100, FORECAST($C302,D$305:D$316,$C$305:$C$316)))) -> 90.54488501 | H302: =IF(MAX(C305:C316)-MIN(C305:C316)<5,AVERAGEIF(C305:C316,">0",H305:H316), IF(FORECAST($C302,H$305:H$316,$C$305:$C$316)<0,0, IF(FORECAST($C302,H$305:H$316,$C$305:$C$316)>100,100, FORECAST($C302,H$305:H$316,$C$305:$C$316)))) -> 0.9412187974 | I302: =IF(MAX(C305:C316)-MIN(C305:C316)<5,AVERAGEIF(C305:C316,">0",I305:I316), IF(FORECAST($C302,I$305:I$316,$C$305:$C$316)<0,0, IF(FORECAST($C302,I$305:I$316,$C$305:$C$316)>100,100, FORECAST($C302,I$305:I$316,$C$305:$C$316)))) -> 91.70482636 | M302: =IF(MAX(C305:C316)-MIN(C305:C316)<5,AVERAGEIF(C305:C316,">0",M305:M316), IF(FORECAST($C302,M$305:M$316,$C$305:$C$316)<0,0, IF(FORECAST($C302,M$305:M$316,$C$305:$C$316)>100,100, FORECAST($C302,M$305:M$316,$C$305:$C$316)))) -> 0.7909067146 | N302: =IF(MAX(C305:C316)-MIN(C305:C316)<5,AVERAGEIF(C305:C316,">0",N305:N316), IF(FORECAST($C302,N$305:N$316,$C$305:$C$316)<0,0, IF(FORECAST($C302,N$305:N$316,$C$305:$C$316)>100,100, FORECAST($C302,N$305:N$316,$C$305:$C$316)))) -> 92.6409387 | R302: =IF(MAX(C305:C316)-MIN(C305:C316)<5,AVERAGEIF(C305:C316,">0",R305:R316), IF(FORECAST($C302,R$305:R$316,$C$305:$C$316)<0,0, IF(FORECAST($C302,R$305:R$316,$C$305:$C$316)>100,100, FORECAST($C302,R$305:R$316,$C$305:$C$316)))) -> 0.7727930043 | S302: =IF(MAX(C305:C316)-MIN(C305:C316)<5,AVERAGEIF(C305:C316,">0",S305:S316), IF(FORECAST($C302,S$305:S$316,$C$305:$C$316)<0,0, IF(FORECAST($C302,S$305:S$316,$C$305:$C$316)>100,100, FORECAST($C302,S$305:S$316,$C$305:$C$316)))) -> 94.62572185 | W302: =IF(MAX(C305:C316)-MIN(C305:C316)<5,AVERAGEIF(C305:C316,">0",W305:W316), IF(FORECAST($C302,W$305:W$316,$C$305:$C$316)<0,0, IF(FORECAST($C302,W$305:W$316,$C$305:$C$316)>100,100, FORECAST($C302,W$305:W$316,$C$305:$C$316)))) -> 0.6546836292 | X302: =IF(MAX(C305:C316)-MIN(C305:C316)<5,AVERAGEIF(C305:C316,">0",X305:X316), IF(FORECAST($C302,X$305:X$316,$C$305:$C$316)<0,0, IF(FORECAST($C302,X$305:X$316,$C$305:$C$316)>100,100, FORECAST($C302,X$305:X$316,$C$305:$C$316)))) -> 96.89383597 | AB302: =IF(MAX(C305:C316)-MIN(C305:C316)<5,AVERAGEIF(C305:C316,">0",AB305:AB316), IF(FORECAST($C302,AB$305:AB$316,$C$305:$C$316)<0,0, IF(FORECAST($C302,AB$305:AB$316,$C$305:$C$316)>100,100, FORECAST($C302,AB$305:AB$316,$C$305:$C$316)))) -> 0.4006301015
B304: Survey | C304: Year | D304: Improved | E304: % Improved < = 30min | H304: Surface water | I304: Improved | J304: % Improved < = 30min | M304: Surface water | N304: Improved | O304: % Improved < = 30min | R304: Surface water | S304: Improved | T304: % Improved < = 30min | W304: Surface water | X304: Improved | Y304: % Improved < = 30min | AB304: Surface water
B305: DHS06 | C305: 2006 | D305: =IF(ISERROR(INDIRECT(CONCATENATE($B305,"!M16"))),"",INDIRECT(CONCATENATE($B305,"!M16"))) -> 77.80725894 | E305: =IF(ISERROR(INDIRECT(CONCATENATE($B305,"!M23"))),"",INDIRECT(CONCATENATE($B305,"!M23"))) -> 91.6125209 | H305: =IF(ISERROR(INDIRECT(CONCATENATE($B305,"!M21"))),"",INDIRECT(CONCATENATE($B305,"!M21"))) -> 3.577363345 | I305: =IF(ISERROR(INDIRECT(CONCATENATE($B305,"!N16"))),"",INDIRECT(CONCATENATE($B305,"!N16"))) -> 82.70552192 | J305: =IF(ISERROR(INDIRECT(CONCATENATE($B305,"!N23"))),"",INDIRECT(CONCATENATE($B305,"!N23"))) -> 95.21493432 | M305: =IF(ISERROR(INDIRECT(CONCATENATE($B305,"!N21"))),"",INDIRECT(CONCATENATE($B305,"!N21"))) -> 1.933064284 | N305: =IF(ISERROR(INDIRECT(CONCATENATE($B305,"!O16"))),"",INDIRECT(CONCATENATE($B305,"!O16"))) -> 85.7255473 | O305: =IF(ISERROR(INDIRECT(CONCATENATE($B305,"!O23"))),"",INDIRECT(CONCATENATE($B305,"!O23"))) -> 95.680211 | R305: =IF(ISERROR(INDIRECT(CONCATENATE($B305,"!O21"))),"",INDIRECT(CONCATENATE($B305,"!O21"))) -> 1.564126318 | S305: =IF(ISERROR(INDIRECT(CONCATENATE($B305,"!P16"))),"",INDIRECT(CONCATENATE($B305,"!P16"))) -> 86.55173165 | T305: =IF(ISERROR(INDIRECT(CONCATENATE($B305,"!P23"))),"",INDIRECT(CONCATENATE($B305,"!P23"))) -> 96.49843746 | W305: =IF(ISERROR(INDIRECT(CONCATENATE($B305,"!P21"))),"",INDIRECT(CONCATENATE($B305,"!P21"))) -> 1.306150911 | X305: =IF(ISERROR(INDIRECT(CONCATENATE($B305,"!Q16"))),"",INDIRECT(CONCATENATE($B305,"!Q16"))) -> 90.43417908 | Y305: =IF(ISERROR(INDIRECT(CONCATENATE($B305,"!Q23"))),"",INDIRECT(CONCATENATE($B305,"!Q23"))) -> 97.92807533 | AB305: =IF(ISERROR(INDIRECT(CONCATENATE($B305,"!Q221"))),"",INDIRECT(CONCATENATE($B305,"!Q21"))) -> 0.9248835222
B306: DHS16 | C306: 2016 | D306: 89.386919 | E306: 96.57089899 | H306: 1.180868302 | I306: 90.88670777 | J306: 96.92269928 | M306: 0.8947392209 | N306: 92.01226676 | O306: 97.23481074 | R306: 0.8447323965 | S306: 93.89172274 | T306: 97.97708729 | W306: 0.7139079276 | X306: 96.30659443 | Y306: 98.98501222 | AB306: 0.4482895034
B318: =CONCATENATE("Rural use of drinking water sources, ",C299,"–",C300) -> Rural use of drinking water sources, 2000–2017 | S318: Data points used for regression

Sheet Sanitation
B4: Summary of trends in use of sanitation facilities by wealth quintile (%)
B5: =IF(ISERROR(INDIRECT(CONCATENATE($B105,"!A2"))),"",INDIRECT(CONCATENATE($B105,"!A2"))) -> India
B7: =B118 -> National use of sanitation facilities, 2000–2020 | J7: =B218 -> Urban use of sanitation facilities, 2000–2020 | R7: =B318 -> Rural use of sanitation facilities, 2000–2020
B31: =IF(ISERROR(INDIRECT(CONCATENATE($B105,"!A2"))),"",INDIRECT(CONCATENATE($B105,"!A2"))) -> India | F31: Poorest | J31: Poor | N31: Middle | R31: Rich | V31: Richest
F32: Basic | G32: Limited | H32: Unimproved | I32: Open defecation | J32: Basic | K32: Limited | L32: Unimproved | M32: Open defecation | N32: Basic | O32: Limited | P32: Unimproved | Q32: Open defecation | R32: Basic | S32: Limited | T32: Unimproved | U32: Open defecation | V32: Basic | W32: Limited | X32: Unimproved | Y32: Open defecation
B33: NATIONAL | D33: Estimate | E33: =C99 -> 2000 | F33: =E99 -> 2.526636325 | G33: =F99 -> 1.099081264 | H33: 2.248448959 | I33: 94.12583345 | J33: =J99 -> 5.856252544 | K33: =K99 -> 2.639090983 | L33: 4.411595237 | M33: 87.09306124 | N33: =O99 -> 17.01309681 | O33: =P99 -> 7.403766247 | P33: 4.640512841 | Q33: 70.9426241 | R33: =T99 -> 43.3183328 | S33: =U99 -> 13.71838553 | T33: 4.107193563 | U33: 38.85608811 | V33: =Y99 -> 81.2365479 | W33: =Z99 -> 8.345251888 | X33: 3.529685247 | Y33: 6.888514969
E34: =C100 -> 2020 | F34: =E100 -> 10.90076206 | G34: 4.741807607 | H34: 3.469704895 | I34: 80.88772544 | J34: =J100 -> 26.73227878 | K34: 12.04676803 | L34: 3.684810205 | M34: 57.53614299 | N34: =O100 -> 44.04109511 | O34: 19.16582131 | P34: 2.984846376 | Q34: 33.8082372 | R34: =T100 -> 65.9832091 | S34: 20.8960743 | T34: 3.373210199 | U34: 9.747506402 | V34: =Y100 -> 88.4091953 | W34: 9.082082179 | X34: 1.872496775 | Y34: 0.6362257507
B36: URBAN | D36: Estimate | E36: =C199 -> 2000 | F36: =E199 -> 18.08904086 | G36: =F199 -> 18.17943492 | H36: 7.476824564 | I36: 56.25469966 | J36: =J199 -> 41.79716003 | K36: =K199 -> 27.4228349 | L36: 7.491691366 | M36: 23.28831371 | N36: =O199 -> 64.35478294 | O36: =P199 -> 21.17864413 | P36: 5.453190103 | Q36: 9.013382824 | R36: =T199 -> 82.1738493 | S36: =U199 -> 11.32185923 | T36: 4.241643688 | U36: 2.262647777 | V36: =Y199 -> 90.71090343 | W36: =Z199 -> 4.299716819 | X36: 4.586974157 | Y36: 0.4024055899
E37: =C200 -> 2020 | F37: =E200 -> 30.62439168 | G37: 30.77742704 | H37: 5.007692897 | I37: 33.59048838 | J37: =J200 -> 51.22456716 | K37: 33.60809315 | L37: 5.281488792 | M37: 9.885850892 | N37: =O200 -> 70.26993221 | O37: 23.12527243 | P37: 3.762777955 | Q37: 2.842017411 | R37: =T200 -> 85.39065814 | S37: 11.76506905 | T37: 2.28466922 | U37: 0.5596035874 | V37: =Y200 -> 93.82980768 | W37: 4.447553568 | X37: 1.647464554 | Y37: 0.07517419401
B39: RURAL | D39: Estimate | E39: =C299 -> 2000 | F39: =E299 -> 2.084342257 | G39: =F299 -> 0.8141264303 | H39: 1.939643004 | I39: 95.16188831 | J39: =J299 -> 3.118470492 | K39: =K299 -> 1.065859026 | L39: 3.163385766 | M39: 92.65228472 | N39: =O299 -> 7.017004924 | O39: =P299 -> 2.15715283 | P39: 4.436078276 | Q39: 86.38976397 | R39: =T299 -> 17.58807814 | S39: =U299 -> 4.130628193 | T39: 3.111485562 | U39: 75.1698081 | V39: =Y299 -> 52.81365123 | W39: =Z299 -> 6.132430744 | X39: 1.722170959 | Y39: 39.33174707
E40: =C300 -> 2020 | F40: =E300 -> 7.986860866 | G40: 3.119600203 | H40: 2.938370394 | I40: 85.95516854 | J40: =J300 -> 20.42698935 | K40: 6.981721013 | L40: 4.257091006 | M40: 68.33419863 | N40: =O300 -> 32.87133037 | O40: 10.10523494 | P40: 2.923556024 | Q40: 54.09987867 | R40: =T300 -> 51.24284744 | S40: 12.03458096 | T40: 2.179817071 | U40: 34.54275453 | V40: =Y300 -> 80.4707466 | W40: 9.343820565 | X40: 1.716904452 | Y40: 8.468528388
A97: NATIONAL | D97: Poorest | I97: Poor | N97: Middle | S97: Rich | X97: Richest
D98: Improved | E98: Basic | F98: Limited | G98: Unimproved | H98: Open defecation | I98: Improved | J98: Basic | K98: Limited | L98: Unimproved | M98: Open defecation | N98: Improved | O98: Basic | P98: Limited | Q98: Unimproved | R98: Open defecation | S98: Improved | T98: Basic | U98: Limited | V98: Unimproved | W98: Open defecation | X98: Improved | Y98: Basic | Z98: Limited | AA98: Unimproved | AB98: Open defecation
A99: Forecast period: | C99: 2000 | D99: =IF((D101+H101)>100,D101*100/(D101+H101),D101) -> 3.62571759 | E99: =D99*AVERAGEIF(E105:E116,">0")/100 -> 2.526636325 | F99: =D99*(100-AVERAGEIF(E105:E116,">0"))/100 -> 1.099081264 | G99: =100-(E99+F99+H99) -> 2.248448959 | H99: =IF((D101+H101)>100,H101*100/(D101+H101),H101) -> 94.12583345 | I99: =IF((I101+M101)>100,I101*100/(I101+M101),I101) -> 8.495343527 | J99: =I99*AVERAGEIF(J105:J116,">0")/100 -> 5.856252544 | K99: =I99*(100-AVERAGEIF(J105:J116,">0"))/100 -> 2.639090983 | L99: =100-(J99+K99+M99) -> 4.411595237 | M99: =IF((I101+M101)>100,M101*100/(I101+M101),M101) -> 87.09306124 | N99: =IF((N101+R101)>100,N101*100/(N101+R101),N101) -> 24.41686306 | O99: =N99*AVERAGEIF(O105:O116,">0")/100 -> 17.01309681 | P99: =N99*(100-AVERAGEIF(O105:O116,">0"))/100 -> 7.403766247 | Q99: =100-(O99+P99+R99) -> 4.640512841 | R99: =IF((N101+R101)>100,R101*100/(N101+R101),R101) -> 70.9426241 | S99: =IF((S101+W101)>100,S101*100/(S101+W101),S101) -> 57.03671833 | T99: =S99*AVERAGEIF(T105:T116,">0")/100 -> 43.3183328 | U99: =S99*(100-AVERAGEIF(T105:T116,">0"))/100 -> 13.71838553 | V99: =100-(T99+U99+W99) -> 4.107193563 | W99: =IF((S101+W101)>100,W101*100/(S101+W101),W101) -> 38.85608811 | X99: =IF((X101+AB101)>100,X101*100/(X101+AB101),X101) -> 89.58179978 | Y99: =X99*AVERAGEIF(Y105:Y116,">0")/100 -> 81.2365479 | Z99: =X99*(100-AVERAGEIF(Y105:Y116,">0"))/100 -> 8.345251888 | AA99: =100-(Y99+Z99+AB99) -> 3.529685247 | AB99: =IF((X101+AB101)>100,AB101*100/(X101+AB101),AB101) -> 6.888514969
C100: 2020 | D100: =IF((D102+H102)>100,D102*100/(D102+H102),D102) -> 15.64256967 | E100: =D100*AVERAGEIF(E105:E116,">0")/100 -> 10.90076206 | F100: =D100*(100-AVERAGEIF(E105:E116,">0"))/100 -> 4.741807607 | G100: =100-(E100+F100+H100) -> 3.469704895 | H100: =IF((D102+H102)>100,H102*100/(D102+H102),H102) -> 80.88772544 | I100: =IF((I102+M102)>100,I102*100/(I102+M102),I102) -> 38.77904681 | J100: =I100*AVERAGEIF(J105:J116,">0")/100 -> 26.73227878 | K100: =I100*(100-AVERAGEIF(J105:J116,">0"))/100 -> 12.04676803 | L100: =100-(J100+K100+M100) -> 3.684810205 | M100: =IF((I102+M102)>100,M102*100/(I102+M102),M102) -> 57.53614299 | N100: =IF((N102+R102)>100,N102*100/(N102+R102),N102) -> 63.20691642 | O100: =N100*AVERAGEIF(O105:O116,">0")/100 -> 44.04109511 | P100: =N100*(100-AVERAGEIF(O105:O116,">0"))/100 -> 19.16582131 | Q100: =100-(O100+P100+R100) -> 2.984846376 | R100: =IF((N102+R102)>100,R102*100/(N102+R102),R102) -> 33.8082372 | S100: =IF((S102+W102)>100,S102*100/(S102+W102),S102) -> 86.8792834 | T100: =S100*AVERAGEIF(T105:T116,">0")/100 -> 65.9832091 | U100: =S100*(100-AVERAGEIF(T105:T116,">0"))/100 -> 20.8960743 | V100: =100-(T100+U100+W100) -> 3.373210199 | W100: =IF((S102+W102)>100,W102*100/(S102+W102),W102) -> 9.747506402 | X100: =IF((X102+AB102)>100,X102*100/(X102+AB102),X102) -> 97.49127747 | Y100: =X100*AVERAGEIF(Y105:Y116,">0")/100 -> 88.4091953 | Z100: =X100*(100-AVERAGEIF(Y105:Y116,">0"))/100 -> 9.082082179 | AA100: =100-(Y100+Z100+AB100) -> 1.872496775 | AB100: =IF((X102+AB102)>100,AB102*100/(X102+AB102),AB102) -> 0.6362257507
A101: Regression period: | C101: =MinRegYear(C99,C105:C116) -> 2004 | D101: =IF(MAX(C105:C116)-MIN(C105:C116)<5,AVERAGEIF(C105:C116,">0",D105:D116), IF(FORECAST($C101,D$105:D$116,$C$105:$C$116)<0,0, IF(FORECAST($C101,D$105:D$116,$C$105:$C$116)>100,100, FORECAST($C101,D$105:D$116,$C$105:$C$116)))) -> 3.62571759 | H101: =IF(MAX(C105:C116)-MIN(C105:C116)<5,AVERAGEIF(C105:C116,">0",H105:H116), IF(FORECAST($C101,H$105:H$116,$C$105:$C$116)<0,0, IF(FORECAST($C101,H$105:H$116,$C$105:$C$116)>100,100, FORECAST($C101,H$105:H$116,$C$105:$C$116)))) -> 94.12583345 | I101: =IF(MAX(C105:C116)-MIN(C105:C116)<5,AVERAGEIF(C105:C116,">0",I105:I116), IF(FORECAST($C101,I$105:I$116,$C$105:$C$116)<0,0, IF(FORECAST($C101,I$105:I$116,$C$105:$C$116)>100,100, FORECAST($C101,I$105:I$116,$C$105:$C$116)))) -> 8.495343527 | M101: =IF(MAX(C105:C116)-MIN(C105:C116)<5,AVERAGEIF(C105:C116,">0",M105:M116), IF(FORECAST($C101,M$105:M$116,$C$105:$C$116)<0,0, IF(FORECAST($C101,M$105:M$116,$C$105:$C$116)>100,100, FORECAST($C101,M$105:M$116,$C$105:$C$116)))) -> 87.09306124 | N101: =IF(MAX(C105:C116)-MIN(C105:C116)<5,AVERAGEIF(C105:C116,">0",N105:N116), IF(FORECAST($C101,N$105:N$116,$C$105:$C$116)<0,0, IF(FORECAST($C101,N$105:N$116,$C$105:$C$116)>100,100, FORECAST($C101,N$105:N$116,$C$105:$C$116)))) -> 24.41686306 | R101: =IF(MAX(C105:C116)-MIN(C105:C116)<5,AVERAGEIF(C105:C116,">0",R105:R116), IF(FORECAST($C101,R$105:R$116,$C$105:$C$116)<0,0, IF(FORECAST($C101,R$105:R$116,$C$105:$C$116)>100,100, FORECAST($C101,R$105:R$116,$C$105:$C$116)))) -> 70.9426241 | S101: =IF(MAX(C105:C116)-MIN(C105:C116)<5,AVERAGEIF(C105:C116,">0",S105:S116), IF(FORECAST($C101,S$105:S$116,$C$105:$C$116)<0,0, IF(FORECAST($C101,S$105:S$116,$C$105:$C$116)>100,100, FORECAST($C101,S$105:S$116,$C$105:$C$116)))) -> 57.03671833 | W101: =IF(MAX(C105:C116)-MIN(C105:C116)<5,AVERAGEIF(C105:C116,">0",W105:W116), IF(FORECAST($C101,W$105:W$116,$C$105:$C$116)<0,0, IF(FORECAST($C101,W$105:W$116,$C$105:$C$116)>100,100, FORECAST($C101,W$105:W$116,$C$105:$C$116)))) -> 38.85608811 | X101: =IF(MAX(C105:C116)-MIN(C105:C116)<5,AVERAGEIF(C105:C116,">0",X105:X116), IF(FORECAST($C101,X$105:X$116,$C$105:$C$116)<0,0, IF(FORECAST($C101,X$105:X$116,$C$105:$C$116)>100,100, FORECAST($C101,X$105:X$116,$C$105:$C$116)))) -> 89.58179978 | AB101: =IF(MAX(C105:C116)-MIN(C105:C116)<5,AVERAGEIF(C105:C116,">0",AB105:AB116), IF(FORECAST($C101,AB$105:AB$116,$C$105:$C$116)<0,0, IF(FORECAST($C101,AB$105:AB$116,$C$105:$C$116)>100,100, FORECAST($C101,AB$105:AB$116,$C$105:$C$116)))) -> 6.888514969
C102: =MaxRegYear(C100,C105:C116) -> 2018 | D102: =IF(MAX(C105:C116)-MIN(C105:C116)<5,AVERAGEIF(C105:C116,">0",D105:D116), IF(FORECAST($C102,D$105:D$116,$C$105:$C$116)<0,0, IF(FORECAST($C102,D$105:D$116,$C$105:$C$116)>100,100, FORECAST($C102,D$105:D$116,$C$105:$C$116)))) -> 15.64256967 | H102: =IF(MAX(C105:C116)-MIN(C105:C116)<5,AVERAGEIF(C105:C116,">0",H105:H116), IF(FORECAST($C102,H$105:H$116,$C$105:$C$116)<0,0, IF(FORECAST($C102,H$105:H$116,$C$105:$C$116)>100,100, FORECAST($C102,H$105:H$116,$C$105:$C$116)))) -> 80.88772544 | I102: =IF(MAX(C105:C116)-MIN(C105:C116)<5,AVERAGEIF(C105:C116,">0",I105:I116), IF(FORECAST($C102,I$105:I$116,$C$105:$C$116)<0,0, IF(FORECAST($C102,I$105:I$116,$C$105:$C$116)>100,100, FORECAST($C102,I$105:I$116,$C$105:$C$116)))) -> 38.77904681 | M102: =IF(MAX(C105:C116)-MIN(C105:C116)<5,AVERAGEIF(C105:C116,">0",M105:M116), IF(FORECAST($C102,M$105:M$116,$C$105:$C$116)<0,0, IF(FORECAST($C102,M$105:M$116,$C$105:$C$116)>100,100, FORECAST($C102,M$105:M$116,$C$105:$C$116)))) -> 57.53614299 | N102: =IF(MAX(C105:C116)-MIN(C105:C116)<5,AVERAGEIF(C105:C116,">0",N105:N116), IF(FORECAST($C102,N$105:N$116,$C$105:$C$116)<0,0, IF(FORECAST($C102,N$105:N$116,$C$105:$C$116)>100,100, FORECAST($C102,N$105:N$116,$C$105:$C$116)))) -> 63.20691642 | R102: =IF(MAX(C105:C116)-MIN(C105:C116)<5,AVERAGEIF(C105:C116,">0",R105:R116), IF(FORECAST($C102,R$105:R$116,$C$105:$C$116)<0,0, IF(FORECAST($C102,R$105:R$116,$C$105:$C$116)>100,100, FORECAST($C102,R$105:R$116,$C$105:$C$116)))) -> 33.8082372 | S102: =IF(MAX(C105:C116)-MIN(C105:C116)<5,AVERAGEIF(C105:C116,">0",S105:S116), IF(FORECAST($C102,S$105:S$116,$C$105:$C$116)<0,0, IF(FORECAST($C102,S$105:S$116,$C$105:$C$116)>100,100, FORECAST($C102,S$105:S$116,$C$105:$C$116)))) -> 86.8792834 | W102: =IF(MAX(C105:C116)-MIN(C105:C116)<5,AVERAGEIF(C105:C116,">0",W105:W116), IF(FORECAST($C102,W$105:W$116,$C$105:$C$116)<0,0, IF(FORECAST($C102,W$105:W$116,$C$105:$C$116)>100,100, FORECAST($C102,W$105:W$116,$C$105:$C$116)))) -> 9.747506402 | X102: =IF(MAX(C105:C116)-MIN(C105:C116)<5,AVERAGEIF(C105:C116,">0",X105:X116), IF(FORECAST($C102,X$105:X$116,$C$105:$C$116)<0,0, IF(FORECAST($C102,X$105:X$116,$C$105:$C$116)>100,100, FORECAST($C102,X$105:X$116,$C$105:$C$116)))) -> 97.49127747 | AB102: =IF(MAX(C105:C116)-MIN(C105:C116)<5,AVERAGEIF(C105:C116,">0",AB105:AB116), IF(FORECAST($C102,AB$105:AB$116,$C$105:$C$116)<0,0, IF(FORECAST($C102,AB$105:AB$116,$C$105:$C$116)>100,100, FORECAST($C102,AB$105:AB$116,$C$105:$C$116)))) -> 0.6362257507
B104: Survey | C104: Year | D104: Improved | E104: Not shared | H104: Open defecation | I104: Improved | J104: Not shared | M104: Open defecation | N104: Improved | O104: Not shared | R104: Open defecation | S104: Improved | T104: Not shared | W104: Open defecation | X104: Improved | Y104: Not shared | AB104: Open defecation
B105: DHS06 | C105: 2006 | D105: =IF(ISERROR(INDIRECT(CONCATENATE($B105,"!C122"))),"",INDIRECT(CONCATENATE($B105,"!C122"))) -> 5.342410744 | E105: =IF(ISERROR(INDIRECT(CONCATENATE($B105,"!C129"))),"",INDIRECT(CONCATENATE($B105,"!C129"))) -> 63.23153759 | H105: =IF(ISERROR(INDIRECT(CONCATENATE($B105,"!C127"))),"",INDIRECT(CONCATENATE($B105,"!C127"))) -> 92.23467516 | I105: =IF(ISERROR(INDIRECT(CONCATENATE($B105,"!D122"))),"",INDIRECT(CONCATENATE($B105,"!D122"))) -> 12.82158685 | J105: =IF(ISERROR(INDIRECT(CONCATENATE($B105,"!D129"))),"",INDIRECT(CONCATENATE($B105,"!D129"))) -> 61.04653275 | M105: =IF(ISERROR(INDIRECT(CONCATENATE($B105,"!D127"))),"",INDIRECT(CONCATENATE($B105,"!D127"))) -> 82.87064434 | N105: =IF(ISERROR(INDIRECT(CONCATENATE($B105,"!E122"))),"",INDIRECT(CONCATENATE($B105,"!E122"))) -> 29.95829925 | O105: =IF(ISERROR(INDIRECT(CONCATENATE($B105,"!E129"))),"",INDIRECT(CONCATENATE($B105,"!E129"))) -> 59.5085755 | R105: =IF(ISERROR(INDIRECT(CONCATENATE($B105,"!E127"))),"",INDIRECT(CONCATENATE($B105,"!E127"))) -> 65.63771169 | S105: =IF(ISERROR(INDIRECT(CONCATENATE($B105,"!F122"))),"",INDIRECT(CONCATENATE($B105,"!F122"))) -> 61.29994191 | T105: =IF(ISERROR(INDIRECT(CONCATENATE($B105,"!F129"))),"",INDIRECT(CONCATENATE($B105,"!F129"))) -> 67.70690891 | W105: =IF(ISERROR(INDIRECT(CONCATENATE($B105,"!F127"))),"",INDIRECT(CONCATENATE($B105,"!F127"))) -> 34.69771929 | X105: =IF(ISERROR(INDIRECT(CONCATENATE($B105,"!G122"))),"",INDIRECT(CONCATENATE($B105,"!G122"))) -> 90.71172517 | Y105: =IF(ISERROR(INDIRECT(CONCATENATE($B105,"!G129"))),"",INDIRECT(CONCATENATE($B105,"!G129"))) -> 86.92626231 | AB105: =IF(ISERROR(INDIRECT(CONCATENATE($B105,"!G2127"))),"",INDIRECT(CONCATENATE($B105,"!G127"))) -> 5.995330795
B106: DHS16 | C106: 2016 | D106: 13.92587651 | E106: 76.14149755 | H106: 82.77888373 | I106: 34.45280348 | J106: 76.82317258 | M106: 61.75855988 | N106: 57.66548023 | O106: 79.84672801 | R106: 39.11314962 | S106: 82.61605982 | T106: 84.18939253 | W106: 13.90587522 | X106: 96.36135209 | Y106: 94.44215871 | AB106: 1.529409925
B118: =CONCATENATE("National use of sanitation facilities, ",C99,"–",C100) -> National use of sanitation facilities, 2000–2020 | S118: Data points used for regression
A197: URBAN | D197: Poorest | I197: Poor | N197: Middle | S197: Rich | X197: Richest
D198: Improved | E198: Basic | F198: Limited | G198: Unimproved | H198: Open defecation | I198: Improved | J198: Basic | K198: Limited | L198: Unimproved | M198: Open defecation | N198: Improved | O198: Basic | P198: Limited | Q198: Unimproved | R198: Open defecation | S198: Improved | T198: Basic | U198: Limited | V198: Unimproved | W198: Open defecation | X198: Improved | Y198: Basic | Z198: Limited | AA198: Unimproved | AB198: Open defecation
A199: Forecast period: | C199: 2000 | D199: =IF((D201+H201)>100,D201*100/(D201+H201),D201) -> 36.26847578 | E199: =D199*AVERAGEIF(E205:E216,">0")/100 -> 18.08904086 | F199: =D199*(100-AVERAGEIF(E205:E216,">0"))/100 -> 18.17943492 | G199: =100-(E199+F199+H199) -> 7.476824564 | H199: =IF((D201+H201)>100,H201*100/(D201+H201),H201) -> 56.25469966 | I199: =IF((I201+M201)>100,I201*100/(I201+M201),I201) -> 69.21999493 | J199: =I199*AVERAGEIF(J205:J216,">0")/100 -> 41.79716003 | K199: =I199*(100-AVERAGEIF(J205:J216,">0"))/100 -> 27.4228349 | L199: =100-(J199+K199+M199) -> 7.491691366 | M199: =IF((I201+M201)>100,M201*100/(I201+M201),M201) -> 23.28831371 | N199: =IF((N201+R201)>100,N201*100/(N201+R201),N201) -> 85.53342707 | O199: =N199*AVERAGEIF(O205:O216,">0")/100 -> 64.35478294 | P199: =N199*(100-AVERAGEIF(O205:O216,">0"))/100 -> 21.17864413 | Q199: =100-(O199+P199+R199) -> 5.453190103 | R199: =IF((N201+R201)>100,R201*100/(N201+R201),R201) -> 9.013382824 | S199: =IF((S201+W201)>100,S201*100/(S201+W201),S201) -> 93.49570854 | T199: =S199*AVERAGEIF(T205:T216,">0")/100 -> 82.1738493 | U199: =S199*(100-AVERAGEIF(T205:T216,">0"))/100 -> 11.32185923 | V199: =100-(T199+U199+W199) -> 4.241643688 | W199: =IF((S201+W201)>100,W201*100/(S201+W201),W201) -> 2.262647777 | X199: =IF((X201+AB201)>100,X201*100/(X201+AB201),X201) -> 95.01062025 | Y199: =X199*AVERAGEIF(Y205:Y216,">0")/100 -> 90.71090343 | Z199: =X199*(100-AVERAGEIF(Y205:Y216,">0"))/100 -> 4.299716819 | AA199: =100-(Y199+Z199+AB199) -> 4.586974157 | AB199: =IF((X201+AB201)>100,AB201*100/(X201+AB201),AB201) -> 0.4024055899
C200: 2020 | D200: =IF((D202+H202)>100,D202*100/(D202+H202),D202) -> 61.40181872 | E200: =D200*AVERAGEIF(E205:E216,">0")/100 -> 30.62439168 | F200: =D200*(100-AVERAGEIF(E205:E216,">0"))/100 -> 30.77742704 | G200: =100-(E200+F200+H200) -> 5.007692897 | H200: =IF((D202+H202)>100,H202*100/(D202+H202),H202) -> 33.59048838 | I200: =IF((I202+M202)>100,I202*100/(I202+M202),I202) -> 84.83266032 | J200: =I200*AVERAGEIF(J205:J216,">0")/100 -> 51.22456716 | K200: =I200*(100-AVERAGEIF(J205:J216,">0"))/100 -> 33.60809315 | L200: =100-(J200+K200+M200) -> 5.281488792 | M200: =IF((I202+M202)>100,M202*100/(I202+M202),M202) -> 9.885850892 | N200: =IF((N202+R202)>100,N202*100/(N202+R202),N202) -> 93.39520463 | O200: =N200*AVERAGEIF(O205:O216,">0")/100 -> 70.26993221 | P200: =N200*(100-AVERAGEIF(O205:O216,">0"))/100 -> 23.12527243 | Q200: =100-(O200+P200+R200) -> 3.762777955 | R200: =IF((N202+R202)>100,R202*100/(N202+R202),R202) -> 2.842017411 | S200: =IF((S202+W202)>100,S202*100/(S202+W202),S202) -> 97.15572719 | T200: =S200*AVERAGEIF(T205:T216,">0")/100 -> 85.39065814 | U200: =S200*(100-AVERAGEIF(T205:T216,">0"))/100 -> 11.76506905 | V200: =100-(T200+U200+W200) -> 2.28466922 | W200: =IF((S202+W202)>100,W202*100/(S202+W202),W202) -> 0.5596035874 | X200: =IF((X202+AB202)>100,X202*100/(X202+AB202),X202) -> 98.27736125 | Y200: =X200*AVERAGEIF(Y205:Y216,">0")/100 -> 93.82980768 | Z200: =X200*(100-AVERAGEIF(Y205:Y216,">0"))/100 -> 4.447553568 | AA200: =100-(Y200+Z200+AB200) -> 1.647464554 | AB200: =IF((X202+AB202)>100,AB202*100/(X202+AB202),AB202) -> 0.07517419401
A201: Regression period: | C201: =MinRegYear(C199,C205:C216) -> 2004 | D201: =IF(MAX(C205:C216)-MIN(C205:C216)<5,AVERAGEIF(C205:C216,">0",D205:D216), IF(FORECAST($C201,D$205:D$216,$C$205:$C$216)<0,0, IF(FORECAST($C201,D$205:D$216,$C$205:$C$216)>100,100, FORECAST($C201,D$205:D$216,$C$205:$C$216)))) -> 36.26847578 | H201: =IF(MAX(C205:C216)-MIN(C205:C216)<5,AVERAGEIF(C205:C216,">0",H205:H216), IF(FORECAST($C201,H$205:H$216,$C$205:$C$216)<0,0, IF(FORECAST($C201,H$205:H$216,$C$205:$C$216)>100,100, FORECAST($C201,H$205:H$216,$C$205:$C$216)))) -> 56.25469966 | I201: =IF(MAX(C205:C216)-MIN(C205:C216)<5,AVERAGEIF(C205:C216,">0",I205:I216), IF(FORECAST($C201,I$205:I$216,$C$205:$C$216)<0,0, IF(FORECAST($C201,I$205:I$216,$C$205:$C$216)>100,100, FORECAST($C201,I$205:I$216,$C$205:$C$216)))) -> 69.21999493 | M201: =IF(MAX(C205:C216)-MIN(C205:C216)<5,AVERAGEIF(C205:C216,">0",M205:M216), IF(FORECAST($C201,M$205:M$216,$C$205:$C$216)<0,0, IF(FORECAST($C201,M$205:M$216,$C$205:$C$216)>100,100, FORECAST($C201,M$205:M$216,$C$205:$C$216)))) -> 23.28831371 | N201: =IF(MAX(C205:C216)-MIN(C205:C216)<5,AVERAGEIF(C205:C216,">0",N205:N216), IF(FORECAST($C201,N$205:N$216,$C$205:$C$216)<0,0, IF(FORECAST($C201,N$205:N$216,$C$205:$C$216)>100,100, FORECAST($C201,N$205:N$216,$C$205:$C$216)))) -> 85.53342707 | R201: =IF(MAX(C205:C216)-MIN(C205:C216)<5,AVERAGEIF(C205:C216,">0",R205:R216), IF(FORECAST($C201,R$205:R$216,$C$205:$C$216)<0,0, IF(FORECAST($C201,R$205:R$216,$C$205:$C$216)>100,100, FORECAST($C201,R$205:R$216,$C$205:$C$216)))) -> 9.013382824 | S201: =IF(MAX(C205:C216)-MIN(C205:C216)<5,AVERAGEIF(C205:C216,">0",S205:S216), IF(FORECAST($C201,S$205:S$216,$C$205:$C$216)<0,0, IF(FORECAST($C201,S$205:S$216,$C$205:$C$216)>100,100, FORECAST($C201,S$205:S$216,$C$205:$C$216)))) -> 93.49570854 | W201: =IF(MAX(C205:C216)-MIN(C205:C216)<5,AVERAGEIF(C205:C216,">0",W205:W216), IF(FORECAST($C201,W$205:W$216,$C$205:$C$216)<0,0, IF(FORECAST($C201,W$205:W$216,$C$205:$C$216)>100,100, FORECAST($C201,W$205:W$216,$C$205:$C$216)))) -> 2.262647777 | X201: =IF(MAX(C205:C216)-MIN(C205:C216)<5,AVERAGEIF(C205:C216,">0",X205:X216), IF(FORECAST($C201,X$205:X$216,$C$205:$C$216)<0,0, IF(FORECAST($C201,X$205:X$216,$C$205:$C$216)>100,100, FORECAST($C201,X$205:X$216,$C$205:$C$216)))) -> 95.01062025 | AB201: =IF(MAX(C205:C216)-MIN(C205:C216)<5,AVERAGEIF(C205:C216,">0",AB205:AB216), IF(FORECAST($C201,AB$205:AB$216,$C$205:$C$216)<0,0, IF(FORECAST($C201,AB$205:AB$216,$C$205:$C$216)>100,100, FORECAST($C201,AB$205:AB$216,$C$205:$C$216)))) -> 0.4024055899
C202: =MaxRegYear(C200,C205:C216) -> 2018 | D202: =IF(MAX(C205:C216)-MIN(C205:C216)<5,AVERAGEIF(C205:C216,">0",D205:D216), IF(FORECAST($C202,D$205:D$216,$C$205:$C$216)<0,0, IF(FORECAST($C202,D$205:D$216,$C$205:$C$216)>100,100, FORECAST($C202,D$205:D$216,$C$205:$C$216)))) -> 61.40181872 | H202: =IF(MAX(C205:C216)-MIN(C205:C216)<5,AVERAGEIF(C205:C216,">0",H205:H216), IF(FORECAST($C202,H$205:H$216,$C$205:$C$216)<0,0, IF(FORECAST($C202,H$205:H$216,$C$205:$C$216)>100,100, FORECAST($C202,H$205:H$216,$C$205:$C$216)))) -> 33.59048838 | I202: =IF(MAX(C205:C216)-MIN(C205:C216)<5,AVERAGEIF(C205:C216,">0",I205:I216), IF(FORECAST($C202,I$205:I$216,$C$205:$C$216)<0,0, IF(FORECAST($C202,I$205:I$216,$C$205:$C$216)>100,100, FORECAST($C202,I$205:I$216,$C$205:$C$216)))) -> 84.83266032 | M202: =IF(MAX(C205:C216)-MIN(C205:C216)<5,AVERAGEIF(C205:C216,">0",M205:M216), IF(FORECAST($C202,M$205:M$216,$C$205:$C$216)<0,0, IF(FORECAST($C202,M$205:M$216,$C$205:$C$216)>100,100, FORECAST($C202,M$205:M$216,$C$205:$C$216)))) -> 9.885850892 | N202: =IF(MAX(C205:C216)-MIN(C205:C216)<5,AVERAGEIF(C205:C216,">0",N205:N216), IF(FORECAST($C202,N$205:N$216,$C$205:$C$216)<0,0, IF(FORECAST($C202,N$205:N$216,$C$205:$C$216)>100,100, FORECAST($C202,N$205:N$216,$C$205:$C$216)))) -> 93.39520463 | R202: =IF(MAX(C205:C216)-MIN(C205:C216)<5,AVERAGEIF(C205:C216,">0",R205:R216), IF(FORECAST($C202,R$205:R$216,$C$205:$C$216)<0,0, IF(FORECAST($C202,R$205:R$216,$C$205:$C$216)>100,100, FORECAST($C202,R$205:R$216,$C$205:$C$216)))) -> 2.842017411 | S202: =IF(MAX(C205:C216)-MIN(C205:C216)<5,AVERAGEIF(C205:C216,">0",S205:S216), IF(FORECAST($C202,S$205:S$216,$C$205:$C$216)<0,0, IF(FORECAST($C202,S$205:S$216,$C$205:$C$216)>100,100, FORECAST($C202,S$205:S$216,$C$205:$C$216)))) -> 97.15572719 | W202: =IF(MAX(C205:C216)-MIN(C205:C216)<5,AVERAGEIF(C205:C216,">0",W205:W216), IF(FORECAST($C202,W$205:W$216,$C$205:$C$216)<0,0, IF(FORECAST($C202,W$205:W$216,$C$205:$C$216)>100,100, FORECAST($C202,W$205:W$216,$C$205:$C$216)))) -> 0.5596035874 | X202: =IF(MAX(C205:C216)-MIN(C205:C216)<5,AVERAGEIF(C205:C216,">0",X205:X216), IF(FORECAST($C202,X$205:X$216,$C$205:$C$216)<0,0, IF(FORECAST($C202,X$205:X$216,$C$205:$C$216)>100,100, FORECAST($C202,X$205:X$216,$C$205:$C$216)))) -> 98.27736125 | AB202: =IF(MAX(C205:C216)-MIN(C205:C216)<5,AVERAGEIF(C205:C216,">0",AB205:AB216), IF(FORECAST($C202,AB$205:AB$216,$C$205:$C$216)<0,0, IF(FORECAST($C202,AB$205:AB$216,$C$205:$C$216)>100,100, FORECAST($C202,AB$205:AB$216,$C$205:$C$216)))) -> 0.07517419401
B204: Survey | C204: Year | D204: Improved | E204: Not shared | H204: Open defecation | I204: Improved | J204: Not shared | M204: Open defecation | N204: Improved | O204: Not shared | R204: Open defecation | S204: Improved | T204: Not shared | W204: Open defecation | X204: Improved | Y204: Not shared | AB204: Open defecation
B205: DHS06 | C205: 2006 | D205: =IF(ISERROR(INDIRECT(CONCATENATE($B205,"!H122"))),"",INDIRECT(CONCATENATE($B205,"!H122"))) -> 39.85895334 | E205: =IF(ISERROR(INDIRECT(CONCATENATE($B205,"!H129"))),"",INDIRECT(CONCATENATE($B205,"!H129"))) -> 38.06819217 | H205: =IF(ISERROR(INDIRECT(CONCATENATE($B205,"!H127"))),"",INDIRECT(CONCATENATE($B205,"!H127"))) -> 53.01695519 | I205: =IF(ISERROR(INDIRECT(CONCATENATE($B205,"!I122"))),"",INDIRECT(CONCATENATE($B205,"!I122"))) -> 71.4503757 | J205: =IF(ISERROR(INDIRECT(CONCATENATE($B205,"!I129"))),"",INDIRECT(CONCATENATE($B205,"!I129"))) -> 49.91906735 | M205: =IF(ISERROR(INDIRECT(CONCATENATE($B205,"!I127"))),"",INDIRECT(CONCATENATE($B205,"!I127"))) -> 21.37367616 | N205: =IF(ISERROR(INDIRECT(CONCATENATE($B205,"!J122"))),"",INDIRECT(CONCATENATE($B205,"!J122"))) -> 86.65653815 | O205: =IF(ISERROR(INDIRECT(CONCATENATE($B205,"!J129"))),"",INDIRECT(CONCATENATE($B205,"!J129"))) -> 65.98674579 | R205: =IF(ISERROR(INDIRECT(CONCATENATE($B205,"!J127"))),"",INDIRECT(CONCATENATE($B205,"!J127"))) -> 8.131759194 | S205: =IF(ISERROR(INDIRECT(CONCATENATE($B205,"!K122"))),"",INDIRECT(CONCATENATE($B205,"!K122"))) -> 94.01856834 | T205: =IF(ISERROR(INDIRECT(CONCATENATE($B205,"!K129"))),"",INDIRECT(CONCATENATE($B205,"!K129"))) -> 83.04708765 | W205: =IF(ISERROR(INDIRECT(CONCATENATE($B205,"!K127"))),"",INDIRECT(CONCATENATE($B205,"!K127"))) -> 2.01935575 | X205: =IF(ISERROR(INDIRECT(CONCATENATE($B205,"!L122"))),"",INDIRECT(CONCATENATE($B205,"!L122"))) -> 95.47729754 | Y205: =IF(ISERROR(INDIRECT(CONCATENATE($B205,"!L129"))),"",INDIRECT(CONCATENATE($B205,"!L129"))) -> 93.79140109 | AB205: =IF(ISERROR(INDIRECT(CONCATENATE($B205,"!L2127"))),"",INDIRECT(CONCATENATE($B205,"!L127"))) -> 0.3556582476
B206: DHS16 | C206: 2016 | D206: 57.81134116 | E206: 61.68257195 | H206: 36.82823285 | I206: 82.60227955 | J206: 70.84707855 | M206: 11.80048844 | N206: 92.27209355 | O206: 84.49192704 | R206: 3.723641042 | S206: 96.63286738 | T206: 92.73392004 | W206: 0.8028956144 | X206: 97.81068397 | Y206: 97.15757534 | AB206: 0.1219215363
B218: =CONCATENATE("Urban use of sanitation facilities, ",C199,"–",C200) -> Urban use of sanitation facilities, 2000–2020 | S218: Data points used for regression
A297: RURAL | D297: Poorest | I297: Poor | N297: Middle | S297: Rich | X297: Richest
D298: Improved | E298: Basic | F298: Limited | G298: Unimproved | H298: Open defecation | I298: Improved | J298: Basic | K298: Limited | L298: Unimproved | M298: Open defecation | N298: Improved | O298: Basic | P298: Limited | Q298: Unimproved | R298: Open defecation | S298: Improved | T298: Basic | U298: Limited | V298: Unimproved | W298: Open defecation | X298: Improved | Y298: Basic | Z298: Limited | AA298: Unimproved | AB298: Open defecation
A299: Forecast period: | C299: 2000 | D299: =IF((D301+H301)>100,D301*100/(D301+H301),D301) -> 2.898468687 | E299: =D299*AVERAGEIF(E305:E316,">0")/100 -> 2.084342257 | F299: =D299*(100-AVERAGEIF(E305:E316,">0"))/100 -> 0.8141264303 | G299: =100-(E299+F299+H299) -> 1.939643004 | H299: =IF((D301+H301)>100,H301*100/(D301+H301),H301) -> 95.16188831 | I299: =IF((I301+M301)>100,I301*100/(I301+M301),I301) -> 4.184329518 | J299: =I299*AVERAGEIF(J305:J316,">0")/100 -> 3.118470492 | K299: =I299*(100-AVERAGEIF(J305:J316,">0"))/100 -> 1.065859026 | L299: =100-(J299+K299+M299) -> 3.163385766 | M299: =IF((I301+M301)>100,M301*100/(I301+M301),M301) -> 92.65228472 | N299: =IF((N301+R301)>100,N301*100/(N301+R301),N301) -> 9.174157753 | O299: =N299*AVERAGEIF(O305:O316,">0")/100 -> 7.017004924 | P299: =N299*(100-AVERAGEIF(O305:O316,">0"))/100 -> 2.15715283 | Q299: =100-(O299+P299+R299) -> 4.436078276 | R299: =IF((N301+R301)>100,R301*100/(N301+R301),R301) -> 86.38976397 | S299: =IF((S301+W301)>100,S301*100/(S301+W301),S301) -> 21.71870634 | T299: =S299*AVERAGEIF(T305:T316,">0")/100 -> 17.58807814 | U299: =S299*(100-AVERAGEIF(T305:T316,">0"))/100 -> 4.130628193 | V299: =100-(T299+U299+W299) -> 3.111485562 | W299: =IF((S301+W301)>100,W301*100/(S301+W301),W301) -> 75.1698081 | X299: =IF((X301+AB301)>100,X301*100/(X301+AB301),X301) -> 58.94608197 | Y299: =X299*AVERAGEIF(Y305:Y316,">0")/100 -> 52.81365123 | Z299: =X299*(100-AVERAGEIF(Y305:Y316,">0"))/100 -> 6.132430744 | AA299: =100-(Y299+Z299+AB299) -> 1.722170959 | AB299: =IF((X301+AB301)>100,AB301*100/(X301+AB301),AB301) -> 39.33174707
C300: 2020 | D300: =IF((D302+H302)>100,D302*100/(D302+H302),D302) -> 11.10646107 | E300: =D300*AVERAGEIF(E305:E316,">0")/100 -> 7.986860866 | F300: =D300*(100-AVERAGEIF(E305:E316,">0"))/100 -> 3.119600203 | G300: =100-(E300+F300+H300) -> 2.938370394 | H300: =IF((D302+H302)>100,H302*100/(D302+H302),H302) -> 85.95516854 | I300: =IF((I302+M302)>100,I302*100/(I302+M302),I302) -> 27.40871036 | J300: =I300*AVERAGEIF(J305:J316,">0")/100 -> 20.42698935 | K300: =I300*(100-AVERAGEIF(J305:J316,">0"))/100 -> 6.981721013 | L300: =100-(J300+K300+M300) -> 4.257091006 | M300: =IF((I302+M302)>100,M302*100/(I302+M302),M302) -> 68.33419863 | N300: =IF((N302+R302)>100,N302*100/(N302+R302),N302) -> 42.9765653 | O300: =N300*AVERAGEIF(O305:O316,">0")/100 -> 32.87133037 | P300: =N300*(100-AVERAGEIF(O305:O316,">0"))/100 -> 10.10523494 | Q300: =100-(O300+P300+R300) -> 2.923556024 | R300: =IF((N302+R302)>100,R302*100/(N302+R302),R302) -> 54.09987867 | S300: =IF((S302+W302)>100,S302*100/(S302+W302),S302) -> 63.2774284 | T300: =S300*AVERAGEIF(T305:T316,">0")/100 -> 51.24284744 | U300: =S300*(100-AVERAGEIF(T305:T316,">0"))/100 -> 12.03458096 | V300: =100-(T300+U300+W300) -> 2.179817071 | W300: =IF((S302+W302)>100,W302*100/(S302+W302),W302) -> 34.54275453 | X300: =IF((X302+AB302)>100,X302*100/(X302+AB302),X302) -> 89.81456716 | Y300: =X300*AVERAGEIF(Y305:Y316,">0")/100 -> 80.4707466 | Z300: =X300*(100-AVERAGEIF(Y305:Y316,">0"))/100 -> 9.343820565 | AA300: =100-(Y300+Z300+AB300) -> 1.716904452 | AB300: =IF((X302+AB302)>100,AB302*100/(X302+AB302),AB302) -> 8.468528388
A301: Regression period: | C301: =MinRegYear(C299,C305:C316) -> 2004 | D301: =IF(MAX(C305:C316)-MIN(C305:C316)<5,AVERAGEIF(C305:C316,">0",D305:D316), IF(FORECAST($C301,D$305:D$316,$C$305:$C$316)<0,0, IF(FORECAST($C301,D$305:D$316,$C$305:$C$316)>100,100, FORECAST($C301,D$305:D$316,$C$305:$C$316)))) -> 2.898468687 | H301: =IF(MAX(C305:C316)-MIN(C305:C316)<5,AVERAGEIF(C305:C316,">0",H305:H316), IF(FORECAST($C301,H$305:H$316,$C$305:$C$316)<0,0, IF(FORECAST($C301,H$305:H$316,$C$305:$C$316)>100,100, FORECAST($C301,H$305:H$316,$C$305:$C$316)))) -> 95.16188831 | I301: =IF(MAX(C305:C316)-MIN(C305:C316)<5,AVERAGEIF(C305:C316,">0",I305:I316), IF(FORECAST($C301,I$305:I$316,$C$305:$C$316)<0,0, IF(FORECAST($C301,I$305:I$316,$C$305:$C$316)>100,100, FORECAST($C301,I$305:I$316,$C$305:$C$316)))) -> 4.184329518 | M301: =IF(MAX(C305:C316)-MIN(C305:C316)<5,AVERAGEIF(C305:C316,">0",M305:M316), IF(FORECAST($C301,M$305:M$316,$C$305:$C$316)<0,0, IF(FORECAST($C301,M$305:M$316,$C$305:$C$316)>100,100, FORECAST($C301,M$305:M$316,$C$305:$C$316)))) -> 92.65228472 | N301: =IF(MAX(C305:C316)-MIN(C305:C316)<5,AVERAGEIF(C305:C316,">0",N305:N316), IF(FORECAST($C301,N$305:N$316,$C$305:$C$316)<0,0, IF(FORECAST($C301,N$305:N$316,$C$305:$C$316)>100,100, FORECAST($C301,N$305:N$316,$C$305:$C$316)))) -> 9.174157753 | R301: =IF(MAX(C305:C316)-MIN(C305:C316)<5,AVERAGEIF(C305:C316,">0",R305:R316), IF(FORECAST($C301,R$305:R$316,$C$305:$C$316)<0,0, IF(FORECAST($C301,R$305:R$316,$C$305:$C$316)>100,100, FORECAST($C301,R$305:R$316,$C$305:$C$316)))) -> 86.38976397 | S301: =IF(MAX(C305:C316)-MIN(C305:C316)<5,AVERAGEIF(C305:C316,">0",S305:S316), IF(FORECAST($C301,S$305:S$316,$C$305:$C$316)<0,0, IF(FORECAST($C301,S$305:S$316,$C$305:$C$316)>100,100, FORECAST($C301,S$305:S$316,$C$305:$C$316)))) -> 21.71870634 | W301: =IF(MAX(C305:C316)-MIN(C305:C316)<5,AVERAGEIF(C305:C316,">0",W305:W316), IF(FORECAST($C301,W$305:W$316,$C$305:$C$316)<0,0, IF(FORECAST($C301,W$305:W$316,$C$305:$C$316)>100,100, FORECAST($C301,W$305:W$316,$C$305:$C$316)))) -> 75.1698081 | X301: =IF(MAX(C305:C316)-MIN(C305:C316)<5,AVERAGEIF(C305:C316,">0",X305:X316), IF(FORECAST($C301,X$305:X$316,$C$305:$C$316)<0,0, IF(FORECAST($C301,X$305:X$316,$C$305:$C$316)>100,100, FORECAST($C301,X$305:X$316,$C$305:$C$316)))) -> 58.94608197 | AB301: =IF(MAX(C305:C316)-MIN(C305:C316)<5,AVERAGEIF(C305:C316,">0",AB305:AB316), IF(FORECAST($C301,AB$305:AB$316,$C$305:$C$316)<0,0, IF(FORECAST($C301,AB$305:AB$316,$C$305:$C$316)>100,100, FORECAST($C301,AB$305:AB$316,$C$305:$C$316)))) -> 39.33174707
C302: =MaxRegYear(C300,C305:C316) -> 2018 | D302: =IF(MAX(C305:C316)-MIN(C305:C316)<5,AVERAGEIF(C305:C316,">0",D305:D316), IF(FORECAST($C302,D$305:D$316,$C$305:$C$316)<0,0, IF(FORECAST($C302,D$305:D$316,$C$305:$C$316)>100,100, FORECAST($C302,D$305:D$316,$C$305:$C$316)))) -> 11.10646107 | H302: =IF(MAX(C305:C316)-MIN(C305:C316)<5,AVERAGEIF(C305:C316,">0",H305:H316), IF(FORECAST($C302,H$305:H$316,$C$305:$C$316)<0,0, IF(FORECAST($C302,H$305:H$316,$C$305:$C$316)>100,100, FORECAST($C302,H$305:H$316,$C$305:$C$316)))) -> 85.95516854 | I302: =IF(MAX(C305:C316)-MIN(C305:C316)<5,AVERAGEIF(C305:C316,">0",I305:I316), IF(FORECAST($C302,I$305:I$316,$C$305:$C$316)<0,0, IF(FORECAST($C302,I$305:I$316,$C$305:$C$316)>100,100, FORECAST($C302,I$305:I$316,$C$305:$C$316)))) -> 27.40871036 | M302: =IF(MAX(C305:C316)-MIN(C305:C316)<5,AVERAGEIF(C305:C316,">0",M305:M316), IF(FORECAST($C302,M$305:M$316,$C$305:$C$316)<0,0, IF(FORECAST($C302,M$305:M$316,$C$305:$C$316)>100,100, FORECAST($C302,M$305:M$316,$C$305:$C$316)))) -> 68.33419863 | N302: =IF(MAX(C305:C316)-MIN(C305:C316)<5,AVERAGEIF(C305:C316,">0",N305:N316), IF(FORECAST($C302,N$305:N$316,$C$305:$C$316)<0,0, IF(FORECAST($C302,N$305:N$316,$C$305:$C$316)>100,100, FORECAST($C302,N$305:N$316,$C$305:$C$316)))) -> 42.9765653 | R302: =IF(MAX(C305:C316)-MIN(C305:C316)<5,AVERAGEIF(C305:C316,">0",R305:R316), IF(FORECAST($C302,R$305:R$316,$C$305:$C$316)<0,0, IF(FORECAST($C302,R$305:R$316,$C$305:$C$316)>100,100, FORECAST($C302,R$305:R$316,$C$305:$C$316)))) -> 54.09987867 | S302: =IF(MAX(C305:C316)-MIN(C305:C316)<5,AVERAGEIF(C305:C316,">0",S305:S316), IF(FORECAST($C302,S$305:S$316,$C$305:$C$316)<0,0, IF(FORECAST($C302,S$305:S$316,$C$305:$C$316)>100,100, FORECAST($C302,S$305:S$316,$C$305:$C$316)))) -> 63.2774284 | W302: =IF(MAX(C305:C316)-MIN(C305:C316)<5,AVERAGEIF(C305:C316,">0",W305:W316), IF(FORECAST($C302,W$305:W$316,$C$305:$C$316)<0,0, IF(FORECAST($C302,W$305:W$316,$C$305:$C$316)>100,100, FORECAST($C302,W$305:W$316,$C$305:$C$316)))) -> 34.54275453 | X302: =IF(MAX(C305:C316)-MIN(C305:C316)<5,AVERAGEIF(C305:C316,">0",X305:X316), IF(FORECAST($C302,X$305:X$316,$C$305:$C$316)<0,0, IF(FORECAST($C302,X$305:X$316,$C$305:$C$316)>100,100, FORECAST($C302,X$305:X$316,$C$305:$C$316)))) -> 89.81456716 | AB302: =IF(MAX(C305:C316)-MIN(C305:C316)<5,AVERAGEIF(C305:C316,">0",AB305:AB316), IF(FORECAST($C302,AB$305:AB$316,$C$305:$C$316)<0,0, IF(FORECAST($C302,AB$305:AB$316,$C$305:$C$316)>100,100, FORECAST($C302,AB$305:AB$316,$C$305:$C$316)))) -> 8.468528388
B304: Survey | C304: Year | D304: Improved | E304: Not shared | H304: Open defecation | I304: Improved | J304: Not shared | M304: Open defecation | N304: Improved | O304: Not shared | R304: Open defecation | S304: Improved | T304: Not shared | W304: Open defecation | X304: Improved | Y304: Not shared | AB304: Open defecation
B305: DHS06 | C305: 2006 | D305: =IF(ISERROR(INDIRECT(CONCATENATE($B305,"!M122"))),"",INDIRECT(CONCATENATE($B305,"!M122"))) -> 4.071039027 | E305: =IF(ISERROR(INDIRECT(CONCATENATE($B305,"!M129"))),"",INDIRECT(CONCATENATE($B305,"!M129"))) -> 65.19229883 | H305: =IF(ISERROR(INDIRECT(CONCATENATE($B305,"!M127"))),"",INDIRECT(CONCATENATE($B305,"!M127"))) -> 93.84664263 | I305: =IF(ISERROR(INDIRECT(CONCATENATE($B305,"!N122"))),"",INDIRECT(CONCATENATE($B305,"!N122"))) -> 7.50209821 | J305: =IF(ISERROR(INDIRECT(CONCATENATE($B305,"!N129"))),"",INDIRECT(CONCATENATE($B305,"!N129"))) -> 70.42106334 | M305: =IF(ISERROR(INDIRECT(CONCATENATE($B305,"!N127"))),"",INDIRECT(CONCATENATE($B305,"!N127"))) -> 89.17827242 | N305: =IF(ISERROR(INDIRECT(CONCATENATE($B305,"!O122"))),"",INDIRECT(CONCATENATE($B305,"!O122"))) -> 14.00307312 | O305: =IF(ISERROR(INDIRECT(CONCATENATE($B305,"!O129"))),"",INDIRECT(CONCATENATE($B305,"!O129"))) -> 69.96184419 | R305: =IF(ISERROR(INDIRECT(CONCATENATE($B305,"!O127"))),"",INDIRECT(CONCATENATE($B305,"!O127"))) -> 81.77692321 | S305: =IF(ISERROR(INDIRECT(CONCATENATE($B305,"!P122"))),"",INDIRECT(CONCATENATE($B305,"!P122"))) -> 27.65566663 | T305: =IF(ISERROR(INDIRECT(CONCATENATE($B305,"!P129"))),"",INDIRECT(CONCATENATE($B305,"!P129"))) -> 74.64620861 | W305: =IF(ISERROR(INDIRECT(CONCATENATE($B305,"!P127"))),"",INDIRECT(CONCATENATE($B305,"!P127"))) -> 69.36594331 | X305: =IF(ISERROR(INDIRECT(CONCATENATE($B305,"!Q122"))),"",INDIRECT(CONCATENATE($B305,"!Q122"))) -> 63.35586557 | Y305: =IF(ISERROR(INDIRECT(CONCATENATE($B305,"!Q129"))),"",INDIRECT(CONCATENATE($B305,"!Q129"))) -> 86.26459235 | AB305: =IF(ISERROR(INDIRECT(CONCATENATE($B305,"!Q2127"))),"",INDIRECT(CONCATENATE($B305,"!Q127"))) -> 34.92271583
B306: DHS16 | C306: 2016 | D306: 9.933890729 | E306: 78.63138752 | H306: 87.27041422 | I306: 24.09094167 | J306: 78.63366474 | M306: 71.80821093 | N306: 38.14764994 | O306: 83.01143384 | R306: 58.71271943 | S306: 57.3404681 | T306: 87.31627545 | W306: 40.34661933 | X306: 85.40478356 | Y306: 92.92849211 | AB306: 12.87755963
B318: =CONCATENATE("Rural use of sanitation facilities, ",C299,"–",C300) -> Rural use of sanitation facilities, 2000–2020 | S318: Data points used for regression

Sheet Hygiene
B4: Access to hygiene facilities by wealth quintile (%)
B5: =IF(ISERROR(INDIRECT(CONCATENATE($E$32,"!A2"))),"",INDIRECT(CONCATENATE($E$32,"!A2"))) -> 
B7: =CONCATENATE("National ",IF(ISERROR(INDIRECT(CONCATENATE($E$32,"!A2"))),"",INDIRECT(CONCATENATE($E$32,"!A210")))) -> National | K7: =CONCATENATE("Urban ",IF(ISERROR(INDIRECT(CONCATENATE($E$32,"!A2"))),"",INDIRECT(CONCATENATE($E$32,"!A210")))) -> Urban | S7: =CONCATENATE("Rural ",IF(ISERROR(INDIRECT(CONCATENATE($E$32,"!A2"))),"",INDIRECT(CONCATENATE($E$32,"!A210")))) -> Rural
E32: =INDEX(B88:B100,A88) -> 0 | G32: =IF(ISERROR(INDIRECT(CONCATENATE($E$32,"!A2"))),"",INDIRECT(CONCATENATE($E$32,"!A2"))) ->  | K32: Poorest | N32: Poor | Q32: Middle | T32: Rich | W32: Richest
K33: Basic | L33: Limited | M33: No facility | N33: Basic | O33: Limited | P33: No facility | Q33: Basic | R33: Limited | S33: No facility | T33: Basic | U33: Limited | V33: No facility | W33: Basic | X33: Limited | Y33: No facility
B34: >>> Select Survey : | G34: NATIONAL | J34: =IF(ISERROR(INDIRECT(CONCATENATE(#REF!,"!A2"))),"",INDIRECT(CONCATENATE(#REF!,"!A210"))) ->  | K34: =IF(ISERROR(INDIRECT(CONCATENATE($E$32,"!C222"))),"",INDIRECT(CONCATENATE($E$32,"!C222"))) ->  | L34: =IF(ISERROR(INDIRECT(CONCATENATE($E$32,"!C223"))),"",INDIRECT(CONCATENATE($E$32,"!C223"))) ->  | M34: =IF(ISERROR(INDIRECT(CONCATENATE($E$32,"!C224"))),"",INDIRECT(CONCATENATE($E$32,"!C224"))) ->  | N34: =IF(ISERROR(INDIRECT(CONCATENATE($E$32,"!D222"))),"",INDIRECT(CONCATENATE($E$32,"!D222"))) ->  | O34: =IF(ISERROR(INDIRECT(CONCATENATE($E$32,"!D223"))),"",INDIRECT(CONCATENATE($E$32,"!D223"))) ->  | P34: =IF(ISERROR(INDIRECT(CONCATENATE($E$32,"!D224"))),"",INDIRECT(CONCATENATE($E$32,"!D224"))) ->  | Q34: =IF(ISERROR(INDIRECT(CONCATENATE($E$32,"!E222"))),"",INDIRECT(CONCATENATE($E$32,"!E222"))) ->  | R34: =IF(ISERROR(INDIRECT(CONCATENATE($E$32,"!E223"))),"",INDIRECT(CONCATENATE($E$32,"!E223"))) ->  | S34: =IF(ISERROR(INDIRECT(CONCATENATE($E$32,"!E224"))),"",INDIRECT(CONCATENATE($E$32,"!E224"))) ->  | T34: =IF(ISERROR(INDIRECT(CONCATENATE($E$32,"!F222"))),"",INDIRECT(CONCATENATE($E$32,"!F222"))) ->  | U34: =IF(ISERROR(INDIRECT(CONCATENATE($E$32,"!F223"))),"",INDIRECT(CONCATENATE($E$32,"!F223"))) ->  | V34: =IF(ISERROR(INDIRECT(CONCATENATE($E$32,"!F224"))),"",INDIRECT(CONCATENATE($E$32,"!F224"))) ->  | W34: =IF(ISERROR(INDIRECT(CONCATENATE($E$32,"!G222"))),"",INDIRECT(CONCATENATE($E$32,"!G222"))) ->  | X34: =IF(ISERROR(INDIRECT(CONCATENATE($E$32,"!G223"))),"",INDIRECT(CONCATENATE($E$32,"!G223"))) ->  | Y34: =IF(ISERROR(INDIRECT(CONCATENATE($E$32,"!G224"))),"",INDIRECT(CONCATENATE($E$32,"!G224"))) -> 
G37: URBAN | J37: =IF(ISERROR(INDIRECT(CONCATENATE(#REF!,"!A2"))),"",INDIRECT(CONCATENATE(#REF!,"!A210"))) ->  | K37: =IF(ISERROR(INDIRECT(CONCATENATE($E$32,"!H222"))),"",INDIRECT(CONCATENATE($E$32,"!H222"))) ->  | L37: =IF(ISERROR(INDIRECT(CONCATENATE($E$32,"!H223"))),"",INDIRECT(CONCATENATE($E$32,"!H223"))) ->  | M37: =IF(ISERROR(INDIRECT(CONCATENATE($E$32,"!H224"))),"",INDIRECT(CONCATENATE($E$32,"!H224"))) ->  | N37: =IF(ISERROR(INDIRECT(CONCATENATE($E$32,"!I222"))),"",INDIRECT(CONCATENATE($E$32,"!I222"))) ->  | O37: =IF(ISERROR(INDIRECT(CONCATENATE($E$32,"!I223"))),"",INDIRECT(CONCATENATE($E$32,"!I223"))) ->  | P37: =IF(ISERROR(INDIRECT(CONCATENATE($E$32,"!I224"))),"",INDIRECT(CONCATENATE($E$32,"!I224"))) ->  | Q37: =IF(ISERROR(INDIRECT(CONCATENATE($E$32,"!J222"))),"",INDIRECT(CONCATENATE($E$32,"!J222"))) ->  | R37: =IF(ISERROR(INDIRECT(CONCATENATE($E$32,"!J223"))),"",INDIRECT(CONCATENATE($E$32,"!J223"))) ->  | S37: =IF(ISERROR(INDIRECT(CONCATENATE($E$32,"!J224"))),"",INDIRECT(CONCATENATE($E$32,"!J224"))) ->  | T37: =IF(ISERROR(INDIRECT(CONCATENATE($E$32,"!K222"))),"",INDIRECT(CONCATENATE($E$32,"!K222"))) ->  | U37: =IF(ISERROR(INDIRECT(CONCATENATE($E$32,"!K223"))),"",INDIRECT(CONCATENATE($E$32,"!K223"))) ->  | V37: =IF(ISERROR(INDIRECT(CONCATENATE($E$32,"!K224"))),"",INDIRECT(CONCATENATE($E$32,"!K224"))) ->  | W37: =IF(ISERROR(INDIRECT(CONCATENATE($E$32,"!L222"))),"",INDIRECT(CONCATENATE($E$32,"!L222"))) ->  | X37: =IF(ISERROR(INDIRECT(CONCATENATE($E$32,"!L223"))),"",INDIRECT(CONCATENATE($E$32,"!L223"))) ->  | Y37: =IF(ISERROR(INDIRECT(CONCATENATE($E$32,"!L224"))),"",INDIRECT(CONCATENATE($E$32,"!L224"))) -> 
G40: RURAL | J40: =IF(ISERROR(INDIRECT(CONCATENATE(#REF!,"!A2"))),"",INDIRECT(CONCATENATE(#REF!,"!A210"))) ->  | K40: =IF(ISERROR(INDIRECT(CONCATENATE($E$32,"!M222"))),"",INDIRECT(CONCATENATE($E$32,"!M222"))) ->  | L40: =IF(ISERROR(INDIRECT(CONCATENATE($E$32,"!M223"))),"",INDIRECT(CONCATENATE($E$32,"!M223"))) ->  | M40: =IF(ISERROR(INDIRECT(CONCATENATE($E$32,"!M224"))),"",INDIRECT(CONCATENATE($E$32,"!M224"))) ->  | N40: =IF(ISERROR(INDIRECT(CONCATENATE($E$32,"!N222"))),"",INDIRECT(CONCATENATE($E$32,"!N222"))) ->  | O40: =IF(ISERROR(INDIRECT(CONCATENATE($E$32,"!N223"))),"",INDIRECT(CONCATENATE($E$32,"!N223"))) ->  | P40: =IF(ISERROR(INDIRECT(CONCATENATE($E$32,"!N224"))),"",INDIRECT(CONCATENATE($E$32,"!N224"))) ->  | Q40: =IF(ISERROR(INDIRECT(CONCATENATE($E$32,"!O222"))),"",INDIRECT(CONCATENATE($E$32,"!O222"))) ->  | R40: =IF(ISERROR(INDIRECT(CONCATENATE($E$32,"!O223"))),"",INDIRECT(CONCATENATE($E$32,"!O223"))) ->  | S40: =IF(ISERROR(INDIRECT(CONCATENATE($E$32,"!O224"))),"",INDIRECT(CONCATENATE($E$32,"!O224"))) ->  | T40: =IF(ISERROR(INDIRECT(CONCATENATE($E$32,"!P222"))),"",INDIRECT(CONCATENATE($E$32,"!P222"))) ->  | U40: =IF(ISERROR(INDIRECT(CONCATENATE($E$32,"!P223"))),"",INDIRECT(CONCATENATE($E$32,"!P223"))) ->  | V40: =IF(ISERROR(INDIRECT(CONCATENATE($E$32,"!P224"))),"",INDIRECT(CONCATENATE($E$32,"!P224"))) ->  | W40: =IF(ISERROR(INDIRECT(CONCATENATE($E$32,"!Q222"))),"",INDIRECT(CONCATENATE($E$32,"!Q222"))) ->  | X40: =IF(ISERROR(INDIRECT(CONCATENATE($E$32,"!Q223"))),"",INDIRECT(CONCATENATE($E$32,"!Q223"))) ->  | Y40: =IF(ISERROR(INDIRECT(CONCATENATE($E$32,"!Q224"))),"",INDIRECT(CONCATENATE($E$32,"!Q224"))) -> 
A88: 2 | B88: Template

Sheet DHS06
A2: =A1026 -> India
A3: =A1034 -> 2006
A4: Use of drinking water sources
A5: by wealth quintile and sub-national region
A6: Notes:
A7: WHO/UNICEF JMP customised wealth index excludes water,
A8: sanitation and hygiene assets.
A9: Survey used for analysis: | B9: =A1025 -> DHS06
A10: =B1028 -> 
A11: =B1027 -> 
A14: Use of drinking water sources | C14: NATIONAL wealth index quintile | H14: URBAN wealth index quintile | M14: RURAL wealth index quintile | R14: REGIONS | BA14: Raw numbers of respondents: | BB14: Use of drinking water sources | BC14: NATIONAL wealth index quintile | BH14: URBAN wealth index quintile | BM14: RURAL wealth index quintile | BR14: SUB-REGIONS:
A15: Weighted percentage (used in graphs) | C15: Poorest | D15: Poor | E15: Middle | F15: Rich | G15: Richest | H15: Poorest | I15: Poor | J15: Middle | K15: Rich | L15: Richest | M15: Poorest | N15: Poor | O15: Middle | P15: Rich | Q15: Richest | R15: [AP] Andhra Pradesh | S15: [AR] Arunachal Pradesh | T15: [AS] Assam | U15: [BH] Bihar | V15: [CH] Chhattisgarh | W15: [DL] Delhi | X15: [GJ] Gujarat | Y15: [GO] Goa | Z15: [HP] Himachal Pradesh | AA15: [HR] Haryana | AB15: [JH] Jharkhand | AC15: [JM] Jammu and Kashmir | AD15: [KA] Karnataka | AE15: [KE] Kerala | AF15: [MG] Meghalaya | AG15: [MH] Maharashtra | AH15: [MN] Manipur | AI15: [MP] Madhya Pradesh | AJ15: [MZ] Mizoram | AK15: [NA] Nagaland | AL15: [OR] Orissa | AM15: [PJ] Punjab | AN15: [RJ] Rajasthan | AO15: [SK] Sikkim | AP15: [TN] Tamil Nadu | AQ15: [TR] Tripura | AR15: [UC] Uttaranchal | AS15: [UP] Uttar Pradesh | AT15: [WB] West Bengal | BA15: Water data, raw numbers (weighted) | BC15: Poorest | BD15: Poor | BE15: Middle | BF15: Rich | BG15: Richest | BH15: Poorest | BI15: Poor | BJ15: Middle | BK15: Rich | BL15: Richest | BM15: Poorest | BN15: Poor | BO15: Middle | BP15: Rich | BQ15: Richest | BR15: [AP] Andhra Pradesh | BS15: [AR] Arunachal Pradesh | BT15: [AS] Assam | BU15: [BH] Bihar | BV15: [CH] Chhattisgarh | BW15: [DL] Delhi | BX15: [GJ] Gujarat | BY15: [GO] Goa | BZ15: [HP] Himachal Pradesh | CA15: [HR] Haryana | CB15: [JH] Jharkhand | CC15: [JM] Jammu and Kashmir | CD15: [KA] Karnataka | CE15: [KE] Kerala | CF15: [MG] Meghalaya | CG15: [MH] Maharashtra | CH15: [MN] Manipur | CI15: [MP] Madhya Pradesh | CJ15: [MZ] Mizoram | CK15: [NA] Nagaland | CL15: [OR] Orissa | CM15: [PJ] Punjab | CN15: [RJ] Rajasthan | CO15: [SK] Sikkim | CP15: [TN] Tamil Nadu | CQ15: [TR] Tripura | CR15: [UC] Uttaranchal | CS15: [UP] Uttar Pradesh | CT15: [WB] West Bengal
A16: Water | B16: Improved | C16: 79.48390858 | D16: 84.94269996 | E16: 88.58361716 | F16: 91.43043312 | G16: 96.49096818 | H16: 93.3905444 | I16: 95.22591424 | J16: 95.99992635 | K16: 97.70821336 | L16: 98.31340575 | M16: 77.80725894 | N16: 82.70552192 | O16: 85.7255473 | P16: 86.55173165 | Q16: 90.43417908 | R16: 94.62460291 | S16: 83.6485523 | T16: 72.32965243 | U16: 96.12183508 | V16: 78.4257207 | W16: 99.76482884 | X16: 89.97013806 | Y16: 79.88438155 | Z16: 87.82173553 | AA16: 97.49999244 | AB16: 56.84236123 | AC16: 80.53707768 | AD16: 86.71044771 | AE16: 69.39086421 | AF16: 62.91586966 | AG16: 92.30186195 | AH16: 55.41008748 | AI16: 75.15575656 | AJ16: 86.0037944 | AK16: 61.21487691 | AL16: 78.30613142 | AM16: 99.65098046 | AN16: 82.53441232 | AO16: 77.29785082 | AP16: 94.74842118 | AQ16: 74.01097769 | AR16: 87.70994073 | AS16: 93.74397644 | AT16: 93.5382694 | BA16: Water | BB16: Improved | BC16: N/A | BD16: N/A | BE16: N/A | BF16: N/A | BG16: N/A | BH16: N/A | BI16: N/A | BJ16: N/A | BK16: N/A | BL16: N/A | BM16: N/A | BN16: N/A | BO16: N/A | BP16: N/A | BQ16: N/A | BR16: N/A | BS16: N/A | BT16: N/A | BU16: N/A | BV16: N/A | BW16: N/A | BX16: N/A | BY16: N/A | BZ16: N/A | CA16: N/A | CB16: N/A | CC16: N/A | CD16: N/A | CE16: N/A | CF16: N/A | CG16: N/A | CH16: N/A | CI16: N/A | CJ16: N/A | CK16: N/A | CL16: N/A | CM16: N/A | CN16: N/A | CO16: N/A | CP16: N/A | CQ16: N/A | CR16: N/A | CS16: N/A | CT16: N/A
B17: Not Improved | C17: 20.51609142 | D17: 15.05730004 | E17: 11.41638284 | F17: 8.569566883 | G17: 3.509031818 | H17: 6.609455599 | I17: 4.774085758 | J17: 4.000073652 | K17: 2.291786636 | L17: 1.686594252 | M17: 22.19274106 | N17: 17.29447808 | O17: 14.2744527 | P17: 13.44826835 | Q17: 9.565820915 | R17: 5.375397087 | S17: 16.3514477 | T17: 27.67034757 | U17: 3.878164917 | V17: 21.5742793 | W17: 0.2351711633 | X17: 10.02986194 | Y17: 20.11561845 | Z17: 12.17826447 | AA17: 2.50000756 | AB17: 43.15763877 | AC17: 19.46292232 | AD17: 13.28955229 | AE17: 30.60913579 | AF17: 37.08413034 | AG17: 7.698138048 | AH17: 44.58991252 | AI17: 24.84424344 | AJ17: 13.9962056 | AK17: 38.78512309 | AL17: 21.69386858 | AM17: 0.3490195415 | AN17: 17.46558768 | AO17: 22.70214918 | AP17: 5.251578817 | AQ17: 25.98902231 | AR17: 12.29005927 | AS17: 6.256023558 | AT17: 6.461730599 | BB17: Not Improved | BC17: N/A | BD17: N/A | BE17: N/A | BF17: N/A | BG17: N/A | BH17: N/A | BI17: N/A | BJ17: N/A | BK17: N/A | BL17: N/A | BM17: N/A | BN17: N/A | BO17: N/A | BP17: N/A | BQ17: N/A | BR17: N/A | BS17: N/A | BT17: N/A | BU17: N/A | BV17: N/A | BW17: N/A | BX17: N/A | BY17: N/A | BZ17: N/A | CA17: N/A | CB17: N/A | CC17: N/A | CD17: N/A | CE17: N/A | CF17: N/A | CG17: N/A | CH17: N/A | CI17: N/A | CJ17: N/A | CK17: N/A | CL17: N/A | CM17: N/A | CN17: N/A | CO17: N/A | CP17: N/A | CQ17: N/A | CR17: N/A | CS17: N/A | CT17: N/A
A18: Water ladder | B18: Basic | C18: 73.29029174 | D18: 80.95923048 | E18: 85.00875635 | F18: 89.0255196 | G18: 95.40599177 | H18: 87.47316575 | I18: 91.67399256 | J18: 94.27775462 | K18: 96.61838433 | L18: 97.78417018 | M18: 71.245795 | N18: 78.71172722 | O18: 82.01361676 | P18: 83.50204806 | Q18: 88.54382053 | R18: 90.80243875 | S18: 83.08574339 | T18: 71.75996903 | U18: 95.14763745 | V18: 74.71440736 | W18: 91.80515998 | X18: 88.01989785 | Y18: 79.66679597 | Z18: 85.51590853 | AA18: 88.34420251 | AB18: 53.00914367 | AC18: 77.87285121 | AD18: 82.00318559 | AE18: 68.82491254 | AF18: 61.650411 | AG18: 89.92230395 | AH18: 53.41753299 | AI18: 64.21966156 | AJ18: 84.47583856 | AK18: 60.33142277 | AL18: 74.25377627 | AM18: 99.04185976 | AN18: 74.57780458 | AO18: 76.49897905 | AP18: 90.49098374 | AQ18: 70.37453124 | AR18: 85.62169325 | AS18: 92.41860995 | AT18: 91.03699975 | BA18: Water ladder | BB18: Basic | BC18: N/A | BD18: N/A | BE18: N/A | BF18: N/A | BG18: N/A | BH18: N/A | BI18: N/A | BJ18: N/A | BK18: N/A | BL18: N/A | BM18: N/A | BN18: N/A | BO18: N/A | BP18: N/A | BQ18: N/A | BR18: N/A | BS18: N/A | BT18: N/A | BU18: N/A | BV18: N/A | BW18: N/A | BX18: N/A | BY18: N/A | BZ18: N/A | CA18: N/A | CB18: N/A | CC18: N/A | CD18: N/A | CE18: N/A | CF18: N/A | CG18: N/A | CH18: N/A | CI18: N/A | CJ18: N/A | CK18: N/A | CL18: N/A | CM18: N/A | CN18: N/A | CO18: N/A | CP18: N/A | CQ18: N/A | CR18: N/A | CS18: N/A | CT18: N/A
B19: Limited | C19: 6.144183398 | D19: 3.968047037 | E19: 3.560200665 | F19: 2.387571331 | G19: 1.080790127 | H19: 5.905209699 | I19: 3.54376393 | J19: 1.712026415 | K19: 1.08803866 | L19: 0.5270285908 | M19: 6.522826907 | N19: 3.955690216 | O19: 3.702766912 | P19: 3.029972826 | Q19: 1.873376206 | R19: 3.814479428 | S19: 0.5172085046 | T19: 0.4979988223 | U19: 0.9666233926 | V19: 3.706699966 | W19: 7.959424503 | X19: 1.914295105 | Y19: 0.2113789084 | Z19: 2.291118011 | AA19: 9.15276511 | AB19: 3.82015748 | AC19: 2.636838447 | AD19: 4.676617346 | AE19: 0.5437856047 | AF19: 1.138168998 | AG19: 2.350689409 | AH19: 1.637566234 | AI19: 10.93255342 | AJ19: 1.447096213 | AK19: 0.7027991033 | AL19: 3.998660982 | AM19: 0.6089465944 | AN19: 7.956607748 | AO19: 0.7847695964 | AP19: 4.25492844 | AQ19: 3.612685885 | AR19: 2.079311813 | AS19: 1.317687924 | AT19: 2.491073165 | BB19: Limited | BC19: N/A | BD19: N/A | BE19: N/A | BF19: N/A | BG19: N/A | BH19: N/A | BI19: N/A | BJ19: N/A | BK19: N/A | BL19: N/A | BM19: N/A | BN19: N/A | BO19: N/A | BP19: N/A | BQ19: N/A | BR19: N/A | BS19: N/A | BT19: N/A | BU19: N/A | BV19: N/A | BW19: N/A | BX19: N/A | BY19: N/A | BZ19: N/A | CA19: N/A | CB19: N/A | CC19: N/A | CD19: N/A | CE19: N/A | CF19: N/A | CG19: N/A | CH19: N/A | CI19: N/A | CJ19: N/A | CK19: N/A | CL19: N/A | CM19: N/A | CN19: N/A | CO19: N/A | CP19: N/A | CQ19: N/A | CR19: N/A | CS19: N/A | CT19: N/A
B20: Unimproved | C20: 17.52481941 | D20: 13.51574257 | E20: 10.21224071 | F20: 7.52137319 | G20: 2.808396124 | H20: 6.113372234 | I20: 3.953328677 | J20: 3.172226434 | K20: 1.470479341 | L20: 0.9581970204 | M20: 18.65401475 | N20: 15.39951828 | O20: 12.71949001 | P20: 12.1618282 | Q20: 8.657919742 | R20: 4.607668196 | S20: 12.0405128 | T20: 24.33060295 | U20: 3.885739157 | V20: 18.6966565 | W20: 0.2354155119 | X20: 8.167770837 | Y20: 19.1036105 | Z20: 11.4179639 | AA20: 2.503032381 | AB20: 34.92965963 | AC20: 16.25377392 | AD20: 6.691999598 | AE20: 29.92700433 | AF20: 35.07547793 | AG20: 7.269620224 | AH20: 13.29858953 | AI20: 22.93975252 | AJ20: 10.86276267 | AK20: 32.81885289 | AL20: 18.56905428 | AM20: 0.155890022 | AN20: 15.47897397 | AO20: 17.5322706 | AP20: 4.911063381 | AQ20: 24.12759561 | AR20: 7.734666415 | AS20: 6.263702125 | AT20: 6.219445948 | BB20: Unimproved | BC20: N/A | BD20: N/A | BE20: N/A | BF20: N/A | BG20: N/A | BH20: N/A | BI20: N/A | BJ20: N/A | BK20: N/A | BL20: N/A | BM20: N/A | BN20: N/A | BO20: N/A | BP20: N/A | BQ20: N/A | BR20: N/A | BS20: N/A | BT20: N/A | BU20: N/A | BV20: N/A | BW20: N/A | BX20: N/A | BY20: N/A | BZ20: N/A | CA20: N/A | CB20: N/A | CC20: N/A | CD20: N/A | CE20: N/A | CF20: N/A | CG20: N/A | CH20: N/A | CI20: N/A | CJ20: N/A | CK20: N/A | CL20: N/A | CM20: N/A | CN20: N/A | CO20: N/A | CP20: N/A | CQ20: N/A | CR20: N/A | CS20: N/A | CT20: N/A
B21: Surface water | C21: 3.040705448 | D21: 1.556979908 | E21: 1.218802274 | F21: 1.06553588 | G21: 0.7048219792 | H21: 0.50825232 | I21: 0.8289148377 | J21: 0.8379925338 | K21: 0.82309767 | L21: 0.7306042067 | M21: 3.577363345 | N21: 1.933064284 | O21: 1.564126318 | P21: 1.306150911 | Q21: 0.9248835222 | R21: 0.775413628 | S21: 4.356535308 | T21: 3.411429193 | U21: 0 | V21: 2.882236176 | W21: 0 | X21: 1.898036204 | Y21: 1.01821463 | Z21: 0.7750095584 | AA21: 0 | AB21: 8.241039221 | AC21: 3.236536424 | AD21: 6.628197469 | AE21: 0.7042975232 | AF21: 2.135942073 | AG21: 0.4573864204 | AH21: 31.64631124 | AI21: 1.908032497 | AJ21: 3.214302555 | AK21: 6.146925243 | AL21: 3.178508468 | AM21: 0.1933036272 | AN21: 1.986613712 | AO21: 5.183980749 | AP21: 0.3430244339 | AQ21: 1.885187264 | AR21: 4.564328524 | AS21: 0 | AT21: 0.2524811379 | BB21: Surface water | BC21: N/A | BD21: N/A | BE21: N/A | BF21: N/A | BG21: N/A | BH21: N/A | BI21: N/A | BJ21: N/A | BK21: N/A | BL21: N/A | BM21: N/A | BN21: N/A | BO21: N/A | BP21: N/A | BQ21: N/A | BR21: N/A | BS21: N/A | BT21: N/A | BU21: N/A | BV21: N/A | BW21: N/A | BX21: N/A | BY21: N/A | BZ21: N/A | CA21: N/A | CB21: N/A | CC21: N/A | CD21: N/A | CE21: N/A | CF21: N/A | CG21: N/A | CH21: N/A | CI21: N/A | CJ21: N/A | CK21: N/A | CL21: N/A | CM21: N/A | CN21: N/A | CO21: N/A | CP21: N/A | CQ21: N/A | CR21: N/A | CS21: N/A | CT21: N/A
A22: Improved water point at more than 30 minutes | B22: Yes | C22: 7.734907781 | D22: 4.672288048 | E22: 4.019693564 | F22: 2.611848376 | G22: 1.1201432 | H22: 6.323958487 | I22: 3.721746931 | J22: 1.783550703 | K22: 1.113579463 | L22: 0.5360819494 | M22: 8.387479098 | N22: 4.785065675 | O22: 4.319788999 | P22: 3.501562537 | Q22: 2.071924671 | R22: 4.031498279 | S22: 0.6186486157 | T22: 0.6891957207 | U22: 1.005702363 | V22: 4.72666109 | W22: 7.978206439 | X22: 2.128550935 | Y22: 0.2646266126 | Z22: 2.609265 | AA22: 9.387743367 | AB22: 6.722161637 | AC22: 3.275181482 | AD22: 5.395279162 | AE22: 0.7839063141 | AF22: 1.81270065 | AG22: 2.547537826 | AH22: 2.974413374 | AI22: 14.54721384 | AJ22: 1.68417922 | AK22: 1.151483679 | AL22: 5.109950722 | AM22: 0.6110804486 | AN22: 9.640351853 | AO22: 1.015439352 | AP22: 4.490883398 | AQ22: 4.882851424 | AR22: 2.370909902 | AS22: 1.405739242 | AT22: 2.663449687 | BA22: Improved water point at more than 30 minutes | BB22: Yes | BC22: N/A | BD22: N/A | BE22: N/A | BF22: N/A | BG22: N/A | BH22: N/A | BI22: N/A | BJ22: N/A | BK22: N/A | BL22: N/A | BM22: N/A | BN22: N/A | BO22: N/A | BP22: N/A | BQ22: N/A | BR22: N/A | BS22: N/A | BT22: N/A | BU22: N/A | BV22: N/A | BW22: N/A | BX22: N/A | BY22: N/A | BZ22: N/A | CA22: N/A | CB22: N/A | CC22: N/A | CD22: N/A | CE22: N/A | CF22: N/A | CG22: N/A | CH22: N/A | CI22: N/A | CJ22: N/A | CK22: N/A | CL22: N/A | CM22: N/A | CN22: N/A | CO22: N/A | CP22: N/A | CQ22: N/A | CR22: N/A | CS22: N/A | CT22: N/A
B23: No | C23: 92.26509222 | D23: 95.32771195 | E23: 95.98030644 | F23: 97.38815162 | G23: 98.8798568 | H23: 93.67604151 | I23: 96.27825307 | J23: 98.2164493 | K23: 98.88642054 | L23: 99.46391805 | M23: 91.6125209 | N23: 95.21493432 | O23: 95.680211 | P23: 96.49843746 | Q23: 97.92807533 | R23: 95.96850172 | S23: 99.38135138 | T23: 99.31080428 | U23: 98.99429764 | V23: 95.27333891 | W23: 92.02179356 | X23: 97.87144907 | Y23: 99.73537339 | Z23: 97.390735 | AA23: 90.61225663 | AB23: 93.27783836 | AC23: 96.72481852 | AD23: 94.60472084 | AE23: 99.21609369 | AF23: 98.18729935 | AG23: 97.45246217 | AH23: 97.02558663 | AI23: 85.45278616 | AJ23: 98.31582078 | AK23: 98.84851632 | AL23: 94.89004928 | AM23: 99.38891955 | AN23: 90.35964815 | AO23: 98.98456065 | AP23: 95.5091166 | AQ23: 95.11714858 | AR23: 97.6290901 | AS23: 98.59426076 | AT23: 97.33655031 | BB23: No | BC23: N/A | BD23: N/A | BE23: N/A | BF23: N/A | BG23: N/A | BH23: N/A | BI23: N/A | BJ23: N/A | BK23: N/A | BL23: N/A | BM23: N/A | BN23: N/A | BO23: N/A | BP23: N/A | BQ23: N/A | BR23: N/A | BS23: N/A | BT23: N/A | BU23: N/A | BV23: N/A | BW23: N/A | BX23: N/A | BY23: N/A | BZ23: N/A | CA23: N/A | CB23: N/A | CC23: N/A | CD23: N/A | CE23: N/A | CF23: N/A | CG23: N/A | CH23: N/A | CI23: N/A | CJ23: N/A | CK23: N/A | CL23: N/A | CM23: N/A | CN23: N/A | CO23: N/A | CP23: N/A | CQ23: N/A | CR23: N/A | CS23: N/A | CT23: N/A
A24: Manually calculated ratios | B24: Improved wells
B25: Improved sources
B26: Other
C27: NATIONAL wealth index quintile | H27: URBAN wealth index quintile | M27: RURAL wealth index quintile | R27: REGIONS | BA27: Raw numbers of respondents: | BB27: Use of drinking water sources | BC27: NATIONAL wealth index quintile | BH27: URBAN wealth index quintile | BM27: RURAL wealth index quintile | BR27: SUB-REGIONS:
A28: Percentage based on weighted population | C28: Poorest | D28: Poor | E28: Middle | F28: Rich | G28: Richest | H28: Poorest | I28: Poor | J28: Middle | K28: Rich | L28: Richest | M28: Poorest | N28: Poor | O28: Middle | P28: Rich | Q28: Richest | R28: [AP] Andhra Pradesh | S28: [AR] Arunachal Pradesh | T28: [AS] Assam | U28: [BH] Bihar | V28: [CH] Chhattisgarh | W28: [DL] Delhi | X28: [GJ] Gujarat | Y28: [GO] Goa | Z28: [HP] Himachal Pradesh | AA28: [HR] Haryana | AB28: [JH] Jharkhand | AC28: [JM] Jammu and Kashmir | AD28: [KA] Karnataka | AE28: [KE] Kerala | AF28: [MG] Meghalaya | AG28: [MH] Maharashtra | AH28: [MN] Manipur | AI28: [MP] Madhya Pradesh | AJ28: [MZ] Mizoram | AK28: [NA] Nagaland | AL28: [OR] Orissa | AM28: [PJ] Punjab | AN28: [RJ] Rajasthan | AO28: [SK] Sikkim | AP28: [TN] Tamil Nadu | AQ28: [TR] Tripura | AR28: [UC] Uttaranchal | AS28: [UP] Uttar Pradesh | AT28: [WB] West Bengal | BA28: Water data, raw numbers (weighted) | BC28: Poorest | BD28: Poor | BE28: Middle | BF28: Rich | BG28: Richest | BH28: Poorest | BI28: Poor | BJ28: Middle | BK28: Rich | BL28: Richest | BM28: Poorest | BN28: Poor | BO28: Middle | BP28: Rich | BQ28: Richest | BR28: [AP] Andhra Pradesh | BS28: [AR] Arunachal Pradesh | BT28: [AS] Assam | BU28: [BH] Bihar | BV28: [CH] Chhattisgarh | BW28: [DL] Delhi | BX28: [GJ] Gujarat | BY28: [GO] Goa | BZ28: [HP] Himachal Pradesh | CA28: [HR] Haryana | CB28: [JH] Jharkhand | CC28: [JM] Jammu and Kashmir | CD28: [KA] Karnataka | CE28: [KE] Kerala | CF28: [MG] Meghalaya | CG28: [MH] Maharashtra | CH28: [MN] Manipur | CI28: [MP] Madhya Pradesh | CJ28: [MZ] Mizoram | CK28: [NA] Nagaland | CL28: [OR] Orissa | CM28: [PJ] Punjab | CN28: [RJ] Rajasthan | CO28: [SK] Sikkim | CP28: [TN] Tamil Nadu | CQ28: [TR] Tripura | CR28: [UC] Uttaranchal | CS28: [UP] Uttar Pradesh | CT28: [WB] West Bengal
A29: Piped water | B29: Yes | C29: 13.30099449 | D29: 22.62440344 | E29: 39.78995924 | F29: 51.76950929 | G29: 66.43385578 | H29: 56.01900319 | I29: 68.05747012 | J29: 71.85005362 | K29: 76.00143352 | L29: 77.50965648 | M29: 10.93633435 | N29: 15.33981672 | O29: 25.27084468 | P29: 33.99152403 | Q29: 39.02388963 | R29: 69.71143343 | S29: 67.76455872 | T29: 10.28361689 | U29: 3.846769026 | V29: 16.61102587 | W29: 84.81525554 | X29: 72.41928851 | Y29: 74.14887876 | Z29: 64.27524184 | AA29: 60.57096329 | AB29: 10.99162603 | AC29: 55.33335527 | AD29: 55.85421164 | AE29: 24.23613013 | AF29: 39.88779653 | AG29: 77.99679597 | AH29: 32.8375796 | AI29: 23.85273497 | AJ29: 61.17860841 | AK29: 39.22801053 | AL29: 10.22223362 | AM29: 54.0258189 | AN29: 43.43298822 | AO29: 33.36512859 | AP29: 85.38061916 | AQ29: 31.66786028 | AR29: 64.66016382 | AS29: 9.972471243 | AT29: 26.48795008 | BA29: Piped water | BB29: Yes | BC29: N/A | BD29: N/A | BE29: N/A | BF29: N/A | BG29: N/A | BH29: N/A | BI29: N/A | BJ29: N/A | BK29: N/A | BL29: N/A | BM29: N/A | BN29: N/A | BO29: N/A | BP29: N/A | BQ29: N/A | BR29: N/A | BS29: N/A | BT29: N/A | BU29: N/A | BV29: N/A | BW29: N/A | BX29: N/A | BY29: N/A | BZ29: N/A | CA29: N/A | CB29: N/A | CC29: N/A | CD29: N/A | CE29: N/A | CF29: N/A | CG29: N/A | CH29: N/A | CI29: N/A | CJ29: N/A | CK29: N/A | CL29: N/A | CM29: N/A | CN29: N/A | CO29: N/A | CP29: N/A | CQ29: N/A | CR29: N/A | CS29: N/A | CT29: N/A
B30: No | C30: 86.69900551 | D30: 77.37559656 | E30: 60.21004076 | F30: 48.23049071 | G30: 33.56614422 | H30: 43.98099681 | I30: 31.94252988 | J30: 28.14994638 | K30: 23.99856648 | L30: 22.49034352 | M30: 89.06366565 | N30: 84.66018328 | O30: 74.72915532 | P30: 66.00847597 | Q30: 60.97611037 | R30: 30.28856657 | S30: 32.23544128 | T30: 89.71638311 | U30: 96.15323097 | V30: 83.38897413 | W30: 15.18474446 | X30: 27.58071149 | Y30: 25.85112124 | Z30: 35.72475816 | AA30: 39.42903671 | AB30: 89.00837397 | AC30: 44.66664473 | AD30: 44.14578836 | AE30: 75.76386987 | AF30: 60.11220347 | AG30: 22.00320403 | AH30: 67.1624204 | AI30: 76.14726503 | AJ30: 38.82139159 | AK30: 60.77198947 | AL30: 89.77776638 | AM30: 45.9741811 | AN30: 56.56701178 | AO30: 66.63487141 | AP30: 14.61938084 | AQ30: 68.33213972 | AR30: 35.33983618 | AS30: 90.02752876 | AT30: 73.51204992 | BB30: No | BC30: N/A | BD30: N/A | BE30: N/A | BF30: N/A | BG30: N/A | BH30: N/A | BI30: N/A | BJ30: N/A | BK30: N/A | BL30: N/A | BM30: N/A | BN30: N/A | BO30: N/A | BP30: N/A | BQ30: N/A | BR30: N/A | BS30: N/A | BT30: N/A | BU30: N/A | BV30: N/A | BW30: N/A | BX30: N/A | BY30: N/A | BZ30: N/A | CA30: N/A | CB30: N/A | CC30: N/A | CD30: N/A | CE30: N/A | CF30: N/A | CG30: N/A | CH30: N/A | CI30: N/A | CJ30: N/A | CK30: N/A | CL30: N/A | CM30: N/A | CN30: N/A | CO30: N/A | CP30: N/A | CQ30: N/A | CR30: N/A | CS30: N/A | CT30: N/A
A31: Piped water on premises | B31: Yes | C31: 2.576966509 | D31: 6.853290842 | E31: 16.57637679 | F31: 33.02399254 | G31: 58.42099915 | H31: 19.28943692 | I31: 40.43799541 | J31: 54.79101735 | K31: 66.73329238 | L31: 73.55256603 | M31: 1.968611201 | N31: 3.849225319 | O31: 8.588547175 | P31: 15.05939165 | Q31: 26.73329342 | R31: 28.89972181 | S31: 46.13501179 | T31: 4.943795484 | U31: 1.829342121 | V31: 7.528037397 | W31: 74.13580364 | X31: 61.2696937 | Y31: 65.03794916 | Z31: 50.27881015 | AA31: 39.55963921 | AB31: 7.663886039 | AC31: 45.39737972 | AD31: 24.67431194 | AE31: 12.37110665 | AF31: 19.78351383 | AG31: 58.21977259 | AH31: 12.28769461 | AI31: 15.80021584 | AJ31: 43.78830223 | AK31: 19.15822601 | AL31: 5.246884776 | AM31: 43.96829772 | AN31: 30.52050258 | AO31: 32.27853268 | AP31: 26.15072496 | AQ31: 11.75189209 | AR31: 43.30718465 | AS31: 8.833311746 | AT31: 9.78290636 | BA31: Piped water on premises | BB31: Yes | BC31: N/A | BD31: N/A | BE31: N/A | BF31: N/A | BG31: N/A | BH31: N/A | BI31: N/A | BJ31: N/A | BK31: N/A | BL31: N/A | BM31: N/A | BN31: N/A | BO31: N/A | BP31: N/A | BQ31: N/A | BR31: N/A | BS31: N/A | BT31: N/A | BU31: N/A | BV31: N/A | BW31: N/A | BX31: N/A | BY31: N/A | BZ31: N/A | CA31: N/A | CB31: N/A | CC31: N/A | CD31: N/A | CE31: N/A | CF31: N/A | CG31: N/A | CH31: N/A | CI31: N/A | CJ31: N/A | CK31: N/A | CL31: N/A | CM31: N/A | CN31: N/A | CO31: N/A | CP31: N/A | CQ31: N/A | CR31: N/A | CS31: N/A | CT31: N/A
B32: No | C32: 97.42303349 | D32: 93.14670916 | E32: 83.42362321 | F32: 66.97600746 | G32: 41.57900085 | H32: 80.71056308 | I32: 59.56200459 | J32: 45.20898265 | K32: 33.26670762 | L32: 26.44743397 | M32: 98.0313888 | N32: 96.15077468 | O32: 91.41145282 | P32: 84.94060835 | Q32: 73.26670658 | R32: 71.10027819 | S32: 53.86498821 | T32: 95.05620452 | U32: 98.17065788 | V32: 92.4719626 | W32: 25.86419636 | X32: 38.7303063 | Y32: 34.96205084 | Z32: 49.72118985 | AA32: 60.44036079 | AB32: 92.33611396 | AC32: 54.60262028 | AD32: 75.32568806 | AE32: 87.62889335 | AF32: 80.21648617 | AG32: 41.78022741 | AH32: 87.71230539 | AI32: 84.19978416 | AJ32: 56.21169777 | AK32: 80.84177399 | AL32: 94.75311522 | AM32: 56.03170228 | AN32: 69.47949742 | AO32: 67.72146732 | AP32: 73.84927504 | AQ32: 88.24810791 | AR32: 56.69281535 | AS32: 91.16668825 | AT32: 90.21709364 | BB32: No | BC32: N/A | BD32: N/A | BE32: N/A | BF32: N/A | BG32: N/A | BH32: N/A | BI32: N/A | BJ32: N/A | BK32: N/A | BL32: N/A | BM32: N/A | BN32: N/A | BO32: N/A | BP32: N/A | BQ32: N/A | BR32: N/A | BS32: N/A | BT32: N/A | BU32: N/A | BV32: N/A | BW32: N/A | BX32: N/A | BY32: N/A | BZ32: N/A | CA32: N/A | CB32: N/A | CC32: N/A | CD32: N/A | CE32: N/A | CF32: N/A | CG32: N/A | CH32: N/A | CI32: N/A | CJ32: N/A | CK32: N/A | CL32: N/A | CM32: N/A | CN32: N/A | CO32: N/A | CP32: N/A | CQ32: N/A | CR32: N/A | CS32: N/A | CT32: N/A
A33: Piped water into dwelling | B33: Yes | C33: N/A | D33: N/A | E33: N/A | F33: N/A | G33: N/A | H33: N/A | I33: N/A | J33: N/A | K33: N/A | L33: N/A | M33: N/A | N33: N/A | O33: N/A | P33: N/A | Q33: N/A | R33: N/A | S33: N/A | T33: N/A | U33: N/A | V33: N/A | W33: N/A | X33: N/A | Y33: N/A | Z33: N/A | AA33: N/A | AB33: N/A | AC33: N/A | AD33: N/A | AE33: N/A | AF33: N/A | AG33: N/A | AH33: N/A | AI33: N/A | AJ33: N/A | AK33: N/A | AL33: N/A | AM33: N/A | AN33: N/A | AO33: N/A | AP33: N/A | AQ33: N/A | AR33: N/A | AS33: N/A | AT33: N/A | BA33: Piped water into dwelling | BB33: Yes | BC33: N/A | BD33: N/A | BE33: N/A | BF33: N/A | BG33: N/A | BH33: N/A | BI33: N/A | BJ33: N/A | BK33: N/A | BL33: N/A | BM33: N/A | BN33: N/A | BO33: N/A | BP33: N/A | BQ33: N/A | BR33: N/A | BS33: N/A | BT33: N/A | BU33: N/A | BV33: N/A | BW33: N/A | BX33: N/A | BY33: N/A | BZ33: N/A | CA33: N/A | CB33: N/A | CC33: N/A | CD33: N/A | CE33: N/A | CF33: N/A | CG33: N/A | CH33: N/A | CI33: N/A | CJ33: N/A | CK33: N/A | CL33: N/A | CM33: N/A | CN33: N/A | CO33: N/A | CP33: N/A | CQ33: N/A | CR33: N/A | CS33: N/A | CT33: N/A
B34: No | C34: N/A | D34: N/A | E34: N/A | F34: N/A | G34: N/A | H34: N/A | I34: N/A | J34: N/A | K34: N/A | L34: N/A | M34: N/A | N34: N/A | O34: N/A | P34: N/A | Q34: N/A | R34: N/A | S34: N/A | T34: N/A | U34: N/A | V34: N/A | W34: N/A | X34: N/A | Y34: N/A | Z34: N/A | AA34: N/A | AB34: N/A | AC34: N/A | AD34: N/A | AE34: N/A | AF34: N/A | AG34: N/A | AH34: N/A | AI34: N/A | AJ34: N/A | AK34: N/A | AL34: N/A | AM34: N/A | AN34: N/A | AO34: N/A | AP34: N/A | AQ34: N/A | AR34: N/A | AS34: N/A | AT34: N/A | BB34: No | BC34: N/A | BD34: N/A | BE34: N/A | BF34: N/A | BG34: N/A | BH34: N/A | BI34: N/A | BJ34: N/A | BK34: N/A | BL34: N/A | BM34: N/A | BN34: N/A | BO34: N/A | BP34: N/A | BQ34: N/A | BR34: N/A | BS34: N/A | BT34: N/A | BU34: N/A | BV34: N/A | BW34: N/A | BX34: N/A | BY34: N/A | BZ34: N/A | CA34: N/A | CB34: N/A | CC34: N/A | CD34: N/A | CE34: N/A | CF34: N/A | CG34: N/A | CH34: N/A | CI34: N/A | CJ34: N/A | CK34: N/A | CL34: N/A | CM34: N/A | CN34: N/A | CO34: N/A | CP34: N/A | CQ34: N/A | CR34: N/A | CS34: N/A | CT34: N/A
A35: Water source on premises | B35: Yes | C35: 26.1610381 | D35: 39.80034857 | E35: 47.09147067 | F35: 65.46176605 | G35: 86.98652132 | H35: 38.96110342 | I35: 60.37016433 | J35: 77.07226576 | K35: 87.42953514 | L35: 94.86554135 | M35: 24.34879546 | N35: 34.79747357 | O35: 43.0346315 | P35: 50.30791949 | Q35: 71.47809619 | R35: 37.90398627 | S35: 66.0977547 | T35: 68.55637035 | U35: 67.99293917 | V35: 21.89243317 | W35: 78.84485777 | X35: 68.81576133 | Y35: 80.60799619 | Z35: 60.70037783 | AA35: 60.91632903 | AB35: 28.84666234 | AC35: 66.82651511 | AD35: 46.47170308 | AE35: 79.24322106 | AF35: 35.82137389 | AG35: 65.51760577 | AH35: 31.2538872 | AI35: 30.40975306 | AJ35: 57.66629967 | AK35: 46.5481428 | AL35: 24.90297344 | AM35: 88.9968678 | AN35: 43.9190814 | AO35: 89.40477239 | AP35: 35.62640014 | AQ35: 41.49799735 | AR35: 61.0547109 | AS35: 66.36342588 | AT35: 36.51581359 | BA35: Water source on premises | BB35: Yes | BC35: N/A | BD35: N/A | BE35: N/A | BF35: N/A | BG35: N/A | BH35: N/A | BI35: N/A | BJ35: N/A | BK35: N/A | BL35: N/A | BM35: N/A | BN35: N/A | BO35: N/A | BP35: N/A | BQ35: N/A | BR35: N/A | BS35: N/A | BT35: N/A | BU35: N/A | BV35: N/A | BW35: N/A | BX35: N/A | BY35: N/A | BZ35: N/A | CA35: N/A | CB35: N/A | CC35: N/A | CD35: N/A | CE35: N/A | CF35: N/A | CG35: N/A | CH35: N/A | CI35: N/A | CJ35: N/A | CK35: N/A | CL35: N/A | CM35: N/A | CN35: N/A | CO35: N/A | CP35: N/A | CQ35: N/A | CR35: N/A | CS35: N/A | CT35: N/A
B36: No | C36: 73.8389619 | D36: 60.19965143 | E36: 52.90852933 | F36: 34.53823395 | G36: 13.01347868 | H36: 61.03889658 | I36: 39.62983567 | J36: 22.92773424 | K36: 12.57046486 | L36: 5.134458649 | M36: 75.65120454 | N36: 65.20252643 | O36: 56.9653685 | P36: 49.69208051 | Q36: 28.52190381 | R36: 62.09601373 | S36: 33.9022453 | T36: 31.44362965 | U36: 32.00706083 | V36: 78.10756683 | W36: 21.15514223 | X36: 31.18423867 | Y36: 19.39200381 | Z36: 39.29962217 | AA36: 39.08367097 | AB36: 71.15333766 | AC36: 33.17348489 | AD36: 53.52829692 | AE36: 20.75677894 | AF36: 64.17862611 | AG36: 34.48239423 | AH36: 68.7461128 | AI36: 69.59024694 | AJ36: 42.33370033 | AK36: 53.4518572 | AL36: 75.09702656 | AM36: 11.0031322 | AN36: 56.0809186 | AO36: 10.59522761 | AP36: 64.37359986 | AQ36: 58.50200265 | AR36: 38.9452891 | AS36: 33.63657412 | AT36: 63.48418641 | BB36: No | BC36: N/A | BD36: N/A | BE36: N/A | BF36: N/A | BG36: N/A | BH36: N/A | BI36: N/A | BJ36: N/A | BK36: N/A | BL36: N/A | BM36: N/A | BN36: N/A | BO36: N/A | BP36: N/A | BQ36: N/A | BR36: N/A | BS36: N/A | BT36: N/A | BU36: N/A | BV36: N/A | BW36: N/A | BX36: N/A | BY36: N/A | BZ36: N/A | CA36: N/A | CB36: N/A | CC36: N/A | CD36: N/A | CE36: N/A | CF36: N/A | CG36: N/A | CH36: N/A | CI36: N/A | CJ36: N/A | CK36: N/A | CL36: N/A | CM36: N/A | CN36: N/A | CO36: N/A | CP36: N/A | CQ36: N/A | CR36: N/A | CS36: N/A | CT36: N/A
A37: Improved Water source on premises | B37: Yes | C37: 28.83979349 | D37: 42.21808853 | E37: 48.92107859 | F37: 66.90187536 | G37: 87.50724827 | H37: 38.95793723 | I37: 60.94864147 | J37: 77.54463239 | K37: 87.40951567 | L37: 95.0760982 | M37: 27.22529553 | N37: 37.68448838 | O37: 45.45957567 | P37: 52.54958662 | Q37: 73.35620291 | R37: 39.19586721 | S37: 75.48212928 | T37: 73.0450684 | U37: 69.13372491 | V37: 19.13701282 | W37: 79.03090879 | X37: 74.88459612 | Y37: 89.87720992 | Z37: 67.58845975 | AA37: 62.48022941 | AB37: 31.8180319 | AC37: 79.05161314 | AD37: 47.58694244 | AE37: 79.74801153 | AF37: 46.34031865 | AG37: 69.84070146 | AH37: 40.43631509 | AI37: 32.75369819 | AJ37: 64.95519962 | AK37: 58.23211798 | AL37: 25.29319039 | AM37: 89.23363879 | AN37: 50.02816537 | AO37: 95.05017226 | AP37: 36.4039803 | AQ37: 45.91695285 | AR37: 69.26429746 | AS37: 68.50782425 | AT37: 36.62780863 | BA37: Improved water source on premises | BB37: Yes | BC37: N/A | BD37: N/A | BE37: N/A | BF37: N/A | BG37: N/A | BH37: N/A | BI37: N/A | BJ37: N/A | BK37: N/A | BL37: N/A | BM37: N/A | BN37: N/A | BO37: N/A | BP37: N/A | BQ37: N/A | BR37: N/A | BS37: N/A | BT37: N/A | BU37: N/A | BV37: N/A | BW37: N/A | BX37: N/A | BY37: N/A | BZ37: N/A | CA37: N/A | CB37: N/A | CC37: N/A | CD37: N/A | CE37: N/A | CF37: N/A | CG37: N/A | CH37: N/A | CI37: N/A | CJ37: N/A | CK37: N/A | CL37: N/A | CM37: N/A | CN37: N/A | CO37: N/A | CP37: N/A | CQ37: N/A | CR37: N/A | CS37: N/A | CT37: N/A
B38: No | C38: 71.16020651 | D38: 57.78191147 | E38: 51.07892141 | F38: 33.09812464 | G38: 12.49275173 | H38: 61.04206277 | I38: 39.05135853 | J38: 22.45536761 | K38: 12.59048433 | L38: 4.9239018 | M38: 72.77470447 | N38: 62.31551162 | O38: 54.54042433 | P38: 47.45041338 | Q38: 26.64379709 | R38: 60.80413279 | S38: 24.51787072 | T38: 26.9549316 | U38: 30.86627509 | V38: 80.86298718 | W38: 20.96909121 | X38: 25.11540388 | Y38: 10.12279008 | Z38: 32.41154025 | AA38: 37.51977059 | AB38: 68.1819681 | AC38: 20.94838686 | AD38: 52.41305756 | AE38: 20.25198847 | AF38: 53.65968135 | AG38: 30.15929854 | AH38: 59.56368491 | AI38: 67.24630181 | AJ38: 35.04480038 | AK38: 41.76788202 | AL38: 74.70680961 | AM38: 10.76636121 | AN38: 49.97183463 | AO38: 4.94982774 | AP38: 63.5960197 | AQ38: 54.08304715 | AR38: 30.73570254 | AS38: 31.49217575 | AT38: 63.37219137 | BB38: No | BC38: N/A | BD38: N/A | BE38: N/A | BF38: N/A | BG38: N/A | BH38: N/A | BI38: N/A | BJ38: N/A | BK38: N/A | BL38: N/A | BM38: N/A | BN38: N/A | BO38: N/A | BP38: N/A | BQ38: N/A | BR38: N/A | BS38: N/A | BT38: N/A | BU38: N/A | BV38: N/A | BW38: N/A | BX38: N/A | BY38: N/A | BZ38: N/A | CA38: N/A | CB38: N/A | CC38: N/A | CD38: N/A | CE38: N/A | CF38: N/A | CG38: N/A | CH38: N/A | CI38: N/A | CJ38: N/A | CK38: N/A | CL38: N/A | CM38: N/A | CN38: N/A | CO38: N/A | CP38: N/A | CQ38: N/A | CR38: N/A | CS38: N/A | CT38: N/A
A39: Piped water on premises available when needed | B39: Yes | C39: N/A | D39: N/A | E39: N/A | F39: N/A | G39: N/A | H39: N/A | I39: N/A | J39: N/A | K39: N/A | L39: N/A | M39: N/A | N39: N/A | O39: N/A | P39: N/A | Q39: N/A | R39: N/A | S39: N/A | T39: N/A | U39: N/A | V39: N/A | W39: N/A | X39: N/A | Y39: N/A | Z39: N/A | AA39: N/A | AB39: N/A | AC39: N/A | AD39: N/A | AE39: N/A | AF39: N/A | AG39: N/A | AH39: N/A | AI39: N/A | AJ39: N/A | AK39: N/A | AL39: N/A | AM39: N/A | AN39: N/A | AO39: N/A | AP39: N/A | AQ39: N/A | AR39: N/A | AS39: N/A | AT39: N/A | BA39: Piped water on premises available when needed | BB39: Yes | BC39: N/A | BD39: N/A | BE39: N/A | BF39: N/A | BG39: N/A | BH39: N/A | BI39: N/A | BJ39: N/A | BK39: N/A | BL39: N/A | BM39: N/A | BN39: N/A | BO39: N/A | BP39: N/A | BQ39: N/A | BR39: N/A | BS39: N/A | BT39: N/A | BU39: N/A | BV39: N/A | BW39: N/A | BX39: N/A | BY39: N/A | BZ39: N/A | CA39: N/A | CB39: N/A | CC39: N/A | CD39: N/A | CE39: N/A | CF39: N/A | CG39: N/A | CH39: N/A | CI39: N/A | CJ39: N/A | CK39: N/A | CL39: N/A | CM39: N/A | CN39: N/A | CO39: N/A | CP39: N/A | CQ39: N/A | CR39: N/A | CS39: N/A | CT39: N/A
B40: No | C40: N/A | D40: N/A | E40: N/A | F40: N/A | G40: N/A | H40: N/A | I40: N/A | J40: N/A | K40: N/A | L40: N/A | M40: N/A | N40: N/A | O40: N/A | P40: N/A | Q40: N/A | R40: N/A | S40: N/A | T40: N/A | U40: N/A | V40: N/A | W40: N/A | X40: N/A | Y40: N/A | Z40: N/A | AA40: N/A | AB40: N/A | AC40: N/A | AD40: N/A | AE40: N/A | AF40: N/A | AG40: N/A | AH40: N/A | AI40: N/A | AJ40: N/A | AK40: N/A | AL40: N/A | AM40: N/A | AN40: N/A | AO40: N/A | AP40: N/A | AQ40: N/A | AR40: N/A | AS40: N/A | AT40: N/A | BB40: No | BC40: N/A | BD40: N/A | BE40: N/A | BF40: N/A | BG40: N/A | BH40: N/A | BI40: N/A | BJ40: N/A | BK40: N/A | BL40: N/A | BM40: N/A | BN40: N/A | BO40: N/A | BP40: N/A | BQ40: N/A | BR40: N/A | BS40: N/A | BT40: N/A | BU40: N/A | BV40: N/A | BW40: N/A | BX40: N/A | BY40: N/A | BZ40: N/A | CA40: N/A | CB40: N/A | CC40: N/A | CD40: N/A | CE40: N/A | CF40: N/A | CG40: N/A | CH40: N/A | CI40: N/A | CJ40: N/A | CK40: N/A | CL40: N/A | CM40: N/A | CN40: N/A | CO40: N/A | CP40: N/A | CQ40: N/A | CR40: N/A | CS40: N/A | CT40: N/A
A41: Water point at more than 30 minutes | B41: Yes | C41: 9.222078014 | D41: 5.067710504 | E41: 4.335069671 | F41: 2.761911366 | G41: 1.146130846 | H41: 6.054439573 | I41: 3.704276983 | J41: 1.838484741 | K41: 1.124898671 | L41: 0.5353416991 | M41: 10.03765291 | N41: 5.675137386 | O41: 4.823386427 | P41: 3.821177838 | Q41: 2.305787907 | R41: 3.99846206 | S41: 1.937365604 | T41: 0.6170229046 | U41: 1.23437418 | V41: 5.091389666 | W41: 8.044068796 | X41: 3.097321788 | Y41: 0.4340495134 | Z41: 3.712252391 | AA41: 9.908968247 | AB41: 7.356356627 | AC41: 6.639662096 | AD41: 5.746709968 | AE41: 0.660082634 | AF41: 3.824268556 | AG41: 2.979705822 | AH41: 2.910714115 | AI41: 15.40307007 | AJ41: 2.425801246 | AK41: 2.087895228 | AL41: 5.764522247 | AM41: 0.6089465944 | AN41: 12.20706734 | AO41: 1.947391221 | AP41: 4.482086621 | AQ41: 5.695373034 | AR41: 5.059978664 | AS41: 1.436584515 | AT41: 2.536083183 | BA41: Water point at more than 30 minutes | BB41: Yes | BC41: N/A | BD41: N/A | BE41: N/A | BF41: N/A | BG41: N/A | BH41: N/A | BI41: N/A | BJ41: N/A | BK41: N/A | BL41: N/A | BM41: N/A | BN41: N/A | BO41: N/A | BP41: N/A | BQ41: N/A | BR41: N/A | BS41: N/A | BT41: N/A | BU41: N/A | BV41: N/A | BW41: N/A | BX41: N/A | BY41: N/A | BZ41: N/A | CA41: N/A | CB41: N/A | CC41: N/A | CD41: N/A | CE41: N/A | CF41: N/A | CG41: N/A | CH41: N/A | CI41: N/A | CJ41: N/A | CK41: N/A | CL41: N/A | CM41: N/A | CN41: N/A | CO41: N/A | CP41: N/A | CQ41: N/A | CR41: N/A | CS41: N/A | CT41: N/A
B42: No | C42: 90.77792199 | D42: 94.9322895 | E42: 95.66493033 | F42: 97.23808863 | G42: 98.85386915 | H42: 93.94556043 | I42: 96.29572302 | J42: 98.16151526 | K42: 98.87510133 | L42: 99.4646583 | M42: 89.96234709 | N42: 94.32486261 | O42: 95.17661357 | P42: 96.17882216 | Q42: 97.69421209 | R42: 96.00153794 | S42: 98.0626344 | T42: 99.3829771 | U42: 98.76562582 | V42: 94.90861033 | W42: 91.9559312 | X42: 96.90267821 | Y42: 99.56595049 | Z42: 96.28774761 | AA42: 90.09103175 | AB42: 92.64364337 | AC42: 93.3603379 | AD42: 94.25329003 | AE42: 99.33991737 | AF42: 96.17573144 | AG42: 97.02029418 | AH42: 97.08928589 | AI42: 84.59692993 | AJ42: 97.57419875 | AK42: 97.91210477 | AL42: 94.23547775 | AM42: 99.39105341 | AN42: 87.79293266 | AO42: 98.05260878 | AP42: 95.51791338 | AQ42: 94.30462697 | AR42: 94.94002134 | AS42: 98.56341548 | AT42: 97.46391682 | BB42: No | BC42: N/A | BD42: N/A | BE42: N/A | BF42: N/A | BG42: N/A | BH42: N/A | BI42: N/A | BJ42: N/A | BK42: N/A | BL42: N/A | BM42: N/A | BN42: N/A | BO42: N/A | BP42: N/A | BQ42: N/A | BR42: N/A | BS42: N/A | BT42: N/A | BU42: N/A | BV42: N/A | BW42: N/A | BX42: N/A | BY42: N/A | BZ42: N/A | CA42: N/A | CB42: N/A | CC42: N/A | CD42: N/A | CE42: N/A | CF42: N/A | CG42: N/A | CH42: N/A | CI42: N/A | CJ42: N/A | CK42: N/A | CL42: N/A | CM42: N/A | CN42: N/A | CO42: N/A | CP42: N/A | CQ42: N/A | CR42: N/A | CS42: N/A | CT42: N/A
A43: Water source available when needed | B43: Yes | C43: N/A | D43: N/A | E43: N/A | F43: N/A | G43: N/A | H43: N/A | I43: N/A | J43: N/A | K43: N/A | L43: N/A | M43: N/A | N43: N/A | O43: N/A | P43: N/A | Q43: N/A | R43: N/A | S43: N/A | T43: N/A | U43: N/A | V43: N/A | W43: N/A | X43: N/A | Y43: N/A | Z43: N/A | AA43: N/A | AB43: N/A | AC43: N/A | AD43: N/A | AE43: N/A | AF43: N/A | AG43: N/A | AH43: N/A | AI43: N/A | AJ43: N/A | AK43: N/A | AL43: N/A | AM43: N/A | AN43: N/A | AO43: N/A | AP43: N/A | AQ43: N/A | AR43: N/A | AS43: N/A | AT43: N/A | BA43: Water source available when needed | BB43: Yes | BC43: N/A | BD43: N/A | BE43: N/A | BF43: N/A | BG43: N/A | BH43: N/A | BI43: N/A | BJ43: N/A | BK43: N/A | BL43: N/A | BM43: N/A | BN43: N/A | BO43: N/A | BP43: N/A | BQ43: N/A | BR43: N/A | BS43: N/A | BT43: N/A | BU43: N/A | BV43: N/A | BW43: N/A | BX43: N/A | BY43: N/A | BZ43: N/A | CA43: N/A | CB43: N/A | CC43: N/A | CD43: N/A | CE43: N/A | CF43: N/A | CG43: N/A | CH43: N/A | CI43: N/A | CJ43: N/A | CK43: N/A | CL43: N/A | CM43: N/A | CN43: N/A | CO43: N/A | CP43: N/A | CQ43: N/A | CR43: N/A | CS43: N/A | CT43: N/A
B44: No | C44: N/A | D44: N/A | E44: N/A | F44: N/A | G44: N/A | H44: N/A | I44: N/A | J44: N/A | K44: N/A | L44: N/A | M44: N/A | N44: N/A | O44: N/A | P44: N/A | Q44: N/A | R44: N/A | S44: N/A | T44: N/A | U44: N/A | V44: N/A | W44: N/A | X44: N/A | Y44: N/A | Z44: N/A | AA44: N/A | AB44: N/A | AC44: N/A | AD44: N/A | AE44: N/A | AF44: N/A | AG44: N/A | AH44: N/A | AI44: N/A | AJ44: N/A | AK44: N/A | AL44: N/A | AM44: N/A | AN44: N/A | AO44: N/A | AP44: N/A | AQ44: N/A | AR44: N/A | AS44: N/A | AT44: N/A | BB44: No | BC44: N/A | BD44: N/A | BE44: N/A | BF44: N/A | BG44: N/A | BH44: N/A | BI44: N/A | BJ44: N/A | BK44: N/A | BL44: N/A | BM44: N/A | BN44: N/A | BO44: N/A | BP44: N/A | BQ44: N/A | BR44: N/A | BS44: N/A | BT44: N/A | BU44: N/A | BV44: N/A | BW44: N/A | BX44: N/A | BY44: N/A | BZ44: N/A | CA44: N/A | CB44: N/A | CC44: N/A | CD44: N/A | CE44: N/A | CF44: N/A | CG44: N/A | CH44: N/A | CI44: N/A | CJ44: N/A | CK44: N/A | CL44: N/A | CM44: N/A | CN44: N/A | CO44: N/A | CP44: N/A | CQ44: N/A | CR44: N/A | CS44: N/A | CT44: N/A
A45: Improved water source available when needed | B45: Yes | C45: N/A | D45: N/A | E45: N/A | F45: N/A | G45: N/A | H45: N/A | I45: N/A | J45: N/A | K45: N/A | L45: N/A | M45: N/A | N45: N/A | O45: N/A | P45: N/A | Q45: N/A | R45: N/A | S45: N/A | T45: N/A | U45: N/A | V45: N/A | W45: N/A | X45: N/A | Y45: N/A | Z45: N/A | AA45: N/A | AB45: N/A | AC45: N/A | AD45: N/A | AE45: N/A | AF45: N/A | AG45: N/A | AH45: N/A | AI45: N/A | AJ45: N/A | AK45: N/A | AL45: N/A | AM45: N/A | AN45: N/A | AO45: N/A | AP45: N/A | AQ45: N/A | AR45: N/A | AS45: N/A | AT45: N/A | BA45: Improved water source available when needed | BB45: Yes | BC45: N/A | BD45: N/A | BE45: N/A | BF45: N/A | BG45: N/A | BH45: N/A | BI45: N/A | BJ45: N/A | BK45: N/A | BL45: N/A | BM45: N/A | BN45: N/A | BO45: N/A | BP45: N/A | BQ45: N/A | BR45: N/A | BS45: N/A | BT45: N/A | BU45: N/A | BV45: N/A | BW45: N/A | BX45: N/A | BY45: N/A | BZ45: N/A | CA45: N/A | CB45: N/A | CC45: N/A | CD45: N/A | CE45: N/A | CF45: N/A | CG45: N/A | CH45: N/A | CI45: N/A | CJ45: N/A | CK45: N/A | CL45: N/A | CM45: N/A | CN45: N/A | CO45: N/A | CP45: N/A | CQ45: N/A | CR45: N/A | CS45: N/A | CT45: N/A
B46: No | C46: N/A | D46: N/A | E46: N/A | F46: N/A | G46: N/A | H46: N/A | I46: N/A | J46: N/A | K46: N/A | L46: N/A | M46: N/A | N46: N/A | O46: N/A | P46: N/A | Q46: N/A | R46: N/A | S46: N/A | T46: N/A | U46: N/A | V46: N/A | W46: N/A | X46: N/A | Y46: N/A | Z46: N/A | AA46: N/A | AB46: N/A | AC46: N/A | AD46: N/A | AE46: N/A | AF46: N/A | AG46: N/A | AH46: N/A | AI46: N/A | AJ46: N/A | AK46: N/A | AL46: N/A | AM46: N/A | AN46: N/A | AO46: N/A | AP46: N/A | AQ46: N/A | AR46: N/A | AS46: N/A | AT46: N/A | BB46: No | BC46: N/A | BD46: N/A | BE46: N/A | BF46: N/A | BG46: N/A | BH46: N/A | BI46: N/A | BJ46: N/A | BK46: N/A | BL46: N/A | BM46: N/A | BN46: N/A | BO46: N/A | BP46: N/A | BQ46: N/A | BR46: N/A | BS46: N/A | BT46: N/A | BU46: N/A | BV46: N/A | BW46: N/A | BX46: N/A | BY46: N/A | BZ46: N/A | CA46: N/A | CB46: N/A | CC46: N/A | CD46: N/A | CE46: N/A | CF46: N/A | CG46: N/A | CH46: N/A | CI46: N/A | CJ46: N/A | CK46: N/A | CL46: N/A | CM46: N/A | CN46: N/A | CO46: N/A | CP46: N/A | CQ46: N/A | CR46: N/A | CS46: N/A | CT46: N/A
A47: Microbiological quality at point of collection | B47: Not contaminated (No E. coli in 100 mL) | C47: N/A | D47: N/A | E47: N/A | F47: N/A | G47: N/A | H47: N/A | I47: N/A | J47: N/A | K47: N/A | L47: N/A | M47: N/A | N47: N/A | O47: N/A | P47: N/A | Q47: N/A | R47: N/A | S47: N/A | T47: N/A | U47: N/A | V47: N/A | W47: N/A | X47: N/A | Y47: N/A | Z47: N/A | AA47: N/A | AB47: N/A | AC47: N/A | AD47: N/A | AE47: N/A | AF47: N/A | AG47: N/A | AH47: N/A | AI47: N/A | AJ47: N/A | AK47: N/A | AL47: N/A | AM47: N/A | AN47: N/A | AO47: N/A | AP47: N/A | AQ47: N/A | AR47: N/A | AS47: N/A | AT47: N/A | BA47: Microbiological quality at point of collection | BB47: Not contaminated (No E. coli in 100 mL) | BC47: N/A | BD47: N/A | BE47: N/A | BF47: N/A | BG47: N/A | BH47: N/A | BI47: N/A | BJ47: N/A | BK47: N/A | BL47: N/A | BM47: N/A | BN47: N/A | BO47: N/A | BP47: N/A | BQ47: N/A | BR47: N/A | BS47: N/A | BT47: N/A | BU47: N/A | BV47: N/A | BW47: N/A | BX47: N/A | BY47: N/A | BZ47: N/A | CA47: N/A | CB47: N/A | CC47: N/A | CD47: N/A | CE47: N/A | CF47: N/A | CG47: N/A | CH47: N/A | CI47: N/A | CJ47: N/A | CK47: N/A | CL47: N/A | CM47: N/A | CN47: N/A | CO47: N/A | CP47: N/A | CQ47: N/A | CR47: N/A | CS47: N/A | CT47: N/A
B48: Contaminated (E. coli detected in 100 mL) | C48: N/A | D48: N/A | E48: N/A | F48: N/A | G48: N/A | H48: N/A | I48: N/A | J48: N/A | K48: N/A | L48: N/A | M48: N/A | N48: N/A | O48: N/A | P48: N/A | Q48: N/A | R48: N/A | S48: N/A | T48: N/A | U48: N/A | V48: N/A | W48: N/A | X48: N/A | Y48: N/A | Z48: N/A | AA48: N/A | AB48: N/A | AC48: N/A | AD48: N/A | AE48: N/A | AF48: N/A | AG48: N/A | AH48: N/A | AI48: N/A | AJ48: N/A | AK48: N/A | AL48: N/A | AM48: N/A | AN48: N/A | AO48: N/A | AP48: N/A | AQ48: N/A | AR48: N/A | AS48: N/A | AT48: N/A | BB48: Contaminated (E. coli detected in 100 mL) | BC48: N/A | BD48: N/A | BE48: N/A | BF48: N/A | BG48: N/A | BH48: N/A | BI48: N/A | BJ48: N/A | BK48: N/A | BL48: N/A | BM48: N/A | BN48: N/A | BO48: N/A | BP48: N/A | BQ48: N/A | BR48: N/A | BS48: N/A | BT48: N/A | BU48: N/A | BV48: N/A | BW48: N/A | BX48: N/A | BY48: N/A | BZ48: N/A | CA48: N/A | CB48: N/A | CC48: N/A | CD48: N/A | CE48: N/A | CF48: N/A | CG48: N/A | CH48: N/A | CI48: N/A | CJ48: N/A | CK48: N/A | CL48: N/A | CM48: N/A | CN48: N/A | CO48: N/A | CP48: N/A | CQ48: N/A | CR48: N/A | CS48: N/A | CT48: N/A
B49: Highly contaminated (>100 CFU/100 mL) | C49: N/A | D49: N/A | E49: N/A | F49: N/A | G49: N/A | H49: N/A | I49: N/A | J49: N/A | K49: N/A | L49: N/A | M49: N/A | N49: N/A | O49: N/A | P49: N/A | Q49: N/A | R49: N/A | S49: N/A | T49: N/A | U49: N/A | V49: N/A | W49: N/A | X49: N/A | Y49: N/A | Z49: N/A | AA49: N/A | AB49: N/A | AC49: N/A | AD49: N/A | AE49: N/A | AF49: N/A | AG49: N/A | AH49: N/A | AI49: N/A | AJ49: N/A | AK49: N/A | AL49: N/A | AM49: N/A | AN49: N/A | AO49: N/A | AP49: N/A | AQ49: N/A | AR49: N/A | AS49: N/A | AT49: N/A | BB49: Highly contaminated (>100 CFU/100 mL) | BC49: N/A | BD49: N/A | BE49: N/A | BF49: N/A | BG49: N/A | BH49: N/A | BI49: N/A | BJ49: N/A | BK49: N/A | BL49: N/A | BM49: N/A | BN49: N/A | BO49: N/A | BP49: N/A | BQ49: N/A | BR49: N/A | BS49: N/A | BT49: N/A | BU49: N/A | BV49: N/A | BW49: N/A | BX49: N/A | BY49: N/A | BZ49: N/A | CA49: N/A | CB49: N/A | CC49: N/A | CD49: N/A | CE49: N/A | CF49: N/A | CG49: N/A | CH49: N/A | CI49: N/A | CJ49: N/A | CK49: N/A | CL49: N/A | CM49: N/A | CN49: N/A | CO49: N/A | CP49: N/A | CQ49: N/A | CR49: N/A | CS49: N/A | CT49: N/A
A50: Microbiological quality of improved water sources at point of collection | B50: Not contaminated (No E. coli in 100 mL) | C50: N/A | D50: N/A | E50: N/A | F50: N/A | G50: N/A | H50: N/A | I50: N/A | J50: N/A | K50: N/A | L50: N/A | M50: N/A | N50: N/A | O50: N/A | P50: N/A | Q50: N/A | R50: N/A | S50: N/A | T50: N/A | U50: N/A | V50: N/A | W50: N/A | X50: N/A | Y50: N/A | Z50: N/A | AA50: N/A | AB50: N/A | AC50: N/A | AD50: N/A | AE50: N/A | AF50: N/A | AG50: N/A | AH50: N/A | AI50: N/A | AJ50: N/A | AK50: N/A | AL50: N/A | AM50: N/A | AN50: N/A | AO50: N/A | AP50: N/A | AQ50: N/A | AR50: N/A | AS50: N/A | AT50: N/A | BA50: Microbiological quality of improved water sources at point of collection | BB50: Not contaminated (No E. coli in 100 mL) | BC50: N/A | BD50: N/A | BE50: N/A | BF50: N/A | BG50: N/A | BH50: N/A | BI50: N/A | BJ50: N/A | BK50: N/A | BL50: N/A | BM50: N/A | BN50: N/A | BO50: N/A | BP50: N/A | BQ50: N/A | BR50: N/A | BS50: N/A | BT50: N/A | BU50: N/A | BV50: N/A | BW50: N/A | BX50: N/A | BY50: N/A | BZ50: N/A | CA50: N/A | CB50: N/A | CC50: N/A | CD50: N/A | CE50: N/A | CF50: N/A | CG50: N/A | CH50: N/A | CI50: N/A | CJ50: N/A | CK50: N/A | CL50: N/A | CM50: N/A | CN50: N/A | CO50: N/A | CP50: N/A | CQ50: N/A | CR50: N/A | CS50: N/A | CT50: N/A
B51: Contaminated (E. coli detected in 100 mL) | C51: N/A | D51: N/A | E51: N/A | F51: N/A | G51: N/A | H51: N/A | I51: N/A | J51: N/A | K51: N/A | L51: N/A | M51: N/A | N51: N/A | O51: N/A | P51: N/A | Q51: N/A | R51: N/A | S51: N/A | T51: N/A | U51: N/A | V51: N/A | W51: N/A | X51: N/A | Y51: N/A | Z51: N/A | AA51: N/A | AB51: N/A | AC51: N/A | AD51: N/A | AE51: N/A | AF51: N/A | AG51: N/A | AH51: N/A | AI51: N/A | AJ51: N/A | AK51: N/A | AL51: N/A | AM51: N/A | AN51: N/A | AO51: N/A | AP51: N/A | AQ51: N/A | AR51: N/A | AS51: N/A | AT51: N/A | BB51: Contaminated (E. coli detected in 100 mL) | BC51: N/A | BD51: N/A | BE51: N/A | BF51: N/A | BG51: N/A | BH51: N/A | BI51: N/A | BJ51: N/A | BK51: N/A | BL51: N/A | BM51: N/A | BN51: N/A | BO51: N/A | BP51: N/A | BQ51: N/A | BR51: N/A | BS51: N/A | BT51: N/A | BU51: N/A | BV51: N/A | BW51: N/A | BX51: N/A | BY51: N/A | BZ51: N/A | CA51: N/A | CB51: N/A | CC51: N/A | CD51: N/A | CE51: N/A | CF51: N/A | CG51: N/A | CH51: N/A | CI51: N/A | CJ51: N/A | CK51: N/A | CL51: N/A | CM51: N/A | CN51: N/A | CO51: N/A | CP51: N/A | CQ51: N/A | CR51: N/A | CS51: N/A | CT51: N/A
B52: Highly contaminated (>100 CFU/100 mL) | C52: N/A | D52: N/A | E52: N/A | F52: N/A | G52: N/A | H52: N/A | I52: N/A | J52: N/A | K52: N/A | L52: N/A | M52: N/A | N52: N/A | O52: N/A | P52: N/A | Q52: N/A | R52: N/A | S52: N/A | T52: N/A | U52: N/A | V52: N/A | W52: N/A | X52: N/A | Y52: N/A | Z52: N/A | AA52: N/A | AB52: N/A | AC52: N/A | AD52: N/A | AE52: N/A | AF52: N/A | AG52: N/A | AH52: N/A | AI52: N/A | AJ52: N/A | AK52: N/A | AL52: N/A | AM52: N/A | AN52: N/A | AO52: N/A | AP52: N/A | AQ52: N/A | AR52: N/A | AS52: N/A | AT52: N/A | BB52: Highly contaminated (>100 CFU/100 mL) | BC52: N/A | BD52: N/A | BE52: N/A | BF52: N/A | BG52: N/A | BH52: N/A | BI52: N/A | BJ52: N/A | BK52: N/A | BL52: N/A | BM52: N/A | BN52: N/A | BO52: N/A | BP52: N/A | BQ52: N/A | BR52: N/A | BS52: N/A | BT52: N/A | BU52: N/A | BV52: N/A | BW52: N/A | BX52: N/A | BY52: N/A | BZ52: N/A | CA52: N/A | CB52: N/A | CC52: N/A | CD52: N/A | CE52: N/A | CF52: N/A | CG52: N/A | CH52: N/A | CI52: N/A | CJ52: N/A | CK52: N/A | CL52: N/A | CM52: N/A | CN52: N/A | CO52: N/A | CP52: N/A | CQ52: N/A | CR52: N/A | CS52: N/A | CT52: N/A
A53: Microbiological quality of piped on premises at point of collection | B53: Not contaminated (No E. coli in 100 mL) | C53: N/A | D53: N/A | E53: N/A | F53: N/A | G53: N/A | H53: N/A | I53: N/A | J53: N/A | K53: N/A | L53: N/A | M53: N/A | N53: N/A | O53: N/A | P53: N/A | Q53: N/A | R53: N/A | S53: N/A | T53: N/A | U53: N/A | V53: N/A | W53: N/A | X53: N/A | Y53: N/A | Z53: N/A | AA53: N/A | AB53: N/A | AC53: N/A | AD53: N/A | AE53: N/A | AF53: N/A | AG53: N/A | AH53: N/A | AI53: N/A | AJ53: N/A | AK53: N/A | AL53: N/A | AM53: N/A | AN53: N/A | AO53: N/A | AP53: N/A | AQ53: N/A | AR53: N/A | AS53: N/A | AT53: N/A | BA53: Microbiological quality of piped on premises at point of collection | BB53: Not contaminated (No E. coli in 100 mL) | BC53: N/A | BD53: N/A | BE53: N/A | BF53: N/A | BG53: N/A | BH53: N/A | BI53: N/A | BJ53: N/A | BK53: N/A | BL53: N/A | BM53: N/A | BN53: N/A | BO53: N/A | BP53: N/A | BQ53: N/A | BR53: N/A | BS53: N/A | BT53: N/A | BU53: N/A | BV53: N/A | BW53: N/A | BX53: N/A | BY53: N/A | BZ53: N/A | CA53: N/A | CB53: N/A | CC53: N/A | CD53: N/A | CE53: N/A | CF53: N/A | CG53: N/A | CH53: N/A | CI53: N/A | CJ53: N/A | CK53: N/A | CL53: N/A | CM53: N/A | CN53: N/A | CO53: N/A | CP53: N/A | CQ53: N/A | CR53: N/A | CS53: N/A | CT53: N/A
B54: Contaminated (E. coli detected in 100 mL) | C54: N/A | D54: N/A | E54: N/A | F54: N/A | G54: N/A | H54: N/A | I54: N/A | J54: N/A | K54: N/A | L54: N/A | M54: N/A | N54: N/A | O54: N/A | P54: N/A | Q54: N/A | R54: N/A | S54: N/A | T54: N/A | U54: N/A | V54: N/A | W54: N/A | X54: N/A | Y54: N/A | Z54: N/A | AA54: N/A | AB54: N/A | AC54: N/A | AD54: N/A | AE54: N/A | AF54: N/A | AG54: N/A | AH54: N/A | AI54: N/A | AJ54: N/A | AK54: N/A | AL54: N/A | AM54: N/A | AN54: N/A | AO54: N/A | AP54: N/A | AQ54: N/A | AR54: N/A | AS54: N/A | AT54: N/A | BB54: Contaminated (E. coli detected in 100 mL) | BC54: N/A | BD54: N/A | BE54: N/A | BF54: N/A | BG54: N/A | BH54: N/A | BI54: N/A | BJ54: N/A | BK54: N/A | BL54: N/A | BM54: N/A | BN54: N/A | BO54: N/A | BP54: N/A | BQ54: N/A | BR54: N/A | BS54: N/A | BT54: N/A | BU54: N/A | BV54: N/A | BW54: N/A | BX54: N/A | BY54: N/A | BZ54: N/A | CA54: N/A | CB54: N/A | CC54: N/A | CD54: N/A | CE54: N/A | CF54: N/A | CG54: N/A | CH54: N/A | CI54: N/A | CJ54: N/A | CK54: N/A | CL54: N/A | CM54: N/A | CN54: N/A | CO54: N/A | CP54: N/A | CQ54: N/A | CR54: N/A | CS54: N/A | CT54: N/A
B55: Highly contaminated (>100 CFU/100 mL) | C55: N/A | D55: N/A | E55: N/A | F55: N/A | G55: N/A | H55: N/A | I55: N/A | J55: N/A | K55: N/A | L55: N/A | M55: N/A | N55: N/A | O55: N/A | P55: N/A | Q55: N/A | R55: N/A | S55: N/A | T55: N/A | U55: N/A | V55: N/A | W55: N/A | X55: N/A | Y55: N/A | Z55: N/A | AA55: N/A | AB55: N/A | AC55: N/A | AD55: N/A | AE55: N/A | AF55: N/A | AG55: N/A | AH55: N/A | AI55: N/A | AJ55: N/A | AK55: N/A | AL55: N/A | AM55: N/A | AN55: N/A | AO55: N/A | AP55: N/A | AQ55: N/A | AR55: N/A | AS55: N/A | AT55: N/A | BB55: Highly contaminated (>100 CFU/100 mL) | BC55: N/A | BD55: N/A | BE55: N/A | BF55: N/A | BG55: N/A | BH55: N/A | BI55: N/A | BJ55: N/A | BK55: N/A | BL55: N/A | BM55: N/A | BN55: N/A | BO55: N/A | BP55: N/A | BQ55: N/A | BR55: N/A | BS55: N/A | BT55: N/A | BU55: N/A | BV55: N/A | BW55: N/A | BX55: N/A | BY55: N/A | BZ55: N/A | CA55: N/A | CB55: N/A | CC55: N/A | CD55: N/A | CE55: N/A | CF55: N/A | CG55: N/A | CH55: N/A | CI55: N/A | CJ55: N/A | CK55: N/A | CL55: N/A | CM55: N/A | CN55: N/A | CO55: N/A | CP55: N/A | CQ55: N/A | CR55: N/A | CS55: N/A | CT55: N/A
C56: NATIONAL wealth index quintile | H56: URBAN wealth index quintile | M56: RURAL wealth index quintile | R56: REGIONS | BA56: Raw numbers of respondents: | BB56: Use of drinking water sources | BC56: NATIONAL wealth index quintile | BH56: URBAN wealth index quintile | BM56: RURAL wealth index quintile | BR56: SUB-REGIONS:
A57: Percentage based on weighted population | C57: Poorest | D57: Poor | E57: Middle | F57: Rich | G57: Richest | H57: Poorest | I57: Poor | J57: Middle | K57: Rich | L57: Richest | M57: Poorest | N57: Poor | O57: Middle | P57: Rich | Q57: Richest | R57: [AP] Andhra Pradesh | S57: [AR] Arunachal Pradesh | T57: [AS] Assam | U57: [BH] Bihar | V57: [CH] Chhattisgarh | W57: [DL] Delhi | X57: [GJ] Gujarat | Y57: [GO] Goa | Z57: [HP] Himachal Pradesh | AA57: [HR] Haryana | AB57: [JH] Jharkhand | AC57: [JM] Jammu and Kashmir | AD57: [KA] Karnataka | AE57: [KE] Kerala | AF57: [MG] Meghalaya | AG57: [MH] Maharashtra | AH57: [MN] Manipur | AI57: [MP] Madhya Pradesh | AJ57: [MZ] Mizoram | AK57: [NA] Nagaland | AL57: [OR] Orissa | AM57: [PJ] Punjab | AN57: [RJ] Rajasthan | AO57: [SK] Sikkim | AP57: [TN] Tamil Nadu | AQ57: [TR] Tripura | AR57: [UC] Uttaranchal | AS57: [UP] Uttar Pradesh | AT57: [WB] West Bengal | BA57: Water data, raw numbers (weighted) | BC57: Poorest | BD57: Poor | BE57: Middle | BF57: Rich | BG57: Richest | BH57: Poorest | BI57: Poor | BJ57: Middle | BK57: Rich | BL57: Richest | BM57: Poorest | BN57: Poor | BO57: Middle | BP57: Rich | BQ57: Richest | BR57: [AP] Andhra Pradesh | BS57: [AR] Arunachal Pradesh | BT57: [AS] Assam | BU57: [BH] Bihar | BV57: [CH] Chhattisgarh | BW57: [DL] Delhi | BX57: [GJ] Gujarat | BY57: [GO] Goa | BZ57: [HP] Himachal Pradesh | CA57: [HR] Haryana | CB57: [JH] Jharkhand | CC57: [JM] Jammu and Kashmir | CD57: [KA] Karnataka | CE57: [KE] Kerala | CF57: [MG] Meghalaya | CG57: [MH] Maharashtra | CH57: [MN] Manipur | CI57: [MP] Madhya Pradesh | CJ57: [MZ] Mizoram | CK57: [NA] Nagaland | CL57: [OR] Orissa | CM57: [PJ] Punjab | CN57: [RJ] Rajasthan | CO57: [SK] Sikkim | CP57: [TN] Tamil Nadu | CQ57: [TR] Tripura | CR57: [UC] Uttaranchal | CS57: [UP] Uttar Pradesh | CT57: [WB] West Bengal
A58: Source of drinking water | B58: Piped into dwelling | C58: 0.4595240906 | D58: 1.531966895 | E58: 5.083302065 | F58: 14.8768129 | G58: 40.78708236 | H58: 6.528850454 | I58: 19.15190476 | J58: 31.28124691 | K58: 46.47155759 | L58: 58.26470678 | M58: 0.2413516911 | N58: 0.7745559805 | O58: 2.089725812 | P58: 3.943096124 | Q58: 11.55873182 | R58: 10.67124041 | S58: 19.70284542 | T58: 2.51886645 | U58: 1.518533023 | V58: 5.180627443 | W58: 68.11386208 | X58: 33.17275598 | Y58: 48.47647271 | Z58: 22.54310622 | AA58: 20.71390206 | AB58: 5.314299924 | AC58: 29.48780922 | AD58: 11.9783022 | AE58: 6.916517968 | AF58: 11.7014745 | AG58: 29.1813921 | AH58: 2.721004929 | AI58: 7.114258492 | AJ58: 27.04704042 | AK58: 8.96048216 | AL58: 4.059641216 | AM58: 25.50415958 | AN58: 13.06465103 | AO58: 28.27474196 | AP58: 9.58901727 | AQ58: 1.845662751 | AR58: 23.67473759 | AS58: 7.54089463 | AT58: 5.526580343
B59: Piped to yard/plot | C59: 2.118194782 | D59: 5.322063485 | E59: 11.48349146 | F59: 18.01986878 | G59: 17.00299074 | H59: 12.75748498 | I59: 21.22762395 | J59: 23.28110332 | K59: 19.92678554 | L59: 14.10978101 | M59: 1.728090657 | N59: 3.074669339 | O59: 6.49958565 | P59: 11.10696391 | Q59: 14.87891942 | R59: 17.54526798 | S59: 26.43216637 | T59: 2.424929034 | U59: 0.310809098 | V59: 2.347409953 | W59: 5.003904515 | X59: 27.67115519 | Y59: 16.36213413 | Z59: 27.73570393 | AA59: 18.84573715 | AB59: 2.349586115 | AC59: 15.9095705 | AD59: 12.65086738 | AE59: 5.454588684 | AF59: 8.08203933 | AG59: 29.04633328 | AH59: 9.566689683 | AI59: 8.685957347 | AJ59: 16.74126181 | AK59: 10.19774385 | AL59: 1.18724356 | AM59: 18.42510668 | AN59: 17.45585156 | AO59: 4.003790716 | AP59: 15.3368747 | AQ59: 9.906229335 | AR59: 19.66257745 | AS59: 1.265859004 | AT59: 4.246518833
B60: Public tap/standpipe | C60: 10.70411999 | D60: 15.75898727 | E60: 23.18316458 | F60: 18.69488112 | G60: 7.927842484 | H60: 36.68867644 | I60: 27.57533031 | J60: 16.97266723 | K60: 9.22052288 | L60: 3.850499138 | M60: 8.958175304 | N60: 11.4905914 | O60: 16.64712815 | P60: 18.87298902 | Q60: 12.25525545 | R60: 40.45909513 | S60: 21.62954694 | T60: 5.339821405 | U60: 2.017426905 | V60: 9.08298847 | W60: 10.6609618 | X60: 11.14959481 | Y60: 9.101960464 | Z60: 13.99643169 | AA60: 21.01132408 | AB60: 3.327739991 | AC60: 9.935975552 | AD60: 31.17271497 | AE60: 11.86502348 | AF60: 20.1042827 | AG60: 19.78133135 | AH60: 20.54988499 | AI60: 8.052519131 | AJ60: 17.39030619 | AK60: 20.06978452 | AL60: 4.975348848 | AM60: 10.05752118 | AN60: 12.91248563 | AO60: 1.086595918 | AP60: 58.94483787 | AQ60: 19.9159682 | AR60: 21.36783522 | AS60: 1.139620042 | AT60: 16.69897414
B61: Tube well or borehole | C61: 64.42286089 | D61: 59.89313482 | E61: 45.40881964 | F61: 35.33620424 | G61: 25.16466396 | H61: 35.03649318 | I61: 24.47046323 | J61: 20.99744348 | K61: 18.43032626 | L61: 17.08087648 | M61: 65.13246565 | N61: 65.14372388 | O61: 57.83334978 | P61: 48.60084616 | Q61: 44.44695264 | R61: 22.72215711 | S61: 13.8684896 | T61: 58.28646759 | U61: 91.8072569 | V61: 60.44312191 | W61: 6.853509546 | X61: 14.85446699 | Y61: 0.2025629916 | Z61: 12.53567441 | AA61: 34.34377466 | AB61: 44.37661807 | AC61: 16.58869397 | AD61: 26.60879556 | AE61: 4.098410669 | AF61: 4.619191203 | AG61: 11.68816018 | AH61: 7.508657616 | AI61: 49.15684382 | AJ61: 0.1574757536 | AK61: 6.338610323 | AL61: 64.57958441 | AM61: 45.3617604 | AN61: 34.00831913 | AO61: 0.01452374841 | AP61: 6.430851509 | AQ61: 39.07985579 | AR61: 19.03023393 | AS61: 83.4696975 | AT61: 66.11104664
B62: Protected well | C62: 1.140112185 | D62: 1.532309793 | E62: 2.229269818 | F62: 3.37695008 | G62: 3.542815338 | H62: 1.19319485 | I62: 1.595467271 | J62: 2.175967709 | K62: 1.849322063 | L62: 2.033598031 | M62: 1.089446444 | N62: 1.436851016 | O62: 1.755098267 | P62: 2.824884656 | Q62: 6.0416234 | R62: 1.532902268 | S62: 0.903098789 | T62: 3.346975987 | U62: 0.4327555028 | V62: 1.129989935 | W62: 0.03321892571 | X62: 1.516200097 | Y62: 4.375700589 | Z62: 3.238084773 | AA62: 0.4456206828 | AB62: 1.240464665 | AC62: 3.175426144 | AD62: 2.916305964 | AE62: 40.19359056 | AF62: 10.61475193 | AG62: 2.524635776 | AH62: 4.227604877 | AI62: 1.143875446 | AJ62: 1.262651297 | AK62: 8.969806535 | AL62: 3.289335767 | AM62: 0.08102239355 | AN62: 1.243225555 | AO62: 2.64332221 | AP62: 0.9517693101 | AQ62: 3.139955853 | AR62: 1.698987599 | AS62: 0.2834511696 | AT62: 0.8260832589
B63: Unprotected well | C63: 16.3325976 | D63: 12.54601541 | E63: 9.418840185 | F63: 6.96614045 | G63: 2.627169276 | H63: 5.472137003 | I63: 3.544313651 | J63: 2.930962113 | K63: 1.430379038 | L63: 0.8652589341 | M63: 17.35870024 | N63: 14.38631084 | O63: 11.79014283 | P63: 11.30352414 | Q63: 8.057363181 | R63: 3.986414887 | S63: 3.871282311 | T63: 23.18309155 | U63: 3.790279936 | V63: 18.22446434 | W63: 0.1936475062 | X63: 6.98643777 | Y63: 15.96401505 | Z63: 5.35184563 | AA63: 2.50000756 | AB63: 32.72042185 | AC63: 3.660947963 | AD63: 6.356966151 | AE63: 29.1806829 | AF63: 20.51718407 | AG63: 6.983040922 | AH63: 1.562677992 | AI63: 22.73780342 | AJ63: 1.08746784 | AK63: 17.26536332 | AL63: 17.30688278 | AM63: 0.08725488536 | AN63: 14.98899832 | AO63: 1.597612325 | AP63: 4.52863412 | AQ63: 21.42706903 | AR63: 0.5112115476 | AS63: 6.172094539 | AT63: 6.168597632
B64: Protected spring | C64: 0.1050419963 | D64: 0.261277394 | E64: 0.382434992 | F64: 0.3088116551 | G64: 0.1030522099 | H64: 0.07109746788 | I64: 0.1622229529 | J64: 0.08119094109 | K64: 0.02711484141 | L64: 0.03761928702 | M64: 0.1018206841 | N64: 0.2092136741 | O64: 0.3589480911 | P64: 0.4740623881 | Q64: 0.3649905948 | R64: 0 | S64: 1.028974797 | T64: 0.3092331767 | U64: 0 | V64: 0.08979232441 | W64: 0 | X64: 0 | Y64: 0.3136478063 | Z64: 7.390723655 | AA64: 0 | AB64: 0.08405053331 | AC64: 4.837306698 | AD64: 0.1273982136 | AE64: 0.7030624776 | AF64: 7.01270786 | AG64: 0.04089758481 | AH64: 6.920173766 | AI64: 0 | AJ64: 17.07362012 | AK64: 4.801947026 | AL64: 0.09671613383 | AM64: 0 | AN64: 0 | AO64: 41.24582877 | AP64: 0.02959278942 | AQ64: 0 | AR64: 2.284720974 | AS64: 0.01205171512 | AT64: 0
B65: Unprotected spring | C65: 0.956498284 | D65: 0.7712252614 | E65: 0.633903031 | F65: 0.3837620261 | G65: 0.1071761346 | H65: 0.2583592162 | I65: 0.1302938311 | J65: 0.06378223562 | K65: 0.01265412368 | L65: 0.0208278112 | M65: 1.082924523 | N65: 0.8199371529 | O65: 0.7690302751 | P65: 0.7618649893 | Q65: 0.4742086607 | R65: 0.3740382341 | S65: 8.031640285 | T65: 1.069876313 | U65: 0.08788498121 | V65: 0.4681949786 | W65: 0 | X65: 0.09455631679 | Y65: 2.934771283 | Z65: 5.224868711 | AA65: 0 | AB65: 1.82387153 | AC65: 12.51680821 | AD65: 0.1983642281 | AE65: 0.6811185648 | AF65: 14.34764705 | AG65: 0.1736292777 | AH65: 9.255729742 | AI65: 0.1645377649 | AJ65: 9.712898381 | AK65: 15.20642318 | AL65: 1.08851929 | AM65: 0 | AN65: 0.2059294701 | AO65: 15.80758432 | AP65: 0.3455591479 | AQ65: 0.8477271342 | AR65: 6.992653739 | AS65: 0.03799525013 | AT65: 0
B66: River/dam/lake/ponds/stream/canal/irrigation channel | C66: 3.034282113 | D66: 1.555554645 | E66: 1.217326762 | F66: 1.063383916 | G66: 0.7040181183 | H66: 0.5074626666 | I66: 0.8275008392 | J66: 0.8360111101 | K66: 0.8224551571 | L66: 0.7296494314 | M66: 3.5726538 | N66: 1.928814576 | O66: 1.563261956 | P66: 1.30429691 | Q66: 0.9232444721 | R66: 0.7743066693 | S66: 4.344419727 | T66: 3.402614163 | U66: 0 | V66: 2.881619979 | W66: 0 | X66: 1.891258297 | Y66: 1.018277468 | Z66: 0.7740746256 | AA66: 0 | AB66: 8.238546126 | AC66: 3.231988403 | AD66: 6.61403273 | AE66: 0.7037878646 | AF66: 2.128635624 | AG66: 0.455776854 | AH66: 31.39635922 | AI66: 1.907760544 | AJ66: 3.195839382 | AK66: 6.118426568 | AL66: 3.170660814 | AM66: 0.1932072462 | AN66: 1.986613712 | AO66: 5.180762551 | AP66: 0.3428606286 | AQ66: 1.883465299 | AR66: 4.564185635 | AS66: 0 | AT66: 0.2520833551
B67: Rainwater | C67: 0.1698967066 | D67: 0.1884630653 | E67: 0.2086511811 | F67: 0.04516140765 | G67: 0.05769322185 | H67: 0.0003852783141 | I67: 0.00618171698 | J67: 0.00509855813 | K67: 0.03491259569 | L67: 0.01835561884 | M67: 0.1924722951 | N67: 0.2178498825 | O67: 0.1745679764 | P67: 0.2829377365 | Q67: 0.07177393011 | R67: 0 | S67: 0 | T67: 0 | U67: 0 | V67: 0 | W67: 0 | X67: 0.07643682028 | Y67: 0 | Z67: 0 | AA67: 0 | AB67: 0 | AC67: 0 | AD67: 0 | AE67: 0.09435067813 | AF67: 0 | AG67: 0 | AH67: 0.1502770461 | AI67: 0 | AJ67: 4.858504243 | AK67: 1.006584105 | AL67: 0 | AM67: 0 | AN67: 2.101691945 | AO67: 0 | AP67: 0.01813613876 | AQ67: 0 | AR67: 0 | AS67: 0 | AT67: 0
B68: Tanker truck | C68: 0.1060190999 | D68: 0.2556280486 | E68: 0.4177259527 | F68: 0.4657974179 | G68: 0.7896583396 | H68: 0.972596755 | I68: 0.8404492433 | J68: 0.7479218747 | K68: 0.983444902 | L68: 0.8375322244 | M68: 0.07289477387 | N68: 0.1270648902 | O68: 0.1857989512 | P68: 0.2157979942 | Q68: 0.3865785009 | R68: 0.05748639284 | S68: 0 | T68: 0.02214831255 | U68: 0 | V68: 0.08551649943 | W68: 7.523037278 | X68: 1.097309919 | Y68: 0.6678376795 | Z68: 0.1708995927 | AA68: 2.13963381 | AB68: 0 | AC68: 0.6022956008 | AD68: 0.4106831765 | AE68: 0 | AF68: 0.6236183866 | AG68: 0.05364686886 | AH68: 2.068040665 | AI68: 0.958080511 | AJ68: 1.314668595 | AK68: 0.4891583212 | AL68: 0.1182614896 | AM68: 0.1433473117 | AN68: 0.7394669644 | AO68: 0 | AP68: 0.9841864949 | AQ68: 0 | AR68: 0.03865202504 | AS68: 0.03012928781 | AT68: 0.1079086278
B69: Cart with small tank | C69: 0.2583057846 | D69: 0.1941029934 | E69: 0.1093216055 | F69: 0.07064508354 | G69: 0.02444948384 | H69: 0.03094914157 | I69: 0.06091874477 | J69: 0.05142945178 | K69: 0.02705091012 | L69: 0.03139886405 | M69: 0.3100576007 | N69: 0.2310018543 | O69: 0.1523193623 | P69: 0.119545317 | Q69: 0.04685824117 | R69: 0.03441922172 | S69: 0.08343038895 | T69: 0.08121047935 | U69: 0.03505365767 | V69: 0.06627416481 | W69: 0.1577898971 | X69: 0 | Y69: 0.1290526995 | Z69: 0.2111112615 | AA69: 0 | AB69: 0.1496019356 | AC69: 0 | AD69: 0.7981123382 | AE69: 0.06531970025 | AF69: 0.1578037565 | AG69: 0.000841599446 | AH69: 1.622964148 | AI69: 0.04422181258 | AJ69: 0.1582659698 | AK69: 0.3651696061 | AL69: 0 | AM69: 0 | AN69: 0.9993636049 | AO69: 0.02904749682 | AP69: 0.05838551827 | AQ69: 0.123305765 | AR69: 0.01321894735 | AS69: 0 | AT69: 0
B70: Bottled water | C70: 0.02303895219 | D70: 0.01393234356 | E70: 0.08380971814 | F70: 0.2353004221 | G70: 1.095653271 | H70: 0.1373965329 | I70: 0.135352071 | J70: 0.4217733621 | K70: 0.7371757851 | L70: 2.04903832 | M70: 0.01333400651 | N70: 0 | O70: 0.03665390113 | P70: 0.1144299567 | Q70: 0.3824950939 | R70: 1.60203441 | S70: 0 | T70: 0 | U70: 0 | V70: 0 | W70: 1.418544802 | X70: 0.4322182536 | Y70: 0.2845922843 | Z70: 0 | AA70: 0 | AB70: 0 | AC70: 0 | AD70: 0.06148494633 | AE70: 0 | AF70: 0 | AG70: 0.004729044067 | AH70: 0.07478975814 | AI70: 0 | AJ70: 0 | AK70: 0.01559047145 | AL70: 0 | AM70: 0.0780629164 | AN70: 0.009356909532 | AO70: 0 | AP70: 2.404769585 | AQ70: 0 | AR70: 0 | AS70: 0.04017238374 | AT70: 0.02115755608
B71: other | C71: 0.1695075266 | D71: 0.1753385789 | E71: 0.139939015 | F71: 0.1562804912 | G71: 0.06573505871 | H71: 0.3449160301 | I71: 0.2719774372 | J71: 0.1534017118 | K71: 0.02629831786 | L71: 0.07085807482 | M71: 0.1456123288 | N71: 0.1594155123 | O71: 0.1443889988 | P71: 0.07476069687 | Q71: 0.1110046012 | R71: 0.240637297 | S71: 0.10410538 | T71: 0.0147655417 | U71: 0 | V71: 0 | W71: 0.04152365714 | X71: 1.057609556 | Y71: 0.1689748439 | Z71: 0.8274755008 | AA71: 0 | AB71: 0.3747992657 | AC71: 0.05317773823 | AD71: 0.1059721463 | AE71: 0.04354646683 | AF71: 0.09066360033 | AG71: 0.06558516539 | AH71: 2.375145565 | AI71: 0.03414170924 | AJ71: 0 | AK71: 0.1949100108 | AL71: 0.1278056937 | AM71: 0.06855740993 | AN71: 0.2840461766 | AO71: 0.1161899873 | AP71: 0.03452492098 | AQ71: 1.830760852 | AR71: 0.1609853452 | AS71: 0.008034476748 | AT71: 0.04104961185
A108: =A1026 -> India
A109: =A1034 -> 2006
A110: Use of sanitation facilities
A111: by wealth quintile and sub-national region
A112: Notes:
A113: WHO/UNICEF JMP customised wealth index excludes water,
A114: sanitation and hygiene assets.
A115: Survey used for analysis: | B115: =A1025 -> DHS06
A116: =B1030 -> 
A117: =B1029 -> 
A120: Use of sanitation facilities | C120: NATIONAL wealth index quintile | H120: URBAN wealth index quintile | M120: RURAL wealth index quintile | R120: REGIONS | BA120: Raw numbers of respondents: | BB120: Use of sanitation facilities | BC120: NATIONAL wealth index quintile | BH120: URBAN wealth index quintile | BM120: RURAL wealth index quintile | BR120: SUB-REGIONS:
A121: Weighted percentage (used in graphs) | C121: Poorest | D121: Poor | E121: Middle | F121: Rich | G121: Richest | H121: Poorest | I121: Poor | J121: Middle | K121: Rich | L121: Richest | M121: Poorest | N121: Poor | O121: Middle | P121: Rich | Q121: Richest | R121: [AP] Andhra Pradesh | S121: [AR] Arunachal Pradesh | T121: [AS] Assam | U121: [BH] Bihar | V121: [CH] Chhattisgarh | W121: [DL] Delhi | X121: [GJ] Gujarat | Y121: [GO] Goa | Z121: [HP] Himachal Pradesh | AA121: [HR] Haryana | AB121: [JH] Jharkhand | AC121: [JM] Jammu and Kashmir | AD121: [KA] Karnataka | AE121: [KE] Kerala | AF121: [MG] Meghalaya | AG121: [MH] Maharashtra | AH121: [MN] Manipur | AI121: [MP] Madhya Pradesh | AJ121: [MZ] Mizoram | AK121: [NA] Nagaland | AL121: [OR] Orissa | AM121: [PJ] Punjab | AN121: [RJ] Rajasthan | AO121: [SK] Sikkim | AP121: [TN] Tamil Nadu | AQ121: [TR] Tripura | AR121: [UC] Uttaranchal | AS121: [UP] Uttar Pradesh | AT121: [WB] West Bengal | BA121: Sanitation data, raw numbers (weighted) | BC121: Poorest | BD121: Poor | BE121: Middle | BF121: Rich | BG121: Richest | BH121: Poorest | BI121: Poor | BJ121: Middle | BK121: Rich | BL121: Richest | BM121: Poorest | BN121: Poor | BO121: Middle | BP121: Rich | BQ121: Richest | BR121: [AP] Andhra Pradesh | BS121: [AR] Arunachal Pradesh | BT121: [AS] Assam | BU121: [BH] Bihar | BV121: [CH] Chhattisgarh | BW121: [DL] Delhi | BX121: [GJ] Gujarat | BY121: [GO] Goa | BZ121: [HP] Himachal Pradesh | CA121: [HR] Haryana | CB121: [JH] Jharkhand | CC121: [JM] Jammu and Kashmir | CD121: [KA] Karnataka | CE121: [KE] Kerala | CF121: [MG] Meghalaya | CG121: [MH] Maharashtra | CH121: [MN] Manipur | CI121: [MP] Madhya Pradesh | CJ121: [MZ] Mizoram | CK121: [NA] Nagaland | CL121: [OR] Orissa | CM121: [PJ] Punjab | CN121: [RJ] Rajasthan | CO121: [SK] Sikkim | CP121: [TN] Tamil Nadu | CQ121: [TR] Tripura | CR121: [UC] Uttaranchal | CS121: [UP] Uttar Pradesh | CT121: [WB] West Bengal
A122: Sanitation | B122: Improved | C122: =C153+C154+C155+C157+C158+C159+C162+C163*0.5 -> 5.342410744 | D122: =D153+D154+D155+D157+D158+D159+D162+D163*0.5 -> 12.82158685 | E122: 29.95829925 | F122: 61.29994191 | G122: 90.71172517 | H122: 39.85895334 | I122: 71.4503757 | J122: 86.65653815 | K122: 94.01856834 | L122: 95.47729754 | M122: 4.071039027 | N122: 7.50209821 | O122: 14.00307312 | P122: 27.65566663 | Q122: 63.35586557 | R122: 40.92743002 | S122: 59.48836146 | T122: 45.82735183 | U122: 25.91234083 | V122: 18.97009115 | W122: 84.37857307 | X122: 52.02440729 | Y122: 71.29727994 | Z122: 44.38911013 | AA122: 50.4357015 | AB122: 21.62217722 | AC122: 30.53568583 | AD122: 42.07576732 | AE122: 95.9338073 | AF122: 58.98314997 | AG122: 52.08865742 | AH122: 65.80427018 | AI122: 25.5939416 | AJ122: 89.77736047 | AK122: 67.11688322 | AL122: 20.13267986 | AM122: 68.6663178 | AN122: 26.12733009 | AO122: 81.58316496 | AP122: 33.52836028 | AQ122: 84.79649936 | AR122: 56.2099105 | AS122: 29.79977914 | AT122: 56.03340746 | BA122: Sanitation | BB122: Improved | BC122: 6130.911407 | BD122: 14449.99179 | BE122: 33153.61581 | BF122: 66906.1779 | BG122: 98651.79116 | BH122: 13674.03549 | BI122: 24093.61699 | BJ122: 29087.20213 | BK122: 31569.73292 | BL122: 31997.29968 | BM122: 3188.052258 | BN122: 5902.089468 | BO122: 10885.18298 | BP122: 21148.00311 | BQ122: 47747.27305 | BR122: 15630.70657 | BS122: 406.584306 | BT122: 6546.420571 | BU122: 11520.93158 | BV122: 2239.720337 | BW122: 5383.606309 | BX122: 13564.6794 | BY122: 537.411087 | BZ122: 1343.863127 | CA122: 5276.67886 | CB122: 3213.77158 | CC122: 1659.245096 | CD122: 12936.69438 | CE122: 13380.01044 | CF122: 845.058187 | CG122: 26723.89394 | CH122: 703.196746 | CI122: 8731.736673 | CJ122: 403.092291 | CK122: 522.039391 | CL122: 3972.974049 | CM122: 9075.34867 | CN122: 8222.73185 | CO122: 259.982032 | CP122: 9485.879968 | CQ122: 1525.771885 | CR122: 2463.804612 | CS122: 29001.69177 | CT122: 23714.96235
B123: Not Improved | C123: =100-C122 -> 94.65758926 | D123: =100-D122 -> 87.17841315 | E123: 70.04170075 | F123: 38.70005809 | G123: 9.288274832 | H123: 60.14104666 | I123: 28.5496243 | J123: 13.34346185 | K123: 5.981431657 | L123: 4.522702462 | M123: 95.92896097 | N123: 92.49790179 | O123: 85.99692688 | P123: 72.34433337 | Q123: 36.64413443 | R123: 59.07256998 | S123: 40.51163854 | T123: 54.17264817 | U123: 74.08765917 | V123: 81.02990885 | W123: 15.62142693 | X123: 47.97559271 | Y123: 28.70272006 | Z123: 55.61088987 | AA123: 49.5642985 | AB123: 78.37782278 | AC123: 69.46431417 | AD123: 57.92423268 | AE123: 4.066192698 | AF123: 41.01685003 | AG123: 47.91134258 | AH123: 34.19572982 | AI123: 74.4060584 | AJ123: 10.22263953 | AK123: 32.88311678 | AL123: 79.86732014 | AM123: 31.3336822 | AN123: 73.87266991 | AO123: 18.41683504 | AP123: 66.47163972 | AQ123: 15.20350064 | AR123: 43.7900895 | AS123: 70.20022086 | AT123: 43.96659254 | BB123: Not Improved | BC123: 102616.8322 | BD123: 94307.70474 | BE123: 75581.16537 | BF123: 41841.01036 | BG123: 10095.15602 | BH123: 19869.70886 | BI123: 9440.399635 | BJ123: 4450.661194 | BK123: 1975.655984 | BL123: 1538.76387 | BM123: 72022.44253 | BN123: 69298.81682 | BO123: 64330.24378 | BP123: 54063.82206 | BQ123: 27451.35396 | BR123: 22559.73279 | BS123: 182.388137 | BT123: 7712.846328 | BU123: 33025.91756 | BV123: 9566.866774 | BW123: 964.521918 | BX123: 12527.85025 | BY123: 202.632717 | BZ123: 1684.939294 | CA123: 5185.511024 | CB123: 11660.79198 | CC123: 3465.73406 | CD123: 17819.77725 | CE123: 585.361359 | CF123: 568.251008 | CG123: 24682.29708 | CH123: 365.144722 | CI123: 25346.70363 | CJ123: 45.898734 | CK123: 236.949844 | CL123: 15844.25731 | CM123: 4137.424405 | CN123: 23135.2287 | CO123: 58.689145 | CP123: 18806.22823 | CQ123: 275.246908 | CR123: 1918.547061 | CS123: 63297.14846 | CT123: 18578.98202
A124: Sanitation ladder | B124: Basic | C124: =C122*C129/100 -> 3.378088458 | D124: =D122*D129/100 -> 7.827134217 | E124: 17.82775713 | F124: 41.50429583 | G124: 78.85231217 | H124: 15.17358295 | I124: 35.66736116 | J124: 57.18182954 | K124: 78.07968286 | L124: 89.54949508 | M124: 2.654003928 | N124: 5.283057332 | O124: 9.796808197 | P124: 20.6439066 | Q124: 54.65367916 | R124: 31.57656445 | S124: 48.62991037 | T124: 32.14033381 | U124: 17.10451576 | V124: 15.63923697 | W124: 65.50862741 | X124: 44.06173205 | Y124: 62.89368627 | Z124: 37.62018096 | AA124: 41.32521937 | AB124: 15.70652338 | AC124: 25.38406077 | AD124: 33.63021457 | AE124: 91.6657089 | AF124: 40.28720407 | AG124: 32.50902523 | AH124: 33.06317092 | AI124: 19.50320521 | AJ124: 76.84175536 | AK124: 49.98218959 | AL124: 17.20296872 | AM124: 54.57137351 | AN124: 18.95413466 | AO124: 62.64436837 | AP124: 22.96536998 | AQ124: 55.19465393 | AR124: 45.86770033 | AS124: 22.79979497 | AT124: 35.78617356 | BA124: Sanitation ladder | BB124: Basic | BC124: 3876.669551 | BD124: 8821.048181 | BE124: 19715.43002 | BF124: 45281.17181 | BG124: 85710.56385 | BH124: 5203.718925 | BI124: 12021.0408 | BJ124: 19182.66093 | BK124: 26194.36547 | BL124: 30004.3813 | BM124: 2078.364555 | BN124: 4156.159991 | BO124: 7615.474758 | BP124: 15774.29458 | BQ124: 41174.42209 | BR124: 12059.44502 | BS124: 332.370196 | BT124: 4584.715272 | BU124: 7604.868932 | BV124: 1846.460136 | BW124: 4177.600638 | BX124: 11477.25552 | BY124: 473.595495 | BZ124: 1135.982457 | CA124: 4319.684346 | CB124: 2334.509515 | CC124: 1379.3166 | CD124: 10335.97892 | CE124: 12784.73332 | CF124: 577.199279 | CG124: 16667.61039 | CH124: 352.528357 | CI124: 6653.79545 | CJ124: 345.012585 | CK124: 388.764653 | CL124: 3378.194781 | CM124: 7212.477061 | CN124: 5965.200663 | CO124: 199.629546 | CP124: 6497.387323 | CQ124: 991.329055 | CR124: 2010.482682 | CS124: 22173.54184 | CT124: 15145.21338
B125: Limited | C125: =C122*C128/100 -> 1.964322286 | D125: =D122*D128/100 -> 4.994452636 | E125: 12.13054212 | F125: 19.79564608 | G125: 11.859413 | H125: 24.68537039 | I125: 35.78301453 | J125: 29.47470861 | K125: 15.93888549 | L125: 5.927802458 | M125: 1.417035099 | N125: 2.219040878 | O125: 4.206264921 | P125: 7.011760026 | Q125: 8.702186407 | R125: 9.350865566 | S125: 10.85845109 | T125: 13.68701802 | U125: 8.807825075 | V125: 3.330854186 | W125: 18.86994566 | X125: 7.962675236 | Y125: 8.403593667 | Z125: 6.768929169 | AA125: 9.110482124 | AB125: 5.915653841 | AC125: 5.151625055 | AD125: 8.445552749 | AE125: 4.268098402 | AF125: 18.69594589 | AG125: 19.57963219 | AH125: 32.74109926 | AI125: 6.09073639 | AJ125: 12.93560512 | AK125: 17.13469363 | AL125: 2.929711148 | AM125: 14.09494429 | AN125: 7.173195427 | AO125: 18.93879659 | AP125: 10.5629903 | AQ125: 29.60184542 | AR125: 10.34221017 | AS125: 6.999984166 | AT125: 20.2472339 | BB125: Limited | BC125: 2254.241856 | BD125: 5628.66384 | BE125: 13414.97153 | BF125: 21597.04274 | BG125: 12890.89625 | BH125: 8465.747967 | BI125: 12060.01969 | BJ125: 9887.814816 | BK125: 5347.216797 | BL125: 1986.164691 | BM125: 1109.687703 | BN125: 1745.710549 | BO125: 3269.708224 | BP125: 5357.782823 | BQ125: 6555.96296 | BR125: 3571.200704 | BS125: 74.21411 | BT125: 1952.40911 | BU125: 3916.062648 | BV125: 393.260201 | BW125: 1203.369696 | BX125: 2074.127685 | BY125: 63.279867 | BZ125: 204.39521 | CA125: 952.309694 | CB125: 879.262065 | CC125: 279.928496 | CD125: 2595.673454 | CE125: 595.277127 | CF125: 267.858908 | CG125: 10038.61785 | CH125: 349.094343 | CI125: 2077.941223 | CJ125: 58.079706 | CK125: 133.274738 | CL125: 575.315521 | CM125: 1862.871609 | CN125: 2257.531187 | CO125: 60.352486 | CP125: 2988.492645 | CQ125: 531.66688 | CR125: 453.32193 | CS125: 6807.712174 | CT125: 8568.914953
B126: Unimproved | C126: =100-(C124+C125+C127) -> 2.422914093 | D126: =100-(D124+D125+D127) -> 4.307768804 | E126: 4.40398906 | F126: 4.002338797 | G126: 3.292944037 | H126: 7.124091469 | I126: 7.175948141 | J126: 5.211702654 | K126: 3.962075907 | L126: 4.167044214 | M126: 2.082318345 | N126: 3.319629372 | O126: 4.220003668 | P126: 2.978390063 | Q126: 1.721418601 | R126: 2.05691727 | S126: 21.92324439 | T126: 31.12891107 | U126: 1.176064022 | V126: 0.3249626979 | W126: 8.274306537 | X126: 1.642795947 | Y126: 4.248736292 | Z126: 0.3390210709 | AA126: 0.9749737209 | AB126: 0.7400642789 | AC126: 33.60046244 | AD126: 2.537315097 | AE126: 0.6896613072 | AF126: 11.04932315 | AG126: 1.277091705 | AH126: 29.72167097 | AI126: 1.531526008 | AJ126: 8.280438568 | AK126: 18.26778261 | AL126: 0.63518579 | AM126: 2.708764258 | AN126: 2.075670642 | AO126: 7.233664248 | AP126: 9.982663527 | AQ126: 12.19421199 | AR126: 0.8356712699 | AS126: 3.431962253 | AT126: 2.552289679 | BB126: Unimproved | BC126: 2407.619511 | BD126: 4297.329828 | BE126: 4296.535157 | BF126: 4140.726578 | BG126: 3581.257299 | BH126: 2117.606241 | BI126: 2277.341261 | BJ126: 1726.06671 | BK126: 1298.419886 | BL126: 1419.608149 | BM126: 1498.777237 | BN126: 2347.934118 | BO126: 2882.744177 | BP126: 1933.602592 | BQ126: 1221.368002 | BR126: 791.711563 | BS126: 73.204273 | BT126: 4427.938427 | BU126: 608.564593 | BV126: 38.367004 | BW126: 498.405973 | BX126: 453.042823 | BY126: 21.706194 | BZ126: 12.931824 | CA126: 102.003602 | CB126: 121.249995 | CC126: 1630.225392 | CD126: 806.576908 | CE126: 114.43222 | CF126: 144.717195 | CG126: 756.76634 | CH126: 317.346496 | CI126: 512.199612 | CJ126: 37.178426 | CK126: 126.021031 | CL126: 208.623317 | CM126: 356.693286 | CN126: 621.153993 | CO126: 23.051603 | CP126: 2824.305966 | CQ126: 221.115883 | CR126: 37.606467 | CS126: 1773.088163 | CT126: 1063.239804
B127: Open defecation | C127: =C161 -> 92.23467516 | D127: =D161 -> 82.87064434 | E127: 65.63771169 | F127: 34.69771929 | G127: 5.995330795 | H127: 53.01695519 | I127: 21.37367616 | J127: 8.131759194 | K127: 2.01935575 | L127: 0.3556582476 | M127: 93.84664263 | N127: 89.17827242 | O127: 81.77692321 | P127: 69.36594331 | Q127: 34.92271583 | R127: 57.01565271 | S127: 18.58839415 | T127: 23.04373711 | U127: 72.91159515 | V127: 80.70494615 | W127: 7.347120391 | X127: 46.33279676 | Y127: 24.45398377 | Z127: 55.2718688 | AA127: 48.58932478 | AB127: 77.6377585 | AC127: 35.86385173 | AD127: 55.38691759 | AE127: 3.376531391 | AF127: 29.96752689 | AG127: 46.63425087 | AH127: 4.47405885 | AI127: 72.87453239 | AJ127: 1.94220096 | AK127: 14.61533417 | AL127: 79.23213435 | AM127: 28.62491794 | AN127: 71.79699927 | AO127: 11.1831708 | AP127: 56.48897619 | AQ127: 3.009288648 | AR127: 42.95441823 | AS127: 66.76825861 | AT127: 41.41430286 | BB127: Open defecation | BC127: 100209.2127 | BD127: 90010.37492 | BE127: 71284.63021 | BF127: 37700.28379 | BG127: 6513.898717 | BH127: 17752.10262 | BI127: 7163.058374 | BJ127: 2724.594484 | BK127: 677.236098 | BL127: 119.155721 | BM127: 70523.66529 | BN127: 66950.8827 | BO127: 61447.4996 | BP127: 52130.21947 | BQ127: 26229.98596 | BR127: 21768.02123 | BS127: 109.183864 | BT127: 3284.907901 | BU127: 32417.35297 | BV127: 9528.49977 | BW127: 466.115945 | BX127: 12074.80743 | BY127: 180.926523 | BZ127: 1672.00747 | CA127: 5083.507422 | CB127: 11539.54199 | CC127: 1835.508668 | CD127: 17013.20034 | CE127: 470.929139 | CF127: 423.533813 | CG127: 23925.53074 | CH127: 47.798226 | CI127: 24834.50402 | CJ127: 8.720308 | CK127: 110.928813 | CL127: 15635.63399 | CM127: 3780.731119 | CN127: 22514.07471 | CO127: 35.637542 | CP127: 15981.92226 | CQ127: 54.131025 | CR127: 1880.940594 | CS127: 61524.06029 | CT127: 17515.74222
A128: Shared among Improved Sanitation | B128: Yes | C128: 36.76846241 | D128: 38.95346725 | E128: 40.4914245 | F128: 32.29309109 | G128: 13.07373769 | H128: 61.93180783 | I128: 50.08093265 | J128: 34.01325421 | K128: 16.95291235 | L128: 6.208598913 | M128: 34.80770117 | N128: 29.57893666 | O128: 30.03815581 | P128: 25.35379139 | Q128: 13.73540765 | R128: 22.84742912 | S128: 18.25306804 | T128: 29.86648251 | U128: 33.99085066 | V128: 17.55845114 | W128: 22.36343301 | X128: 15.30565296 | Y128: 11.78669603 | Z128: 15.24907607 | AA128: 18.06355786 | AB128: 27.35919598 | AC128: 16.87083461 | AD128: 20.07224892 | AE128: 4.449003456 | AF128: 31.69709638 | AG128: 37.58905136 | AH128: 49.75528058 | AI128: 23.79757087 | AJ128: 14.40853802 | AK128: 25.52963249 | AL128: 14.55201775 | AM128: 20.52672219 | AN128: 27.45475869 | AO128: 23.21409889 | AP128: 31.50464327 | AQ128: 34.90927768 | AR128: 18.39926461 | AS128: 23.49005385 | AT128: 36.13421853 | BA128: Shared among improved sanitation facilities | BB128: Yes | BC128: N/A | BD128: N/A | BE128: N/A | BF128: N/A | BG128: N/A | BH128: N/A | BI128: N/A | BJ128: N/A | BK128: N/A | BL128: N/A | BM128: N/A | BN128: N/A | BO128: N/A | BP128: N/A | BQ128: N/A | BR128: N/A | BS128: N/A | BT128: N/A | BU128: N/A | BV128: N/A | BW128: N/A | BX128: N/A | BY128: N/A | BZ128: N/A | CA128: N/A | CB128: N/A | CC128: N/A | CD128: N/A | CE128: N/A | CF128: N/A | CG128: N/A | CH128: N/A | CI128: N/A | CJ128: N/A | CK128: N/A | CL128: N/A | CM128: N/A | CN128: N/A | CO128: N/A | CP128: N/A | CQ128: N/A | CR128: N/A | CS128: N/A | CT128: N/A
B129: No | C129: 63.23153759 | D129: 61.04653275 | E129: 59.5085755 | F129: 67.70690891 | G129: 86.92626231 | H129: 38.06819217 | I129: 49.91906735 | J129: 65.98674579 | K129: 83.04708765 | L129: 93.79140109 | M129: 65.19229883 | N129: 70.42106334 | O129: 69.96184419 | P129: 74.64620861 | Q129: 86.26459235 | R129: 77.15257088 | S129: 81.74693196 | T129: 70.13351749 | U129: 66.00914934 | V129: 82.44154886 | W129: 77.63656699 | X129: 84.69434704 | Y129: 88.21330397 | Z129: 84.75092393 | AA129: 81.93644214 | AB129: 72.64080402 | AC129: 83.12916539 | AD129: 79.92775108 | AE129: 95.55099654 | AF129: 68.30290362 | AG129: 62.41094864 | AH129: 50.24471942 | AI129: 76.20242913 | AJ129: 85.59146198 | AK129: 74.47036751 | AL129: 85.44798225 | AM129: 79.47327781 | AN129: 72.54524131 | AO129: 76.78590111 | AP129: 68.49535673 | AQ129: 65.09072232 | AR129: 81.60073539 | AS129: 76.50994615 | AT129: 63.86578147 | BB129: No | BC129: N/A | BD129: N/A | BE129: N/A | BF129: N/A | BG129: N/A | BH129: N/A | BI129: N/A | BJ129: N/A | BK129: N/A | BL129: N/A | BM129: N/A | BN129: N/A | BO129: N/A | BP129: N/A | BQ129: N/A | BR129: N/A | BS129: N/A | BT129: N/A | BU129: N/A | BV129: N/A | BW129: N/A | BX129: N/A | BY129: N/A | BZ129: N/A | CA129: N/A | CB129: N/A | CC129: N/A | CD129: N/A | CE129: N/A | CF129: N/A | CG129: N/A | CH129: N/A | CI129: N/A | CJ129: N/A | CK129: N/A | CL129: N/A | CM129: N/A | CN129: N/A | CO129: N/A | CP129: N/A | CQ129: N/A | CR129: N/A | CS129: N/A | CT129: N/A
A130: Manually calculated ratios | B130: Improved latrines
B131: Other
B132: Other
C133: NATIONAL wealth index quintile | H133: URBAN wealth index quintile | M133: RURAL wealth index quintile | R133: REGIONS | BA133: Raw numbers of respondents: | BB133: Use of sanitation facilities | BC133: NATIONAL wealth index quintile | BH133: URBAN wealth index quintile | BM133: RURAL wealth index quintile | BR133: SUB-REGIONS:
A134: Percentage based on weighted population | C134: Poorest | D134: Poor | E134: Middle | F134: Rich | G134: Richest | H134: Poorest | I134: Poor | J134: Middle | K134: Rich | L134: Richest | M134: Poorest | N134: Poor | O134: Middle | P134: Rich | Q134: Richest | R134: [AP] Andhra Pradesh | S134: [AR] Arunachal Pradesh | T134: [AS] Assam | U134: [BH] Bihar | V134: [CH] Chhattisgarh | W134: [DL] Delhi | X134: [GJ] Gujarat | Y134: [GO] Goa | Z134: [HP] Himachal Pradesh | AA134: [HR] Haryana | AB134: [JH] Jharkhand | AC134: [JM] Jammu and Kashmir | AD134: [KA] Karnataka | AE134: [KE] Kerala | AF134: [MG] Meghalaya | AG134: [MH] Maharashtra | AH134: [MN] Manipur | AI134: [MP] Madhya Pradesh | AJ134: [MZ] Mizoram | AK134: [NA] Nagaland | AL134: [OR] Orissa | AM134: [PJ] Punjab | AN134: [RJ] Rajasthan | AO134: [SK] Sikkim | AP134: [TN] Tamil Nadu | AQ134: [TR] Tripura | AR134: [UC] Uttaranchal | AS134: [UP] Uttar Pradesh | AT134: [WB] West Bengal | BA134: Sanitation data, raw numbers (weighted) | BC134: Poorest | BD134: Poor | BE134: Middle | BF134: Rich | BG134: Richest | BH134: Poorest | BI134: Poor | BJ134: Middle | BK134: Rich | BL134: Richest | BM134: Poorest | BN134: Poor | BO134: Middle | BP134: Rich | BQ134: Richest | BR134: [AP] Andhra Pradesh | BS134: [AR] Arunachal Pradesh | BT134: [AS] Assam | BU134: [BH] Bihar | BV134: [CH] Chhattisgarh | BW134: [DL] Delhi | BX134: [GJ] Gujarat | BY134: [GO] Goa | BZ134: [HP] Himachal Pradesh | CA134: [HR] Haryana | CB134: [JH] Jharkhand | CC134: [JM] Jammu and Kashmir | CD134: [KA] Karnataka | CE134: [KE] Kerala | CF134: [MG] Meghalaya | CG134: [MH] Maharashtra | CH134: [MN] Manipur | CI134: [MP] Madhya Pradesh | CJ134: [MZ] Mizoram | CK134: [NA] Nagaland | CL134: [OR] Orissa | CM134: [PJ] Punjab | CN134: [RJ] Rajasthan | CO134: [SK] Sikkim | CP134: [TN] Tamil Nadu | CQ134: [TR] Tripura | CR134: [UC] Uttaranchal | CS134: [UP] Uttar Pradesh | CT134: [WB] West Bengal
A135: Sanitation type | B135: Sewer connection | C135: 0.162646811 | D135: 0.7797674004 | E135: 3.601588577 | F135: 11.15826727 | G135: 30.19582745 | H135: 9.109410748 | I135: 19.95484049 | J135: 28.25702794 | K135: 37.62041326 | L135: 45.38414774 | M135: 0.008739756358 | N135: 0.02056072827 | O135: 0.2858557018 | P135: 0.7262830689 | Q135: 2.746179593 | R135: 7.40787389 | S135: 3.928568522 | T135: 0.4824491784 | U135: 1.877894931 | V135: 0.7268902452 | W135: 68.98062875 | X135: 27.75422713 | Y135: 2.213407086 | Z135: 3.595322734 | AA135: 15.77973786 | AB135: 1.588239541 | AC135: 5.723835962 | AD135: 8.559492611 | AE135: 1.441986979 | AF135: 0.7093810778 | AG135: 28.25287852 | AH135: 0.2323220688 | AI135: 4.987160903 | AJ135: 0 | AK135: 0.7583139173 | AL135: 1.698209871 | AM135: 26.76454792 | AN135: 4.243106052 | AO135: 7.334841896 | AP135: 5.109986573 | AQ135: 0.09723790817 | AR135: 12.57175241 | AS135: 4.850170581 | AT135: 3.227760038 | BA135: Sanitation type | BB135: Sewer connection | BC135: N/A | BD135: N/A | BE135: N/A | BF135: N/A | BG135: N/A | BH135: N/A | BI135: N/A | BJ135: N/A | BK135: N/A | BL135: N/A | BM135: N/A | BN135: N/A | BO135: N/A | BP135: N/A | BQ135: N/A | BR135: N/A | BS135: N/A | BT135: N/A | BU135: N/A | BV135: N/A | BW135: N/A | BX135: N/A | BY135: N/A | BZ135: N/A | CA135: N/A | CB135: N/A | CC135: N/A | CD135: N/A | CE135: N/A | CF135: N/A | CG135: N/A | CH135: N/A | CI135: N/A | CJ135: N/A | CK135: N/A | CL135: N/A | CM135: N/A | CN135: N/A | CO135: N/A | CP135: N/A | CQ135: N/A | CR135: N/A | CS135: N/A | CT135: N/A
B136: Septic tank connection | C136: 1.212164525 | D136: 4.897412406 | E136: 14.90571002 | F136: 36.39252936 | G136: 50.00653939 | H136: 19.3293013 | I136: 38.03159763 | J136: 47.16511435 | K136: 47.47440183 | L136: 44.28299088 | M136: 0.6926884585 | N136: 1.958947901 | O136: 5.755061095 | P136: 15.07879094 | Q136: 44.30012327 | R136: 28.61451113 | S136: 20.064199 | T136: 23.90565935 | U136: 19.90785173 | V136: 15.94520971 | W136: 13.45875928 | X136: 13.37646443 | Y136: 66.29433114 | Z136: 33.51836491 | AA136: 22.7267748 | AB136: 17.32826492 | AC136: 18.5550894 | AD136: 7.794185294 | AE136: 72.68870028 | AF136: 29.79130218 | AG136: 22.5895901 | AH136: 29.37424133 | AI136: 17.20351692 | AJ136: 48.66593803 | AK136: 29.37507039 | AL136: 11.30791785 | AM136: 24.76464439 | AN136: 16.67036001 | AO136: 59.30243293 | AP136: 27.69029414 | AQ136: 15.33212136 | AR136: 26.07059383 | AS136: 18.17716484 | AT136: 27.63197233 | BB136: Septic tank connection | BC136: N/A | BD136: N/A | BE136: N/A | BF136: N/A | BG136: N/A | BH136: N/A | BI136: N/A | BJ136: N/A | BK136: N/A | BL136: N/A | BM136: N/A | BN136: N/A | BO136: N/A | BP136: N/A | BQ136: N/A | BR136: N/A | BS136: N/A | BT136: N/A | BU136: N/A | BV136: N/A | BW136: N/A | BX136: N/A | BY136: N/A | BZ136: N/A | CA136: N/A | CB136: N/A | CC136: N/A | CD136: N/A | CE136: N/A | CF136: N/A | CG136: N/A | CH136: N/A | CI136: N/A | CJ136: N/A | CK136: N/A | CL136: N/A | CM136: N/A | CN136: N/A | CO136: N/A | CP136: N/A | CQ136: N/A | CR136: N/A | CS136: N/A | CT136: N/A
B137: Improved latrines | C137: 4.262925323 | D137: 7.609228654 | E137: 11.98305183 | F137: 13.97371629 | G137: 10.51447047 | H137: 12.32607361 | I137: 13.86185033 | J137: 11.30730093 | K137: 9.015684 | L137: 5.744475902 | M137: 3.537411414 | N137: 5.868920013 | O137: 8.431091741 | P137: 12.31284901 | Q137: 16.44857058 | R137: 4.90593849 | S137: 45.0400558 | T137: 21.52182933 | U137: 4.076759445 | V137: 2.297991193 | W137: 2.366811785 | X137: 10.85613986 | Y137: 4.111082997 | Z137: 7.255767345 | AA137: 11.92918884 | AB137: 2.689316553 | AC137: 8.096720384 | AD137: 25.70802064 | AE137: 21.67779269 | AF137: 29.2921908 | AG137: 1.143281372 | AH137: 36.21478372 | AI137: 3.431787862 | AJ137: 41.11142244 | AK137: 38.64748464 | AL137: 7.041950527 | AM137: 17.15698446 | AN137: 5.308685207 | AO137: 14.94589013 | AP137: 0.7280795675 | AQ137: 69.28779588 | AR137: 17.57871487 | AS137: 8.394177244 | AT137: 25.2120356 | BB137: Improved latrines | BC137: N/A | BD137: N/A | BE137: N/A | BF137: N/A | BG137: N/A | BH137: N/A | BI137: N/A | BJ137: N/A | BK137: N/A | BL137: N/A | BM137: N/A | BN137: N/A | BO137: N/A | BP137: N/A | BQ137: N/A | BR137: N/A | BS137: N/A | BT137: N/A | BU137: N/A | BV137: N/A | BW137: N/A | BX137: N/A | BY137: N/A | BZ137: N/A | CA137: N/A | CB137: N/A | CC137: N/A | CD137: N/A | CE137: N/A | CF137: N/A | CG137: N/A | CH137: N/A | CI137: N/A | CJ137: N/A | CK137: N/A | CL137: N/A | CM137: N/A | CN137: N/A | CO137: N/A | CP137: N/A | CQ137: N/A | CR137: N/A | CS137: N/A | CT137: N/A
B138: Unimproved facilities | C138: 2.213948935 | D138: 3.951288014 | E138: 3.951389896 | F138: 3.807663117 | G138: 3.293202607 | H138: 6.312969175 | I138: 6.791137746 | J138: 5.14662098 | K138: 3.870635961 | L138: 4.233079255 | M138: 1.992776728 | N138: 3.122215189 | O138: 3.832650164 | P138: 2.570875773 | Q138: 1.624189231 | R138: 2.073062202 | S138: 12.42915078 | T138: 31.05305805 | U138: 1.366122643 | V138: 0.3249626979 | W138: 7.851227246 | X138: 1.736293219 | Y138: 2.933095836 | Z138: 0.4269616239 | AA138: 0.9749737209 | AB138: 0.8151499337 | AC138: 31.80940531 | AD138: 2.622462413 | AE138: 0.8193997383 | AF138: 10.23959906 | AG138: 1.47213074 | AH138: 29.70459404 | AI138: 1.50300192 | AJ138: 8.280438568 | AK138: 16.60379689 | AL138: 1.05273695 | AM138: 2.699609567 | AN138: 1.980849462 | AO138: 7.233664248 | AP138: 9.982663527 | AQ138: 12.27726684 | AR138: 0.8581343946 | AS138: 1.921029732 | AT138: 2.513929168 | BB138: Unimproved facilities | BC138: N/A | BD138: N/A | BE138: N/A | BF138: N/A | BG138: N/A | BH138: N/A | BI138: N/A | BJ138: N/A | BK138: N/A | BL138: N/A | BM138: N/A | BN138: N/A | BO138: N/A | BP138: N/A | BQ138: N/A | BR138: N/A | BS138: N/A | BT138: N/A | BU138: N/A | BV138: N/A | BW138: N/A | BX138: N/A | BY138: N/A | BZ138: N/A | CA138: N/A | CB138: N/A | CC138: N/A | CD138: N/A | CE138: N/A | CF138: N/A | CG138: N/A | CH138: N/A | CI138: N/A | CJ138: N/A | CK138: N/A | CL138: N/A | CM138: N/A | CN138: N/A | CO138: N/A | CP138: N/A | CQ138: N/A | CR138: N/A | CS138: N/A | CT138: N/A
B139: Open defecation | C139: 92.14831441 | D139: 82.76230353 | E139: 65.55825968 | F139: 34.66782396 | G139: 5.989960074 | H139: 52.92224517 | I139: 21.36057381 | J139: 8.123935798 | K139: 2.018864947 | L139: 0.3553062238 | M139: 93.76838364 | N139: 89.02935617 | O139: 81.6953413 | P139: 69.3112012 | Q139: 34.88093733 | R139: 56.99861429 | S139: 18.5380259 | T139: 23.03700411 | U139: 72.77137125 | V139: 80.70494615 | W139: 7.342572934 | X139: 46.27687537 | Y139: 24.44808294 | Z139: 55.20358338 | AA139: 48.58932478 | AB139: 77.57902905 | AC139: 35.81494894 | AD139: 55.31583904 | AE139: 3.37212031 | AF139: 29.96752689 | AG139: 46.54211927 | AH139: 4.47405885 | AI139: 72.87453239 | AJ139: 1.94220096 | AK139: 14.61533417 | AL139: 78.8991848 | AM139: 28.61421367 | AN139: 71.79699927 | AO139: 11.1831708 | AP139: 56.48897619 | AQ139: 3.005578021 | AR139: 42.9208045 | AS139: 66.65745761 | AT139: 41.41430286 | BB139: Open defecation | BC139: N/A | BD139: N/A | BE139: N/A | BF139: N/A | BG139: N/A | BH139: N/A | BI139: N/A | BJ139: N/A | BK139: N/A | BL139: N/A | BM139: N/A | BN139: N/A | BO139: N/A | BP139: N/A | BQ139: N/A | BR139: N/A | BS139: N/A | BT139: N/A | BU139: N/A | BV139: N/A | BW139: N/A | BX139: N/A | BY139: N/A | BZ139: N/A | CA139: N/A | CB139: N/A | CC139: N/A | CD139: N/A | CE139: N/A | CF139: N/A | CG139: N/A | CH139: N/A | CI139: N/A | CJ139: N/A | CK139: N/A | CL139: N/A | CM139: N/A | CN139: N/A | CO139: N/A | CP139: N/A | CQ139: N/A | CR139: N/A | CS139: N/A | CT139: N/A
A140: Septic tank emptying practices | B140: Not emptied/treated and disposed in situ | C140: N/A | D140: N/A | E140: N/A | F140: N/A | G140: N/A | H140: N/A | I140: N/A | J140: N/A | K140: N/A | L140: N/A | M140: N/A | N140: N/A | O140: N/A | P140: N/A | Q140: N/A | R140: N/A | S140: N/A | T140: N/A | U140: N/A | V140: N/A | W140: N/A | X140: N/A | Y140: N/A | Z140: N/A | AA140: N/A | AB140: N/A | AC140: N/A | AD140: N/A | AE140: N/A | AF140: N/A | AG140: N/A | AH140: N/A | AI140: N/A | AJ140: N/A | AK140: N/A | AL140: N/A | AM140: N/A | AN140: N/A | AO140: N/A | AP140: N/A | AQ140: N/A | AR140: N/A | AS140: N/A | AT140: N/A | BA140: Septic tank emptying practices | BB140: Not emptied/treated and disposed in situ | BC140: N/A | BD140: N/A | BE140: N/A | BF140: N/A | BG140: N/A | BH140: N/A | BI140: N/A | BJ140: N/A | BK140: N/A | BL140: N/A | BM140: N/A | BN140: N/A | BO140: N/A | BP140: N/A | BQ140: N/A | BR140: N/A | BS140: N/A | BT140: N/A | BU140: N/A | BV140: N/A | BW140: N/A | BX140: N/A | BY140: N/A | BZ140: N/A | CA140: N/A | CB140: N/A | CC140: N/A | CD140: N/A | CE140: N/A | CF140: N/A | CG140: N/A | CH140: N/A | CI140: N/A | CJ140: N/A | CK140: N/A | CL140: N/A | CM140: N/A | CN140: N/A | CO140: N/A | CP140: N/A | CQ140: N/A | CR140: N/A | CS140: N/A | CT140: N/A
B141: Emptied and buried on site | C141: N/A | D141: N/A | E141: N/A | F141: N/A | G141: N/A | H141: N/A | I141: N/A | J141: N/A | K141: N/A | L141: N/A | M141: N/A | N141: N/A | O141: N/A | P141: N/A | Q141: N/A | R141: N/A | S141: N/A | T141: N/A | U141: N/A | V141: N/A | W141: N/A | X141: N/A | Y141: N/A | Z141: N/A | AA141: N/A | AB141: N/A | AC141: N/A | AD141: N/A | AE141: N/A | AF141: N/A | AG141: N/A | AH141: N/A | AI141: N/A | AJ141: N/A | AK141: N/A | AL141: N/A | AM141: N/A | AN141: N/A | AO141: N/A | AP141: N/A | AQ141: N/A | AR141: N/A | AS141: N/A | AT141: N/A | BB141: Emptied and buried on site | BC141: N/A | BD141: N/A | BE141: N/A | BF141: N/A | BG141: N/A | BH141: N/A | BI141: N/A | BJ141: N/A | BK141: N/A | BL141: N/A | BM141: N/A | BN141: N/A | BO141: N/A | BP141: N/A | BQ141: N/A | BR141: N/A | BS141: N/A | BT141: N/A | BU141: N/A | BV141: N/A | BW141: N/A | BX141: N/A | BY141: N/A | BZ141: N/A | CA141: N/A | CB141: N/A | CC141: N/A | CD141: N/A | CE141: N/A | CF141: N/A | CG141: N/A | CH141: N/A | CI141: N/A | CJ141: N/A | CK141: N/A | CL141: N/A | CM141: N/A | CN141: N/A | CO141: N/A | CP141: N/A | CQ141: N/A | CR141: N/A | CS141: N/A | CT141: N/A
B142: Emptied and discharged locally | C142: N/A | D142: N/A | E142: N/A | F142: N/A | G142: N/A | H142: N/A | I142: N/A | J142: N/A | K142: N/A | L142: N/A | M142: N/A | N142: N/A | O142: N/A | P142: N/A | Q142: N/A | R142: N/A | S142: N/A | T142: N/A | U142: N/A | V142: N/A | W142: N/A | X142: N/A | Y142: N/A | Z142: N/A | AA142: N/A | AB142: N/A | AC142: N/A | AD142: N/A | AE142: N/A | AF142: N/A | AG142: N/A | AH142: N/A | AI142: N/A | AJ142: N/A | AK142: N/A | AL142: N/A | AM142: N/A | AN142: N/A | AO142: N/A | AP142: N/A | AQ142: N/A | AR142: N/A | AS142: N/A | AT142: N/A | BB142: Emptied and discharged locally | BC142: N/A | BD142: N/A | BE142: N/A | BF142: N/A | BG142: N/A | BH142: N/A | BI142: N/A | BJ142: N/A | BK142: N/A | BL142: N/A | BM142: N/A | BN142: N/A | BO142: N/A | BP142: N/A | BQ142: N/A | BR142: N/A | BS142: N/A | BT142: N/A | BU142: N/A | BV142: N/A | BW142: N/A | BX142: N/A | BY142: N/A | BZ142: N/A | CA142: N/A | CB142: N/A | CC142: N/A | CD142: N/A | CE142: N/A | CF142: N/A | CG142: N/A | CH142: N/A | CI142: N/A | CJ142: N/A | CK142: N/A | CL142: N/A | CM142: N/A | CN142: N/A | CO142: N/A | CP142: N/A | CQ142: N/A | CR142: N/A | CS142: N/A | CT142: N/A
B143: Emptied and removed offsite | C143: N/A | D143: N/A | E143: N/A | F143: N/A | G143: N/A | H143: N/A | I143: N/A | J143: N/A | K143: N/A | L143: N/A | M143: N/A | N143: N/A | O143: N/A | P143: N/A | Q143: N/A | R143: N/A | S143: N/A | T143: N/A | U143: N/A | V143: N/A | W143: N/A | X143: N/A | Y143: N/A | Z143: N/A | AA143: N/A | AB143: N/A | AC143: N/A | AD143: N/A | AE143: N/A | AF143: N/A | AG143: N/A | AH143: N/A | AI143: N/A | AJ143: N/A | AK143: N/A | AL143: N/A | AM143: N/A | AN143: N/A | AO143: N/A | AP143: N/A | AQ143: N/A | AR143: N/A | AS143: N/A | AT143: N/A | BB143: Emptied and removed offsite | BC143: N/A | BD143: N/A | BE143: N/A | BF143: N/A | BG143: N/A | BH143: N/A | BI143: N/A | BJ143: N/A | BK143: N/A | BL143: N/A | BM143: N/A | BN143: N/A | BO143: N/A | BP143: N/A | BQ143: N/A | BR143: N/A | BS143: N/A | BT143: N/A | BU143: N/A | BV143: N/A | BW143: N/A | BX143: N/A | BY143: N/A | BZ143: N/A | CA143: N/A | CB143: N/A | CC143: N/A | CD143: N/A | CE143: N/A | CF143: N/A | CG143: N/A | CH143: N/A | CI143: N/A | CJ143: N/A | CK143: N/A | CL143: N/A | CM143: N/A | CN143: N/A | CO143: N/A | CP143: N/A | CQ143: N/A | CR143: N/A | CS143: N/A | CT143: N/A
A144: Latrine emptying practices | B144: Not emptied/treated and disposed in situ | C144: N/A | D144: N/A | E144: N/A | F144: N/A | G144: N/A | H144: N/A | I144: N/A | J144: N/A | K144: N/A | L144: N/A | M144: N/A | N144: N/A | O144: N/A | P144: N/A | Q144: N/A | R144: N/A | S144: N/A | T144: N/A | U144: N/A | V144: N/A | W144: N/A | X144: N/A | Y144: N/A | Z144: N/A | AA144: N/A | AB144: N/A | AC144: N/A | AD144: N/A | AE144: N/A | AF144: N/A | AG144: N/A | AH144: N/A | AI144: N/A | AJ144: N/A | AK144: N/A | AL144: N/A | AM144: N/A | AN144: N/A | AO144: N/A | AP144: N/A | AQ144: N/A | AR144: N/A | AS144: N/A | AT144: N/A | BA144: Latrine emptying practices | BB144: Not emptied/treated and disposed in situ | BC144: N/A | BD144: N/A | BE144: N/A | BF144: N/A | BG144: N/A | BH144: N/A | BI144: N/A | BJ144: N/A | BK144: N/A | BL144: N/A | BM144: N/A | BN144: N/A | BO144: N/A | BP144: N/A | BQ144: N/A | BR144: N/A | BS144: N/A | BT144: N/A | BU144: N/A | BV144: N/A | BW144: N/A | BX144: N/A | BY144: N/A | BZ144: N/A | CA144: N/A | CB144: N/A | CC144: N/A | CD144: N/A | CE144: N/A | CF144: N/A | CG144: N/A | CH144: N/A | CI144: N/A | CJ144: N/A | CK144: N/A | CL144: N/A | CM144: N/A | CN144: N/A | CO144: N/A | CP144: N/A | CQ144: N/A | CR144: N/A | CS144: N/A | CT144: N/A
B145: Emptied and buried on site | C145: N/A | D145: N/A | E145: N/A | F145: N/A | G145: N/A | H145: N/A | I145: N/A | J145: N/A | K145: N/A | L145: N/A | M145: N/A | N145: N/A | O145: N/A | P145: N/A | Q145: N/A | R145: N/A | S145: N/A | T145: N/A | U145: N/A | V145: N/A | W145: N/A | X145: N/A | Y145: N/A | Z145: N/A | AA145: N/A | AB145: N/A | AC145: N/A | AD145: N/A | AE145: N/A | AF145: N/A | AG145: N/A | AH145: N/A | AI145: N/A | AJ145: N/A | AK145: N/A | AL145: N/A | AM145: N/A | AN145: N/A | AO145: N/A | AP145: N/A | AQ145: N/A | AR145: N/A | AS145: N/A | AT145: N/A | BB145: Emptied and buried on site | BC145: N/A | BD145: N/A | BE145: N/A | BF145: N/A | BG145: N/A | BH145: N/A | BI145: N/A | BJ145: N/A | BK145: N/A | BL145: N/A | BM145: N/A | BN145: N/A | BO145: N/A | BP145: N/A | BQ145: N/A | BR145: N/A | BS145: N/A | BT145: N/A | BU145: N/A | BV145: N/A | BW145: N/A | BX145: N/A | BY145: N/A | BZ145: N/A | CA145: N/A | CB145: N/A | CC145: N/A | CD145: N/A | CE145: N/A | CF145: N/A | CG145: N/A | CH145: N/A | CI145: N/A | CJ145: N/A | CK145: N/A | CL145: N/A | CM145: N/A | CN145: N/A | CO145: N/A | CP145: N/A | CQ145: N/A | CR145: N/A | CS145: N/A | CT145: N/A
B146: Emptied and discharged locally | C146: N/A | D146: N/A | E146: N/A | F146: N/A | G146: N/A | H146: N/A | I146: N/A | J146: N/A | K146: N/A | L146: N/A | M146: N/A | N146: N/A | O146: N/A | P146: N/A | Q146: N/A | R146: N/A | S146: N/A | T146: N/A | U146: N/A | V146: N/A | W146: N/A | X146: N/A | Y146: N/A | Z146: N/A | AA146: N/A | AB146: N/A | AC146: N/A | AD146: N/A | AE146: N/A | AF146: N/A | AG146: N/A | AH146: N/A | AI146: N/A | AJ146: N/A | AK146: N/A | AL146: N/A | AM146: N/A | AN146: N/A | AO146: N/A | AP146: N/A | AQ146: N/A | AR146: N/A | AS146: N/A | AT146: N/A | BB146: Emptied and discharged locally | BC146: N/A | BD146: N/A | BE146: N/A | BF146: N/A | BG146: N/A | BH146: N/A | BI146: N/A | BJ146: N/A | BK146: N/A | BL146: N/A | BM146: N/A | BN146: N/A | BO146: N/A | BP146: N/A | BQ146: N/A | BR146: N/A | BS146: N/A | BT146: N/A | BU146: N/A | BV146: N/A | BW146: N/A | BX146: N/A | BY146: N/A | BZ146: N/A | CA146: N/A | CB146: N/A | CC146: N/A | CD146: N/A | CE146: N/A | CF146: N/A | CG146: N/A | CH146: N/A | CI146: N/A | CJ146: N/A | CK146: N/A | CL146: N/A | CM146: N/A | CN146: N/A | CO146: N/A | CP146: N/A | CQ146: N/A | CR146: N/A | CS146: N/A | CT146: N/A
B147: Emptied and removed offsite | C147: N/A | D147: N/A | E147: N/A | F147: N/A | G147: N/A | H147: N/A | I147: N/A | J147: N/A | K147: N/A | L147: N/A | M147: N/A | N147: N/A | O147: N/A | P147: N/A | Q147: N/A | R147: N/A | S147: N/A | T147: N/A | U147: N/A | V147: N/A | W147: N/A | X147: N/A | Y147: N/A | Z147: N/A | AA147: N/A | AB147: N/A | AC147: N/A | AD147: N/A | AE147: N/A | AF147: N/A | AG147: N/A | AH147: N/A | AI147: N/A | AJ147: N/A | AK147: N/A | AL147: N/A | AM147: N/A | AN147: N/A | AO147: N/A | AP147: N/A | AQ147: N/A | AR147: N/A | AS147: N/A | AT147: N/A | BB147: Emptied and removed offsite | BC147: N/A | BD147: N/A | BE147: N/A | BF147: N/A | BG147: N/A | BH147: N/A | BI147: N/A | BJ147: N/A | BK147: N/A | BL147: N/A | BM147: N/A | BN147: N/A | BO147: N/A | BP147: N/A | BQ147: N/A | BR147: N/A | BS147: N/A | BT147: N/A | BU147: N/A | BV147: N/A | BW147: N/A | BX147: N/A | BY147: N/A | BZ147: N/A | CA147: N/A | CB147: N/A | CC147: N/A | CD147: N/A | CE147: N/A | CF147: N/A | CG147: N/A | CH147: N/A | CI147: N/A | CJ147: N/A | CK147: N/A | CL147: N/A | CM147: N/A | CN147: N/A | CO147: N/A | CP147: N/A | CQ147: N/A | CR147: N/A | CS147: N/A | CT147: N/A
A148: Shared among improved sanitation facilities | B148: Yes | C148: 2.072909084 | D148: 5.175416563 | E148: 12.33733253 | F148: 19.85986313 | G148: 11.85403047 | H148: 25.23793372 | I148: 35.96354061 | J148: 29.48254253 | K148: 15.94024387 | L148: 5.922474139 | M148: 1.475442631 | N148: 2.321395626 | O148: 4.347124473 | P148: 7.123591019 | Q148: 8.718195026 | R148: 9.351033305 | S148: 12.60060821 | T148: 13.6922124 | U148: 8.790885828 | V148: 3.330854186 | W148: 18.95629157 | X148: 7.949124567 | Y148: 8.550827216 | Z148: 6.748383737 | AA148: 9.10239352 | AB148: 5.911178916 | AC148: 5.462041649 | AD148: 8.439438327 | AE148: 4.262522584 | AF148: 18.95260492 | AG148: 19.52803281 | AH148: 32.67628876 | AI148: 6.097524431 | AJ148: 12.93560512 | AK148: 17.55950307 | AL148: 2.903107456 | AM148: 14.09902069 | AN148: 7.199228353 | AO148: 18.93879659 | AP148: 10.5629903 | AQ148: 29.52034049 | AR148: 10.3442618 | AS148: 7.375728836 | AT148: 20.26038261 | BA148: Shared among improved sanitation facilities | BB148: Yes | BC148: N/A | BD148: N/A | BE148: N/A | BF148: N/A | BG148: N/A | BH148: N/A | BI148: N/A | BJ148: N/A | BK148: N/A | BL148: N/A | BM148: N/A | BN148: N/A | BO148: N/A | BP148: N/A | BQ148: N/A | BR148: N/A | BS148: N/A | BT148: N/A | BU148: N/A | BV148: N/A | BW148: N/A | BX148: N/A | BY148: N/A | BZ148: N/A | CA148: N/A | CB148: N/A | CC148: N/A | CD148: N/A | CE148: N/A | CF148: N/A | CG148: N/A | CH148: N/A | CI148: N/A | CJ148: N/A | CK148: N/A | CL148: N/A | CM148: N/A | CN148: N/A | CO148: N/A | CP148: N/A | CQ148: N/A | CR148: N/A | CS148: N/A | CT148: N/A
B149: No | C149: 3.564827575 | D149: 8.110734653 | E149: 18.13166845 | F149: 41.63893571 | G149: 78.81652412 | H149: 15.51323213 | I149: 35.84730376 | J149: 57.19702757 | K149: 78.08633714 | L149: 89.46900181 | M149: 2.763396998 | N149: 5.526741892 | O149: 10.12488406 | P149: 20.97315754 | Q149: 54.75422055 | R149: 31.57713088 | S149: 56.43221511 | T149: 32.15253143 | U149: 17.07162028 | V149: 15.63923697 | W149: 65.80838459 | X149: 43.98674897 | Y149: 63.99560302 | Z149: 37.50599409 | AA149: 41.2885294 | AB149: 15.6946421 | AC149: 26.9136041 | AD149: 33.60586692 | AE149: 91.54595737 | AF149: 40.84026914 | AG149: 32.42335224 | AH149: 32.99772288 | AI149: 19.52494126 | AJ149: 76.84175536 | AK149: 51.22136587 | AL149: 17.04675451 | AM149: 54.58715608 | AN149: 19.02292291 | AO149: 62.64436837 | AP149: 22.96536998 | AQ149: 55.04268244 | AR149: 45.87679931 | AS149: 24.0236408 | AT149: 35.80941338 | BB149: No | BC149: N/A | BD149: N/A | BE149: N/A | BF149: N/A | BG149: N/A | BH149: N/A | BI149: N/A | BJ149: N/A | BK149: N/A | BL149: N/A | BM149: N/A | BN149: N/A | BO149: N/A | BP149: N/A | BQ149: N/A | BR149: N/A | BS149: N/A | BT149: N/A | BU149: N/A | BV149: N/A | BW149: N/A | BX149: N/A | BY149: N/A | BZ149: N/A | CA149: N/A | CB149: N/A | CC149: N/A | CD149: N/A | CE149: N/A | CF149: N/A | CG149: N/A | CH149: N/A | CI149: N/A | CJ149: N/A | CK149: N/A | CL149: N/A | CM149: N/A | CN149: N/A | CO149: N/A | CP149: N/A | CQ149: N/A | CR149: N/A | CS149: N/A | CT149: N/A
B150: DK/missing | C150: 94.36226334 | D150: 86.71384878 | E150: 69.53099902 | F150: 38.50120116 | G150: 9.32944541 | H150: 59.24883415 | I150: 28.18915563 | J150: 13.3204299 | K150: 5.973418993 | L150: 4.60852405 | M150: 95.76116037 | N150: 92.15186248 | O150: 85.52799146 | P150: 71.90325144 | Q150: 36.52758442 | R150: 59.07183581 | S150: 30.96717668 | T150: 54.15525617 | U150: 74.13749389 | V150: 81.02990885 | W150: 15.23532384 | X150: 48.06412646 | Y150: 27.45356976 | Z150: 55.74562217 | AA150: 49.60907708 | AB150: 78.39417898 | AC150: 67.62435426 | AD150: 57.95469476 | AE150: 4.191520049 | AF150: 40.20712594 | AG150: 48.04861495 | AH150: 34.32598836 | AI150: 74.37753431 | AJ150: 10.22263953 | AK150: 31.21913106 | AL150: 80.05013803 | AM150: 31.31382323 | AN150: 73.77784873 | AO150: 18.41683504 | AP150: 66.47163972 | AQ150: 15.43697706 | AR150: 43.77893889 | AS150: 68.60063036 | AT150: 43.930204 | BB150: DK/missing | BC150: N/A | BD150: N/A | BE150: N/A | BF150: N/A | BG150: N/A | BH150: N/A | BI150: N/A | BJ150: N/A | BK150: N/A | BL150: N/A | BM150: N/A | BN150: N/A | BO150: N/A | BP150: N/A | BQ150: N/A | BR150: N/A | BS150: N/A | BT150: N/A | BU150: N/A | BV150: N/A | BW150: N/A | BX150: N/A | BY150: N/A | BZ150: N/A | CA150: N/A | CB150: N/A | CC150: N/A | CD150: N/A | CE150: N/A | CF150: N/A | CG150: N/A | CH150: N/A | CI150: N/A | CJ150: N/A | CK150: N/A | CL150: N/A | CM150: N/A | CN150: N/A | CO150: N/A | CP150: N/A | CQ150: N/A | CR150: N/A | CS150: N/A | CT150: N/A
A151: Shared among all sanitation facilities | B151: Yes | C151: 2.855676298 | D151: 6.448367301 | E151: 14.01340575 | F151: 21.4837955 | G151: 12.40090226 | H151: 29.39522054 | I151: 39.94624517 | J151: 31.4197664 | K151: 16.83627195 | L151: 6.088639625 | M151: 2.101888177 | N151: 3.131921001 | O151: 5.461731112 | P151: 7.767955397 | Q151: 9.089332535 | R151: 10.37465679 | S151: 16.81130436 | T151: 22.72601606 | U151: 9.408033413 | V151: 3.476232235 | W151: 25.87110421 | X151: 9.215508966 | Y151: 9.77647061 | Z151: 6.813457675 | AA151: 9.395340009 | AB151: 6.206984704 | AC151: 14.40204257 | AD151: 9.070103497 | AE151: 4.356873262 | AF151: 21.16259104 | AG151: 20.19505784 | AH151: 47.16057638 | AI151: 6.781270089 | AJ151: 14.35557314 | AK151: 21.25344057 | AL151: 3.044127568 | AM151: 14.79359558 | AN151: 7.712848694 | AO151: 20.49226027 | AP151: 13.36266102 | AQ151: 33.19960776 | AR151: 10.52842634 | AS151: 8.071401052 | AT151: 20.99791195 | BA151: Shared among all sanitation facilities | BB151: Yes | BC151: N/A | BD151: N/A | BE151: N/A | BF151: N/A | BG151: N/A | BH151: N/A | BI151: N/A | BJ151: N/A | BK151: N/A | BL151: N/A | BM151: N/A | BN151: N/A | BO151: N/A | BP151: N/A | BQ151: N/A | BR151: N/A | BS151: N/A | BT151: N/A | BU151: N/A | BV151: N/A | BW151: N/A | BX151: N/A | BY151: N/A | BZ151: N/A | CA151: N/A | CB151: N/A | CC151: N/A | CD151: N/A | CE151: N/A | CF151: N/A | CG151: N/A | CH151: N/A | CI151: N/A | CJ151: N/A | CK151: N/A | CL151: N/A | CM151: N/A | CN151: N/A | CO151: N/A | CP151: N/A | CQ151: N/A | CR151: N/A | CS151: N/A | CT151: N/A
B152: No | C152: 4.987296874 | D152: 10.75576964 | E152: 20.39572732 | F152: 43.81141223 | G152: 81.56251908 | H152: 17.61021628 | I152: 38.65573695 | J152: 60.37090941 | K152: 81.06094502 | L152: 93.53591558 | M152: 4.125529049 | N152: 7.793266428 | O152: 12.8414358 | P152: 22.89966894 | Q152: 56.00635095 | R152: 32.6265696 | S152: 64.59504948 | T152: 54.05844743 | U152: 17.7656192 | V152: 15.81882162 | W152: 66.7447992 | X152: 44.45665779 | Y152: 65.65370271 | Z152: 37.86788178 | AA152: 41.97055663 | AB152: 16.21398625 | AC152: 49.78300848 | AD152: 35.58127086 | AE152: 92.23493105 | AF152: 48.79049011 | AG152: 33.21742591 | AH152: 48.21802929 | AI152: 20.34419752 | AJ152: 83.7022259 | AK152: 64.13122526 | AL152: 17.95240666 | AM152: 56.59219076 | AN152: 20.49015203 | AO152: 68.32456893 | AP152: 30.14836279 | AQ152: 63.64068201 | AR152: 46.55076916 | AS152: 25.23695148 | AT152: 37.58581322 | BB152: No | BC152: N/A | BD152: N/A | BE152: N/A | BF152: N/A | BG152: N/A | BH152: N/A | BI152: N/A | BJ152: N/A | BK152: N/A | BL152: N/A | BM152: N/A | BN152: N/A | BO152: N/A | BP152: N/A | BQ152: N/A | BR152: N/A | BS152: N/A | BT152: N/A | BU152: N/A | BV152: N/A | BW152: N/A | BX152: N/A | BY152: N/A | BZ152: N/A | CA152: N/A | CB152: N/A | CC152: N/A | CD152: N/A | CE152: N/A | CF152: N/A | CG152: N/A | CH152: N/A | CI152: N/A | CJ152: N/A | CK152: N/A | CL152: N/A | CM152: N/A | CN152: N/A | CO152: N/A | CP152: N/A | CQ152: N/A | CR152: N/A | CS152: N/A | CT152: N/A
A153: Type of toilet facility | B153: Flush to piped sewer system | C153: 0.1627992424 | D153: 0.7807881627 | E153: 3.605953449 | F153: 11.16788946 | G153: 30.22290166 | H153: 9.125713013 | I153: 19.96708057 | J153: 28.28423962 | K153: 37.62955909 | L153: 45.42911262 | M153: 0.008747050549 | N153: 0.02059511947 | O153: 0.2861411606 | P153: 0.7268566885 | Q153: 2.749468818 | R153: 7.410088304 | S153: 3.939242536 | T153: 0.4825901833 | U153: 1.881513466 | V153: 0.7268902452 | W153: 69.02335035 | X153: 27.78776559 | Y153: 2.213941318 | Z153: 3.599770055 | AA153: 15.77973786 | AB153: 1.589441882 | AC153: 5.731651457 | AD153: 8.570491202 | AE153: 1.443873247 | AF153: 0.7093810778 | AG153: 28.30880598 | AH153: 0.2323220688 | AI153: 4.987160903 | AJ153: 0 | AK153: 0.7583139173 | AL153: 1.705376208 | AM153: 26.77456025 | AN153: 4.243106052 | AO153: 7.334841896 | AP153: 5.109986573 | AQ153: 0.09735795614 | AR153: 12.58159807 | AS153: 4.858232751 | AT153: 3.227760038 | BA153: Type of toilet facility | BB153: Flush to piped sewer system | BC153: 176.874737 | BD153: 848.057063 | BE153: 3916.179458 | BF153: 12134.30192 | BG153: 32837.04053 | BH153: 3055.637453 | BI153: 6691.659527 | BJ153: 9476.803408 | BK153: 12619.91394 | BL153: 15220.05663 | BM153: 6.573214 | BN153: 15.461854 | BO153: 215.007586 | BP153: 546.250752 | BQ153: 2065.089349 | BR153: 2829.099586 | BS153: 23.138186 | BT153: 68.793716 | BU153: 836.543022 | BV153: 85.82093 | BW153: 4378.978765 | BX153: 7241.779945 | BY153: 16.380182 | BZ153: 108.895222 | CA153: 1650.906138 | CB153: 236.2437 | CC153: 293.3454 | CD153: 2632.597916 | CE153: 201.378843 | CF153: 10.025748 | CG153: 14523.7287 | CH153: 2.481993 | CI153: 1699.546651 | CJ153: 0 | CK153: 5.755521 | CL153: 336.538179 | CM153: 3536.338981 | CN153: 1330.551522 | CO153: 23.374027 | CP153: 1445.72293 | CQ153: 1.751273 | CR153: 550.938402 | CS153: 4476.651195 | CT153: 1365.147035
B154: Flush to septic tank | C154: 1.213300557 | D154: 4.903823413 | E154: 14.92377469 | F154: 36.42391197 | G154: 50.05137628 | H154: 19.36389315 | I154: 38.05492581 | J154: 47.21053462 | K154: 47.48594324 | L154: 44.32686477 | M154: 0.6932665755 | N154: 1.962224563 | O154: 5.760808166 | P154: 15.0907002 | Q154: 44.35318356 | R154: 28.62306478 | S154: 20.1187139 | T154: 23.91264623 | U154: 19.94621237 | V154: 15.94520971 | W154: 13.46709466 | X154: 13.39262867 | Y154: 66.31033204 | Z154: 33.55982627 | AA154: 22.7267748 | AB154: 17.3413829 | AC154: 18.58042506 | AD154: 7.804200496 | AE154: 72.78378458 | AF154: 29.79130218 | AG154: 22.63430691 | AH154: 29.37424133 | AI154: 17.20351692 | AJ154: 48.66593803 | AK154: 29.37507039 | AL154: 11.35563654 | AM154: 24.77390858 | AN154: 16.67036001 | AO154: 59.30243293 | AP154: 27.69029414 | AQ154: 15.35105009 | AR154: 26.0910112 | AS154: 18.20737973 | AT154: 27.63197233 | BB154: Flush to septic tank | BC154: 1318.20157 | BD154: 5326.312923 | BE154: 16207.69117 | BF154: 39575.85242 | BG154: 54380.58497 | BH154: 6483.771413 | BI154: 12753.52227 | BJ154: 15818.17159 | BK154: 15925.47272 | BL154: 14850.77196 | BM154: 520.974417 | BN154: 1473.146575 | BO154: 4328.693763 | BP154: 11341.03388 | BQ154: 33313.08446 | BR154: 10928.00752 | BS154: 118.172603 | BT154: 3408.77177 | BU154: 8868.320678 | BV154: 1882.585075 | BW154: 854.379297 | BX154: 3490.257948 | BY154: 490.60709 | BZ154: 1015.205048 | CA154: 2377.718334 | CB154: 2577.50378 | CC154: 950.944464 | CD154: 2397.216388 | CE154: 10151.24725 | CF154: 421.043213 | CG154: 11612.44784 | CH154: 313.817201 | CI154: 5862.690244 | CJ154: 218.505694 | CK154: 222.953622 | CL154: 2240.916242 | CM154: 3272.096266 | CN154: 5227.484915 | CO154: 188.979761 | CP154: 7834.167979 | CQ154: 276.134387 | CR154: 1142.505105 | CS154: 16777.31233 | CT154: 11686.65101
B155: Flush to pit latrine | C155: 1.637462272 | D155: 3.714661412 | E155: 6.990929586 | F155: 9.285949812 | G155: 7.795260073 | H155: 6.46307996 | I155: 8.590712263 | J155: 7.949251326 | K155: 6.7225883 | L155: 4.507338991 | M155: 1.322935208 | N155: 2.58512723 | O155: 4.524974536 | P155: 7.579270016 | Q155: 11.26747812 | R155: 1.998466437 | S155: 7.452473326 | T155: 9.058867758 | U155: 2.009586561 | V155: 1.321687551 | W155: 0.8478307386 | X155: 10.58366133 | Y155: 0.9645010632 | Z155: 5.753369596 | AA155: 9.122094806 | AB155: 0.9671925653 | AC155: 1.990123429 | AD155: 19.39824381 | AE155: 19.17501037 | AF155: 4.245749282 | AG155: 0.8376483765 | AH155: 17.13716826 | AI155: 2.466246397 | AJ155: 22.23995658 | AK155: 24.33951175 | AL155: 0.861392226 | AM155: 11.2582345 | AN155: 3.558808243 | AO155: 3.879717682 | AP155: 0.2731296673 | AQ155: 31.78677181 | AR155: 16.78601531 | AS155: 3.520029373 | AT155: 16.03198554 | BB155: Flush to pit latrine | BC155: 1779.035973 | BD155: 4034.698524 | BE155: 7592.370568 | BF155: 10089.50877 | BG155: 8469.513413 | BH155: 2164.086155 | BI155: 2879.044903 | BJ155: 2663.444133 | BK155: 2254.570285 | BL155: 1510.087931 | BM155: 994.156394 | BN155: 1940.79281 | BO155: 3400.083545 | BP155: 5696.008596 | BQ155: 8462.852497 | BR155: 762.995033 | BS155: 43.774079 | BT155: 1291.35071 | BU155: 893.485827 | BV155: 156.046192 | BW155: 53.78807 | BX155: 2758.211923 | BY155: 7.136008 | BZ155: 174.042911 | CA155: 954.37088 | CB155: 143.756845 | CC155: 101.854336 | CD155: 5958.558854 | CE155: 2674.363149 | CF155: 60.005565 | CG155: 429.752416 | CH155: 183.083475 | CI155: 840.458306 | CJ155: 99.855409 | CK155: 184.734274 | CL155: 169.986757 | CM155: 1486.968718 | CN155: 1115.969685 | CO155: 12.363542 | CP155: 77.274141 | CQ155: 571.779826 | CR155: 735.046566 | CS155: 3243.554706 | CT155: 6780.559046
B156: Flush to somewhere else | C156: 0.108018331 | D156: 0.3162071298 | E156: 1.20880029 | F156: 2.237294285 | G156: 2.891692847 | H156: 3.4940465 | I156: 4.695980099 | J156: 4.318744652 | K156: 3.61214425 | L156: 4.087442274 | M156: 0.05452243152 | N156: 0.03476721427 | O156: 0.07671989521 | P156: 0.1808851162 | Q156: 0.4181673822 | R156: 1.131945372 | S156: 2.844715652 | T156: 0.1397830194 | U156: 0.05385251114 | V156: 0.307859398 | W156: 7.558952489 | X156: 0.3434564983 | Y156: 0.4695994438 | Z156: 0.2187688809 | AA156: 0.1721002027 | AB156: 0.6912810724 | AC156: 4.45619534 | AD156: 1.176070924 | AE156: 0.1740719152 | AF156: 1.532705304 | AG156: 0.9032767492 | AH156: 2.164286391 | AI156: 1.14278873 | AJ156: 0.1181068152 | AK156: 3.440813097 | AL156: 0.08869379056 | AM156: 0.6181884732 | AN156: 1.388957494 | AO156: 1.234172176 | AP156: 9.884659731 | AQ156: 0.4780392708 | AR156: 0.08817272254 | AS156: 1.247159172 | AT156: 0.1951564892 | BB156: Flush to somewhere else | BC156: 117.357511 | BD156: 343.449994 | BE156: 1312.795334 | BF156: 2430.898375 | BG156: 3141.810681 | BH156: 1169.940292 | BI156: 1573.785404 | BJ156: 1447.021189 | BK156: 1211.413332 | BL156: 1369.410479 | BM156: 40.972395 | BN156: 26.101601 | BO156: 57.647629 | BP156: 135.939632 | BQ156: 314.079942 | BR156: 432.165725 | BS156: 16.709192 | BT156: 19.92621 | BU156: 23.94346 | BV156: 36.347688 | BW156: 479.554995 | BX156: 89.508326 | BY156: 3.474403 | BZ156: 6.617891 | CA156: 18.00545 | CB156: 102.74726 | CC156: 228.067672 | CD156: 361.253724 | CE156: 24.278032 | CF156: 21.661865 | CG156: 463.422811 | CH156: 23.121969 | CI156: 389.444575 | CJ156: 0.530289 | CK156: 26.115401 | CL156: 17.502793 | CM156: 81.649296 | CN156: 435.548743 | CO156: 3.932951 | CP156: 2796.578626 | CQ156: 8.598961 | CR156: 3.861015 | CS156: 1149.203195 | CT156: 82.539377
B157: Flush, don't know where | C157: 0.01007028691 | D157: 0.05125180539 | E157: 0.08111948544 | F157: 0.1002472628 | G157: 0.08412500376 | H157: 0.2440427658 | I157: 0.2060675154 | J157: 0.09668675585 | K157: 0.06738491563 | L157: 0.09134784821 | M157: 0.0008693390944 | N157: 0.0005832222082 | O157: 0.04740662202 | P157: 0.04430333982 | Q157: 0.06477106658 | R157: 0.007635563968 | S157: 0.5909230009 | T157: 0 | U157: 0.02360660207 | V157: 0 | W157: 0.4812054692 | X157: 0 | Y157: 0.1081033367 | Z157: 0.01006535242 | AA157: 0.07164572698 | AB157: 0.0454126252 | AC157: 0.4020136886 | AD157: 0.2556844419 | AE157: 0.02889805082 | AF157: 0.03969598457 | AG157: 0.01070226176 | AH157: 0.04781542375 | AI157: 0.05225753245 | AJ157: 0 | AK157: 0.1454029845 | AL157: 0 | AM157: 0 | AN157: 0.02339227383 | AO157: 0.2447959076 | AP157: 0.2804229697 | AQ157: 0 | AR157: 0.3172824518 | AS157: 0.06138253271 | AT157: 0.01357917802 | BB157: Flush, don't know where | BC157: 10.940956 | BD157: 55.667411 | BE157: 88.098326 | BF157: 108.922152 | BG157: 91.401421 | BH157: 81.714844 | BI157: 69.060354 | BJ157: 32.395475 | BK157: 22.599038 | BL157: 30.604151 | BM157: 0.653289 | BN157: 0.437856 | BO157: 35.621521 | BP157: 33.295054 | BQ157: 48.648684 | BR157: 2.915184 | BS157: 3.470943 | BT157: 0 | BU157: 10.495773 | BV157: 0 | BW157: 30.528633 | BX157: 0 | BY157: 0.799819 | BZ157: 0.304483 | CA157: 7.495712 | CB157: 6.74982 | CC157: 20.575024 | CD157: 78.538594 | CE157: 4.030448 | CF157: 0.561027 | CG157: 5.490756 | CH157: 0.510832 | CI157: 17.808552 | CJ157: 0 | CK157: 1.103593 | CL157: 0 | CM157: 0 | CN157: 7.33534 | CO157: 0.780094 | CP157: 79.33757 | CQ157: 0 | CR157: 13.893552 | CS157: 56.561347 | CT157: 5.74317
B158: Ventilated Improved Pit latrine (VIP) | C158: 0.04431885558 | D158: 0.1931753223 | E158: 0.3676325288 | F158: 0.5373708992 | G158: 0.4880935492 | H158: 0.7589593866 | I158: 1.090207266 | J158: 0.3780468681 | K158: 0.4315079966 | L158: 0.165113164 | M158: 0.04832951243 | N158: 0.04559733776 | O158: 0.136880003 | P158: 0.1647549424 | Q158: 0.7029781539 | R158: 0.211395819 | S158: 0 | T158: 0.02953971442 | U158: 0.08233440706 | V158: 0 | W158: 0.03588285878 | X158: 0.0568023477 | Y158: 0.1789469147 | Z158: 0.3437920664 | AA158: 0.07164572698 | AB158: 0.3868750212 | AC158: 0.2309932204 | AD158: 1.011756891 | AE158: 0.01444902541 | AF158: 0.182552198 | AG158: 0.1130578115 | AH158: 0.4601560594 | AI158: 0.2626445495 | AJ158: 1.007780723 | AK158: 0.1284887789 | AL158: 1.404069749 | AM158: 0.09975717313 | AN158: 0.1200091088 | AO158: 0 | AP158: 0 | AQ158: 1.057422548 | AR158: 0 | AS158: 0.6499439797 | AT158: 0.2959239386 | BB158: Ventilated Improved Pit latrine (VIP) | BC158: 48.150629 | BD158: 209.818366 | BE158: 399.26055 | BF158: 583.872249 | BG158: 530.311346 | BH158: 254.128606 | BI158: 365.366174 | BJ158: 126.666861 | BK158: 144.715854 | BL158: 55.317649 | BM158: 36.318554 | BN158: 34.232352 | BO158: 102.852169 | BP158: 123.817408 | BQ158: 527.997513 | BR158: 80.708866 | BS158: 0 | BT158: 4.210916 | BU158: 36.606846 | BV158: 0 | BW158: 2.27648 | BX158: 14.803281 | BY158: 1.323966 | BZ158: 10.399918 | CA158: 7.495712 | CB158: 57.50244 | CC158: 11.822212 | CD158: 310.78138 | CE158: 2.015224 | CF158: 2.580027 | CG158: 58.003894 | CH158: 4.916038 | CI158: 89.505166 | CJ158: 4.524845 | CK158: 0.975216 | CL158: 277.078497 | CM158: 13.17576 | CN158: 37.632409 | CO158: 0 | CP158: 0 | CQ158: 19.020896 | CR158: 0 | CS158: 598.895245 | CT158: 125.157906
B159: Pit latrine with slab | C159: 1.957199587 | D159: 2.640856337 | E159: 3.322902435 | F159: 3.42855687 | G159: 1.938221961 | H159: 2.754769819 | I159: 2.914214032 | J159: 2.509892105 | K159: 1.54358901 | L159: 0.8886919221 | M159: 1.807802351 | N159: 2.493926411 | O159: 2.724212532 | P159: 3.506359565 | Q159: 3.949369442 | R159: 2.663651044 | S159: 17.16698342 | T159: 12.04092587 | U159: 1.852091507 | V159: 0.9207179177 | W159: 0 | X159: 0.1467470025 | Y159: 0.1292723272 | Z159: 0.3422219821 | AA159: 2.663802579 | AB159: 1.246459603 | AC159: 1.716312391 | AD159: 4.867973051 | AE159: 2.473343005 | AF159: 22.7168769 | AG159: 0.149032384 | AH159: 17.38861746 | AI159: 0.5935912067 | AJ159: 17.86368514 | AK159: 9.706879308 | AL159: 4.786780281 | AM159: 5.600439616 | AN159: 1.313907218 | AO159: 10.58899657 | AP159: 0.08384623668 | AQ159: 36.47865107 | AR159: 0.3788229364 | AS159: 0.8045988002 | AT159: 8.793825922 | BB159: Pit latrine with slab | BC159: 2126.417525 | BD159: 2868.37964 | BE159: 3608.777107 | BF159: 3725.246777 | BG159: 2105.869046 | BH159: 922.402208 | BI159: 976.653949 | BJ159: 840.95434 | BK159: 517.677085 | BL159: 297.737301 | BM159: 1358.523271 | BN159: 1872.323494 | BO159: 2046.98394 | BP159: 2635.115807 | BQ159: 2966.3187 | BR159: 1016.956041 | BS159: 100.834831 | BT159: 1716.446093 | BU159: 823.461673 | BV159: 108.705363 | BW159: 0 | BX159: 38.243791 | BY159: 0.956441 | BZ159: 10.352422 | CA159: 278.692084 | CB159: 185.265175 | CC159: 87.840712 | CD159: 1495.295358 | CE159: 344.960303 | CF159: 321.05971 | CG159: 76.460516 | CH159: 185.769811 | CI159: 202.286625 | CJ159: 80.206343 | CK159: 73.674169 | CL159: 944.621082 | CM159: 739.696665 | CN159: 412.014507 | CO159: 33.74408 | CP159: 23.721868 | CQ159: 656.177258 | CR159: 16.588362 | CS159: 741.402968 | CT159: 3719.255844
B160: Pit latrine without slab/open pit | C160: 1.870507506 | D160: 3.45093958 | E160: 2.372193995 | F160: 1.16379185 | G160: 0.2594910292 | H160: 1.795847337 | I160: 1.199039604 | J160: 0.4125893594 | K160: 0.1986896998 | L160: 0.04844504638 | M160: 1.804757584 | N160: 2.891735978 | O160: 3.630241759 | P160: 2.246106137 | Q160: 0.9798312087 | R160: 0.2593056653 | S160: 4.331107021 | T160: 30.85619933 | U160: 1.122211511 | V160: 0.01710329989 | W160: 0.08912362175 | X160: 0.1282092484 | Y160: 0.06787641591 | Z160: 0.07045746691 | AA160: 0.7575561606 | AB160: 0.01513754173 | AC160: 27.26010052 | AD160: 1.224188784 | AE160: 0.3777254915 | AF160: 8.468717845 | AG160: 0.2304640004 | AH160: 27.4980266 | AI160: 0.2859387229 | AJ160: 8.162331753 | AK160: 13.01134462 | AL160: 0.5160405775 | AM160: 1.976438993 | AN160: 0.5313244773 | AO160: 5.943620373 | AP160: 0.006206748496 | AQ160: 11.44095469 | AR160: 0.6239754487 | AS160: 0.4967613043 | AT160: 2.190652966 | BB160: Pit latrine without slab/open pit | BC160: 2032.230115 | BD160: 3748.255705 | BE160: 2576.277682 | BF160: 1264.500489 | BG160: 281.935783 | BH160: 601.318316 | BI160: 401.839656 | BJ160: 138.240529 | BK160: 66.635033 | BL160: 16.230481 | BM160: 1356.235196 | BN160: 2170.980341 | BO160: 2727.777841 | BP160: 1688.004232 | BQ160: 735.938149 | BR160: 99.000379 | BS160: 25.439906 | BT160: 4398.582249 | BU160: 498.94844 | BV160: 2.019316 | BW160: 5.65418 | BX160: 33.41266 | BY160: 0.502194 | BZ160: 2.131381 | CA160: 79.256964 | CB160: 2.24994 | CC160: 1395.169464 | CD160: 376.034088 | CE160: 52.681856 | CF160: 119.689168 | CG160: 118.238707 | CH160: 293.772821 | CI160: 97.443457 | CJ160: 36.648137 | CK160: 98.754705 | CL160: 101.835217 | CM160: 261.044745 | CN160: 166.61252 | CO160: 18.940605 | CP160: 1.75602 | CQ160: 205.799668 | CR160: 27.3234 | CS160: 457.74404 | CT160: 926.513547
B161: No facility/bush/field | C161: 92.23467516 | D161: 82.87064434 | E161: 65.63771169 | F161: 34.69771929 | G161: 5.995330795 | H161: 53.01695519 | I161: 21.37367616 | J161: 8.131759194 | K161: 2.01935575 | L161: 0.3556582476 | M161: 93.84664263 | N161: 89.17827242 | O161: 81.77692321 | P161: 69.36594331 | Q161: 34.92271583 | R161: 57.01565271 | S161: 18.58839415 | T161: 23.04373711 | U161: 72.91159515 | V161: 80.70494615 | W161: 7.347120391 | X161: 46.33279676 | Y161: 24.45398377 | Z161: 55.2718688 | AA161: 48.58932478 | AB161: 77.6377585 | AC161: 35.86385173 | AD161: 55.38691759 | AE161: 3.376531391 | AF161: 29.96752689 | AG161: 46.63425087 | AH161: 4.47405885 | AI161: 72.87453239 | AJ161: 1.94220096 | AK161: 14.61533417 | AL161: 79.23213435 | AM161: 28.62491794 | AN161: 71.79699927 | AO161: 11.1831708 | AP161: 56.48897619 | AQ161: 3.009288648 | AR161: 42.95441823 | AS161: 66.76825861 | AT161: 41.41430286 | BB161: No facility/bush/field | BC161: 100209.2127 | BD161: 90010.37492 | BE161: 71284.63021 | BF161: 37700.28379 | BG161: 6513.898717 | BH161: 17752.10262 | BI161: 7163.058374 | BJ161: 2724.594484 | BK161: 677.236098 | BL161: 119.155721 | BM161: 70523.66529 | BN161: 66950.8827 | BO161: 61447.4996 | BP161: 52130.21947 | BQ161: 26229.98596 | BR161: 21768.02123 | BS161: 109.183864 | BT161: 3284.907901 | BU161: 32417.35297 | BV161: 9528.49977 | BW161: 466.115945 | BX161: 12074.80743 | BY161: 180.926523 | BZ161: 1672.00747 | CA161: 5083.507422 | CB161: 11539.54199 | CC161: 1835.508668 | CD161: 17013.20034 | CE161: 470.929139 | CF161: 423.533813 | CG161: 23925.53074 | CH161: 47.798226 | CI161: 24834.50402 | CJ161: 8.720308 | CK161: 110.928813 | CL161: 15635.63399 | CM161: 3780.731119 | CN161: 22514.07471 | CO161: 35.637542 | CP161: 15981.92226 | CQ161: 54.131025 | CR161: 1880.940594 | CS161: 61524.06029 | CT161: 17515.74222
B162: Composting toilet | C162: 0.01665038021 | D162: 0.05481608725 | E162: 0.09698374824 | F162: 0.07838978218 | G162: 0.04529590336 | H162: 0.1697099779 | I162: 0.1851845149 | J162: 0.07146084228 | K162: 0.02318601051 | L162: 0.03998105215 | M162: 0.01775065826 | N162: 0.03458610684 | O162: 0.03926276232 | P162: 0.05895790414 | Q162: 0.05355779591 | R162: 0 | S162: 0.4879995826 | T162: 0.2067780009 | U162: 0.1169959168 | V162: 0.05558572463 | W162: 0.04305943053 | X162: 0.03155685983 | Y162: 0.05311426792 | Z162: 0.7448360787 | AA162: 0 | AB162: 0.0454126252 | AC162: 0 | AD162: 0.1274386692 | AE162: 0.01444902541 | AF162: 0.4878682616 | AG162: 0.03510369988 | AH162: 1.14687264 | AI162: 0 | AJ162: 0 | AK162: 0.9992303778 | AL162: 0.01942485395 | AM162: 0.1138639393 | AN162: 0.1029260049 | AO162: 0.2323799745 | AP162: 0.09068069379 | AQ162: 0 | AR162: 0 | AS162: 0.02424821005 | AT162: 0 | BB162: Composting toilet | BC162: 18.089959 | BD162: 59.538774 | BE162: 105.327417 | BF162: 85.173236 | BG162: 49.213786 | BH162: 56.825386 | BI162: 62.061738 | BJ162: 23.943382 | BK162: 7.775947 | BL162: 13.3948 | BM162: 13.339225 | BN162: 25.965634 | BO162: 29.502193 | BP162: 44.308321 | BQ162: 40.226546 | BR162: 0 | BS162: 2.866395 | BT162: 29.476412 | BU162: 52.017761 | BV162: 6.562777 | BW162: 2.731776 | BX162: 8.224045 | BY162: 0.392974 | BZ162: 22.531742 | CA162: 0 | CB162: 6.74982 | CC162: 0 | CD162: 39.145338 | CE162: 2.015224 | CF162: 6.895087 | CG162: 18.009824 | CH162: 12.252516 | CI162: 0 | CJ162: 0 | CK162: 7.584051 | CL162: 3.833292 | CM162: 15.038958 | CN162: 32.275496 | CO162: 0.740528 | CP162: 25.65548 | CQ162: 0 | CR162: 0 | CS162: 22.343676 | CT162: 0
B163: Dry toilet | C163: 0.6012191249 | D163: 0.9644286259 | E163: 1.138006661 | F163: 0.5552517142 | G163: 0.1729014763 | H163: 1.957570529 | I163: 0.8839674463 | J163: 0.3128520296 | K163: 0.2296195537 | L163: 0.05769433154 | M163: 0.3426766644 | N163: 0.7189164401 | O163: 0.9667746711 | P163: 0.968927955 | Q163: 0.430117215 | R163: 0.02625614346 | S163: 19.46405138 | T163: 0.1920081437 | U163: 0 | V163: 0 | W163: 0.9602991195 | X163: 0.05049097573 | Y163: 2.678137345 | Z163: 0.07045746691 | AA163: 0 | AB163: 0 | AC163: 3.768333156 | AD163: 0.07995750482 | AE163: 0 | AF163: 1.619448177 | AG163: 0 | AH163: 0.03415387411 | AI163: 0.05704817717 | AJ163: 0 | AK163: 3.327971443 | AL163: 0 | AM163: 0.09110747206 | AN163: 0.1896423586 | AO163: 0 | AP163: 0 | AQ163: 0.05049177191 | AR163: 0.1103610588 | AS163: 3.347927524 | AT163: 0.07672102113 | BB163: Dry toilet | BC163: 653.200058 | BD163: 1047.519093 | BE163: 1235.911215 | BF163: 603.300379 | BG163: 187.856641 | BH163: 655.469421 | BI163: 296.248075 | BJ163: 104.822941 | BK163: 77.008051 | BL163: 19.329257 | BM163: 257.513894 | BN163: 539.728893 | BO163: 726.438265 | BP163: 728.173287 | BQ163: 323.055302 | BR163: 10.02434 | BS163: 114.327269 | BT163: 27.370954 | BU163: 0 | BV163: 0 | BW163: 60.923288 | BX163: 13.158472 | BY163: 19.814607 | BZ163: 2.131381 | CA163: 0 | CB163: 0 | CC163: 192.862948 | CD163: 24.560548 | CE163: 0 | CF163: 22.88781 | CG163: 0 | CH163: 0.36488 | CI163: 19.441129 | CJ163: 0 | CK163: 25.258945 | CL163: 0 | CM163: 12.033322 | CN163: 59.467976 | CO163: 0 | CP163: 0 | CQ163: 0.908245 | CR163: 4.832625 | CS163: 3084.970301 | CT163: 32.448346
B164: other | C164: 0.1437786932 | D164: 0.05840778048 | E164: 0.2539914451 | F164: 0.3236268051 | G164: 0.05530942207 | H164: 0.8554123677 | I164: 0.8389447149 | J164: 0.3239426273 | K164: 0.03643217974 | L164: 0.002309727482 | M164: 0.05169999804 | N164: 0.0336679597 | O164: 0.02965467812 | P164: 0.06693483295 | Q164: 0.1083614028 | R164: 0.6525381605 | S164: 5.015396027 | T164: 0.03692464302 | U164: 0 | V164: 0 | W164: 0.1460808665 | X164: 1.145884713 | Y164: 2.37219176 | Z164: 0.01456598968 | AA164: 0.04531735758 | AB164: 0.03364566475 | AC164: 0 | AD164: 0.09707663668 | AE164: 0.1378639004 | AF164: 0.2381759074 | AG164: 0.1433509555 | AH164: 0.04228105091 | AI164: 0.0742744673 | AJ164: 0 | AK164: 0.1516391731 | AL164: 0.03045142194 | AM164: 0.06858305653 | AN164: 0.0605674912 | AO164: 0.05587169874 | AP164: 0.0917970475 | AQ164: 0.2499721435 | AR164: 0.0683425693 | AS164: 0.01407801449 | AT164: 0.1281197126 | BB164: other | BC164: 156.209686 | BD164: 63.43991 | BE164: 275.84274 | BF164: 351.631826 | BG164: 60.093427 | BH164: 286.42475 | BI164: 281.1594 | BJ164: 108.538912 | BK164: 12.218346 | BL164: 0.773825 | BM164: 38.851399 | BN164: 25.276332 | BO164: 22.282641 | BP164: 50.30318 | BQ164: 81.388804 | BR164: 249.132718 | BS164: 29.459259 | BT164: 5.263645 | BU164: 0 | BV164: 0 | BW164: 9.267661 | BX164: 298.629442 | BY164: 17.551022 | BZ164: 0.44063 | CA164: 4.741188 | CB164: 5.00086 | CC164: 0 | CD164: 29.819032 | CE164: 19.228054 | CF164: 3.366162 | CG164: 73.54568 | CH164: 0.451706 | CI164: 25.31158 | CJ164: 0 | CK164: 1.150925 | CL164: 6.00927 | CM164: 9.058335 | CN164: 18.99273 | CO164: 0.178047 | CP164: 25.97132 | CQ164: 4.496494 | CR164: 2.992668 | CS164: 12.972281 | CT164: 54.18688
BB165: Total | BC165: 108645.9214 | BD165: 108615.5123 | BE165: 108603.1618 | BF165: 108653.4924 | BG165: 108649.5298 | BH165: 33483.82147 | BI165: 33513.45983 | BJ165: 33505.59724 | BK165: 33537.23573 | BL165: 33502.87018 | BM165: 75147.77654 | BN165: 75075.33044 | BO165: 75140.39069 | BP165: 75152.46962 | BQ165: 75108.66591 | BR165: 38179.02662 | BS165: 587.376527 | BT165: 14255.10058 | BU165: 44461.17645 | BV165: 11806.58711 | BW165: 6344.19909 | BX165: 26061.03726 | BY165: 739.865229 | BZ165: 3025.060499 | CA165: 10462.18988 | CB165: 14863.31163 | CC165: 5117.9909 | CD165: 30717.00156 | CE165: 13947.12753 | CF165: 1413.309195 | CG165: 51304.63188 | CH165: 1068.341468 | CI165: 34078.4403 | CJ165: 448.991025 | CK165: 758.989235 | CL165: 19733.95532 | CM165: 13207.83216 | CN165: 31357.96055 | CO165: 318.671177 | CP165: 28292.1082 | CQ165: 1798.798033 | CR165: 4378.922289 | CS165: 92145.67158 | CT165: 42293.94437
A208: =A1026 -> India
A209: =A1034 -> 2006
A210: Access to hygiene facilities
A211: by wealth quintile and sub-national region
A212: Notes:
A213: WHO/UNICEF JMP customised wealth index excludes water,
A214: sanitation and hygiene assets.
A215: Survey used for analysis: | B215: =A1025 -> DHS06
A220: Access to handwashing | C220: NATIONAL wealth index quintile | H220: URBAN wealth index quintile | M220: RURAL wealth index quintile | R220: REGIONS | BA220: Raw numbers of respondents: | BB220: Access to handwashing | BC220: NATIONAL wealth index quintile | BH220: URBAN wealth index quintile | BM220: RURAL wealth index quintile | BR220: SUB-REGIONS:
A221: Weighted percentage (used in graphs) | C221: Poorest | D221: Poor | E221: Middle | F221: Rich | G221: Richest | H221: Poorest | I221: Poor | J221: Middle | K221: Rich | L221: Richest | M221: Poorest | N221: Poor | O221: Middle | P221: Rich | Q221: Richest | R221: [AP] Andhra Pradesh | S221: [AR] Arunachal Pradesh | T221: [AS] Assam | U221: [BH] Bihar | V221: [CH] Chhattisgarh | W221: [DL] Delhi | X221: [GJ] Gujarat | Y221: [GO] Goa | Z221: [HP] Himachal Pradesh | AA221: [HR] Haryana | AB221: [JH] Jharkhand | AC221: [JM] Jammu and Kashmir | AD221: [KA] Karnataka | AE221: [KE] Kerala | AF221: [MG] Meghalaya | AG221: [MH] Maharashtra | AH221: [MN] Manipur | AI221: [MP] Madhya Pradesh | AJ221: [MZ] Mizoram | AK221: [NA] Nagaland | AL221: [OR] Orissa | AM221: [PJ] Punjab | AN221: [RJ] Rajasthan | AO221: [SK] Sikkim | AP221: [TN] Tamil Nadu | AQ221: [TR] Tripura | AR221: [UC] Uttaranchal | AS221: [UP] Uttar Pradesh | AT221: [WB] West Bengal | BA221: Hygiene data, raw numbers (weighted) | BC221: Poorest | BD221: Poor | BE221: Middle | BF221: Rich | BG221: Richest | BH221: Poorest | BI221: Poor | BJ221: Middle | BK221: Rich | BL221: Richest | BM221: Poorest | BN221: Poor | BO221: Middle | BP221: Rich | BQ221: Richest | BR221: [AP] Andhra Pradesh | BS221: [AR] Arunachal Pradesh | BT221: [AS] Assam | BU221: [BH] Bihar | BV221: [CH] Chhattisgarh | BW221: [DL] Delhi | BX221: [GJ] Gujarat | BY221: [GO] Goa | BZ221: [HP] Himachal Pradesh | CA221: [HR] Haryana | CB221: [JH] Jharkhand | CC221: [JM] Jammu and Kashmir | CD221: [KA] Karnataka | CE221: [KE] Kerala | CF221: [MG] Meghalaya | CG221: [MH] Maharashtra | CH221: [MN] Manipur | CI221: [MP] Madhya Pradesh | CJ221: [MZ] Mizoram | CK221: [NA] Nagaland | CL221: [OR] Orissa | CM221: [PJ] Punjab | CN221: [RJ] Rajasthan | CO221: [SK] Sikkim | CP221: [TN] Tamil Nadu | CQ221: [TR] Tripura | CR221: [UC] Uttaranchal | CS221: [UP] Uttar Pradesh | CT221: [WB] West Bengal
A222: Hygiene ladder | B222: Basic | C222: N/A | D222: N/A | E222: N/A | F222: N/A | G222: N/A | H222: N/A | I222: N/A | J222: N/A | K222: N/A | L222: N/A | M222: N/A | N222: N/A | O222: N/A | P222: N/A | Q222: N/A | R222: N/A | S222: N/A | T222: N/A | U222: N/A | V222: N/A | W222: N/A | X222: N/A | Y222: N/A | Z222: N/A | AA222: N/A | AB222: N/A | AC222: N/A | AD222: N/A | AE222: N/A | AF222: N/A | AG222: N/A | AH222: N/A | AI222: N/A | AJ222: N/A | AK222: N/A | AL222: N/A | AM222: N/A | AN222: N/A | AO222: N/A | AP222: N/A | AQ222: N/A | AR222: N/A | AS222: N/A | AT222: N/A | BA222: Hygiene ladder | BB222: Basic | BC222: N/A | BD222: N/A | BE222: N/A | BF222: N/A | BG222: N/A | BH222: N/A | BI222: N/A | BJ222: N/A | BK222: N/A | BL222: N/A | BM222: N/A | BN222: N/A | BO222: N/A | BP222: N/A | BQ222: N/A | BR222: N/A | BS222: N/A | BT222: N/A | BU222: N/A | BV222: N/A | BW222: N/A | BX222: N/A | BY222: N/A | BZ222: N/A | CA222: N/A | CB222: N/A | CC222: N/A | CD222: N/A | CE222: N/A | CF222: N/A | CG222: N/A | CH222: N/A | CI222: N/A | CJ222: N/A | CK222: N/A | CL222: N/A | CM222: N/A | CN222: N/A | CO222: N/A | CP222: N/A | CQ222: N/A | CR222: N/A | CS222: N/A | CT222: N/A
B223: Limited | C223: N/A | D223: N/A | E223: N/A | F223: N/A | G223: N/A | H223: N/A | I223: N/A | J223: N/A | K223: N/A | L223: N/A | M223: N/A | N223: N/A | O223: N/A | P223: N/A | Q223: N/A | R223: N/A | S223: N/A | T223: N/A | U223: N/A | V223: N/A | W223: N/A | X223: N/A | Y223: N/A | Z223: N/A | AA223: N/A | AB223: N/A | AC223: N/A | AD223: N/A | AE223: N/A | AF223: N/A | AG223: N/A | AH223: N/A | AI223: N/A | AJ223: N/A | AK223: N/A | AL223: N/A | AM223: N/A | AN223: N/A | AO223: N/A | AP223: N/A | AQ223: N/A | AR223: N/A | AS223: N/A | AT223: N/A | BB223: Limited | BC223: N/A | BD223: N/A | BE223: N/A | BF223: N/A | BG223: N/A | BH223: N/A | BI223: N/A | BJ223: N/A | BK223: N/A | BL223: N/A | BM223: N/A | BN223: N/A | BO223: N/A | BP223: N/A | BQ223: N/A | BR223: N/A | BS223: N/A | BT223: N/A | BU223: N/A | BV223: N/A | BW223: N/A | BX223: N/A | BY223: N/A | BZ223: N/A | CA223: N/A | CB223: N/A | CC223: N/A | CD223: N/A | CE223: N/A | CF223: N/A | CG223: N/A | CH223: N/A | CI223: N/A | CJ223: N/A | CK223: N/A | CL223: N/A | CM223: N/A | CN223: N/A | CO223: N/A | CP223: N/A | CQ223: N/A | CR223: N/A | CS223: N/A | CT223: N/A
B224: No facility | C224: N/A | D224: N/A | E224: N/A | F224: N/A | G224: N/A | H224: N/A | I224: N/A | J224: N/A | K224: N/A | L224: N/A | M224: N/A | N224: N/A | O224: N/A | P224: N/A | Q224: N/A | R224: N/A | S224: N/A | T224: N/A | U224: N/A | V224: N/A | W224: N/A | X224: N/A | Y224: N/A | Z224: N/A | AA224: N/A | AB224: N/A | AC224: N/A | AD224: N/A | AE224: N/A | AF224: N/A | AG224: N/A | AH224: N/A | AI224: N/A | AJ224: N/A | AK224: N/A | AL224: N/A | AM224: N/A | AN224: N/A | AO224: N/A | AP224: N/A | AQ224: N/A | AR224: N/A | AS224: N/A | AT224: N/A | BB224: No facility | BC224: N/A | BD224: N/A | BE224: N/A | BF224: N/A | BG224: N/A | BH224: N/A | BI224: N/A | BJ224: N/A | BK224: N/A | BL224: N/A | BM224: N/A | BN224: N/A | BO224: N/A | BP224: N/A | BQ224: N/A | BR224: N/A | BS224: N/A | BT224: N/A | BU224: N/A | BV224: N/A | BW224: N/A | BX224: N/A | BY224: N/A | BZ224: N/A | CA224: N/A | CB224: N/A | CC224: N/A | CD224: N/A | CE224: N/A | CF224: N/A | CG224: N/A | CH224: N/A | CI224: N/A | CJ224: N/A | CK224: N/A | CL224: N/A | CM224: N/A | CN224: N/A | CO224: N/A | CP224: N/A | CQ224: N/A | CR224: N/A | CS224: N/A | CT224: N/A
BA225: Observed handwashing place | BB225: Fixed | BC225: N/A | BD225: N/A | BE225: N/A | BF225: N/A | BG225: N/A | BH225: N/A | BI225: N/A | BJ225: N/A | BK225: N/A | BL225: N/A | BM225: N/A | BN225: N/A | BO225: N/A | BP225: N/A | BQ225: N/A | BR225: N/A | BS225: N/A | BT225: N/A | BU225: N/A | BV225: N/A | BW225: N/A | BX225: N/A | BY225: N/A | BZ225: N/A | CA225: N/A | CB225: N/A | CC225: N/A | CD225: N/A | CE225: N/A | CF225: N/A | CG225: N/A | CH225: N/A | CI225: N/A | CJ225: N/A | CK225: N/A | CL225: N/A | CM225: N/A | CN225: N/A | CO225: N/A | CP225: N/A | CQ225: N/A | CR225: N/A | CS225: N/A | CT225: N/A
BB226: Mobile | BC226: N/A | BD226: N/A | BE226: N/A | BF226: N/A | BG226: N/A | BH226: N/A | BI226: N/A | BJ226: N/A | BK226: N/A | BL226: N/A | BM226: N/A | BN226: N/A | BO226: N/A | BP226: N/A | BQ226: N/A | BR226: N/A | BS226: N/A | BT226: N/A | BU226: N/A | BV226: N/A | BW226: N/A | BX226: N/A | BY226: N/A | BZ226: N/A | CA226: N/A | CB226: N/A | CC226: N/A | CD226: N/A | CE226: N/A | CF226: N/A | CG226: N/A | CH226: N/A | CI226: N/A | CJ226: N/A | CK226: N/A | CL226: N/A | CM226: N/A | CN226: N/A | CO226: N/A | CP226: N/A | CQ226: N/A | CR226: N/A | CS226: N/A | CT226: N/A
BA227: Water / Soap | BB227: Water and soap | BC227: N/A | BD227: N/A | BE227: N/A | BF227: N/A | BG227: N/A | BH227: N/A | BI227: N/A | BJ227: N/A | BK227: N/A | BL227: N/A | BM227: N/A | BN227: N/A | BO227: N/A | BP227: N/A | BQ227: N/A | BR227: N/A | BS227: N/A | BT227: N/A | BU227: N/A | BV227: N/A | BW227: N/A | BX227: N/A | BY227: N/A | BZ227: N/A | CA227: N/A | CB227: N/A | CC227: N/A | CD227: N/A | CE227: N/A | CF227: N/A | CG227: N/A | CH227: N/A | CI227: N/A | CJ227: N/A | CK227: N/A | CL227: N/A | CM227: N/A | CN227: N/A | CO227: N/A | CP227: N/A | CQ227: N/A | CR227: N/A | CS227: N/A | CT227: N/A
BB228: Water only | BC228: N/A | BD228: N/A | BE228: N/A | BF228: N/A | BG228: N/A | BH228: N/A | BI228: N/A | BJ228: N/A | BK228: N/A | BL228: N/A | BM228: N/A | BN228: N/A | BO228: N/A | BP228: N/A | BQ228: N/A | BR228: N/A | BS228: N/A | BT228: N/A | BU228: N/A | BV228: N/A | BW228: N/A | BX228: N/A | BY228: N/A | BZ228: N/A | CA228: N/A | CB228: N/A | CC228: N/A | CD228: N/A | CE228: N/A | CF228: N/A | CG228: N/A | CH228: N/A | CI228: N/A | CJ228: N/A | CK228: N/A | CL228: N/A | CM228: N/A | CN228: N/A | CO228: N/A | CP228: N/A | CQ228: N/A | CR228: N/A | CS228: N/A | CT228: N/A
BB229: Soap only | BC229: N/A | BD229: N/A | BE229: N/A | BF229: N/A | BG229: N/A | BH229: N/A | BI229: N/A | BJ229: N/A | BK229: N/A | BL229: N/A | BM229: N/A | BN229: N/A | BO229: N/A | BP229: N/A | BQ229: N/A | BR229: N/A | BS229: N/A | BT229: N/A | BU229: N/A | BV229: N/A | BW229: N/A | BX229: N/A | BY229: N/A | BZ229: N/A | CA229: N/A | CB229: N/A | CC229: N/A | CD229: N/A | CE229: N/A | CF229: N/A | CG229: N/A | CH229: N/A | CI229: N/A | CJ229: N/A | CK229: N/A | CL229: N/A | CM229: N/A | CN229: N/A | CO229: N/A | CP229: N/A | CQ229: N/A | CR229: N/A | CS229: N/A | CT229: N/A
BB230: Neither | BC230: N/A | BD230: N/A | BE230: N/A | BF230: N/A | BG230: N/A | BH230: N/A | BI230: N/A | BJ230: N/A | BK230: N/A | BL230: N/A | BM230: N/A | BN230: N/A | BO230: N/A | BP230: N/A | BQ230: N/A | BR230: N/A | BS230: N/A | BT230: N/A | BU230: N/A | BV230: N/A | BW230: N/A | BX230: N/A | BY230: N/A | BZ230: N/A | CA230: N/A | CB230: N/A | CC230: N/A | CD230: N/A | CE230: N/A | CF230: N/A | CG230: N/A | CH230: N/A | CI230: N/A | CJ230: N/A | CK230: N/A | CL230: N/A | CM230: N/A | CN230: N/A | CO230: N/A | CP230: N/A | CQ230: N/A | CR230: N/A | CS230: N/A | CT230: N/A
BA259: Raw numbers of respondents: | BB259: Menstrual health and hygiene | BC259: NATIONAL wealth index quintile | BH259: URBAN wealth index quintile | BM259: RURAL wealth index quintile | BR259: SUB-REGIONS:
BA260: MHH data, raw numbers (weighted) | BC260: Poorest | BD260: Poor | BE260: Middle | BF260: Rich | BG260: Richest | BH260: Poorest | BI260: Poor | BJ260: Middle | BK260: Rich | BL260: Richest | BM260: Poorest | BN260: Poor | BO260: Middle | BP260: Rich | BQ260: Richest
BA261: Private place to wash and change | BB261: Yes | BC261: N/A | BD261: N/A | BE261: N/A | BF261: N/A | BG261: N/A | BH261: N/A | BI261: N/A | BJ261: N/A | BK261: N/A | BL261: N/A | BM261: N/A | BN261: N/A | BO261: N/A | BP261: N/A | BQ261: N/A | BR261: N/A | BS261: N/A | BT261: N/A | BU261: N/A | BV261: N/A | BW261: N/A | BX261: N/A | BY261: N/A | BZ261: N/A | CA261: N/A | CB261: N/A | CC261: N/A | CD261: N/A | CE261: N/A | CF261: N/A | CG261: N/A | CH261: N/A | CI261: N/A | CJ261: N/A | CK261: N/A | CL261: N/A | CM261: N/A | CN261: N/A | CO261: N/A | CP261: N/A | CQ261: N/A | CR261: N/A | CS261: N/A | CT261: N/A
BB262: No | BC262: N/A | BD262: N/A | BE262: N/A | BF262: N/A | BG262: N/A | BH262: N/A | BI262: N/A | BJ262: N/A | BK262: N/A | BL262: N/A | BM262: N/A | BN262: N/A | BO262: N/A | BP262: N/A | BQ262: N/A | BR262: N/A | BS262: N/A | BT262: N/A | BU262: N/A | BV262: N/A | BW262: N/A | BX262: N/A | BY262: N/A | BZ262: N/A | CA262: N/A | CB262: N/A | CC262: N/A | CD262: N/A | CE262: N/A | CF262: N/A | CG262: N/A | CH262: N/A | CI262: N/A | CJ262: N/A | CK262: N/A | CL262: N/A | CM262: N/A | CN262: N/A | CO262: N/A | CP262: N/A | CQ262: N/A | CR262: N/A | CS262: N/A | CT262: N/A
BB263: DK/not sure/missing | BC263: N/A | BD263: N/A | BE263: N/A | BF263: N/A | BG263: N/A | BH263: N/A | BI263: N/A | BJ263: N/A | BK263: N/A | BL263: N/A | BM263: N/A | BN263: N/A | BO263: N/A | BP263: N/A | BQ263: N/A | BR263: N/A | BS263: N/A | BT263: N/A | BU263: N/A | BV263: N/A | BW263: N/A | BX263: N/A | BY263: N/A | BZ263: N/A | CA263: N/A | CB263: N/A | CC263: N/A | CD263: N/A | CE263: N/A | CF263: N/A | CG263: N/A | CH263: N/A | CI263: N/A | CJ263: N/A | CK263: N/A | CL263: N/A | CM263: N/A | CN263: N/A | CO263: N/A | CP263: N/A | CQ263: N/A | CR263: N/A | CS263: N/A | CT263: N/A
BA264: Use of menstrual materials | BB264: Materials reusable | BC264: N/A | BD264: N/A | BE264: N/A | BF264: N/A | BG264: N/A | BH264: N/A | BI264: N/A | BJ264: N/A | BK264: N/A | BL264: N/A | BM264: N/A | BN264: N/A | BO264: N/A | BP264: N/A | BQ264: N/A | BR264: N/A | BS264: N/A | BT264: N/A | BU264: N/A | BV264: N/A | BW264: N/A | BX264: N/A | BY264: N/A | BZ264: N/A | CA264: N/A | CB264: N/A | CC264: N/A | CD264: N/A | CE264: N/A | CF264: N/A | CG264: N/A | CH264: N/A | CI264: N/A | CJ264: N/A | CK264: N/A | CL264: N/A | CM264: N/A | CN264: N/A | CO264: N/A | CP264: N/A | CQ264: N/A | CR264: N/A | CS264: N/A | CT264: N/A
BB265: Materials not reusable | BC265: N/A | BD265: N/A | BE265: N/A | BF265: N/A | BG265: N/A | BH265: N/A | BI265: N/A | BJ265: N/A | BK265: N/A | BL265: N/A | BM265: N/A | BN265: N/A | BO265: N/A | BP265: N/A | BQ265: N/A | BR265: N/A | BS265: N/A | BT265: N/A | BU265: N/A | BV265: N/A | BW265: N/A | BX265: N/A | BY265: N/A | BZ265: N/A | CA265: N/A | CB265: N/A | CC265: N/A | CD265: N/A | CE265: N/A | CF265: N/A | CG265: N/A | CH265: N/A | CI265: N/A | CJ265: N/A | CK265: N/A | CL265: N/A | CM265: N/A | CN265: N/A | CO265: N/A | CP265: N/A | CQ265: N/A | CR265: N/A | CS265: N/A | CT265: N/A
BB266: No materials used | BC266: N/A | BD266: N/A | BE266: N/A | BF266: N/A | BG266: N/A | BH266: N/A | BI266: N/A | BJ266: N/A | BK266: N/A | BL266: N/A | BM266: N/A | BN266: N/A | BO266: N/A | BP266: N/A | BQ266: N/A | BR266: N/A | BS266: N/A | BT266: N/A | BU266: N/A | BV266: N/A | BW266: N/A | BX266: N/A | BY266: N/A | BZ266: N/A | CA266: N/A | CB266: N/A | CC266: N/A | CD266: N/A | CE266: N/A | CF266: N/A | CG266: N/A | CH266: N/A | CI266: N/A | CJ266: N/A | CK266: N/A | CL266: N/A | CM266: N/A | CN266: N/A | CO266: N/A | CP266: N/A | CQ266: N/A | CR266: N/A | CS266: N/A | CT266: N/A
BB267: DK/not sure/missing | BC267: N/A | BD267: N/A | BE267: N/A | BF267: N/A | BG267: N/A | BH267: N/A | BI267: N/A | BJ267: N/A | BK267: N/A | BL267: N/A | BM267: N/A | BN267: N/A | BO267: N/A | BP267: N/A | BQ267: N/A | BR267: N/A | BS267: N/A | BT267: N/A | BU267: N/A | BV267: N/A | BW267: N/A | BX267: N/A | BY267: N/A | BZ267: N/A | CA267: N/A | CB267: N/A | CC267: N/A | CD267: N/A | CE267: N/A | CF267: N/A | CG267: N/A | CH267: N/A | CI267: N/A | CJ267: N/A | CK267: N/A | CL267: N/A | CM267: N/A | CN267: N/A | CO267: N/A | CP267: N/A | CQ267: N/A | CR267: N/A | CS267: N/A | CT267: N/A
BA268: Use of menstrual materials with private place to wash and change | BB268: Materials reusable | BC268: N/A | BD268: N/A | BE268: N/A | BF268: N/A | BG268: N/A | BH268: N/A | BI268: N/A | BJ268: N/A | BK268: N/A | BL268: N/A | BM268: N/A | BN268: N/A | BO268: N/A | BP268: N/A | BQ268: N/A | BR268: N/A | BS268: N/A | BT268: N/A | BU268: N/A | BV268: N/A | BW268: N/A | BX268: N/A | BY268: N/A | BZ268: N/A | CA268: N/A | CB268: N/A | CC268: N/A | CD268: N/A | CE268: N/A | CF268: N/A | CG268: N/A | CH268: N/A | CI268: N/A | CJ268: N/A | CK268: N/A | CL268: N/A | CM268: N/A | CN268: N/A | CO268: N/A | CP268: N/A | CQ268: N/A | CR268: N/A | CS268: N/A | CT268: N/A
BB269: Materials not reusable | BC269: N/A | BD269: N/A | BE269: N/A | BF269: N/A | BG269: N/A | BH269: N/A | BI269: N/A | BJ269: N/A | BK269: N/A | BL269: N/A | BM269: N/A | BN269: N/A | BO269: N/A | BP269: N/A | BQ269: N/A | BR269: N/A | BS269: N/A | BT269: N/A | BU269: N/A | BV269: N/A | BW269: N/A | BX269: N/A | BY269: N/A | BZ269: N/A | CA269: N/A | CB269: N/A | CC269: N/A | CD269: N/A | CE269: N/A | CF269: N/A | CG269: N/A | CH269: N/A | CI269: N/A | CJ269: N/A | CK269: N/A | CL269: N/A | CM269: N/A | CN269: N/A | CO269: N/A | CP269: N/A | CQ269: N/A | CR269: N/A | CS269: N/A | CT269: N/A
BB270: No materials used | BC270: N/A | BD270: N/A | BE270: N/A | BF270: N/A | BG270: N/A | BH270: N/A | BI270: N/A | BJ270: N/A | BK270: N/A | BL270: N/A | BM270: N/A | BN270: N/A | BO270: N/A | BP270: N/A | BQ270: N/A | BR270: N/A | BS270: N/A | BT270: N/A | BU270: N/A | BV270: N/A | BW270: N/A | BX270: N/A | BY270: N/A | BZ270: N/A | CA270: N/A | CB270: N/A | CC270: N/A | CD270: N/A | CE270: N/A | CF270: N/A | CG270: N/A | CH270: N/A | CI270: N/A | CJ270: N/A | CK270: N/A | CL270: N/A | CM270: N/A | CN270: N/A | CO270: N/A | CP270: N/A | CQ270: N/A | CR270: N/A | CS270: N/A | CT270: N/A
BA271: Awareness of menstruation before menarche | BB271: Yes | BC271: N/A | BD271: N/A | BE271: N/A | BF271: N/A | BG271: N/A | BH271: N/A | BI271: N/A | BJ271: N/A | BK271: N/A | BL271: N/A | BM271: N/A | BN271: N/A | BO271: N/A | BP271: N/A | BQ271: N/A | BR271: N/A | BS271: N/A | BT271: N/A | BU271: N/A | BV271: N/A | BW271: N/A | BX271: N/A | BY271: N/A | BZ271: N/A | CA271: N/A | CB271: N/A | CC271: N/A | CD271: N/A | CE271: N/A | CF271: N/A | CG271: N/A | CH271: N/A | CI271: N/A | CJ271: N/A | CK271: N/A | CL271: N/A | CM271: N/A | CN271: N/A | CO271: N/A | CP271: N/A | CQ271: N/A | CR271: N/A | CS271: N/A | CT271: N/A
BB272: No | BC272: N/A | BD272: N/A | BE272: N/A | BF272: N/A | BG272: N/A | BH272: N/A | BI272: N/A | BJ272: N/A | BK272: N/A | BL272: N/A | BM272: N/A | BN272: N/A | BO272: N/A | BP272: N/A | BQ272: N/A | BR272: N/A | BS272: N/A | BT272: N/A | BU272: N/A | BV272: N/A | BW272: N/A | BX272: N/A | BY272: N/A | BZ272: N/A | CA272: N/A | CB272: N/A | CC272: N/A | CD272: N/A | CE272: N/A | CF272: N/A | CG272: N/A | CH272: N/A | CI272: N/A | CJ272: N/A | CK272: N/A | CL272: N/A | CM272: N/A | CN272: N/A | CO272: N/A | CP272: N/A | CQ272: N/A | CR272: N/A | CS272: N/A | CT272: N/A
BB273: DK/not sure/missing | BC273: N/A | BD273: N/A | BE273: N/A | BF273: N/A | BG273: N/A | BH273: N/A | BI273: N/A | BJ273: N/A | BK273: N/A | BL273: N/A | BM273: N/A | BN273: N/A | BO273: N/A | BP273: N/A | BQ273: N/A | BR273: N/A | BS273: N/A | BT273: N/A | BU273: N/A | BV273: N/A | BW273: N/A | BX273: N/A | BY273: N/A | BZ273: N/A | CA273: N/A | CB273: N/A | CC273: N/A | CD273: N/A | CE273: N/A | CF273: N/A | CG273: N/A | CH273: N/A | CI273: N/A | CJ273: N/A | CK273: N/A | CL273: N/A | CM273: N/A | CN273: N/A | CO273: N/A | CP273: N/A | CQ273: N/A | CR273: N/A | CS273: N/A | CT273: N/A
BA274: Participation in (all) activities during menstruation | BB274: Yes | BC274: N/A | BD274: N/A | BE274: N/A | BF274: N/A | BG274: N/A | BH274: N/A | BI274: N/A | BJ274: N/A | BK274: N/A | BL274: N/A | BM274: N/A | BN274: N/A | BO274: N/A | BP274: N/A | BQ274: N/A | BR274: N/A | BS274: N/A | BT274: N/A | BU274: N/A | BV274: N/A | BW274: N/A | BX274: N/A | BY274: N/A | BZ274: N/A | CA274: N/A | CB274: N/A | CC274: N/A | CD274: N/A | CE274: N/A | CF274: N/A | CG274: N/A | CH274: N/A | CI274: N/A | CJ274: N/A | CK274: N/A | CL274: N/A | CM274: N/A | CN274: N/A | CO274: N/A | CP274: N/A | CQ274: N/A | CR274: N/A | CS274: N/A | CT274: N/A
BB275: No | BC275: N/A | BD275: N/A | BE275: N/A | BF275: N/A | BG275: N/A | BH275: N/A | BI275: N/A | BJ275: N/A | BK275: N/A | BL275: N/A | BM275: N/A | BN275: N/A | BO275: N/A | BP275: N/A | BQ275: N/A | BR275: N/A | BS275: N/A | BT275: N/A | BU275: N/A | BV275: N/A | BW275: N/A | BX275: N/A | BY275: N/A | BZ275: N/A | CA275: N/A | CB275: N/A | CC275: N/A | CD275: N/A | CE275: N/A | CF275: N/A | CG275: N/A | CH275: N/A | CI275: N/A | CJ275: N/A | CK275: N/A | CL275: N/A | CM275: N/A | CN275: N/A | CO275: N/A | CP275: N/A | CQ275: N/A | CR275: N/A | CS275: N/A | CT275: N/A
BB276: DK/not sure/missing/no such activity | BC276: N/A | BD276: N/A | BE276: N/A | BF276: N/A | BG276: N/A | BH276: N/A | BI276: N/A | BJ276: N/A | BK276: N/A | BL276: N/A | BM276: N/A | BN276: N/A | BO276: N/A | BP276: N/A | BQ276: N/A | BR276: N/A | BS276: N/A | BT276: N/A | BU276: N/A | BV276: N/A | BW276: N/A | BX276: N/A | BY276: N/A | BZ276: N/A | CA276: N/A | CB276: N/A | CC276: N/A | CD276: N/A | CE276: N/A | CF276: N/A | CG276: N/A | CH276: N/A | CI276: N/A | CJ276: N/A | CK276: N/A | CL276: N/A | CM276: N/A | CN276: N/A | CO276: N/A | CP276: N/A | CQ276: N/A | CR276: N/A | CS276: N/A | CT276: N/A
BA277: Participation in specific activities during menstruation | BB277: Did not go to school (amongst those usually attending school) | BC277: N/A | BD277: N/A | BE277: N/A | BF277: N/A | BG277: N/A | BH277: N/A | BI277: N/A | BJ277: N/A | BK277: N/A | BL277: N/A | BM277: N/A | BN277: N/A | BO277: N/A | BP277: N/A | BQ277: N/A | BR277: N/A | BS277: N/A | BT277: N/A | BU277: N/A | BV277: N/A | BW277: N/A | BX277: N/A | BY277: N/A | BZ277: N/A | CA277: N/A | CB277: N/A | CC277: N/A | CD277: N/A | CE277: N/A | CF277: N/A | CG277: N/A | CH277: N/A | CI277: N/A | CJ277: N/A | CK277: N/A | CL277: N/A | CM277: N/A | CN277: N/A | CO277: N/A | CP277: N/A | CQ277: N/A | CR277: N/A | CS277: N/A | CT277: N/A
BB278: Did not go to work (amongst those who usually work) | BC278: N/A | BD278: N/A | BE278: N/A | BF278: N/A | BG278: N/A | BH278: N/A | BI278: N/A | BJ278: N/A | BK278: N/A | BL278: N/A | BM278: N/A | BN278: N/A | BO278: N/A | BP278: N/A | BQ278: N/A | BR278: N/A | BS278: N/A | BT278: N/A | BU278: N/A | BV278: N/A | BW278: N/A | BX278: N/A | BY278: N/A | BZ278: N/A | CA278: N/A | CB278: N/A | CC278: N/A | CD278: N/A | CE278: N/A | CF278: N/A | CG278: N/A | CH278: N/A | CI278: N/A | CJ278: N/A | CK278: N/A | CL278: N/A | CM278: N/A | CN278: N/A | CO278: N/A | CP278: N/A | CQ278: N/A | CR278: N/A | CS278: N/A | CT278: N/A
BB279: Did not participate in social activities | BC279: N/A | BD279: N/A | BE279: N/A | BF279: N/A | BG279: N/A | BH279: N/A | BI279: N/A | BJ279: N/A | BK279: N/A | BL279: N/A | BM279: N/A | BN279: N/A | BO279: N/A | BP279: N/A | BQ279: N/A | BR279: N/A | BS279: N/A | BT279: N/A | BU279: N/A | BV279: N/A | BW279: N/A | BX279: N/A | BY279: N/A | BZ279: N/A | CA279: N/A | CB279: N/A | CC279: N/A | CD279: N/A | CE279: N/A | CF279: N/A | CG279: N/A | CH279: N/A | CI279: N/A | CJ279: N/A | CK279: N/A | CL279: N/A | CM279: N/A | CN279: N/A | CO279: N/A | CP279: N/A | CQ279: N/A | CR279: N/A | CS279: N/A | CT279: N/A
BB280: Did not cook food | BC280: N/A | BD280: N/A | BE280: N/A | BF280: N/A | BG280: N/A | BH280: N/A | BI280: N/A | BJ280: N/A | BK280: N/A | BL280: N/A | BM280: N/A | BN280: N/A | BO280: N/A | BP280: N/A | BQ280: N/A | BR280: N/A | BS280: N/A | BT280: N/A | BU280: N/A | BV280: N/A | BW280: N/A | BX280: N/A | BY280: N/A | BZ280: N/A | CA280: N/A | CB280: N/A | CC280: N/A | CD280: N/A | CE280: N/A | CF280: N/A | CG280: N/A | CH280: N/A | CI280: N/A | CJ280: N/A | CK280: N/A | CL280: N/A | CM280: N/A | CN280: N/A | CO280: N/A | CP280: N/A | CQ280: N/A | CR280: N/A | CS280: N/A | CT280: N/A
BB281: Did not eat with others | BC281: N/A | BD281: N/A | BE281: N/A | BF281: N/A | BG281: N/A | BH281: N/A | BI281: N/A | BJ281: N/A | BK281: N/A | BL281: N/A | BM281: N/A | BN281: N/A | BO281: N/A | BP281: N/A | BQ281: N/A | BR281: N/A | BS281: N/A | BT281: N/A | BU281: N/A | BV281: N/A | BW281: N/A | BX281: N/A | BY281: N/A | BZ281: N/A | CA281: N/A | CB281: N/A | CC281: N/A | CD281: N/A | CE281: N/A | CF281: N/A | CG281: N/A | CH281: N/A | CI281: N/A | CJ281: N/A | CK281: N/A | CL281: N/A | CM281: N/A | CN281: N/A | CO281: N/A | CP281: N/A | CQ281: N/A | CR281: N/A | CS281: N/A | CT281: N/A
BB282: Did not bathe in regular place | BC282: N/A | BD282: N/A | BE282: N/A | BF282: N/A | BG282: N/A | BH282: N/A | BI282: N/A | BJ282: N/A | BK282: N/A | BL282: N/A | BM282: N/A | BN282: N/A | BO282: N/A | BP282: N/A | BQ282: N/A | BR282: N/A | BS282: N/A | BT282: N/A | BU282: N/A | BV282: N/A | BW282: N/A | BX282: N/A | BY282: N/A | BZ282: N/A | CA282: N/A | CB282: N/A | CC282: N/A | CD282: N/A | CE282: N/A | CF282: N/A | CG282: N/A | CH282: N/A | CI282: N/A | CJ282: N/A | CK282: N/A | CL282: N/A | CM282: N/A | CN282: N/A | CO282: N/A | CP282: N/A | CQ282: N/A | CR282: N/A | CS282: N/A | CT282: N/A
BB283: Did not participate in other activities | BC283: N/A | BD283: N/A | BE283: N/A | BF283: N/A | BG283: N/A | BH283: N/A | BI283: N/A | BJ283: N/A | BK283: N/A | BL283: N/A | BM283: N/A | BN283: N/A | BO283: N/A | BP283: N/A | BQ283: N/A | BR283: N/A | BS283: N/A | BT283: N/A | BU283: N/A | BV283: N/A | BW283: N/A | BX283: N/A | BY283: N/A | BZ283: N/A | CA283: N/A | CB283: N/A | CC283: N/A | CD283: N/A | CE283: N/A | CF283: N/A | CG283: N/A | CH283: N/A | CI283: N/A | CJ283: N/A | CK283: N/A | CL283: N/A | CM283: N/A | CN283: N/A | CO283: N/A | CP283: N/A | CQ283: N/A | CR283: N/A | CS283: N/A | CT283: N/A
BB284: DK/not sure/missing/no such activity | BC284: N/A | BD284: N/A | BE284: N/A | BF284: N/A | BG284: N/A | BH284: N/A | BI284: N/A | BJ284: N/A | BK284: N/A | BL284: N/A | BM284: N/A | BN284: N/A | BO284: N/A | BP284: N/A | BQ284: N/A | BR284: N/A | BS284: N/A | BT284: N/A | BU284: N/A | BV284: N/A | BW284: N/A | BX284: N/A | BY284: N/A | BZ284: N/A | CA284: N/A | CB284: N/A | CC284: N/A | CD284: N/A | CE284: N/A | CF284: N/A | CG284: N/A | CH284: N/A | CI284: N/A | CJ284: N/A | CK284: N/A | CL284: N/A | CM284: N/A | CN284: N/A | CO284: N/A | CP284: N/A | CQ284: N/A | CR284: N/A | CS284: N/A | CT284: N/A
BA339: Raw numbers of respondents: | BB339: Basic water, sanitation and hygiene | BC339: NATIONAL wealth index quintile | BH339: URBAN wealth index quintile | BM339: RURAL wealth index quintile | BR339: SUB-REGIONS:
BA340: WatSan data, raw numbers (weighted) | BC340: Poorest | BD340: Poor | BE340: Middle | BF340: Rich | BG340: Richest | BH340: Poorest | BI340: Poor | BJ340: Middle | BK340: Rich | BL340: Richest | BM340: Poorest | BN340: Poor | BO340: Middle | BP340: Rich | BQ340: Richest
BA341: Use of Basic Water Sanitation and Hygiene | BB341: Yes | BC341: N/A | BD341: N/A | BE341: N/A | BF341: N/A | BG341: N/A | BH341: N/A | BI341: N/A | BJ341: N/A | BK341: N/A | BL341: N/A | BM341: N/A | BN341: N/A | BO341: N/A | BP341: N/A | BQ341: N/A | BR341: N/A | BS341: N/A | BT341: N/A | BU341: N/A | BV341: N/A | BW341: N/A | BX341: N/A | BY341: N/A | BZ341: N/A | CA341: N/A | CB341: N/A | CC341: N/A | CD341: N/A | CE341: N/A | CF341: N/A | CG341: N/A | CH341: N/A | CI341: N/A | CJ341: N/A | CK341: N/A | CL341: N/A | CM341: N/A | CN341: N/A | CO341: N/A | CP341: N/A | CQ341: N/A | CR341: N/A | CS341: N/A | CT341: N/A
BB342: No | BC342: N/A | BD342: N/A | BE342: N/A | BF342: N/A | BG342: N/A | BH342: N/A | BI342: N/A | BJ342: N/A | BK342: N/A | BL342: N/A | BM342: N/A | BN342: N/A | BO342: N/A | BP342: N/A | BQ342: N/A | BR342: N/A | BS342: N/A | BT342: N/A | BU342: N/A | BV342: N/A | BW342: N/A | BX342: N/A | BY342: N/A | BZ342: N/A | CA342: N/A | CB342: N/A | CC342: N/A | CD342: N/A | CE342: N/A | CF342: N/A | CG342: N/A | CH342: N/A | CI342: N/A | CJ342: N/A | CK342: N/A | CL342: N/A | CM342: N/A | CN342: N/A | CO342: N/A | CP342: N/A | CQ342: N/A | CR342: N/A | CS342: N/A | CT342: N/A
BA343: Use of Basic Water and Sanitation | BB343: Yes | BC343: N/A | BD343: N/A | BE343: N/A | BF343: N/A | BG343: N/A | BH343: N/A | BI343: N/A | BJ343: N/A | BK343: N/A | BL343: N/A | BM343: N/A | BN343: N/A | BO343: N/A | BP343: N/A | BQ343: N/A | BR343: N/A | BS343: N/A | BT343: N/A | BU343: N/A | BV343: N/A | BW343: N/A | BX343: N/A | BY343: N/A | BZ343: N/A | CA343: N/A | CB343: N/A | CC343: N/A | CD343: N/A | CE343: N/A | CF343: N/A | CG343: N/A | CH343: N/A | CI343: N/A | CJ343: N/A | CK343: N/A | CL343: N/A | CM343: N/A | CN343: N/A | CO343: N/A | CP343: N/A | CQ343: N/A | CR343: N/A | CS343: N/A | CT343: N/A
BB344: No | BC344: N/A | BD344: N/A | BE344: N/A | BF344: N/A | BG344: N/A | BH344: N/A | BI344: N/A | BJ344: N/A | BK344: N/A | BL344: N/A | BM344: N/A | BN344: N/A | BO344: N/A | BP344: N/A | BQ344: N/A | BR344: N/A | BS344: N/A | BT344: N/A | BU344: N/A | BV344: N/A | BW344: N/A | BX344: N/A | BY344: N/A | BZ344: N/A | CA344: N/A | CB344: N/A | CC344: N/A | CD344: N/A | CE344: N/A | CF344: N/A | CG344: N/A | CH344: N/A | CI344: N/A | CJ344: N/A | CK344: N/A | CL344: N/A | CM344: N/A | CN344: N/A | CO344: N/A | CP344: N/A | CQ344: N/A | CR344: N/A | CS344: N/A | CT344: N/A
BA345: Use of Basic Water and Hygiene | BB345: Yes | BC345: N/A | BD345: N/A | BE345: N/A | BF345: N/A | BG345: N/A | BH345: N/A | BI345: N/A | BJ345: N/A | BK345: N/A | BL345: N/A | BM345: N/A | BN345: N/A | BO345: N/A | BP345: N/A | BQ345: N/A | BR345: N/A | BS345: N/A | BT345: N/A | BU345: N/A | BV345: N/A | BW345: N/A | BX345: N/A | BY345: N/A | BZ345: N/A | CA345: N/A | CB345: N/A | CC345: N/A | CD345: N/A | CE345: N/A | CF345: N/A | CG345: N/A | CH345: N/A | CI345: N/A | CJ345: N/A | CK345: N/A | CL345: N/A | CM345: N/A | CN345: N/A | CO345: N/A | CP345: N/A | CQ345: N/A | CR345: N/A | CS345: N/A | CT345: N/A
BB346: No | BC346: N/A | BD346: N/A | BE346: N/A | BF346: N/A | BG346: N/A | BH346: N/A | BI346: N/A | BJ346: N/A | BK346: N/A | BL346: N/A | BM346: N/A | BN346: N/A | BO346: N/A | BP346: N/A | BQ346: N/A | BR346: N/A | BS346: N/A | BT346: N/A | BU346: N/A | BV346: N/A | BW346: N/A | BX346: N/A | BY346: N/A | BZ346: N/A | CA346: N/A | CB346: N/A | CC346: N/A | CD346: N/A | CE346: N/A | CF346: N/A | CG346: N/A | CH346: N/A | CI346: N/A | CJ346: N/A | CK346: N/A | CL346: N/A | CM346: N/A | CN346: N/A | CO346: N/A | CP346: N/A | CQ346: N/A | CR346: N/A | CS346: N/A | CT346: N/A
BA347: Use of Basic Sanitation and Hygiene | BB347: Yes | BC347: N/A | BD347: N/A | BE347: N/A | BF347: N/A | BG347: N/A | BH347: N/A | BI347: N/A | BJ347: N/A | BK347: N/A | BL347: N/A | BM347: N/A | BN347: N/A | BO347: N/A | BP347: N/A | BQ347: N/A | BR347: N/A | BS347: N/A | BT347: N/A | BU347: N/A | BV347: N/A | BW347: N/A | BX347: N/A | BY347: N/A | BZ347: N/A | CA347: N/A | CB347: N/A | CC347: N/A | CD347: N/A | CE347: N/A | CF347: N/A | CG347: N/A | CH347: N/A | CI347: N/A | CJ347: N/A | CK347: N/A | CL347: N/A | CM347: N/A | CN347: N/A | CO347: N/A | CP347: N/A | CQ347: N/A | CR347: N/A | CS347: N/A | CT347: N/A
BB348: No | BC348: N/A | BD348: N/A | BE348: N/A | BF348: N/A | BG348: N/A | BH348: N/A | BI348: N/A | BJ348: N/A | BK348: N/A | BL348: N/A | BM348: N/A | BN348: N/A | BO348: N/A | BP348: N/A | BQ348: N/A | BR348: N/A | BS348: N/A | BT348: N/A | BU348: N/A | BV348: N/A | BW348: N/A | BX348: N/A | BY348: N/A | BZ348: N/A | CA348: N/A | CB348: N/A | CC348: N/A | CD348: N/A | CE348: N/A | CF348: N/A | CG348: N/A | CH348: N/A | CI348: N/A | CJ348: N/A | CK348: N/A | CL348: N/A | CM348: N/A | CN348: N/A | CO348: N/A | CP348: N/A | CQ348: N/A | CR348: N/A | CS348: N/A | CT348: N/A
BA349: Use of Basic Water | BB349: Yes | BC349: N/A | BD349: N/A | BE349: N/A | BF349: N/A | BG349: N/A | BH349: N/A | BI349: N/A | BJ349: N/A | BK349: N/A | BL349: N/A | BM349: N/A | BN349: N/A | BO349: N/A | BP349: N/A | BQ349: N/A | BR349: N/A | BS349: N/A | BT349: N/A | BU349: N/A | BV349: N/A | BW349: N/A | BX349: N/A | BY349: N/A | BZ349: N/A | CA349: N/A | CB349: N/A | CC349: N/A | CD349: N/A | CE349: N/A | CF349: N/A | CG349: N/A | CH349: N/A | CI349: N/A | CJ349: N/A | CK349: N/A | CL349: N/A | CM349: N/A | CN349: N/A | CO349: N/A | CP349: N/A | CQ349: N/A | CR349: N/A | CS349: N/A | CT349: N/A
BB350: No | BC350: N/A | BD350: N/A | BE350: N/A | BF350: N/A | BG350: N/A | BH350: N/A | BI350: N/A | BJ350: N/A | BK350: N/A | BL350: N/A | BM350: N/A | BN350: N/A | BO350: N/A | BP350: N/A | BQ350: N/A | BR350: N/A | BS350: N/A | BT350: N/A | BU350: N/A | BV350: N/A | BW350: N/A | BX350: N/A | BY350: N/A | BZ350: N/A | CA350: N/A | CB350: N/A | CC350: N/A | CD350: N/A | CE350: N/A | CF350: N/A | CG350: N/A | CH350: N/A | CI350: N/A | CJ350: N/A | CK350: N/A | CL350: N/A | CM350: N/A | CN350: N/A | CO350: N/A | CP350: N/A | CQ350: N/A | CR350: N/A | CS350: N/A | CT350: N/A
BA351: Use of Basic Sanitation | BB351: Yes | BC351: N/A | BD351: N/A | BE351: N/A | BF351: N/A | BG351: N/A | BH351: N/A | BI351: N/A | BJ351: N/A | BK351: N/A | BL351: N/A | BM351: N/A | BN351: N/A | BO351: N/A | BP351: N/A | BQ351: N/A | BR351: N/A | BS351: N/A | BT351: N/A | BU351: N/A | BV351: N/A | BW351: N/A | BX351: N/A | BY351: N/A | BZ351: N/A | CA351: N/A | CB351: N/A | CC351: N/A | CD351: N/A | CE351: N/A | CF351: N/A | CG351: N/A | CH351: N/A | CI351: N/A | CJ351: N/A | CK351: N/A | CL351: N/A | CM351: N/A | CN351: N/A | CO351: N/A | CP351: N/A | CQ351: N/A | CR351: N/A | CS351: N/A | CT351: N/A
BB352: No | BC352: N/A | BD352: N/A | BE352: N/A | BF352: N/A | BG352: N/A | BH352: N/A | BI352: N/A | BJ352: N/A | BK352: N/A | BL352: N/A | BM352: N/A | BN352: N/A | BO352: N/A | BP352: N/A | BQ352: N/A | BR352: N/A | BS352: N/A | BT352: N/A | BU352: N/A | BV352: N/A | BW352: N/A | BX352: N/A | BY352: N/A | BZ352: N/A | CA352: N/A | CB352: N/A | CC352: N/A | CD352: N/A | CE352: N/A | CF352: N/A | CG352: N/A | CH352: N/A | CI352: N/A | CJ352: N/A | CK352: N/A | CL352: N/A | CM352: N/A | CN352: N/A | CO352: N/A | CP352: N/A | CQ352: N/A | CR352: N/A | CS352: N/A | CT352: N/A
BA353: Access to Basic Hygiene | BB353: Yes | BC353: N/A | BD353: N/A | BE353: N/A | BF353: N/A | BG353: N/A | BH353: N/A | BI353: N/A | BJ353: N/A | BK353: N/A | BL353: N/A | BM353: N/A | BN353: N/A | BO353: N/A | BP353: N/A | BQ353: N/A | BR353: N/A | BS353: N/A | BT353: N/A | BU353: N/A | BV353: N/A | BW353: N/A | BX353: N/A | BY353: N/A | BZ353: N/A | CA353: N/A | CB353: N/A | CC353: N/A | CD353: N/A | CE353: N/A | CF353: N/A | CG353: N/A | CH353: N/A | CI353: N/A | CJ353: N/A | CK353: N/A | CL353: N/A | CM353: N/A | CN353: N/A | CO353: N/A | CP353: N/A | CQ353: N/A | CR353: N/A | CS353: N/A | CT353: N/A
BB354: No | BC354: N/A | BD354: N/A | BE354: N/A | BF354: N/A | BG354: N/A | BH354: N/A | BI354: N/A | BJ354: N/A | BK354: N/A | BL354: N/A | BM354: N/A | BN354: N/A | BO354: N/A | BP354: N/A | BQ354: N/A | BR354: N/A | BS354: N/A | BT354: N/A | BU354: N/A | BV354: N/A | BW354: N/A | BX354: N/A | BY354: N/A | BZ354: N/A | CA354: N/A | CB354: N/A | CC354: N/A | CD354: N/A | CE354: N/A | CF354: N/A | CG354: N/A | CH354: N/A | CI354: N/A | CJ354: N/A | CK354: N/A | CL354: N/A | CM354: N/A | CN354: N/A | CO354: N/A | CP354: N/A | CQ354: N/A | CR354: N/A | CS354: N/A | CT354: N/A
C399: INITIAL (national) Wealth Index | H399: URBAN Wealth Index | M399: RURAL Wealth Index
C400: Component Matrix | H400: Component Matrix | M400: Component Matrix
E401: Component | J401: Component | O401: Component
B402: Note: The INITIAL (national) Wealth Index is based on the first component of the Principal Component Analysis (PCA) which has been obtained at national level. The final national-level (NATIONAL) Wealth Index is based on the URBAN and RURAL specific wealth indexes. Regression procedures are used to establish the relationships between the two sets of scores (urban and rural) and the initial (national) wealth factors. This allows best use of the available information for each area and a better precision of the FINAL (NATIONAL) Wealth Index. For dependency reasons, all WASH variables (contained in the generic MICS and DHS scripts) have been excluded from the sets of asset variables used in the PCAs. The PCA can extracts as many components as there are asset variables in the input. Only the first of the components is used to represent the Wealth Index. The scores represent the weights of the asset variables on the Wealth Index (correlations between the variables and the component). The communalities are the proportion of each variable's variance that can be explained by the component. Proportion of explained variance is the part of the model's total variance that is explained by the component. For more information on the procedure used: The DHS Wealth Index, DHS Comparative Reports No. 6, Shea Oscar Rutstein, Kiersten Johnson, ORC Macro International Inc., 2004. The DHS Wealth Index: Approaches for Rural and Urban Areas, Shea O. Rutstein, ORC Macro International Inc., 2008. MICS Methodological Paper No. 4, Review of options for reporting water, sanitation and hygiene coverage by wealth quintile, UNICEF, 2016. | E402: 1 | J402: 1 | O402: 1
C403: Has television | E403: 0.74895762 | H403: LPG, natural gas for cooking | J403: 0.7328677095 | M403: Has television | O403: 0.7398177268
C404: LPG, natural gas for cooking | E404: 0.7477707812 | H404: Has colour television | J404: 0.7128149279 | M404: Has electric fan | O404: 0.6850508184
C405: Has pressure cooker | E405: 0.7444277387 | H405: Has refrigerator | J405: 0.6926509142 | M405: Has pressure cooker | O405: 0.6812244563
C406: Has colour television | E406: 0.744376929 | H406: Has pressure cooker | J406: 0.6638205445 | M406: Has colour television | O406: 0.6748807934
C407: Has electric fan | E407: 0.6874356406 | H407: Has television | J407: 0.6388133376 | M407: Has table | O407: 0.6509733078
C408: Has refrigerator | E408: 0.6773584827 | H408: Has table | J408: 0.623580347 | M408: Has chair | O408: 0.6421081738
C409: Has table | E409: 0.6627377959 | H409: Has a mobile telephone | J409: 0.6192957344 | M409: Has refrigerator | O409: 0.5933759118
C410: Has chair | E410: 0.652896883 | H410: RCC/RBC/Cement roof | J410: 0.6056761325 | M410: Has electricity | O410: 0.5873073643
C411: Has a mobile telephone | E411: 0.644215596 | H411: Has chair | J411: 0.5995842378 | M411: LPG, natural gas for cooking | O411: 0.5803053547
C412: Cement wall | E412: 0.603082528 | H412: Has motorcycle/scooter | J412: 0.5736342996 | M412: Has a mobile telephone | O412: 0.5475515096
C413: RCC/RBC/Cement roof | E413: 0.6005273084 | H413: Straw/shrubs/grass for cooking | J413: -0.5363324271 | M413: Has motorcycle/scooter | O413: 0.5451170428
... 353 more rows

Sheet DHS16
A2: =A1026 -> India
A3: =A1034 -> 2016
A4: Use of drinking water sources
A5: by wealth quintile and sub-national region
A6: Notes:
A7: WHO/UNICEF JMP customised wealth index excludes water,
A8: sanitation and hygiene assets.
A9: Survey used for analysis: | B9: =A1025 -> DHS16
A10: =B1028 -> 
A11: =B1027 -> 
A14: Use of drinking water sources | C14: NATIONAL wealth index quintile | H14: URBAN wealth index quintile | M14: RURAL wealth index quintile | BA14: Raw numbers of respondents: | BB14: Use of drinking water sources | BC14: NATIONAL wealth index quintile | BH14: URBAN wealth index quintile | BM14: RURAL wealth index quintile | BR14: SUB-REGIONS:
A15: Weighted percentage (used in graphs) | C15: Poorest | D15: Poor | E15: Middle | F15: Rich | G15: Richest | H15: Poorest | I15: Poor | J15: Middle | K15: Rich | L15: Richest | M15: Poorest | N15: Poor | O15: Middle | P15: Rich | Q15: Richest | R15: Andhra Pradesh | S15: Arunachal Pradesh | T15: Assam | U15: Bihar | V15: Chandigarh | W15: Chhattisgarh | X15: Dadra and Nagar Haveli | Y15: Daman and Diu | Z15: Delhi | AA15: Goa | AB15: Gujarat | AC15: Haryana | AD15: Himachal Pradesh | AE15: Jammu and Kashmir | AF15: Jharkhand | AG15: Karnataka | AH15: Kerala | AI15: Lakshadweep | AJ15: Madhya Pradesh | AK15: Maharashtra | AL15: Manipur | AM15: Meghalaya | AN15: Mizoram | AO15: Nagaland | AP15: Odisha | AQ15: Puducherry | AR15: Punjab | AS15: Rajasthan | AT15: Sikkim | AU15: Tamil Nadu | AV15: Telangana | AW15: Tripura | AX15: Uttar Pradesh | AY15: Uttarakhand | AZ15: West Bengal | BA15: Water data, raw numbers (weighted) | BC15: Poorest | BD15: Poor | BE15: Middle | BF15: Rich | BG15: Richest | BH15: Poorest | BI15: Poor | BJ15: Middle | BK15: Rich | BL15: Richest | BM15: Poorest | BN15: Poor | BO15: Middle | BP15: Rich | BQ15: Richest | BR15: Andhra Pradesh | BS15: Arunachal Pradesh | BT15: Assam | BU15: Bihar | BV15: Chandigarh | BW15: Chhattisgarh | BX15: Dadra and Nagar Haveli | BY15: Daman and Diu | BZ15: Delhi | CA15: Goa | CB15: Gujarat | CC15: Haryana | CD15: Himachal Pradesh | CE15: Jammu and Kashmir | CF15: Jharkhand | CG15: Karnataka | CH15: Kerala | CI15: Lakshadweep | CJ15: Madhya Pradesh | CK15: Maharashtra | CL15: Manipur | CM15: Meghalaya | CN15: Mizoram | CO15: Nagaland | CP15: Odisha | CQ15: Puducherry | CR15: Punjab | CS15: Rajasthan | CT15: Sikkim | CU15: Tamil Nadu | CV15: Telangana | CW15: Tripura | CX15: Uttar Pradesh | CY15: Uttarakhand | CZ15: West Bengal
A16: Water | B16: Improved | C16: 89.93308854 | D16: 92.13330385 | E16: 94.37748721 | F16: 97.06859948 | G16: 98.65329195 | H16: 96.40430436 | I16: 98.22239959 | J16: 98.75138029 | K16: 99.09730772 | L16: 99.31577921 | M16: 89.386919 | N16: 90.88670777 | O16: 92.01226676 | P16: 93.89172274 | Q16: 96.30659443 | R16: 95.5806947 | S16: 86.26128857 | T16: 84.18296424 | U16: 98.45753661 | V16: 100 | W16: 91.39071226 | X16: 92.3499522 | Y16: 99.42098473 | Z16: 99.79760289 | AA16: 96.74501907 | AB16: 95.97247327 | AC16: 98.26488806 | AD16: 94.93507731 | AE16: 89.01557117 | AF16: 78.22669813 | AG16: 95.24755528 | AH16: 94.87194661 | AI16: 91.09734848 | AJ16: 85.22442072 | AK16: 92.56783552 | AL16: 63.93862807 | AM16: 70.33114556 | AN16: 93.78304985 | AO16: 82.40915153 | AP16: 89.1621747 | AQ16: 99.61963383 | AR16: 99.5657144 | AS16: 93.68815928 | AT16: 97.75919947 | AU16: 97.68757946 | AV16: 97.67920851 | AW16: 86.4756739 | AX16: 98.39512697 | AY16: 93.52758212 | AZ16: 97.17934825 | BA16: Water | BB16: Improved | BC16: N/A | BD16: N/A | BE16: N/A | BF16: N/A | BG16: N/A | BH16: N/A | BI16: N/A | BJ16: N/A | BK16: N/A | BL16: N/A | BM16: N/A | BN16: N/A | BO16: N/A | BP16: N/A | BQ16: N/A | BR16: N/A | BS16: N/A | BT16: N/A | BU16: N/A | BV16: N/A | BW16: N/A | BX16: N/A | BY16: N/A | BZ16: N/A | CA16: N/A | CB16: N/A | CC16: N/A | CD16: N/A | CE16: N/A | CF16: N/A | CG16: N/A | CH16: N/A | CI16: N/A | CJ16: N/A | CK16: N/A | CL16: N/A | CM16: N/A | CN16: N/A | CO16: N/A | CP16: N/A | CQ16: N/A | CR16: N/A | CS16: N/A | CT16: N/A | CU16: N/A | CV16: N/A | CW16: N/A | CX16: N/A | CY16: N/A | CZ16: N/A
B17: Not Improved | C17: 10.06691146 | D17: 7.866696147 | E17: 5.622512787 | F17: 2.931400522 | G17: 1.34670805 | H17: 3.595695645 | I17: 1.777600408 | J17: 1.248619706 | K17: 0.9026922821 | L17: 0.6842207855 | M17: 10.613081 | N17: 9.113292229 | O17: 7.987733241 | P17: 6.108277256 | Q17: 3.693405569 | R17: 4.419305299 | S17: 13.73871143 | T17: 15.81703576 | U17: 1.542463385 | V17: 0 | W17: 8.609287737 | X17: 7.650047795 | Y17: 0.5790152692 | Z17: 0.2023971091 | AA17: 3.25498093 | AB17: 4.027526733 | AC17: 1.735111943 | AD17: 5.064922689 | AE17: 10.98442883 | AF17: 21.77330187 | AG17: 4.752444716 | AH17: 5.128053394 | AI17: 8.902651524 | AJ17: 14.77557928 | AK17: 7.432164483 | AL17: 36.06137193 | AM17: 29.66885444 | AN17: 6.216950152 | AO17: 17.59084847 | AP17: 10.8378253 | AQ17: 0.3803661652 | AR17: 0.4342856021 | AS17: 6.311840715 | AT17: 2.240800527 | AU17: 2.312420539 | AV17: 2.320791488 | AW17: 13.5243261 | AX17: 1.604873027 | AY17: 6.472417877 | AZ17: 2.820651754 | BB17: Not Improved | BC17: N/A | BD17: N/A | BE17: N/A | BF17: N/A | BG17: N/A | BH17: N/A | BI17: N/A | BJ17: N/A | BK17: N/A | BL17: N/A | BM17: N/A | BN17: N/A | BO17: N/A | BP17: N/A | BQ17: N/A | BR17: N/A | BS17: N/A | BT17: N/A | BU17: N/A | BV17: N/A | BW17: N/A | BX17: N/A | BY17: N/A | BZ17: N/A | CA17: N/A | CB17: N/A | CC17: N/A | CD17: N/A | CE17: N/A | CF17: N/A | CG17: N/A | CH17: N/A | CI17: N/A | CJ17: N/A | CK17: N/A | CL17: N/A | CM17: N/A | CN17: N/A | CO17: N/A | CP17: N/A | CQ17: N/A | CR17: N/A | CS17: N/A | CT17: N/A | CU17: N/A | CV17: N/A | CW17: N/A | CX17: N/A | CY17: N/A | CZ17: N/A
A18: Water ladder | B18: Basic | C18: 86.84346091 | D18: 89.50834081 | E18: 92.2992114 | F18: 95.87104056 | G18: 98.08788733 | H18: 93.7530784 | I18: 96.67740512 | J18: 97.97362593 | K18: 98.53007948 | L18: 98.80270816 | M18: 86.32175126 | N18: 88.08985046 | O18: 89.46795344 | P18: 91.99237515 | Q18: 95.32909427 | R18: 93.54169634 | S18: 85.45510288 | T18: 83.61464837 | U18: 98.25613915 | V18: 98.71120886 | W18: 89.26159173 | X18: 91.50453894 | Y18: 99.42098473 | Z18: 97.47494919 | AA18: 96.71694932 | AB18: 94.70178324 | AC18: 96.31297395 | AD18: 94.2672221 | AE18: 87.93602553 | AF18: 76.43186347 | AG18: 93.41927906 | AH18: 94.61594743 | AI18: 91.09734848 | AJ18: 79.59458125 | AK18: 90.52974913 | AL18: 63.26325428 | AM18: 68.29552051 | AN18: 93.09883057 | AO18: 81.62629846 | AP18: 86.12133059 | AQ18: 99.5552786 | AR18: 99.16271417 | AS18: 88.54551283 | AT18: 97.75919947 | AU18: 96.03339509 | AV18: 95.18750221 | AW18: 85.97505111 | AX18: 97.80074288 | AY18: 92.8556294 | AZ18: 94.4799678 | BA18: Water ladder | BB18: Basic | BC18: N/A | BD18: N/A | BE18: N/A | BF18: N/A | BG18: N/A | BH18: N/A | BI18: N/A | BJ18: N/A | BK18: N/A | BL18: N/A | BM18: N/A | BN18: N/A | BO18: N/A | BP18: N/A | BQ18: N/A | BR18: N/A | BS18: N/A | BT18: N/A | BU18: N/A | BV18: N/A | BW18: N/A | BX18: N/A | BY18: N/A | BZ18: N/A | CA18: N/A | CB18: N/A | CC18: N/A | CD18: N/A | CE18: N/A | CF18: N/A | CG18: N/A | CH18: N/A | CI18: N/A | CJ18: N/A | CK18: N/A | CL18: N/A | CM18: N/A | CN18: N/A | CO18: N/A | CP18: N/A | CQ18: N/A | CR18: N/A | CS18: N/A | CT18: N/A | CU18: N/A | CV18: N/A | CW18: N/A | CX18: N/A | CY18: N/A | CZ18: N/A
B19: Limited | C19: 3.089627628 | D19: 2.624963046 | E19: 2.078275812 | F19: 1.19755892 | G19: 0.5654046207 | H19: 2.651225953 | I19: 1.544994471 | J19: 0.7777543625 | K19: 0.5672282342 | L19: 0.5130710584 | M19: 3.065167744 | N19: 2.796857314 | O19: 2.544313315 | P19: 1.899347592 | Q19: 0.9775001607 | R19: 2.038998361 | S19: 0.806185689 | T19: 0.5683158752 | U19: 0.2013974668 | V19: 1.28879114 | W19: 2.129120538 | X19: 0.8454132642 | Y19: 0 | Z19: 2.322653699 | AA19: 0.02806975004 | AB19: 1.270690026 | AC19: 1.951914105 | AD19: 0.6678552159 | AE19: 1.079545639 | AF19: 1.794834659 | AG19: 1.828276227 | AH19: 0.2559991729 | AI19: 0 | AJ19: 5.629839469 | AK19: 2.03808639 | AL19: 0.6753737907 | AM19: 2.035625048 | AN19: 0.6842192765 | AO19: 0.7828530792 | AP19: 3.040844112 | AQ19: 0.06435523233 | AR19: 0.4030002237 | AS19: 5.142646455 | AT19: 0 | AU19: 1.654184368 | AV19: 2.491706306 | AW19: 0.5006227883 | AX19: 0.594384094 | AY19: 0.6719527255 | AZ19: 2.69938045 | BB19: Limited | BC19: N/A | BD19: N/A | BE19: N/A | BF19: N/A | BG19: N/A | BH19: N/A | BI19: N/A | BJ19: N/A | BK19: N/A | BL19: N/A | BM19: N/A | BN19: N/A | BO19: N/A | BP19: N/A | BQ19: N/A | BR19: N/A | BS19: N/A | BT19: N/A | BU19: N/A | BV19: N/A | BW19: N/A | BX19: N/A | BY19: N/A | BZ19: N/A | CA19: N/A | CB19: N/A | CC19: N/A | CD19: N/A | CE19: N/A | CF19: N/A | CG19: N/A | CH19: N/A | CI19: N/A | CJ19: N/A | CK19: N/A | CL19: N/A | CM19: N/A | CN19: N/A | CO19: N/A | CP19: N/A | CQ19: N/A | CR19: N/A | CS19: N/A | CT19: N/A | CU19: N/A | CV19: N/A | CW19: N/A | CX19: N/A | CY19: N/A | CZ19: N/A
B20: Unimproved | C20: 8.988524352 | D20: 7.03409857 | E20: 4.927935419 | F20: 2.498709723 | G20: 1.043314747 | H20: 3.030319353 | I20: 1.407627428 | J20: 0.9471374027 | K20: 0.5729073576 | L20: 0.4110421079 | M20: 9.432212697 | N20: 8.218553008 | O20: 7.143000845 | P20: 5.394369329 | Q20: 3.245116065 | R20: 3.438791353 | S20: 8.470046298 | T20: 12.48051192 | U20: 1.513106934 | V20: 0 | W20: 7.900809094 | X20: 7.499619694 | Y20: 0.5790152692 | Z20: 0.1882420473 | AA20: 2.76422456 | AB20: 3.621523378 | AC20: 1.544258568 | AD20: 4.019968614 | AE20: 8.305245629 | AF20: 20.30071229 | AG20: 3.444315921 | AH20: 4.809449837 | AI20: 8.902651524 | AJ20: 14.16123747 | AK20: 7.151437496 | AL20: 12.2649176 | AM20: 26.37254318 | AN20: 3.316805837 | AO20: 10.1720784 | AP20: 9.632214664 | AQ20: 0.2916805928 | AR20: 0.2302491047 | AS20: 5.34055431 | AT20: 2.055736286 | AU20: 0.8717264786 | AV20: 2.146317437 | AW20: 12.07909106 | AX20: 1.578845006 | AY20: 4.29774226 | AZ20: 2.724340168 | BB20: Unimproved | BC20: N/A | BD20: N/A | BE20: N/A | BF20: N/A | BG20: N/A | BH20: N/A | BI20: N/A | BJ20: N/A | BK20: N/A | BL20: N/A | BM20: N/A | BN20: N/A | BO20: N/A | BP20: N/A | BQ20: N/A | BR20: N/A | BS20: N/A | BT20: N/A | BU20: N/A | BV20: N/A | BW20: N/A | BX20: N/A | BY20: N/A | BZ20: N/A | CA20: N/A | CB20: N/A | CC20: N/A | CD20: N/A | CE20: N/A | CF20: N/A | CG20: N/A | CH20: N/A | CI20: N/A | CJ20: N/A | CK20: N/A | CL20: N/A | CM20: N/A | CN20: N/A | CO20: N/A | CP20: N/A | CQ20: N/A | CR20: N/A | CS20: N/A | CT20: N/A | CU20: N/A | CV20: N/A | CW20: N/A | CX20: N/A | CY20: N/A | CZ20: N/A
B21: Surface water | C21: 1.078387111 | D21: 0.8325975764 | E21: 0.6945773685 | F21: 0.4326907984 | G21: 0.3033933025 | H21: 0.5653762912 | I21: 0.3699729795 | J21: 0.3014823033 | K21: 0.3297849245 | L21: 0.2731786776 | M21: 1.180868302 | N21: 0.8947392209 | O21: 0.8447323965 | P21: 0.7139079276 | Q21: 0.4482895034 | R21: 0.9805139451 | S21: 5.268665136 | T21: 3.336523836 | U21: 0.02935645097 | V21: 0 | W21: 0.7084786422 | X21: 0.1504281009 | Y21: 0 | Z21: 0.01415506177 | AA21: 0.4907563694 | AB21: 0.4060033552 | AC21: 0.1908533741 | AD21: 1.044954075 | AE21: 2.679183201 | AF21: 1.472589578 | AG21: 1.308128795 | AH21: 0.3186035571 | AI21: 0 | AJ21: 0.6143418072 | AK21: 0.2807269865 | AL21: 23.79645433 | AM21: 3.296311261 | AN21: 2.900144315 | AO21: 7.418770061 | AP21: 1.205610633 | AQ21: 0.08868557237 | AR21: 0.2040364974 | AS21: 0.9712864054 | AT21: 0.1850642414 | AU21: 1.44069406 | AV21: 0.1744740516 | AW21: 1.445235048 | AX21: 0.02602802062 | AY21: 2.174675618 | AZ21: 0.09631158594 | BB21: Surface water | BC21: N/A | BD21: N/A | BE21: N/A | BF21: N/A | BG21: N/A | BH21: N/A | BI21: N/A | BJ21: N/A | BK21: N/A | BL21: N/A | BM21: N/A | BN21: N/A | BO21: N/A | BP21: N/A | BQ21: N/A | BR21: N/A | BS21: N/A | BT21: N/A | BU21: N/A | BV21: N/A | BW21: N/A | BX21: N/A | BY21: N/A | BZ21: N/A | CA21: N/A | CB21: N/A | CC21: N/A | CD21: N/A | CE21: N/A | CF21: N/A | CG21: N/A | CH21: N/A | CI21: N/A | CJ21: N/A | CK21: N/A | CL21: N/A | CM21: N/A | CN21: N/A | CO21: N/A | CP21: N/A | CQ21: N/A | CR21: N/A | CS21: N/A | CT21: N/A | CU21: N/A | CV21: N/A | CW21: N/A | CX21: N/A | CY21: N/A | CZ21: N/A
A22: Improved water point at more than 30 minutes | B22: Yes | C22: 3.435473726 | D22: 2.849092496 | E22: 2.202088521 | F22: 1.233724321 | G22: 0.5731229131 | H22: 2.750111596 | I22: 1.572955331 | J22: 0.7875883458 | K22: 0.5723952015 | L22: 0.5166057825 | M22: 3.429101012 | N22: 3.077300722 | O22: 2.765189256 | P22: 2.022912709 | Q22: 1.014987776 | R22: 2.133274263 | S22: 0.9345857248 | T22: 0.6750960605 | U22: 0.204552616 | V22: 1.28879114 | W22: 2.329690277 | X22: 0.9154452645 | Y22: 0 | Z22: 2.327364217 | AA22: 0.02901415526 | AB22: 1.324015088 | AC22: 1.986380022 | AD22: 0.7034862506 | AE22: 1.212760448 | AF22: 2.294401658 | AG22: 1.919499374 | AH22: 0.2698365345 | AI22: 0 | AJ22: 6.605899367 | AK22: 2.20172199 | AL22: 1.056284458 | AM22: 2.894343654 | AN22: 0.7295766961 | AO22: 0.9499589119 | AP22: 3.410464272 | AQ22: 0.0646009525 | AR22: 0.4047580296 | AS22: 5.489110358 | AT22: 0 | AU22: 1.693341545 | AV22: 2.550907551 | AW22: 0.5789174755 | AX22: 0.6040787916 | AY22: 0.7184540755 | AZ22: 2.777730556 | BA22: Improved water point at more than 30 minutes | BB22: Yes | BC22: N/A | BD22: N/A | BE22: N/A | BF22: N/A | BG22: N/A | BH22: N/A | BI22: N/A | BJ22: N/A | BK22: N/A | BL22: N/A | BM22: N/A | BN22: N/A | BO22: N/A | BP22: N/A | BQ22: N/A | BR22: N/A | BS22: N/A | BT22: N/A | BU22: N/A | BV22: N/A | BW22: N/A | BX22: N/A | BY22: N/A | BZ22: N/A | CA22: N/A | CB22: N/A | CC22: N/A | CD22: N/A | CE22: N/A | CF22: N/A | CG22: N/A | CH22: N/A | CI22: N/A | CJ22: N/A | CK22: N/A | CL22: N/A | CM22: N/A | CN22: N/A | CO22: N/A | CP22: N/A | CQ22: N/A | CR22: N/A | CS22: N/A | CT22: N/A | CU22: N/A | CV22: N/A | CW22: N/A | CX22: N/A | CY22: N/A | CZ22: N/A
B23: No | C23: 96.56452627 | D23: 97.1509075 | E23: 97.79791148 | F23: 98.76627568 | G23: 99.42687709 | H23: 97.2498884 | I23: 98.42704467 | J23: 99.21241165 | K23: 99.4276048 | L23: 99.48339422 | M23: 96.57089899 | N23: 96.92269928 | O23: 97.23481074 | P23: 97.97708729 | Q23: 98.98501222 | R23: 97.86672574 | S23: 99.06541428 | T23: 99.32490394 | U23: 99.79544738 | V23: 98.71120886 | W23: 97.67030972 | X23: 99.08455474 | Y23: 100 | Z23: 97.67263578 | AA23: 99.97098584 | AB23: 98.67598491 | AC23: 98.01361998 | AD23: 99.29651375 | AE23: 98.78723955 | AF23: 97.70559834 | AG23: 98.08050063 | AH23: 99.73016347 | AI23: 100 | AJ23: 93.39410063 | AK23: 97.79827801 | AL23: 98.94371554 | AM23: 97.10565635 | AN23: 99.2704233 | AO23: 99.05004109 | AP23: 96.58953573 | AQ23: 99.93539905 | AR23: 99.59524197 | AS23: 94.51088964 | AT23: 100 | AU23: 98.30665845 | AV23: 97.44909245 | AW23: 99.42108252 | AX23: 99.39592121 | AY23: 99.28154592 | AZ23: 97.22226944 | BB23: No | BC23: N/A | BD23: N/A | BE23: N/A | BF23: N/A | BG23: N/A | BH23: N/A | BI23: N/A | BJ23: N/A | BK23: N/A | BL23: N/A | BM23: N/A | BN23: N/A | BO23: N/A | BP23: N/A | BQ23: N/A | BR23: N/A | BS23: N/A | BT23: N/A | BU23: N/A | BV23: N/A | BW23: N/A | BX23: N/A | BY23: N/A | BZ23: N/A | CA23: N/A | CB23: N/A | CC23: N/A | CD23: N/A | CE23: N/A | CF23: N/A | CG23: N/A | CH23: N/A | CI23: N/A | CJ23: N/A | CK23: N/A | CL23: N/A | CM23: N/A | CN23: N/A | CO23: N/A | CP23: N/A | CQ23: N/A | CR23: N/A | CS23: N/A | CT23: N/A | CU23: N/A | CV23: N/A | CW23: N/A | CX23: N/A | CY23: N/A | CZ23: N/A
A24: Manually calculated ratios | B24: Improved wells
B25: Improved sources
B26: Other
C27: NATIONAL wealth index quintile | H27: URBAN wealth index quintile | M27: RURAL wealth index quintile | BA27: Raw numbers of respondents: | BB27: Use of drinking water sources | BC27: NATIONAL wealth index quintile | BH27: URBAN wealth index quintile | BM27: RURAL wealth index quintile | BR27: SUB-REGIONS:
A28: Percentage based on weighted population | C28: Poorest | D28: Poor | E28: Middle | F28: Rich | G28: Richest | H28: Poorest | I28: Poor | J28: Middle | K28: Rich | L28: Richest | M28: Poorest | N28: Poor | O28: Middle | P28: Rich | Q28: Richest | R28: Andhra Pradesh | S28: Arunachal Pradesh | T28: Assam | U28: Bihar | V28: Chandigarh | W28: Chhattisgarh | X28: Dadra and Nagar Haveli | Y28: Daman and Diu | Z28: Delhi | AA28: Goa | AB28: Gujarat | AC28: Haryana | AD28: Himachal Pradesh | AE28: Jammu and Kashmir | AF28: Jharkhand | AG28: Karnataka | AH28: Kerala | AI28: Lakshadweep | AJ28: Madhya Pradesh | AK28: Maharashtra | AL28: Manipur | AM28: Meghalaya | AN28: Mizoram | AO28: Nagaland | AP28: Odisha | AQ28: Puducherry | AR28: Punjab | AS28: Rajasthan | AT28: Sikkim | AU28: Tamil Nadu | AV28: Telangana | AW28: Tripura | AX28: Uttar Pradesh | AY28: Uttarakhand | AZ28: West Bengal | BA28: Water data, raw numbers (weighted) | BC28: Poorest | BD28: Poor | BE28: Middle | BF28: Rich | BG28: Richest | BH28: Poorest | BI28: Poor | BJ28: Middle | BK28: Rich | BL28: Richest | BM28: Poorest | BN28: Poor | BO28: Middle | BP28: Rich | BQ28: Richest | BR28: Andhra Pradesh | BS28: Arunachal Pradesh | BT28: Assam | BU28: Bihar | BV28: Chandigarh | BW28: Chhattisgarh | BX28: Dadra and Nagar Haveli | BY28: Daman and Diu | BZ28: Delhi | CA28: Goa | CB28: Gujarat | CC28: Haryana | CD28: Himachal Pradesh | CE28: Jammu and Kashmir | CF28: Jharkhand | CG28: Karnataka | CH28: Kerala | CI28: Lakshadweep | CJ28: Madhya Pradesh | CK28: Maharashtra | CL28: Manipur | CM28: Meghalaya | CN28: Mizoram | CO28: Nagaland | CP28: Odisha | CQ28: Puducherry | CR28: Punjab | CS28: Rajasthan | CT28: Sikkim | CU28: Tamil Nadu | CV28: Telangana | CW28: Tripura | CX28: Uttar Pradesh | CY28: Uttarakhand | CZ28: West Bengal
A29: Piped water | B29: Yes | C29: 15.37734621 | D29: 31.17902537 | E29: 46.75911925 | F29: 59.03489102 | G29: 65.93013425 | H29: 54.87498345 | I29: 68.51752939 | J29: 71.32388592 | K29: 72.50776158 | L29: 72.43226031 | M29: 12.43042703 | N29: 21.02515928 | O29: 33.78974659 | P29: 43.31862871 | Q29: 47.83961739 | R29: 54.04974599 | S29: 65.76167835 | T29: 14.08349994 | U29: 5.7813508 | V29: 97.92230654 | W29: 29.02080779 | X29: 43.90019106 | Y29: 84.39019408 | Z29: 75.617848 | AA29: 91.16960269 | AB29: 74.07166939 | AC29: 70.67583709 | AD29: 79.68429626 | AE29: 68.99006771 | AF29: 20.61668262 | AG29: 75.07103706 | AH29: 27.04886932 | AI29: 11.50629425 | AJ29: 37.295334 | AK29: 72.9215909 | AL29: 31.03835084 | AM29: 40.19827377 | AN29: 79.64231165 | AO29: 51.72567971 | AP29: 22.14260075 | AQ29: 89.74736026 | AR29: 70.42744022 | AS29: 48.4769836 | AT29: 94.41246182 | AU29: 83.89823085 | AV29: 65.49546862 | AW29: 35.10440642 | AX29: 13.38508848 | AY29: 66.97684576 | AZ29: 31.65416474 | BA29: Piped water | BB29: Yes | BC29: N/A | BD29: N/A | BE29: N/A | BF29: N/A | BG29: N/A | BH29: N/A | BI29: N/A | BJ29: N/A | BK29: N/A | BL29: N/A | BM29: N/A | BN29: N/A | BO29: N/A | BP29: N/A | BQ29: N/A | BR29: N/A | BS29: N/A | BT29: N/A | BU29: N/A | BV29: N/A | BW29: N/A | BX29: N/A | BY29: N/A | BZ29: N/A | CA29: N/A | CB29: N/A | CC29: N/A | CD29: N/A | CE29: N/A | CF29: N/A | CG29: N/A | CH29: N/A | CI29: N/A | CJ29: N/A | CK29: N/A | CL29: N/A | CM29: N/A | CN29: N/A | CO29: N/A | CP29: N/A | CQ29: N/A | CR29: N/A | CS29: N/A | CT29: N/A | CU29: N/A | CV29: N/A | CW29: N/A | CX29: N/A | CY29: N/A | CZ29: N/A
B30: No | C30: 84.62265379 | D30: 68.82097463 | E30: 53.24088075 | F30: 40.96510898 | G30: 34.06986575 | H30: 45.12501655 | I30: 31.48247061 | J30: 28.67611408 | K30: 27.49223842 | L30: 27.56773969 | M30: 87.56957297 | N30: 78.97484072 | O30: 66.21025341 | P30: 56.68137129 | Q30: 52.16038261 | R30: 45.95025401 | S30: 34.23832165 | T30: 85.91650006 | U30: 94.2186492 | V30: 2.07769346 | W30: 70.97919221 | X30: 56.09980894 | Y30: 15.60980592 | Z30: 24.382152 | AA30: 8.830397312 | AB30: 25.92833061 | AC30: 29.32416291 | AD30: 20.31570374 | AE30: 31.00993229 | AF30: 79.38331738 | AG30: 24.92896294 | AH30: 72.95113068 | AI30: 88.49370575 | AJ30: 62.704666 | AK30: 27.0784091 | AL30: 68.96164916 | AM30: 59.80172623 | AN30: 20.35768835 | AO30: 48.27432029 | AP30: 77.85739925 | AQ30: 10.25263974 | AR30: 29.57255978 | AS30: 51.5230164 | AT30: 5.587538181 | AU30: 16.10176915 | AV30: 34.50453138 | AW30: 64.89559358 | AX30: 86.61491152 | AY30: 33.02315424 | AZ30: 68.34583526 | BB30: No | BC30: N/A | BD30: N/A | BE30: N/A | BF30: N/A | BG30: N/A | BH30: N/A | BI30: N/A | BJ30: N/A | BK30: N/A | BL30: N/A | BM30: N/A | BN30: N/A | BO30: N/A | BP30: N/A | BQ30: N/A | BR30: N/A | BS30: N/A | BT30: N/A | BU30: N/A | BV30: N/A | BW30: N/A | BX30: N/A | BY30: N/A | BZ30: N/A | CA30: N/A | CB30: N/A | CC30: N/A | CD30: N/A | CE30: N/A | CF30: N/A | CG30: N/A | CH30: N/A | CI30: N/A | CJ30: N/A | CK30: N/A | CL30: N/A | CM30: N/A | CN30: N/A | CO30: N/A | CP30: N/A | CQ30: N/A | CR30: N/A | CS30: N/A | CT30: N/A | CU30: N/A | CV30: N/A | CW30: N/A | CX30: N/A | CY30: N/A | CZ30: N/A
A31: Piped water on premises | B31: Yes | C31: 5.48623916 | D31: 14.82000331 | E31: 26.89970085 | F31: 40.65209646 | G31: 57.83418507 | H31: 30.01022337 | I31: 45.88854178 | J31: 54.43402743 | K31: 62.802071 | L31: 66.60031574 | M31: 4.058026896 | N31: 8.816250567 | O31: 16.76730244 | P31: 24.56210773 | Q31: 35.22895212 | R31: 21.04661679 | S31: 48.2543481 | T31: 7.780165921 | U31: 4.089490253 | V31: 91.11231116 | W31: 19.50800788 | X31: 27.69063674 | Y31: 74.98631002 | Z31: 70.95708362 | AA31: 89.19675522 | AB31: 67.47403409 | AC31: 60.90893175 | AD31: 67.50762695 | AE31: 62.91206056 | AF31: 11.3367694 | AG31: 44.06433936 | AH31: 19.58276441 | AI31: 5.961428393 | AJ31: 22.75466979 | AK31: 61.1614053 | AL31: 16.64374808 | AM31: 23.20414825 | AN31: 59.73891886 | AO31: 33.2456974 | AP31: 9.313682524 | AQ31: 42.28846661 | AR31: 62.72730417 | AS31: 35.27227867 | AT31: 91.8813813 | AU31: 30.90451983 | AV31: 42.41420756 | AW31: 8.757306613 | AX31: 10.3407085 | AY31: 48.38673785 | AZ31: 11.21405788 | BA31: Piped water on premises | BB31: Yes | BC31: N/A | BD31: N/A | BE31: N/A | BF31: N/A | BG31: N/A | BH31: N/A | BI31: N/A | BJ31: N/A | BK31: N/A | BL31: N/A | BM31: N/A | BN31: N/A | BO31: N/A | BP31: N/A | BQ31: N/A | BR31: N/A | BS31: N/A | BT31: N/A | BU31: N/A | BV31: N/A | BW31: N/A | BX31: N/A | BY31: N/A | BZ31: N/A | CA31: N/A | CB31: N/A | CC31: N/A | CD31: N/A | CE31: N/A | CF31: N/A | CG31: N/A | CH31: N/A | CI31: N/A | CJ31: N/A | CK31: N/A | CL31: N/A | CM31: N/A | CN31: N/A | CO31: N/A | CP31: N/A | CQ31: N/A | CR31: N/A | CS31: N/A | CT31: N/A | CU31: N/A | CV31: N/A | CW31: N/A | CX31: N/A | CY31: N/A | CZ31: N/A
B32: No | C32: 94.51376084 | D32: 85.17999669 | E32: 73.10029915 | F32: 59.34790354 | G32: 42.16581493 | H32: 69.98977663 | I32: 54.11145822 | J32: 45.56597257 | K32: 37.197929 | L32: 33.39968426 | M32: 95.9419731 | N32: 91.18374943 | O32: 83.23269756 | P32: 75.43789227 | Q32: 64.77104788 | R32: 78.95338321 | S32: 51.7456519 | T32: 92.21983408 | U32: 95.91050975 | V32: 8.887688842 | W32: 80.49199212 | X32: 72.30936326 | Y32: 25.01368998 | Z32: 29.04291638 | AA32: 10.80324478 | AB32: 32.52596591 | AC32: 39.09106825 | AD32: 32.49237305 | AE32: 37.08793944 | AF32: 88.6632306 | AG32: 55.93566064 | AH32: 80.41723559 | AI32: 94.03857161 | AJ32: 77.24533021 | AK32: 38.8385947 | AL32: 83.35625192 | AM32: 76.79585175 | AN32: 40.26108114 | AO32: 66.7543026 | AP32: 90.68631748 | AQ32: 57.71153339 | AR32: 37.27269583 | AS32: 64.72772133 | AT32: 8.118618704 | AU32: 69.09548017 | AV32: 57.58579244 | AW32: 91.24269339 | AX32: 89.6592915 | AY32: 51.61326215 | AZ32: 88.78594212 | BB32: No | BC32: N/A | BD32: N/A | BE32: N/A | BF32: N/A | BG32: N/A | BH32: N/A | BI32: N/A | BJ32: N/A | BK32: N/A | BL32: N/A | BM32: N/A | BN32: N/A | BO32: N/A | BP32: N/A | BQ32: N/A | BR32: N/A | BS32: N/A | BT32: N/A | BU32: N/A | BV32: N/A | BW32: N/A | BX32: N/A | BY32: N/A | BZ32: N/A | CA32: N/A | CB32: N/A | CC32: N/A | CD32: N/A | CE32: N/A | CF32: N/A | CG32: N/A | CH32: N/A | CI32: N/A | CJ32: N/A | CK32: N/A | CL32: N/A | CM32: N/A | CN32: N/A | CO32: N/A | CP32: N/A | CQ32: N/A | CR32: N/A | CS32: N/A | CT32: N/A | CU32: N/A | CV32: N/A | CW32: N/A | CX32: N/A | CY32: N/A | CZ32: N/A
A33: Piped water into dwelling | B33: Yes | C33: N/A | D33: N/A | E33: N/A | F33: N/A | G33: N/A | H33: N/A | I33: N/A | J33: N/A | K33: N/A | L33: N/A | M33: N/A | N33: N/A | O33: N/A | P33: N/A | Q33: N/A | R33: N/A | S33: N/A | T33: N/A | U33: N/A | V33: N/A | W33: N/A | X33: N/A | Y33: N/A | Z33: N/A | AA33: N/A | AB33: N/A | AC33: N/A | AD33: N/A | AE33: N/A | AF33: N/A | AG33: N/A | AH33: N/A | AI33: N/A | AJ33: N/A | AK33: N/A | AL33: N/A | AM33: N/A | AN33: N/A | AO33: N/A | AP33: N/A | AQ33: N/A | AR33: N/A | AS33: N/A | AT33: N/A | AU33: N/A | AV33: N/A | AW33: N/A | AX33: N/A | AY33: N/A | AZ33: N/A | BA33: Piped water into dwelling | BB33: Yes | BC33: N/A | BD33: N/A | BE33: N/A | BF33: N/A | BG33: N/A | BH33: N/A | BI33: N/A | BJ33: N/A | BK33: N/A | BL33: N/A | BM33: N/A | BN33: N/A | BO33: N/A | BP33: N/A | BQ33: N/A | BR33: N/A | BS33: N/A | BT33: N/A | BU33: N/A | BV33: N/A | BW33: N/A | BX33: N/A | BY33: N/A | BZ33: N/A | CA33: N/A | CB33: N/A | CC33: N/A | CD33: N/A | CE33: N/A | CF33: N/A | CG33: N/A | CH33: N/A | CI33: N/A | CJ33: N/A | CK33: N/A | CL33: N/A | CM33: N/A | CN33: N/A | CO33: N/A | CP33: N/A | CQ33: N/A | CR33: N/A | CS33: N/A | CT33: N/A | CU33: N/A | CV33: N/A | CW33: N/A | CX33: N/A | CY33: N/A | CZ33: N/A
B34: No | C34: N/A | D34: N/A | E34: N/A | F34: N/A | G34: N/A | H34: N/A | I34: N/A | J34: N/A | K34: N/A | L34: N/A | M34: N/A | N34: N/A | O34: N/A | P34: N/A | Q34: N/A | R34: N/A | S34: N/A | T34: N/A | U34: N/A | V34: N/A | W34: N/A | X34: N/A | Y34: N/A | Z34: N/A | AA34: N/A | AB34: N/A | AC34: N/A | AD34: N/A | AE34: N/A | AF34: N/A | AG34: N/A | AH34: N/A | AI34: N/A | AJ34: N/A | AK34: N/A | AL34: N/A | AM34: N/A | AN34: N/A | AO34: N/A | AP34: N/A | AQ34: N/A | AR34: N/A | AS34: N/A | AT34: N/A | AU34: N/A | AV34: N/A | AW34: N/A | AX34: N/A | AY34: N/A | AZ34: N/A | BB34: No | BC34: N/A | BD34: N/A | BE34: N/A | BF34: N/A | BG34: N/A | BH34: N/A | BI34: N/A | BJ34: N/A | BK34: N/A | BL34: N/A | BM34: N/A | BN34: N/A | BO34: N/A | BP34: N/A | BQ34: N/A | BR34: N/A | BS34: N/A | BT34: N/A | BU34: N/A | BV34: N/A | BW34: N/A | BX34: N/A | BY34: N/A | BZ34: N/A | CA34: N/A | CB34: N/A | CC34: N/A | CD34: N/A | CE34: N/A | CF34: N/A | CG34: N/A | CH34: N/A | CI34: N/A | CJ34: N/A | CK34: N/A | CL34: N/A | CM34: N/A | CN34: N/A | CO34: N/A | CP34: N/A | CQ34: N/A | CR34: N/A | CS34: N/A | CT34: N/A | CU34: N/A | CV34: N/A | CW34: N/A | CX34: N/A | CY34: N/A | CZ34: N/A
A35: Water source on premises | B35: Yes | C35: 48.35134766 | D35: 54.95651353 | E35: 64.02638993 | F35: 77.29805545 | G35: 91.25947905 | H35: 61.4386784 | I35: 77.49591202 | J35: 84.40027173 | K35: 90.72623607 | L35: 95.70706289 | M35: 47.06506376 | N35: 52.30989569 | O35: 56.4254129 | P35: 64.03903502 | Q35: 79.60768519 | R35: 38.4078391 | S35: 83.69754026 | T35: 84.0902111 | U35: 87.39068152 | V35: 94.51690406 | W35: 36.2726434 | X35: 63.14366214 | Y35: 93.2811215 | Z35: 85.22435424 | AA35: 98.71609806 | AB35: 82.79456149 | AC35: 84.63471005 | AD35: 74.996518 | AE35: 76.43145725 | AF35: 36.58322708 | AG35: 74.85536758 | AH35: 94.29603949 | AI35: 85.48916082 | AJ35: 45.62315904 | AK35: 75.61642448 | AL35: 60.17081215 | AM35: 67.35640161 | AN35: 76.92388883 | AO35: 71.93920725 | AP35: 32.52816174 | AQ35: 82.949259 | AR35: 93.65284316 | AS35: 61.66788225 | AT35: 99.75258582 | AU35: 63.87352595 | AV35: 59.42649363 | AW35: 64.64711204 | AX35: 74.30700557 | AY35: 81.40848661 | AZ35: 46.59237766 | BA35: Water source on premises | BB35: Yes | BC35: N/A | BD35: N/A | BE35: N/A | BF35: N/A | BG35: N/A | BH35: N/A | BI35: N/A | BJ35: N/A | BK35: N/A | BL35: N/A | BM35: N/A | BN35: N/A | BO35: N/A | BP35: N/A | BQ35: N/A | BR35: N/A | BS35: N/A | BT35: N/A | BU35: N/A | BV35: N/A | BW35: N/A | BX35: N/A | BY35: N/A | BZ35: N/A | CA35: N/A | CB35: N/A | CC35: N/A | CD35: N/A | CE35: N/A | CF35: N/A | CG35: N/A | CH35: N/A | CI35: N/A | CJ35: N/A | CK35: N/A | CL35: N/A | CM35: N/A | CN35: N/A | CO35: N/A | CP35: N/A | CQ35: N/A | CR35: N/A | CS35: N/A | CT35: N/A | CU35: N/A | CV35: N/A | CW35: N/A | CX35: N/A | CY35: N/A | CZ35: N/A
B36: No | C36: 51.64865234 | D36: 45.04348647 | E36: 35.97361007 | F36: 22.70194455 | G36: 8.74052095 | H36: 38.5613216 | I36: 22.50408798 | J36: 15.59972827 | K36: 9.273763929 | L36: 4.292937109 | M36: 52.93493624 | N36: 47.69010431 | O36: 43.5745871 | P36: 35.96096498 | Q36: 20.39231481 | R36: 61.5921609 | S36: 16.30245974 | T36: 15.9097889 | U36: 12.60931848 | V36: 5.483095938 | W36: 63.7273566 | X36: 36.85633786 | Y36: 6.718878503 | Z36: 14.77564576 | AA36: 1.283901942 | AB36: 17.20543851 | AC36: 15.36528995 | AD36: 25.003482 | AE36: 23.56854275 | AF36: 63.41677292 | AG36: 25.14463242 | AH36: 5.703960515 | AI36: 14.51083918 | AJ36: 54.37684096 | AK36: 24.38357552 | AL36: 39.82918785 | AM36: 32.64359839 | AN36: 23.07611117 | AO36: 28.06079275 | AP36: 67.47183826 | AQ36: 17.050741 | AR36: 6.347156842 | AS36: 38.33211775 | AT36: 0.2474141818 | AU36: 36.12647405 | AV36: 40.57350637 | AW36: 35.35288796 | AX36: 25.69299443 | AY36: 18.59151339 | AZ36: 53.40762234 | BB36: No | BC36: N/A | BD36: N/A | BE36: N/A | BF36: N/A | BG36: N/A | BH36: N/A | BI36: N/A | BJ36: N/A | BK36: N/A | BL36: N/A | BM36: N/A | BN36: N/A | BO36: N/A | BP36: N/A | BQ36: N/A | BR36: N/A | BS36: N/A | BT36: N/A | BU36: N/A | BV36: N/A | BW36: N/A | BX36: N/A | BY36: N/A | BZ36: N/A | CA36: N/A | CB36: N/A | CC36: N/A | CD36: N/A | CE36: N/A | CF36: N/A | CG36: N/A | CH36: N/A | CI36: N/A | CJ36: N/A | CK36: N/A | CL36: N/A | CM36: N/A | CN36: N/A | CO36: N/A | CP36: N/A | CQ36: N/A | CR36: N/A | CS36: N/A | CT36: N/A | CU36: N/A | CV36: N/A | CW36: N/A | CX36: N/A | CY36: N/A | CZ36: N/A
A37: Improved Water source on premises | B37: Yes | C37: 51.28818609 | D37: 57.01264471 | E37: 65.55447593 | F37: 77.96962353 | G37: 91.48474788 | H37: 62.3301155 | I37: 77.75638327 | J37: 84.51963963 | K37: 90.83036347 | L37: 95.73515582 | M37: 50.26297404 | N37: 54.71886634 | O37: 58.52688859 | P37: 65.67454338 | Q37: 80.50055576 | R37: 39.71135443 | S37: 90.38003696 | T37: 88.39554658 | U37: 87.94555123 | V37: 94.51690406 | W37: 36.71579534 | X37: 66.45645434 | Y37: 93.59071031 | Z37: 85.33971041 | AA37: 99.18441697 | AB37: 85.17788675 | AC37: 85.71499774 | AD37: 78.30105338 | AE37: 84.02234677 | AF37: 38.3255628 | AG37: 75.53025912 | AH37: 94.46219862 | AI37: 84.39607135 | AJ37: 49.07615311 | AK37: 79.88926865 | AL37: 73.17692847 | AM37: 68.76754907 | AN37: 80.170271 | AO37: 79.26672585 | AP37: 33.08067805 | AQ37: 82.90797664 | AR37: 93.879791 | AS37: 64.55574509 | AT37: 99.84789875 | AU37: 64.3141144 | AV37: 60.03752845 | AW37: 70.15989337 | AX37: 74.89909113 | AY37: 85.9268958 | AZ37: 46.54021613 | BA37: Improved water source on premises | BB37: Yes | BC37: N/A | BD37: N/A | BE37: N/A | BF37: N/A | BG37: N/A | BH37: N/A | BI37: N/A | BJ37: N/A | BK37: N/A | BL37: N/A | BM37: N/A | BN37: N/A | BO37: N/A | BP37: N/A | BQ37: N/A | BR37: N/A | BS37: N/A | BT37: N/A | BU37: N/A | BV37: N/A | BW37: N/A | BX37: N/A | BY37: N/A | BZ37: N/A | CA37: N/A | CB37: N/A | CC37: N/A | CD37: N/A | CE37: N/A | CF37: N/A | CG37: N/A | CH37: N/A | CI37: N/A | CJ37: N/A | CK37: N/A | CL37: N/A | CM37: N/A | CN37: N/A | CO37: N/A | CP37: N/A | CQ37: N/A | CR37: N/A | CS37: N/A | CT37: N/A | CU37: N/A | CV37: N/A | CW37: N/A | CX37: N/A | CY37: N/A | CZ37: N/A
B38: No | C38: 48.71181391 | D38: 42.98735529 | E38: 34.44552407 | F38: 22.03037647 | G38: 8.515252118 | H38: 37.6698845 | I38: 22.24361673 | J38: 15.48036037 | K38: 9.169636526 | L38: 4.264844183 | M38: 49.73702596 | N38: 45.28113366 | O38: 41.47311141 | P38: 34.32545662 | Q38: 19.49944424 | R38: 60.28864557 | S38: 9.619963039 | T38: 11.60445342 | U38: 12.05444877 | V38: 5.483095938 | W38: 63.28420466 | X38: 33.54354566 | Y38: 6.409289687 | Z38: 14.66028959 | AA38: 0.8155830275 | AB38: 14.82211325 | AC38: 14.28500226 | AD38: 21.69894662 | AE38: 15.97765323 | AF38: 61.6744372 | AG38: 24.46974088 | AH38: 5.537801381 | AI38: 15.60392865 | AJ38: 50.92384689 | AK38: 20.11073135 | AL38: 26.82307153 | AM38: 31.23245093 | AN38: 19.829729 | AO38: 20.73327415 | AP38: 66.91932195 | AQ38: 17.09202336 | AR38: 6.120209004 | AS38: 35.44425491 | AT38: 0.1521012465 | AU38: 35.6858856 | AV38: 39.96247155 | AW38: 29.84010663 | AX38: 25.10090887 | AY38: 14.0731042 | AZ38: 53.45978387 | BB38: No | BC38: N/A | BD38: N/A | BE38: N/A | BF38: N/A | BG38: N/A | BH38: N/A | BI38: N/A | BJ38: N/A | BK38: N/A | BL38: N/A | BM38: N/A | BN38: N/A | BO38: N/A | BP38: N/A | BQ38: N/A | BR38: N/A | BS38: N/A | BT38: N/A | BU38: N/A | BV38: N/A | BW38: N/A | BX38: N/A | BY38: N/A | BZ38: N/A | CA38: N/A | CB38: N/A | CC38: N/A | CD38: N/A | CE38: N/A | CF38: N/A | CG38: N/A | CH38: N/A | CI38: N/A | CJ38: N/A | CK38: N/A | CL38: N/A | CM38: N/A | CN38: N/A | CO38: N/A | CP38: N/A | CQ38: N/A | CR38: N/A | CS38: N/A | CT38: N/A | CU38: N/A | CV38: N/A | CW38: N/A | CX38: N/A | CY38: N/A | CZ38: N/A
